Workbook

Sheet стр.1
P1: Т а б е л ь № | AP1: Дата составления | AQ1: =INDEX('график 7,8'!$B$28:$AF$39,MONTH(стр.1!$N$4),стр.1!E$11) -> В
D2: учета использования рабочего времени | AK2: Коды
AH3: Форма по ОКУД | AK3: 0504421 | AP3: 2026-03-31
L4: за период с | N4: =DATE(YEAR($AP$3),MONTH($AP$3),1) -> 2026-03-01 | P4: по | Q4: =IF(AND(DAY(AP3)>6,DAY(AP3)<18),DATE(YEAR($AP$3),MONTH($AP$3),15),EOMONTH(AP3,0)) -> 2026-03-31 | AI4: Дата
B5: Учреждение | AI5: по ОКПО | AK5: 05342188
B6: Структурное подразделение
B7: Вид табеля | AG7: Номер корректировки
AF8: Дата формирования документа
B10: Фамилия, имя отчество | C10: Учетный номер | D10: Должность (профессия)
E11: 1 | F11: 2 | G11: 3 | H11: 4 | I11: 5 | J11: 6 | K11: 7 | L11: 8 | M11: 9 | N11: 10 | O11: 11 | P11: 12 | Q11: 13 | R11: 14 | S11: 15 | T11: Итого дней (часов) явок (неявок) с 1 по 15 | U11: 16 | V11: 17 | W11: 18 | X11: 19 | Y11: 20 | Z11: 21 | AA11: 22 | AB11: 23 | AC11: 24 | AD11: 25 | AE11: 26 | AF11: 27 | AG11: 28 | AH11: 29 | AI11: 30 | AJ11: 31 | AK11: Всего дней (часов) явок (неявок) за месяц | AL11: Работа в праздн. день | AM11: молоко | AN11: Доплаты/ надбавки (%)
B12: 1 | C12: 2 | D12: 4 | E12: 5 | F12: 6 | G12: 7 | H12: 8 | I12: 9 | J12: 10 | K12: 11 | L12: 12 | M12: 13 | N12: 14 | O12: 15 | P12: 16 | Q12: 17 | R12: 18 | S12: 19 | T12: 20 | U12: 21 | V12: 22 | W12: 23 | X12: 24 | Y12: 25 | Z12: 26 | AA12: 27 | AB12: 28 | AC12: 29 | AD12: 30 | AE12: 31 | AF12: 32 | AG12: 33 | AH12: 34 | AI12: 35 | AJ12: 36 | AK12: 37 | AL12: 38 | AN12: 39
A13: =C13 -> 3849 | B13: Копытов | C13: 3849 | D13: сборная | E13: =IFERROR(INDEX(РВД!$D:$I,MATCH($C13,РВД!$A:$A,)+1,MATCH($N$4+E$11-1,INDEX(РВД!$D:$I,MATCH($C13,РВД!$A:$A,),),)),IF(E14="Я",INDEX('график 7,8'!$B$5:$AF$16,MONTH($AP$3),E$11),"")) ->  | F13: =IFERROR(INDEX(РВД!$D:$I,MATCH($C13,РВД!$A:$A,)+1,MATCH($N$4+F$11-1,INDEX(РВД!$D:$I,MATCH($C13,РВД!$A:$A,),),)),IF(F14="Я",INDEX('график 7,8'!$B$5:$AF$16,MONTH($AP$3),F$11),"")) -> 7.8 | G13: =IFERROR(INDEX(РВД!$D:$I,MATCH($C13,РВД!$A:$A,)+1,MATCH($N$4+G$11-1,INDEX(РВД!$D:$I,MATCH($C13,РВД!$A:$A,),),)),IF(G14="Я",INDEX('график 7,8'!$B$5:$AF$16,MONTH($AP$3),G$11),"")) -> 7.8 | H13: =IFERROR(INDEX(РВД!$D:$I,MATCH($C13,РВД!$A:$A,)+1,MATCH($N$4+H$11-1,INDEX(РВД!$D:$I,MATCH($C13,РВД!$A:$A,),),)),IF(H14="Я",INDEX('график 7,8'!$B$5:$AF$16,MONTH($AP$3),H$11),"")) -> 7.8 | I13: =IFERROR(INDEX(РВД!$D:$I,MATCH($C13,РВД!$A:$A,)+1,MATCH($N$4+I$11-1,INDEX(РВД!$D:$I,MATCH($C13,РВД!$A:$A,),),)),IF(I14="Я",INDEX('график 7,8'!$B$5:$AF$16,MONTH($AP$3),I$11),"")) -> 7.8 | J13: =IFERROR(INDEX(РВД!$D:$I,MATCH($C13,РВД!$A:$A,)+1,MATCH($N$4+J$11-1,INDEX(РВД!$D:$I,MATCH($C13,РВД!$A:$A,),),)),IF(J14="Я",INDEX('график 7,8'!$B$5:$AF$16,MONTH($AP$3),J$11),"")) -> 7.8 | K13: =IFERROR(INDEX(РВД!$D:$I,MATCH($C13,РВД!$A:$A,)+1,MATCH($N$4+K$11-1,INDEX(РВД!$D:$I,MATCH($C13,РВД!$A:$A,),),)),IF(K14="Я",INDEX('график 7,8'!$B$5:$AF$16,MONTH($AP$3),K$11),"")) ->  | L13: =IFERROR(INDEX(РВД!$D:$I,MATCH($C13,РВД!$A:$A,)+1,MATCH($N$4+L$11-1,INDEX(РВД!$D:$I,MATCH($C13,РВД!$A:$A,),),)),IF(L14="Я",INDEX('график 7,8'!$B$5:$AF$16,MONTH($AP$3),L$11),"")) ->  | M13: =IFERROR(INDEX(РВД!$D:$I,MATCH($C13,РВД!$A:$A,)+1,MATCH($N$4+M$11-1,INDEX(РВД!$D:$I,MATCH($C13,РВД!$A:$A,),),)),IF(M14="Я",INDEX('график 7,8'!$B$5:$AF$16,MONTH($AP$3),M$11),"")) ->  | N13: =IFERROR(INDEX(РВД!$D:$I,MATCH($C13,РВД!$A:$A,)+1,MATCH($N$4+N$11-1,INDEX(РВД!$D:$I,MATCH($C13,РВД!$A:$A,),),)),IF(N14="Я",INDEX('график 7,8'!$B$5:$AF$16,MONTH($AP$3),N$11),"")) -> 7.8 | O13: =IFERROR(INDEX(РВД!$D:$I,MATCH($C13,РВД!$A:$A,)+1,MATCH($N$4+O$11-1,INDEX(РВД!$D:$I,MATCH($C13,РВД!$A:$A,),),)),IF(O14="Я",INDEX('график 7,8'!$B$5:$AF$16,MONTH($AP$3),O$11),"")) -> 7.8 | P13: =IFERROR(INDEX(РВД!$D:$I,MATCH($C13,РВД!$A:$A,)+1,MATCH($N$4+P$11-1,INDEX(РВД!$D:$I,MATCH($C13,РВД!$A:$A,),),)),IF(P14="Я",INDEX('график 7,8'!$B$5:$AF$16,MONTH($AP$3),P$11),"")) -> 7.8 | Q13: =IFERROR(INDEX(РВД!$D:$I,MATCH($C13,РВД!$A:$A,)+1,MATCH($N$4+Q$11-1,INDEX(РВД!$D:$I,MATCH($C13,РВД!$A:$A,),),)),IF(Q14="Я",INDEX('график 7,8'!$B$5:$AF$16,MONTH($AP$3),Q$11),"")) -> 7.8 | R13: =IFERROR(INDEX(РВД!$D:$I,MATCH($C13,РВД!$A:$A,)+1,MATCH($N$4+R$11-1,INDEX(РВД!$D:$I,MATCH($C13,РВД!$A:$A,),),)),IF(R14="Я",INDEX('график 7,8'!$B$5:$AF$16,MONTH($AP$3),R$11),"")) ->  | S13: =IFERROR(INDEX(РВД!$D:$I,MATCH($C13,РВД!$A:$A,)+1,MATCH($N$4+S$11-1,INDEX(РВД!$D:$I,MATCH($C13,РВД!$A:$A,),),)),IF(S14="Я",INDEX('график 7,8'!$B$5:$AF$16,MONTH($AP$3),S$11),"")) ->  | T13: =SUMIF(E14:S14,"Я",E13:S13) -> 70.2 | U13: =IFERROR(INDEX(РВД!$D:$I,MATCH($C13,РВД!$A:$A,)+1,MATCH($N$4+U$11-1,INDEX(РВД!$D:$I,MATCH($C13,РВД!$A:$A,),),)),IF(U14="Я",INDEX('график 7,8'!$B$5:$AF$16,MONTH($AP$3),U$11),"")) -> 7.8 | V13: =IFERROR(INDEX(РВД!$D:$I,MATCH($C13,РВД!$A:$A,)+1,MATCH($N$4+V$11-1,INDEX(РВД!$D:$I,MATCH($C13,РВД!$A:$A,),),)),IF(V14="Я",INDEX('график 7,8'!$B$5:$AF$16,MONTH($AP$3),V$11),"")) -> 7.8 | W13: =IFERROR(INDEX(РВД!$D:$I,MATCH($C13,РВД!$A:$A,)+1,MATCH($N$4+W$11-1,INDEX(РВД!$D:$I,MATCH($C13,РВД!$A:$A,),),)),IF(W14="Я",INDEX('график 7,8'!$B$5:$AF$16,MONTH($AP$3),W$11),"")) -> 7.8 | X13: =IFERROR(INDEX(РВД!$D:$I,MATCH($C13,РВД!$A:$A,)+1,MATCH($N$4+X$11-1,INDEX(РВД!$D:$I,MATCH($C13,РВД!$A:$A,),),)),IF(X14="Я",INDEX('график 7,8'!$B$5:$AF$16,MONTH($AP$3),X$11),"")) -> 7.8 | Y13: =IFERROR(INDEX(РВД!$D:$I,MATCH($C13,РВД!$A:$A,)+1,MATCH($N$4+Y$11-1,INDEX(РВД!$D:$I,MATCH($C13,РВД!$A:$A,),),)),IF(Y14="Я",INDEX('график 7,8'!$B$5:$AF$16,MONTH($AP$3),Y$11),"")) -> 7.8 | Z13: =IFERROR(INDEX(РВД!$D:$I,MATCH($C13,РВД!$A:$A,)+1,MATCH($N$4+Z$11-1,INDEX(РВД!$D:$I,MATCH($C13,РВД!$A:$A,),),)),IF(Z14="Я",INDEX('график 7,8'!$B$5:$AF$16,MONTH($AP$3),Z$11),"")) ->  | AA13: =IFERROR(INDEX(РВД!$D:$I,MATCH($C13,РВД!$A:$A,)+1,MATCH($N$4+AA$11-1,INDEX(РВД!$D:$I,MATCH($C13,РВД!$A:$A,),),)),IF(AA14="Я",INDEX('график 7,8'!$B$5:$AF$16,MONTH($AP$3),AA$11),"")) ->  | AB13: =IFERROR(INDEX(РВД!$D:$I,MATCH($C13,РВД!$A:$A,)+1,MATCH($N$4+AB$11-1,INDEX(РВД!$D:$I,MATCH($C13,РВД!$A:$A,),),)),IF(AB14="Я",INDEX('график 7,8'!$B$5:$AF$16,MONTH($AP$3),AB$11),"")) -> 7.8 | AC13: =IFERROR(INDEX(РВД!$D:$I,MATCH($C13,РВД!$A:$A,)+1,MATCH($N$4+AC$11-1,INDEX(РВД!$D:$I,MATCH($C13,РВД!$A:$A,),),)),IF(AC14="Я",INDEX('график 7,8'!$B$5:$AF$16,MONTH($AP$3),AC$11),"")) -> 7.8 | AD13: =IFERROR(INDEX(РВД!$D:$I,MATCH($C13,РВД!$A:$A,)+1,MATCH($N$4+AD$11-1,INDEX(РВД!$D:$I,MATCH($C13,РВД!$A:$A,),),)),IF(AD14="Я",INDEX('график 7,8'!$B$5:$AF$16,MONTH($AP$3),AD$11),"")) -> 7.8 | AE13: =IFERROR(INDEX(РВД!$D:$I,MATCH($C13,РВД!$A:$A,)+1,MATCH($N$4+AE$11-1,INDEX(РВД!$D:$I,MATCH($C13,РВД!$A:$A,),),)),IF(AE14="Я",INDEX('график 7,8'!$B$5:$AF$16,MONTH($AP$3),AE$11),"")) -> 7.8 | AF13: =IFERROR(INDEX(РВД!$D:$I,MATCH($C13,РВД!$A:$A,)+1,MATCH($N$4+AF$11-1,INDEX(РВД!$D:$I,MATCH($C13,РВД!$A:$A,),),)),IF(AF14="Я",INDEX('график 7,8'!$B$5:$AF$16,MONTH($AP$3),AF$11),"")) -> 7.8 | AG13: =IFERROR(INDEX(РВД!$D:$I,MATCH($C13,РВД!$A:$A,)+1,MATCH($N$4+AG$11-1,INDEX(РВД!$D:$I,MATCH($C13,РВД!$A:$A,),),)),IF(AG14="Я",INDEX('график 7,8'!$B$5:$AF$16,MONTH($AP$3),AG$11),"")) ->  | AH13: =IFERROR(INDEX(РВД!$D:$I,MATCH($C13,РВД!$A:$A,)+1,MATCH($N$4+AH$11-1,INDEX(РВД!$D:$I,MATCH($C13,РВД!$A:$A,),),)),IF(AH14="Я",INDEX('график 7,8'!$B$5:$AF$16,MONTH($AP$3),AH$11),"")) ->  | AI13: =IFERROR(INDEX(РВД!$D:$I,MATCH($C13,РВД!$A:$A,)+1,MATCH($N$4+AI$11-1,INDEX(РВД!$D:$I,MATCH($C13,РВД!$A:$A,),),)),IF(AI14="Я",INDEX('график 7,8'!$B$5:$AF$16,MONTH($AP$3),AI$11),"")) -> 7.8 | AJ13: =IFERROR(INDEX(РВД!$D:$I,MATCH($C13,РВД!$A:$A,)+1,MATCH($N$4+AJ$11-1,INDEX(РВД!$D:$I,MATCH($C13,РВД!$A:$A,),),)),IF(AJ14="Я",INDEX('график 7,8'!$B$5:$AF$16,MONTH($AP$3),AJ$11),"")) -> 7.8 | AK13: ="Я/"&SUMIF(E14:AJ14,"Я",E13:AJ13) -> Я/163,8 | AL13: =(SUMIF(E14:AJ14,"В",E13:AJ13)+SUMIF(E14:AJ14,"В.",E13:AJ13))*2 -> 0 | AM13: =COUNTIFS(E14:AJ14,"Я",E13:AJ13,"<>") -> 21 | AN13: =IFERROR(VLOOKUP(C13,доплаты!$A$5:$P$118,16,0),"") -> 17,17,15,30,17
E14: =TRIM(LEFT(TRIM(INDEX(отсутствия!$N:$AR,MATCH($C13,отсутствия!$A:$A,),E$11)&" "&TEXT(INDEX('график 7,8'!$B$5:$AF$16,MONTH($AP$3),E$11)&"","Я")),2)) -> В | F14: =TRIM(LEFT(TRIM(INDEX(отсутствия!$N:$AR,MATCH($C13,отсутствия!$A:$A,),F$11)&" "&TEXT(INDEX('график 7,8'!$B$5:$AF$16,MONTH($AP$3),F$11)&"","Я")),2)) -> Я | G14: =TRIM(LEFT(TRIM(INDEX(отсутствия!$N:$AR,MATCH($C13,отсутствия!$A:$A,),G$11)&" "&TEXT(INDEX('график 7,8'!$B$5:$AF$16,MONTH($AP$3),G$11)&"","Я")),2)) -> Я | H14: =TRIM(LEFT(TRIM(INDEX(отсутствия!$N:$AR,MATCH($C13,отсутствия!$A:$A,),H$11)&" "&TEXT(INDEX('график 7,8'!$B$5:$AF$16,MONTH($AP$3),H$11)&"","Я")),2)) -> Я | I14: =TRIM(LEFT(TRIM(INDEX(отсутствия!$N:$AR,MATCH($C13,отсутствия!$A:$A,),I$11)&" "&TEXT(INDEX('график 7,8'!$B$5:$AF$16,MONTH($AP$3),I$11)&"","Я")),2)) -> Я | J14: =TRIM(LEFT(TRIM(INDEX(отсутствия!$N:$AR,MATCH($C13,отсутствия!$A:$A,),J$11)&" "&TEXT(INDEX('график 7,8'!$B$5:$AF$16,MONTH($AP$3),J$11)&"","Я")),2)) -> Я | K14: =TRIM(LEFT(TRIM(INDEX(отсутствия!$N:$AR,MATCH($C13,отсутствия!$A:$A,),K$11)&" "&TEXT(INDEX('график 7,8'!$B$5:$AF$16,MONTH($AP$3),K$11)&"","Я")),2)) -> В | L14: =TRIM(LEFT(TRIM(INDEX(отсутствия!$N:$AR,MATCH($C13,отсутствия!$A:$A,),L$11)&" "&TEXT(INDEX('график 7,8'!$B$5:$AF$16,MONTH($AP$3),L$11)&"","Я")),2)) -> В. | M14: =TRIM(LEFT(TRIM(INDEX(отсутствия!$N:$AR,MATCH($C13,отсутствия!$A:$A,),M$11)&" "&TEXT(INDEX('график 7,8'!$B$5:$AF$16,MONTH($AP$3),M$11)&"","Я")),2)) -> В | N14: =TRIM(LEFT(TRIM(INDEX(отсутствия!$N:$AR,MATCH($C13,отсутствия!$A:$A,),N$11)&" "&TEXT(INDEX('график 7,8'!$B$5:$AF$16,MONTH($AP$3),N$11)&"","Я")),2)) -> Я | O14: =TRIM(LEFT(TRIM(INDEX(отсутствия!$N:$AR,MATCH($C13,отсутствия!$A:$A,),O$11)&" "&TEXT(INDEX('график 7,8'!$B$5:$AF$16,MONTH($AP$3),O$11)&"","Я")),2)) -> Я | P14: =TRIM(LEFT(TRIM(INDEX(отсутствия!$N:$AR,MATCH($C13,отсутствия!$A:$A,),P$11)&" "&TEXT(INDEX('график 7,8'!$B$5:$AF$16,MONTH($AP$3),P$11)&"","Я")),2)) -> Я | Q14: =TRIM(LEFT(TRIM(INDEX(отсутствия!$N:$AR,MATCH($C13,отсутствия!$A:$A,),Q$11)&" "&TEXT(INDEX('график 7,8'!$B$5:$AF$16,MONTH($AP$3),Q$11)&"","Я")),2)) -> Я | R14: =TRIM(LEFT(TRIM(INDEX(отсутствия!$N:$AR,MATCH($C13,отсутствия!$A:$A,),R$11)&" "&TEXT(INDEX('график 7,8'!$B$5:$AF$16,MONTH($AP$3),R$11)&"","Я")),2)) -> В | S14: =TRIM(LEFT(TRIM(INDEX(отсутствия!$N:$AR,MATCH($C13,отсутствия!$A:$A,),S$11)&" "&TEXT(INDEX('график 7,8'!$B$5:$AF$16,MONTH($AP$3),S$11)&"","Я")),2)) -> В | U14: =TRIM(LEFT(TRIM(INDEX(отсутствия!$N:$AR,MATCH($C13,отсутствия!$A:$A,),U$11)&" "&TEXT(INDEX('график 7,8'!$B$5:$AF$16,MONTH($AP$3),U$11)&"","Я")),2)) -> Я | V14: =TRIM(LEFT(TRIM(INDEX(отсутствия!$N:$AR,MATCH($C13,отсутствия!$A:$A,),V$11)&" "&TEXT(INDEX('график 7,8'!$B$5:$AF$16,MONTH($AP$3),V$11)&"","Я")),2)) -> Я | W14: =TRIM(LEFT(TRIM(INDEX(отсутствия!$N:$AR,MATCH($C13,отсутствия!$A:$A,),W$11)&" "&TEXT(INDEX('график 7,8'!$B$5:$AF$16,MONTH($AP$3),W$11)&"","Я")),2)) -> Я | X14: =TRIM(LEFT(TRIM(INDEX(отсутствия!$N:$AR,MATCH($C13,отсутствия!$A:$A,),X$11)&" "&TEXT(INDEX('график 7,8'!$B$5:$AF$16,MONTH($AP$3),X$11)&"","Я")),2)) -> Я | Y14: =TRIM(LEFT(TRIM(INDEX(отсутствия!$N:$AR,MATCH($C13,отсутствия!$A:$A,),Y$11)&" "&TEXT(INDEX('график 7,8'!$B$5:$AF$16,MONTH($AP$3),Y$11)&"","Я")),2)) -> Я | Z14: =TRIM(LEFT(TRIM(INDEX(отсутствия!$N:$AR,MATCH($C13,отсутствия!$A:$A,),Z$11)&" "&TEXT(INDEX('график 7,8'!$B$5:$AF$16,MONTH($AP$3),Z$11)&"","Я")),2)) -> В | AA14: =TRIM(LEFT(TRIM(INDEX(отсутствия!$N:$AR,MATCH($C13,отсутствия!$A:$A,),AA$11)&" "&TEXT(INDEX('график 7,8'!$B$5:$AF$16,MONTH($AP$3),AA$11)&"","Я")),2)) -> В | AB14: =TRIM(LEFT(TRIM(INDEX(отсутствия!$N:$AR,MATCH($C13,отсутствия!$A:$A,),AB$11)&" "&TEXT(INDEX('график 7,8'!$B$5:$AF$16,MONTH($AP$3),AB$11)&"","Я")),2)) -> Я | AC14: =TRIM(LEFT(TRIM(INDEX(отсутствия!$N:$AR,MATCH($C13,отсутствия!$A:$A,),AC$11)&" "&TEXT(INDEX('график 7,8'!$B$5:$AF$16,MONTH($AP$3),AC$11)&"","Я")),2)) -> Я | AD14: =TRIM(LEFT(TRIM(INDEX(отсутствия!$N:$AR,MATCH($C13,отсутствия!$A:$A,),AD$11)&" "&TEXT(INDEX('график 7,8'!$B$5:$AF$16,MONTH($AP$3),AD$11)&"","Я")),2)) -> Я | AE14: =TRIM(LEFT(TRIM(INDEX(отсутствия!$N:$AR,MATCH($C13,отсутствия!$A:$A,),AE$11)&" "&TEXT(INDEX('график 7,8'!$B$5:$AF$16,MONTH($AP$3),AE$11)&"","Я")),2)) -> Я | AF14: =TRIM(LEFT(TRIM(INDEX(отсутствия!$N:$AR,MATCH($C13,отсутствия!$A:$A,),AF$11)&" "&TEXT(INDEX('график 7,8'!$B$5:$AF$16,MONTH($AP$3),AF$11)&"","Я")),2)) -> Я | AG14: =TRIM(LEFT(TRIM(INDEX(отсутствия!$N:$AR,MATCH($C13,отсутствия!$A:$A,),AG$11)&" "&TEXT(INDEX('график 7,8'!$B$5:$AF$16,MONTH($AP$3),AG$11)&"","Я")),2)) -> В | AH14: =TRIM(LEFT(TRIM(INDEX(отсутствия!$N:$AR,MATCH($C13,отсутствия!$A:$A,),AH$11)&" "&TEXT(INDEX('график 7,8'!$B$5:$AF$16,MONTH($AP$3),AH$11)&"","Я")),2)) -> В | AI14: =TRIM(LEFT(TRIM(INDEX(отсутствия!$N:$AR,MATCH($C13,отсутствия!$A:$A,),AI$11)&" "&TEXT(INDEX('график 7,8'!$B$5:$AF$16,MONTH($AP$3),AI$11)&"","Я")),2)) -> Я | AJ14: =TRIM(LEFT(TRIM(INDEX(отсутствия!$N:$AR,MATCH($C13,отсутствия!$A:$A,),AJ$11)&" "&TEXT(INDEX('график 7,8'!$B$5:$AF$16,MONTH($AP$3),AJ$11)&"","Я")),2)) -> Я
A15: =C15 -> 4571 | B15: Воснецов | C15: 4571 | D15: сборная | E15: =IFERROR(INDEX(РВД!$D:$I,MATCH($C15,РВД!$A:$A,)+1,MATCH($N$4+E$11-1,INDEX(РВД!$D:$I,MATCH($C15,РВД!$A:$A,),),)),IF(E16="Я",INDEX('график 7,8'!$B$5:$AF$16,MONTH($AP$3),E$11),"")) ->  | F15: =IFERROR(INDEX(РВД!$D:$I,MATCH($C15,РВД!$A:$A,)+1,MATCH($N$4+F$11-1,INDEX(РВД!$D:$I,MATCH($C15,РВД!$A:$A,),),)),IF(F16="Я",INDEX('график 7,8'!$B$5:$AF$16,MONTH($AP$3),F$11),"")) -> 7.8 | G15: =IFERROR(INDEX(РВД!$D:$I,MATCH($C15,РВД!$A:$A,)+1,MATCH($N$4+G$11-1,INDEX(РВД!$D:$I,MATCH($C15,РВД!$A:$A,),),)),IF(G16="Я",INDEX('график 7,8'!$B$5:$AF$16,MONTH($AP$3),G$11),"")) -> 7.8 | H15: =IFERROR(INDEX(РВД!$D:$I,MATCH($C15,РВД!$A:$A,)+1,MATCH($N$4+H$11-1,INDEX(РВД!$D:$I,MATCH($C15,РВД!$A:$A,),),)),IF(H16="Я",INDEX('график 7,8'!$B$5:$AF$16,MONTH($AP$3),H$11),"")) -> 7.8 | I15: =IFERROR(INDEX(РВД!$D:$I,MATCH($C15,РВД!$A:$A,)+1,MATCH($N$4+I$11-1,INDEX(РВД!$D:$I,MATCH($C15,РВД!$A:$A,),),)),IF(I16="Я",INDEX('график 7,8'!$B$5:$AF$16,MONTH($AP$3),I$11),"")) -> 7.8 | J15: =IFERROR(INDEX(РВД!$D:$I,MATCH($C15,РВД!$A:$A,)+1,MATCH($N$4+J$11-1,INDEX(РВД!$D:$I,MATCH($C15,РВД!$A:$A,),),)),IF(J16="Я",INDEX('график 7,8'!$B$5:$AF$16,MONTH($AP$3),J$11),"")) -> 7.8 | K15: =IFERROR(INDEX(РВД!$D:$I,MATCH($C15,РВД!$A:$A,)+1,MATCH($N$4+K$11-1,INDEX(РВД!$D:$I,MATCH($C15,РВД!$A:$A,),),)),IF(K16="Я",INDEX('график 7,8'!$B$5:$AF$16,MONTH($AP$3),K$11),"")) ->  | L15: =IFERROR(INDEX(РВД!$D:$I,MATCH($C15,РВД!$A:$A,)+1,MATCH($N$4+L$11-1,INDEX(РВД!$D:$I,MATCH($C15,РВД!$A:$A,),),)),IF(L16="Я",INDEX('график 7,8'!$B$5:$AF$16,MONTH($AP$3),L$11),"")) ->  | M15: =IFERROR(INDEX(РВД!$D:$I,MATCH($C15,РВД!$A:$A,)+1,MATCH($N$4+M$11-1,INDEX(РВД!$D:$I,MATCH($C15,РВД!$A:$A,),),)),IF(M16="Я",INDEX('график 7,8'!$B$5:$AF$16,MONTH($AP$3),M$11),"")) ->  | N15: =IFERROR(INDEX(РВД!$D:$I,MATCH($C15,РВД!$A:$A,)+1,MATCH($N$4+N$11-1,INDEX(РВД!$D:$I,MATCH($C15,РВД!$A:$A,),),)),IF(N16="Я",INDEX('график 7,8'!$B$5:$AF$16,MONTH($AP$3),N$11),"")) -> 7.8 | O15: =IFERROR(INDEX(РВД!$D:$I,MATCH($C15,РВД!$A:$A,)+1,MATCH($N$4+O$11-1,INDEX(РВД!$D:$I,MATCH($C15,РВД!$A:$A,),),)),IF(O16="Я",INDEX('график 7,8'!$B$5:$AF$16,MONTH($AP$3),O$11),"")) -> 7.8 | P15: =IFERROR(INDEX(РВД!$D:$I,MATCH($C15,РВД!$A:$A,)+1,MATCH($N$4+P$11-1,INDEX(РВД!$D:$I,MATCH($C15,РВД!$A:$A,),),)),IF(P16="Я",INDEX('график 7,8'!$B$5:$AF$16,MONTH($AP$3),P$11),"")) -> 7.8 | Q15: =IFERROR(INDEX(РВД!$D:$I,MATCH($C15,РВД!$A:$A,)+1,MATCH($N$4+Q$11-1,INDEX(РВД!$D:$I,MATCH($C15,РВД!$A:$A,),),)),IF(Q16="Я",INDEX('график 7,8'!$B$5:$AF$16,MONTH($AP$3),Q$11),"")) -> 7.8 | R15: =IFERROR(INDEX(РВД!$D:$I,MATCH($C15,РВД!$A:$A,)+1,MATCH($N$4+R$11-1,INDEX(РВД!$D:$I,MATCH($C15,РВД!$A:$A,),),)),IF(R16="Я",INDEX('график 7,8'!$B$5:$AF$16,MONTH($AP$3),R$11),"")) ->  | S15: =IFERROR(INDEX(РВД!$D:$I,MATCH($C15,РВД!$A:$A,)+1,MATCH($N$4+S$11-1,INDEX(РВД!$D:$I,MATCH($C15,РВД!$A:$A,),),)),IF(S16="Я",INDEX('график 7,8'!$B$5:$AF$16,MONTH($AP$3),S$11),"")) ->  | T15: =SUMIF(E16:S16,"Я",E15:S15) -> 70.2 | U15: =IFERROR(INDEX(РВД!$D:$I,MATCH($C15,РВД!$A:$A,)+1,MATCH($N$4+U$11-1,INDEX(РВД!$D:$I,MATCH($C15,РВД!$A:$A,),),)),IF(U16="Я",INDEX('график 7,8'!$B$5:$AF$16,MONTH($AP$3),U$11),"")) -> 7.8 | V15: =IFERROR(INDEX(РВД!$D:$I,MATCH($C15,РВД!$A:$A,)+1,MATCH($N$4+V$11-1,INDEX(РВД!$D:$I,MATCH($C15,РВД!$A:$A,),),)),IF(V16="Я",INDEX('график 7,8'!$B$5:$AF$16,MONTH($AP$3),V$11),"")) -> 7.8 | W15: =IFERROR(INDEX(РВД!$D:$I,MATCH($C15,РВД!$A:$A,)+1,MATCH($N$4+W$11-1,INDEX(РВД!$D:$I,MATCH($C15,РВД!$A:$A,),),)),IF(W16="Я",INDEX('график 7,8'!$B$5:$AF$16,MONTH($AP$3),W$11),"")) -> 7.8 | X15: =IFERROR(INDEX(РВД!$D:$I,MATCH($C15,РВД!$A:$A,)+1,MATCH($N$4+X$11-1,INDEX(РВД!$D:$I,MATCH($C15,РВД!$A:$A,),),)),IF(X16="Я",INDEX('график 7,8'!$B$5:$AF$16,MONTH($AP$3),X$11),"")) -> 7.8 | Y15: =IFERROR(INDEX(РВД!$D:$I,MATCH($C15,РВД!$A:$A,)+1,MATCH($N$4+Y$11-1,INDEX(РВД!$D:$I,MATCH($C15,РВД!$A:$A,),),)),IF(Y16="Я",INDEX('график 7,8'!$B$5:$AF$16,MONTH($AP$3),Y$11),"")) -> 7.8 | Z15: =IFERROR(INDEX(РВД!$D:$I,MATCH($C15,РВД!$A:$A,)+1,MATCH($N$4+Z$11-1,INDEX(РВД!$D:$I,MATCH($C15,РВД!$A:$A,),),)),IF(Z16="Я",INDEX('график 7,8'!$B$5:$AF$16,MONTH($AP$3),Z$11),"")) ->  | AA15: =IFERROR(INDEX(РВД!$D:$I,MATCH($C15,РВД!$A:$A,)+1,MATCH($N$4+AA$11-1,INDEX(РВД!$D:$I,MATCH($C15,РВД!$A:$A,),),)),IF(AA16="Я",INDEX('график 7,8'!$B$5:$AF$16,MONTH($AP$3),AA$11),"")) ->  | AB15: =IFERROR(INDEX(РВД!$D:$I,MATCH($C15,РВД!$A:$A,)+1,MATCH($N$4+AB$11-1,INDEX(РВД!$D:$I,MATCH($C15,РВД!$A:$A,),),)),IF(AB16="Я",INDEX('график 7,8'!$B$5:$AF$16,MONTH($AP$3),AB$11),"")) -> 7.8 | AC15: =IFERROR(INDEX(РВД!$D:$I,MATCH($C15,РВД!$A:$A,)+1,MATCH($N$4+AC$11-1,INDEX(РВД!$D:$I,MATCH($C15,РВД!$A:$A,),),)),IF(AC16="Я",INDEX('график 7,8'!$B$5:$AF$16,MONTH($AP$3),AC$11),"")) -> 7.8 | AD15: =IFERROR(INDEX(РВД!$D:$I,MATCH($C15,РВД!$A:$A,)+1,MATCH($N$4+AD$11-1,INDEX(РВД!$D:$I,MATCH($C15,РВД!$A:$A,),),)),IF(AD16="Я",INDEX('график 7,8'!$B$5:$AF$16,MONTH($AP$3),AD$11),"")) -> 7.8 | AE15: =IFERROR(INDEX(РВД!$D:$I,MATCH($C15,РВД!$A:$A,)+1,MATCH($N$4+AE$11-1,INDEX(РВД!$D:$I,MATCH($C15,РВД!$A:$A,),),)),IF(AE16="Я",INDEX('график 7,8'!$B$5:$AF$16,MONTH($AP$3),AE$11),"")) -> 7.8 | AF15: =IFERROR(INDEX(РВД!$D:$I,MATCH($C15,РВД!$A:$A,)+1,MATCH($N$4+AF$11-1,INDEX(РВД!$D:$I,MATCH($C15,РВД!$A:$A,),),)),IF(AF16="Я",INDEX('график 7,8'!$B$5:$AF$16,MONTH($AP$3),AF$11),"")) -> 7.8 | AG15: =IFERROR(INDEX(РВД!$D:$I,MATCH($C15,РВД!$A:$A,)+1,MATCH($N$4+AG$11-1,INDEX(РВД!$D:$I,MATCH($C15,РВД!$A:$A,),),)),IF(AG16="Я",INDEX('график 7,8'!$B$5:$AF$16,MONTH($AP$3),AG$11),"")) ->  | AH15: =IFERROR(INDEX(РВД!$D:$I,MATCH($C15,РВД!$A:$A,)+1,MATCH($N$4+AH$11-1,INDEX(РВД!$D:$I,MATCH($C15,РВД!$A:$A,),),)),IF(AH16="Я",INDEX('график 7,8'!$B$5:$AF$16,MONTH($AP$3),AH$11),"")) ->  | AI15: =IFERROR(INDEX(РВД!$D:$I,MATCH($C15,РВД!$A:$A,)+1,MATCH($N$4+AI$11-1,INDEX(РВД!$D:$I,MATCH($C15,РВД!$A:$A,),),)),IF(AI16="Я",INDEX('график 7,8'!$B$5:$AF$16,MONTH($AP$3),AI$11),"")) -> 7.8 | AJ15: =IFERROR(INDEX(РВД!$D:$I,MATCH($C15,РВД!$A:$A,)+1,MATCH($N$4+AJ$11-1,INDEX(РВД!$D:$I,MATCH($C15,РВД!$A:$A,),),)),IF(AJ16="Я",INDEX('график 7,8'!$B$5:$AF$16,MONTH($AP$3),AJ$11),"")) -> 7.8 | AK15: ="Я/"&SUMIF(E16:AJ16,"Я",E15:AJ15) -> Я/163,8 | AL15: =(SUMIF(E16:AJ16,"В",E15:AJ15)+SUMIF(E16:AJ16,"В.",E15:AJ15))*2 -> 0 | AM15: =COUNTIFS(E16:AJ16,"Я",E15:AJ15,"<>") -> 21 | AN15: =IFERROR(VLOOKUP(C15,доплаты!$A$5:$P$118,16,0),"") -> 24
E16: =TRIM(LEFT(TRIM(INDEX(отсутствия!$N:$AR,MATCH($C15,отсутствия!$A:$A,),E$11)&" "&TEXT(INDEX('график 7,8'!$B$5:$AF$16,MONTH($AP$3),E$11)&"","Я")),2)) -> В | F16: =TRIM(LEFT(TRIM(INDEX(отсутствия!$N:$AR,MATCH($C15,отсутствия!$A:$A,),F$11)&" "&TEXT(INDEX('график 7,8'!$B$5:$AF$16,MONTH($AP$3),F$11)&"","Я")),2)) -> Я | G16: =TRIM(LEFT(TRIM(INDEX(отсутствия!$N:$AR,MATCH($C15,отсутствия!$A:$A,),G$11)&" "&TEXT(INDEX('график 7,8'!$B$5:$AF$16,MONTH($AP$3),G$11)&"","Я")),2)) -> Я | H16: =TRIM(LEFT(TRIM(INDEX(отсутствия!$N:$AR,MATCH($C15,отсутствия!$A:$A,),H$11)&" "&TEXT(INDEX('график 7,8'!$B$5:$AF$16,MONTH($AP$3),H$11)&"","Я")),2)) -> Я | I16: =TRIM(LEFT(TRIM(INDEX(отсутствия!$N:$AR,MATCH($C15,отсутствия!$A:$A,),I$11)&" "&TEXT(INDEX('график 7,8'!$B$5:$AF$16,MONTH($AP$3),I$11)&"","Я")),2)) -> Я | J16: =TRIM(LEFT(TRIM(INDEX(отсутствия!$N:$AR,MATCH($C15,отсутствия!$A:$A,),J$11)&" "&TEXT(INDEX('график 7,8'!$B$5:$AF$16,MONTH($AP$3),J$11)&"","Я")),2)) -> Я | K16: =TRIM(LEFT(TRIM(INDEX(отсутствия!$N:$AR,MATCH($C15,отсутствия!$A:$A,),K$11)&" "&TEXT(INDEX('график 7,8'!$B$5:$AF$16,MONTH($AP$3),K$11)&"","Я")),2)) -> В | L16: =TRIM(LEFT(TRIM(INDEX(отсутствия!$N:$AR,MATCH($C15,отсутствия!$A:$A,),L$11)&" "&TEXT(INDEX('график 7,8'!$B$5:$AF$16,MONTH($AP$3),L$11)&"","Я")),2)) -> В. | M16: =TRIM(LEFT(TRIM(INDEX(отсутствия!$N:$AR,MATCH($C15,отсутствия!$A:$A,),M$11)&" "&TEXT(INDEX('график 7,8'!$B$5:$AF$16,MONTH($AP$3),M$11)&"","Я")),2)) -> В | N16: =TRIM(LEFT(TRIM(INDEX(отсутствия!$N:$AR,MATCH($C15,отсутствия!$A:$A,),N$11)&" "&TEXT(INDEX('график 7,8'!$B$5:$AF$16,MONTH($AP$3),N$11)&"","Я")),2)) -> Я | O16: =TRIM(LEFT(TRIM(INDEX(отсутствия!$N:$AR,MATCH($C15,отсутствия!$A:$A,),O$11)&" "&TEXT(INDEX('график 7,8'!$B$5:$AF$16,MONTH($AP$3),O$11)&"","Я")),2)) -> Я | P16: =TRIM(LEFT(TRIM(INDEX(отсутствия!$N:$AR,MATCH($C15,отсутствия!$A:$A,),P$11)&" "&TEXT(INDEX('график 7,8'!$B$5:$AF$16,MONTH($AP$3),P$11)&"","Я")),2)) -> Я | Q16: =TRIM(LEFT(TRIM(INDEX(отсутствия!$N:$AR,MATCH($C15,отсутствия!$A:$A,),Q$11)&" "&TEXT(INDEX('график 7,8'!$B$5:$AF$16,MONTH($AP$3),Q$11)&"","Я")),2)) -> Я | R16: =TRIM(LEFT(TRIM(INDEX(отсутствия!$N:$AR,MATCH($C15,отсутствия!$A:$A,),R$11)&" "&TEXT(INDEX('график 7,8'!$B$5:$AF$16,MONTH($AP$3),R$11)&"","Я")),2)) -> В | S16: =TRIM(LEFT(TRIM(INDEX(отсутствия!$N:$AR,MATCH($C15,отсутствия!$A:$A,),S$11)&" "&TEXT(INDEX('график 7,8'!$B$5:$AF$16,MONTH($AP$3),S$11)&"","Я")),2)) -> В | U16: =TRIM(LEFT(TRIM(INDEX(отсутствия!$N:$AR,MATCH($C15,отсутствия!$A:$A,),U$11)&" "&TEXT(INDEX('график 7,8'!$B$5:$AF$16,MONTH($AP$3),U$11)&"","Я")),2)) -> Я | V16: =TRIM(LEFT(TRIM(INDEX(отсутствия!$N:$AR,MATCH($C15,отсутствия!$A:$A,),V$11)&" "&TEXT(INDEX('график 7,8'!$B$5:$AF$16,MONTH($AP$3),V$11)&"","Я")),2)) -> Я | W16: =TRIM(LEFT(TRIM(INDEX(отсутствия!$N:$AR,MATCH($C15,отсутствия!$A:$A,),W$11)&" "&TEXT(INDEX('график 7,8'!$B$5:$AF$16,MONTH($AP$3),W$11)&"","Я")),2)) -> Я | X16: =TRIM(LEFT(TRIM(INDEX(отсутствия!$N:$AR,MATCH($C15,отсутствия!$A:$A,),X$11)&" "&TEXT(INDEX('график 7,8'!$B$5:$AF$16,MONTH($AP$3),X$11)&"","Я")),2)) -> Я | Y16: =TRIM(LEFT(TRIM(INDEX(отсутствия!$N:$AR,MATCH($C15,отсутствия!$A:$A,),Y$11)&" "&TEXT(INDEX('график 7,8'!$B$5:$AF$16,MONTH($AP$3),Y$11)&"","Я")),2)) -> Я | Z16: =TRIM(LEFT(TRIM(INDEX(отсутствия!$N:$AR,MATCH($C15,отсутствия!$A:$A,),Z$11)&" "&TEXT(INDEX('график 7,8'!$B$5:$AF$16,MONTH($AP$3),Z$11)&"","Я")),2)) -> В | AA16: =TRIM(LEFT(TRIM(INDEX(отсутствия!$N:$AR,MATCH($C15,отсутствия!$A:$A,),AA$11)&" "&TEXT(INDEX('график 7,8'!$B$5:$AF$16,MONTH($AP$3),AA$11)&"","Я")),2)) -> В | AB16: =TRIM(LEFT(TRIM(INDEX(отсутствия!$N:$AR,MATCH($C15,отсутствия!$A:$A,),AB$11)&" "&TEXT(INDEX('график 7,8'!$B$5:$AF$16,MONTH($AP$3),AB$11)&"","Я")),2)) -> Я | AC16: =TRIM(LEFT(TRIM(INDEX(отсутствия!$N:$AR,MATCH($C15,отсутствия!$A:$A,),AC$11)&" "&TEXT(INDEX('график 7,8'!$B$5:$AF$16,MONTH($AP$3),AC$11)&"","Я")),2)) -> Я | AD16: =TRIM(LEFT(TRIM(INDEX(отсутствия!$N:$AR,MATCH($C15,отсутствия!$A:$A,),AD$11)&" "&TEXT(INDEX('график 7,8'!$B$5:$AF$16,MONTH($AP$3),AD$11)&"","Я")),2)) -> Я | AE16: =TRIM(LEFT(TRIM(INDEX(отсутствия!$N:$AR,MATCH($C15,отсутствия!$A:$A,),AE$11)&" "&TEXT(INDEX('график 7,8'!$B$5:$AF$16,MONTH($AP$3),AE$11)&"","Я")),2)) -> Я | AF16: =TRIM(LEFT(TRIM(INDEX(отсутствия!$N:$AR,MATCH($C15,отсутствия!$A:$A,),AF$11)&" "&TEXT(INDEX('график 7,8'!$B$5:$AF$16,MONTH($AP$3),AF$11)&"","Я")),2)) -> Я | AG16: =TRIM(LEFT(TRIM(INDEX(отсутствия!$N:$AR,MATCH($C15,отсутствия!$A:$A,),AG$11)&" "&TEXT(INDEX('график 7,8'!$B$5:$AF$16,MONTH($AP$3),AG$11)&"","Я")),2)) -> В | AH16: =TRIM(LEFT(TRIM(INDEX(отсутствия!$N:$AR,MATCH($C15,отсутствия!$A:$A,),AH$11)&" "&TEXT(INDEX('график 7,8'!$B$5:$AF$16,MONTH($AP$3),AH$11)&"","Я")),2)) -> В | AI16: =TRIM(LEFT(TRIM(INDEX(отсутствия!$N:$AR,MATCH($C15,отсутствия!$A:$A,),AI$11)&" "&TEXT(INDEX('график 7,8'!$B$5:$AF$16,MONTH($AP$3),AI$11)&"","Я")),2)) -> Я | AJ16: =TRIM(LEFT(TRIM(INDEX(отсутствия!$N:$AR,MATCH($C15,отсутствия!$A:$A,),AJ$11)&" "&TEXT(INDEX('график 7,8'!$B$5:$AF$16,MONTH($AP$3),AJ$11)&"","Я")),2)) -> Я
A17: 5019 | B17: Лебедев | C17: 5019 | D17: сборная | E17: =IFERROR(INDEX(РВД!$D:$I,MATCH($C17,РВД!$A:$A,)+1,MATCH($N$4+E$11-1,INDEX(РВД!$D:$I,MATCH($C17,РВД!$A:$A,),),)),IF(E18="Я",INDEX('график 7,8'!$B$5:$AF$16,MONTH($AP$3),E$11),"")) ->  | F17: =IFERROR(INDEX(РВД!$D:$I,MATCH($C17,РВД!$A:$A,)+1,MATCH($N$4+F$11-1,INDEX(РВД!$D:$I,MATCH($C17,РВД!$A:$A,),),)),IF(F18="Я",INDEX('график 7,8'!$B$5:$AF$16,MONTH($AP$3),F$11),"")) -> 7.8 | G17: =IFERROR(INDEX(РВД!$D:$I,MATCH($C17,РВД!$A:$A,)+1,MATCH($N$4+G$11-1,INDEX(РВД!$D:$I,MATCH($C17,РВД!$A:$A,),),)),IF(G18="Я",INDEX('график 7,8'!$B$5:$AF$16,MONTH($AP$3),G$11),"")) -> 7.8 | H17: =IFERROR(INDEX(РВД!$D:$I,MATCH($C17,РВД!$A:$A,)+1,MATCH($N$4+H$11-1,INDEX(РВД!$D:$I,MATCH($C17,РВД!$A:$A,),),)),IF(H18="Я",INDEX('график 7,8'!$B$5:$AF$16,MONTH($AP$3),H$11),"")) -> 7.8 | I17: =IFERROR(INDEX(РВД!$D:$I,MATCH($C17,РВД!$A:$A,)+1,MATCH($N$4+I$11-1,INDEX(РВД!$D:$I,MATCH($C17,РВД!$A:$A,),),)),IF(I18="Я",INDEX('график 7,8'!$B$5:$AF$16,MONTH($AP$3),I$11),"")) -> 7.8 | J17: =IFERROR(INDEX(РВД!$D:$I,MATCH($C17,РВД!$A:$A,)+1,MATCH($N$4+J$11-1,INDEX(РВД!$D:$I,MATCH($C17,РВД!$A:$A,),),)),IF(J18="Я",INDEX('график 7,8'!$B$5:$AF$16,MONTH($AP$3),J$11),"")) -> 7.8 | K17: =IFERROR(INDEX(РВД!$D:$I,MATCH($C17,РВД!$A:$A,)+1,MATCH($N$4+K$11-1,INDEX(РВД!$D:$I,MATCH($C17,РВД!$A:$A,),),)),IF(K18="Я",INDEX('график 7,8'!$B$5:$AF$16,MONTH($AP$3),K$11),"")) ->  | L17: =IFERROR(INDEX(РВД!$D:$I,MATCH($C17,РВД!$A:$A,)+1,MATCH($N$4+L$11-1,INDEX(РВД!$D:$I,MATCH($C17,РВД!$A:$A,),),)),IF(L18="Я",INDEX('график 7,8'!$B$5:$AF$16,MONTH($AP$3),L$11),"")) ->  | M17: =IFERROR(INDEX(РВД!$D:$I,MATCH($C17,РВД!$A:$A,)+1,MATCH($N$4+M$11-1,INDEX(РВД!$D:$I,MATCH($C17,РВД!$A:$A,),),)),IF(M18="Я",INDEX('график 7,8'!$B$5:$AF$16,MONTH($AP$3),M$11),"")) ->  | N17: =IFERROR(INDEX(РВД!$D:$I,MATCH($C17,РВД!$A:$A,)+1,MATCH($N$4+N$11-1,INDEX(РВД!$D:$I,MATCH($C17,РВД!$A:$A,),),)),IF(N18="Я",INDEX('график 7,8'!$B$5:$AF$16,MONTH($AP$3),N$11),"")) -> 7.8 | O17: =IFERROR(INDEX(РВД!$D:$I,MATCH($C17,РВД!$A:$A,)+1,MATCH($N$4+O$11-1,INDEX(РВД!$D:$I,MATCH($C17,РВД!$A:$A,),),)),IF(O18="Я",INDEX('график 7,8'!$B$5:$AF$16,MONTH($AP$3),O$11),"")) -> 7.8 | P17: =IFERROR(INDEX(РВД!$D:$I,MATCH($C17,РВД!$A:$A,)+1,MATCH($N$4+P$11-1,INDEX(РВД!$D:$I,MATCH($C17,РВД!$A:$A,),),)),IF(P18="Я",INDEX('график 7,8'!$B$5:$AF$16,MONTH($AP$3),P$11),"")) -> 7.8 | Q17: =IFERROR(INDEX(РВД!$D:$I,MATCH($C17,РВД!$A:$A,)+1,MATCH($N$4+Q$11-1,INDEX(РВД!$D:$I,MATCH($C17,РВД!$A:$A,),),)),IF(Q18="Я",INDEX('график 7,8'!$B$5:$AF$16,MONTH($AP$3),Q$11),"")) -> 7.8 | R17: =IFERROR(INDEX(РВД!$D:$I,MATCH($C17,РВД!$A:$A,)+1,MATCH($N$4+R$11-1,INDEX(РВД!$D:$I,MATCH($C17,РВД!$A:$A,),),)),IF(R18="Я",INDEX('график 7,8'!$B$5:$AF$16,MONTH($AP$3),R$11),"")) ->  | S17: =IFERROR(INDEX(РВД!$D:$I,MATCH($C17,РВД!$A:$A,)+1,MATCH($N$4+S$11-1,INDEX(РВД!$D:$I,MATCH($C17,РВД!$A:$A,),),)),IF(S18="Я",INDEX('график 7,8'!$B$5:$AF$16,MONTH($AP$3),S$11),"")) ->  | T17: =SUMIF(E18:S18,"Я",E17:S17) -> 70.2 | U17: =IFERROR(INDEX(РВД!$D:$I,MATCH($C17,РВД!$A:$A,)+1,MATCH($N$4+U$11-1,INDEX(РВД!$D:$I,MATCH($C17,РВД!$A:$A,),),)),IF(U18="Я",INDEX('график 7,8'!$B$5:$AF$16,MONTH($AP$3),U$11),"")) -> 7.8 | V17: =IFERROR(INDEX(РВД!$D:$I,MATCH($C17,РВД!$A:$A,)+1,MATCH($N$4+V$11-1,INDEX(РВД!$D:$I,MATCH($C17,РВД!$A:$A,),),)),IF(V18="Я",INDEX('график 7,8'!$B$5:$AF$16,MONTH($AP$3),V$11),"")) -> 7.8 | W17: =IFERROR(INDEX(РВД!$D:$I,MATCH($C17,РВД!$A:$A,)+1,MATCH($N$4+W$11-1,INDEX(РВД!$D:$I,MATCH($C17,РВД!$A:$A,),),)),IF(W18="Я",INDEX('график 7,8'!$B$5:$AF$16,MONTH($AP$3),W$11),"")) -> 7.8 | X17: =IFERROR(INDEX(РВД!$D:$I,MATCH($C17,РВД!$A:$A,)+1,MATCH($N$4+X$11-1,INDEX(РВД!$D:$I,MATCH($C17,РВД!$A:$A,),),)),IF(X18="Я",INDEX('график 7,8'!$B$5:$AF$16,MONTH($AP$3),X$11),"")) -> 7.8 | Y17: =IFERROR(INDEX(РВД!$D:$I,MATCH($C17,РВД!$A:$A,)+1,MATCH($N$4+Y$11-1,INDEX(РВД!$D:$I,MATCH($C17,РВД!$A:$A,),),)),IF(Y18="Я",INDEX('график 7,8'!$B$5:$AF$16,MONTH($AP$3),Y$11),"")) -> 7.8 | Z17: =IFERROR(INDEX(РВД!$D:$I,MATCH($C17,РВД!$A:$A,)+1,MATCH($N$4+Z$11-1,INDEX(РВД!$D:$I,MATCH($C17,РВД!$A:$A,),),)),IF(Z18="Я",INDEX('график 7,8'!$B$5:$AF$16,MONTH($AP$3),Z$11),"")) ->  | AA17: =IFERROR(INDEX(РВД!$D:$I,MATCH($C17,РВД!$A:$A,)+1,MATCH($N$4+AA$11-1,INDEX(РВД!$D:$I,MATCH($C17,РВД!$A:$A,),),)),IF(AA18="Я",INDEX('график 7,8'!$B$5:$AF$16,MONTH($AP$3),AA$11),"")) ->  | AB17: =IFERROR(INDEX(РВД!$D:$I,MATCH($C17,РВД!$A:$A,)+1,MATCH($N$4+AB$11-1,INDEX(РВД!$D:$I,MATCH($C17,РВД!$A:$A,),),)),IF(AB18="Я",INDEX('график 7,8'!$B$5:$AF$16,MONTH($AP$3),AB$11),"")) -> 7.8 | AC17: =IFERROR(INDEX(РВД!$D:$I,MATCH($C17,РВД!$A:$A,)+1,MATCH($N$4+AC$11-1,INDEX(РВД!$D:$I,MATCH($C17,РВД!$A:$A,),),)),IF(AC18="Я",INDEX('график 7,8'!$B$5:$AF$16,MONTH($AP$3),AC$11),"")) -> 7.8 | AD17: =IFERROR(INDEX(РВД!$D:$I,MATCH($C17,РВД!$A:$A,)+1,MATCH($N$4+AD$11-1,INDEX(РВД!$D:$I,MATCH($C17,РВД!$A:$A,),),)),IF(AD18="Я",INDEX('график 7,8'!$B$5:$AF$16,MONTH($AP$3),AD$11),"")) -> 7.8 | AE17: =IFERROR(INDEX(РВД!$D:$I,MATCH($C17,РВД!$A:$A,)+1,MATCH($N$4+AE$11-1,INDEX(РВД!$D:$I,MATCH($C17,РВД!$A:$A,),),)),IF(AE18="Я",INDEX('график 7,8'!$B$5:$AF$16,MONTH($AP$3),AE$11),"")) -> 7.8 | AF17: =IFERROR(INDEX(РВД!$D:$I,MATCH($C17,РВД!$A:$A,)+1,MATCH($N$4+AF$11-1,INDEX(РВД!$D:$I,MATCH($C17,РВД!$A:$A,),),)),IF(AF18="Я",INDEX('график 7,8'!$B$5:$AF$16,MONTH($AP$3),AF$11),"")) -> 7.8 | AG17: =IFERROR(INDEX(РВД!$D:$I,MATCH($C17,РВД!$A:$A,)+1,MATCH($N$4+AG$11-1,INDEX(РВД!$D:$I,MATCH($C17,РВД!$A:$A,),),)),IF(AG18="Я",INDEX('график 7,8'!$B$5:$AF$16,MONTH($AP$3),AG$11),"")) ->  | AH17: =IFERROR(INDEX(РВД!$D:$I,MATCH($C17,РВД!$A:$A,)+1,MATCH($N$4+AH$11-1,INDEX(РВД!$D:$I,MATCH($C17,РВД!$A:$A,),),)),IF(AH18="Я",INDEX('график 7,8'!$B$5:$AF$16,MONTH($AP$3),AH$11),"")) ->  | AI17: =IFERROR(INDEX(РВД!$D:$I,MATCH($C17,РВД!$A:$A,)+1,MATCH($N$4+AI$11-1,INDEX(РВД!$D:$I,MATCH($C17,РВД!$A:$A,),),)),IF(AI18="Я",INDEX('график 7,8'!$B$5:$AF$16,MONTH($AP$3),AI$11),"")) -> 7.8 | AJ17: =IFERROR(INDEX(РВД!$D:$I,MATCH($C17,РВД!$A:$A,)+1,MATCH($N$4+AJ$11-1,INDEX(РВД!$D:$I,MATCH($C17,РВД!$A:$A,),),)),IF(AJ18="Я",INDEX('график 7,8'!$B$5:$AF$16,MONTH($AP$3),AJ$11),"")) -> 7.8 | AK17: ="Я/"&SUMIF(E18:AJ18,"Я",E17:AJ17) -> Я/163,8 | AL17: =(SUMIF(E18:AJ18,"В",E17:AJ17)+SUMIF(E18:AJ18,"В.",E17:AJ17))*2 -> 0 | AM17: =COUNTIFS(E18:AJ18,"Я",E17:AJ17,"<>") -> 21 | AN17: =IFERROR(VLOOKUP(C17,доплаты!$A$5:$P$118,16,0),"") -> 24
E18: =TRIM(LEFT(TRIM(INDEX(отсутствия!$N:$AR,MATCH($C17,отсутствия!$A:$A,),E$11)&" "&TEXT(INDEX('график 7,8'!$B$5:$AF$16,MONTH($AP$3),E$11)&"","Я")),2)) -> В | F18: =TRIM(LEFT(TRIM(INDEX(отсутствия!$N:$AR,MATCH($C17,отсутствия!$A:$A,),F$11)&" "&TEXT(INDEX('график 7,8'!$B$5:$AF$16,MONTH($AP$3),F$11)&"","Я")),2)) -> Я | G18: =TRIM(LEFT(TRIM(INDEX(отсутствия!$N:$AR,MATCH($C17,отсутствия!$A:$A,),G$11)&" "&TEXT(INDEX('график 7,8'!$B$5:$AF$16,MONTH($AP$3),G$11)&"","Я")),2)) -> Я | H18: =TRIM(LEFT(TRIM(INDEX(отсутствия!$N:$AR,MATCH($C17,отсутствия!$A:$A,),H$11)&" "&TEXT(INDEX('график 7,8'!$B$5:$AF$16,MONTH($AP$3),H$11)&"","Я")),2)) -> Я | I18: =TRIM(LEFT(TRIM(INDEX(отсутствия!$N:$AR,MATCH($C17,отсутствия!$A:$A,),I$11)&" "&TEXT(INDEX('график 7,8'!$B$5:$AF$16,MONTH($AP$3),I$11)&"","Я")),2)) -> Я | J18: =TRIM(LEFT(TRIM(INDEX(отсутствия!$N:$AR,MATCH($C17,отсутствия!$A:$A,),J$11)&" "&TEXT(INDEX('график 7,8'!$B$5:$AF$16,MONTH($AP$3),J$11)&"","Я")),2)) -> Я | K18: =TRIM(LEFT(TRIM(INDEX(отсутствия!$N:$AR,MATCH($C17,отсутствия!$A:$A,),K$11)&" "&TEXT(INDEX('график 7,8'!$B$5:$AF$16,MONTH($AP$3),K$11)&"","Я")),2)) -> В | L18: =TRIM(LEFT(TRIM(INDEX(отсутствия!$N:$AR,MATCH($C17,отсутствия!$A:$A,),L$11)&" "&TEXT(INDEX('график 7,8'!$B$5:$AF$16,MONTH($AP$3),L$11)&"","Я")),2)) -> В. | M18: =TRIM(LEFT(TRIM(INDEX(отсутствия!$N:$AR,MATCH($C17,отсутствия!$A:$A,),M$11)&" "&TEXT(INDEX('график 7,8'!$B$5:$AF$16,MONTH($AP$3),M$11)&"","Я")),2)) -> В | N18: =TRIM(LEFT(TRIM(INDEX(отсутствия!$N:$AR,MATCH($C17,отсутствия!$A:$A,),N$11)&" "&TEXT(INDEX('график 7,8'!$B$5:$AF$16,MONTH($AP$3),N$11)&"","Я")),2)) -> Я | O18: =TRIM(LEFT(TRIM(INDEX(отсутствия!$N:$AR,MATCH($C17,отсутствия!$A:$A,),O$11)&" "&TEXT(INDEX('график 7,8'!$B$5:$AF$16,MONTH($AP$3),O$11)&"","Я")),2)) -> Я | P18: =TRIM(LEFT(TRIM(INDEX(отсутствия!$N:$AR,MATCH($C17,отсутствия!$A:$A,),P$11)&" "&TEXT(INDEX('график 7,8'!$B$5:$AF$16,MONTH($AP$3),P$11)&"","Я")),2)) -> Я | Q18: =TRIM(LEFT(TRIM(INDEX(отсутствия!$N:$AR,MATCH($C17,отсутствия!$A:$A,),Q$11)&" "&TEXT(INDEX('график 7,8'!$B$5:$AF$16,MONTH($AP$3),Q$11)&"","Я")),2)) -> Я | R18: =TRIM(LEFT(TRIM(INDEX(отсутствия!$N:$AR,MATCH($C17,отсутствия!$A:$A,),R$11)&" "&TEXT(INDEX('график 7,8'!$B$5:$AF$16,MONTH($AP$3),R$11)&"","Я")),2)) -> В | S18: =TRIM(LEFT(TRIM(INDEX(отсутствия!$N:$AR,MATCH($C17,отсутствия!$A:$A,),S$11)&" "&TEXT(INDEX('график 7,8'!$B$5:$AF$16,MONTH($AP$3),S$11)&"","Я")),2)) -> В | U18: =TRIM(LEFT(TRIM(INDEX(отсутствия!$N:$AR,MATCH($C17,отсутствия!$A:$A,),U$11)&" "&TEXT(INDEX('график 7,8'!$B$5:$AF$16,MONTH($AP$3),U$11)&"","Я")),2)) -> Я | V18: =TRIM(LEFT(TRIM(INDEX(отсутствия!$N:$AR,MATCH($C17,отсутствия!$A:$A,),V$11)&" "&TEXT(INDEX('график 7,8'!$B$5:$AF$16,MONTH($AP$3),V$11)&"","Я")),2)) -> Я | W18: =TRIM(LEFT(TRIM(INDEX(отсутствия!$N:$AR,MATCH($C17,отсутствия!$A:$A,),W$11)&" "&TEXT(INDEX('график 7,8'!$B$5:$AF$16,MONTH($AP$3),W$11)&"","Я")),2)) -> Я | X18: =TRIM(LEFT(TRIM(INDEX(отсутствия!$N:$AR,MATCH($C17,отсутствия!$A:$A,),X$11)&" "&TEXT(INDEX('график 7,8'!$B$5:$AF$16,MONTH($AP$3),X$11)&"","Я")),2)) -> Я | Y18: =TRIM(LEFT(TRIM(INDEX(отсутствия!$N:$AR,MATCH($C17,отсутствия!$A:$A,),Y$11)&" "&TEXT(INDEX('график 7,8'!$B$5:$AF$16,MONTH($AP$3),Y$11)&"","Я")),2)) -> Я | Z18: =TRIM(LEFT(TRIM(INDEX(отсутствия!$N:$AR,MATCH($C17,отсутствия!$A:$A,),Z$11)&" "&TEXT(INDEX('график 7,8'!$B$5:$AF$16,MONTH($AP$3),Z$11)&"","Я")),2)) -> В | AA18: =TRIM(LEFT(TRIM(INDEX(отсутствия!$N:$AR,MATCH($C17,отсутствия!$A:$A,),AA$11)&" "&TEXT(INDEX('график 7,8'!$B$5:$AF$16,MONTH($AP$3),AA$11)&"","Я")),2)) -> В | AB18: =TRIM(LEFT(TRIM(INDEX(отсутствия!$N:$AR,MATCH($C17,отсутствия!$A:$A,),AB$11)&" "&TEXT(INDEX('график 7,8'!$B$5:$AF$16,MONTH($AP$3),AB$11)&"","Я")),2)) -> Я | AC18: =TRIM(LEFT(TRIM(INDEX(отсутствия!$N:$AR,MATCH($C17,отсутствия!$A:$A,),AC$11)&" "&TEXT(INDEX('график 7,8'!$B$5:$AF$16,MONTH($AP$3),AC$11)&"","Я")),2)) -> Я | AD18: =TRIM(LEFT(TRIM(INDEX(отсутствия!$N:$AR,MATCH($C17,отсутствия!$A:$A,),AD$11)&" "&TEXT(INDEX('график 7,8'!$B$5:$AF$16,MONTH($AP$3),AD$11)&"","Я")),2)) -> Я | AE18: =TRIM(LEFT(TRIM(INDEX(отсутствия!$N:$AR,MATCH($C17,отсутствия!$A:$A,),AE$11)&" "&TEXT(INDEX('график 7,8'!$B$5:$AF$16,MONTH($AP$3),AE$11)&"","Я")),2)) -> Я | AF18: =TRIM(LEFT(TRIM(INDEX(отсутствия!$N:$AR,MATCH($C17,отсутствия!$A:$A,),AF$11)&" "&TEXT(INDEX('график 7,8'!$B$5:$AF$16,MONTH($AP$3),AF$11)&"","Я")),2)) -> Я | AG18: =TRIM(LEFT(TRIM(INDEX(отсутствия!$N:$AR,MATCH($C17,отсутствия!$A:$A,),AG$11)&" "&TEXT(INDEX('график 7,8'!$B$5:$AF$16,MONTH($AP$3),AG$11)&"","Я")),2)) -> В | AH18: =TRIM(LEFT(TRIM(INDEX(отсутствия!$N:$AR,MATCH($C17,отсутствия!$A:$A,),AH$11)&" "&TEXT(INDEX('график 7,8'!$B$5:$AF$16,MONTH($AP$3),AH$11)&"","Я")),2)) -> В | AI18: =TRIM(LEFT(TRIM(INDEX(отсутствия!$N:$AR,MATCH($C17,отсутствия!$A:$A,),AI$11)&" "&TEXT(INDEX('график 7,8'!$B$5:$AF$16,MONTH($AP$3),AI$11)&"","Я")),2)) -> Я | AJ18: =TRIM(LEFT(TRIM(INDEX(отсутствия!$N:$AR,MATCH($C17,отсутствия!$A:$A,),AJ$11)&" "&TEXT(INDEX('график 7,8'!$B$5:$AF$16,MONTH($AP$3),AJ$11)&"","Я")),2)) -> Я
A19: 2628 | B19: Морозов | C19: 2628 | D19: сборная | E19: =IFERROR(INDEX(РВД!$D:$I,MATCH($C19,РВД!$A:$A,)+1,MATCH($N$4+E$11-1,INDEX(РВД!$D:$I,MATCH($C19,РВД!$A:$A,),),)),IF(E20="Я",INDEX('график 7,8'!$B$5:$AF$16,MONTH($AP$3),E$11),"")) ->  | F19: =IFERROR(INDEX(РВД!$D:$I,MATCH($C19,РВД!$A:$A,)+1,MATCH($N$4+F$11-1,INDEX(РВД!$D:$I,MATCH($C19,РВД!$A:$A,),),)),IF(F20="Я",INDEX('график 7,8'!$B$5:$AF$16,MONTH($AP$3),F$11),"")) -> 7.8 | G19: =IFERROR(INDEX(РВД!$D:$I,MATCH($C19,РВД!$A:$A,)+1,MATCH($N$4+G$11-1,INDEX(РВД!$D:$I,MATCH($C19,РВД!$A:$A,),),)),IF(G20="Я",INDEX('график 7,8'!$B$5:$AF$16,MONTH($AP$3),G$11),"")) -> 7.8 | H19: =IFERROR(INDEX(РВД!$D:$I,MATCH($C19,РВД!$A:$A,)+1,MATCH($N$4+H$11-1,INDEX(РВД!$D:$I,MATCH($C19,РВД!$A:$A,),),)),IF(H20="Я",INDEX('график 7,8'!$B$5:$AF$16,MONTH($AP$3),H$11),"")) -> 7.8 | I19: =IFERROR(INDEX(РВД!$D:$I,MATCH($C19,РВД!$A:$A,)+1,MATCH($N$4+I$11-1,INDEX(РВД!$D:$I,MATCH($C19,РВД!$A:$A,),),)),IF(I20="Я",INDEX('график 7,8'!$B$5:$AF$16,MONTH($AP$3),I$11),"")) -> 7.8 | J19: =IFERROR(INDEX(РВД!$D:$I,MATCH($C19,РВД!$A:$A,)+1,MATCH($N$4+J$11-1,INDEX(РВД!$D:$I,MATCH($C19,РВД!$A:$A,),),)),IF(J20="Я",INDEX('график 7,8'!$B$5:$AF$16,MONTH($AP$3),J$11),"")) -> 7.8 | K19: =IFERROR(INDEX(РВД!$D:$I,MATCH($C19,РВД!$A:$A,)+1,MATCH($N$4+K$11-1,INDEX(РВД!$D:$I,MATCH($C19,РВД!$A:$A,),),)),IF(K20="Я",INDEX('график 7,8'!$B$5:$AF$16,MONTH($AP$3),K$11),"")) ->  | L19: =IFERROR(INDEX(РВД!$D:$I,MATCH($C19,РВД!$A:$A,)+1,MATCH($N$4+L$11-1,INDEX(РВД!$D:$I,MATCH($C19,РВД!$A:$A,),),)),IF(L20="Я",INDEX('график 7,8'!$B$5:$AF$16,MONTH($AP$3),L$11),"")) ->  | M19: =IFERROR(INDEX(РВД!$D:$I,MATCH($C19,РВД!$A:$A,)+1,MATCH($N$4+M$11-1,INDEX(РВД!$D:$I,MATCH($C19,РВД!$A:$A,),),)),IF(M20="Я",INDEX('график 7,8'!$B$5:$AF$16,MONTH($AP$3),M$11),"")) ->  | N19: =IFERROR(INDEX(РВД!$D:$I,MATCH($C19,РВД!$A:$A,)+1,MATCH($N$4+N$11-1,INDEX(РВД!$D:$I,MATCH($C19,РВД!$A:$A,),),)),IF(N20="Я",INDEX('график 7,8'!$B$5:$AF$16,MONTH($AP$3),N$11),"")) -> 7.8 | O19: =IFERROR(INDEX(РВД!$D:$I,MATCH($C19,РВД!$A:$A,)+1,MATCH($N$4+O$11-1,INDEX(РВД!$D:$I,MATCH($C19,РВД!$A:$A,),),)),IF(O20="Я",INDEX('график 7,8'!$B$5:$AF$16,MONTH($AP$3),O$11),"")) -> 7.8 | P19: =IFERROR(INDEX(РВД!$D:$I,MATCH($C19,РВД!$A:$A,)+1,MATCH($N$4+P$11-1,INDEX(РВД!$D:$I,MATCH($C19,РВД!$A:$A,),),)),IF(P20="Я",INDEX('график 7,8'!$B$5:$AF$16,MONTH($AP$3),P$11),"")) -> 7.8 | Q19: =IFERROR(INDEX(РВД!$D:$I,MATCH($C19,РВД!$A:$A,)+1,MATCH($N$4+Q$11-1,INDEX(РВД!$D:$I,MATCH($C19,РВД!$A:$A,),),)),IF(Q20="Я",INDEX('график 7,8'!$B$5:$AF$16,MONTH($AP$3),Q$11),"")) -> 7.8 | R19: =IFERROR(INDEX(РВД!$D:$I,MATCH($C19,РВД!$A:$A,)+1,MATCH($N$4+R$11-1,INDEX(РВД!$D:$I,MATCH($C19,РВД!$A:$A,),),)),IF(R20="Я",INDEX('график 7,8'!$B$5:$AF$16,MONTH($AP$3),R$11),"")) ->  | S19: =IFERROR(INDEX(РВД!$D:$I,MATCH($C19,РВД!$A:$A,)+1,MATCH($N$4+S$11-1,INDEX(РВД!$D:$I,MATCH($C19,РВД!$A:$A,),),)),IF(S20="Я",INDEX('график 7,8'!$B$5:$AF$16,MONTH($AP$3),S$11),"")) ->  | T19: =SUMIF(E20:S20,"Я",E19:S19) -> 70.2 | U19: =IFERROR(INDEX(РВД!$D:$I,MATCH($C19,РВД!$A:$A,)+1,MATCH($N$4+U$11-1,INDEX(РВД!$D:$I,MATCH($C19,РВД!$A:$A,),),)),IF(U20="Я",INDEX('график 7,8'!$B$5:$AF$16,MONTH($AP$3),U$11),"")) -> 7.8 | V19: =IFERROR(INDEX(РВД!$D:$I,MATCH($C19,РВД!$A:$A,)+1,MATCH($N$4+V$11-1,INDEX(РВД!$D:$I,MATCH($C19,РВД!$A:$A,),),)),IF(V20="Я",INDEX('график 7,8'!$B$5:$AF$16,MONTH($AP$3),V$11),"")) -> 7.8 | W19: =IFERROR(INDEX(РВД!$D:$I,MATCH($C19,РВД!$A:$A,)+1,MATCH($N$4+W$11-1,INDEX(РВД!$D:$I,MATCH($C19,РВД!$A:$A,),),)),IF(W20="Я",INDEX('график 7,8'!$B$5:$AF$16,MONTH($AP$3),W$11),"")) -> 7.8 | X19: =IFERROR(INDEX(РВД!$D:$I,MATCH($C19,РВД!$A:$A,)+1,MATCH($N$4+X$11-1,INDEX(РВД!$D:$I,MATCH($C19,РВД!$A:$A,),),)),IF(X20="Я",INDEX('график 7,8'!$B$5:$AF$16,MONTH($AP$3),X$11),"")) -> 7.8 | Y19: =IFERROR(INDEX(РВД!$D:$I,MATCH($C19,РВД!$A:$A,)+1,MATCH($N$4+Y$11-1,INDEX(РВД!$D:$I,MATCH($C19,РВД!$A:$A,),),)),IF(Y20="Я",INDEX('график 7,8'!$B$5:$AF$16,MONTH($AP$3),Y$11),"")) -> 7.8 | Z19: =IFERROR(INDEX(РВД!$D:$I,MATCH($C19,РВД!$A:$A,)+1,MATCH($N$4+Z$11-1,INDEX(РВД!$D:$I,MATCH($C19,РВД!$A:$A,),),)),IF(Z20="Я",INDEX('график 7,8'!$B$5:$AF$16,MONTH($AP$3),Z$11),"")) ->  | AA19: =IFERROR(INDEX(РВД!$D:$I,MATCH($C19,РВД!$A:$A,)+1,MATCH($N$4+AA$11-1,INDEX(РВД!$D:$I,MATCH($C19,РВД!$A:$A,),),)),IF(AA20="Я",INDEX('график 7,8'!$B$5:$AF$16,MONTH($AP$3),AA$11),"")) ->  | AB19: =IFERROR(INDEX(РВД!$D:$I,MATCH($C19,РВД!$A:$A,)+1,MATCH($N$4+AB$11-1,INDEX(РВД!$D:$I,MATCH($C19,РВД!$A:$A,),),)),IF(AB20="Я",INDEX('график 7,8'!$B$5:$AF$16,MONTH($AP$3),AB$11),"")) -> 7.8 | AC19: =IFERROR(INDEX(РВД!$D:$I,MATCH($C19,РВД!$A:$A,)+1,MATCH($N$4+AC$11-1,INDEX(РВД!$D:$I,MATCH($C19,РВД!$A:$A,),),)),IF(AC20="Я",INDEX('график 7,8'!$B$5:$AF$16,MONTH($AP$3),AC$11),"")) -> 7.8 | AD19: =IFERROR(INDEX(РВД!$D:$I,MATCH($C19,РВД!$A:$A,)+1,MATCH($N$4+AD$11-1,INDEX(РВД!$D:$I,MATCH($C19,РВД!$A:$A,),),)),IF(AD20="Я",INDEX('график 7,8'!$B$5:$AF$16,MONTH($AP$3),AD$11),"")) -> 7.8 | AE19: =IFERROR(INDEX(РВД!$D:$I,MATCH($C19,РВД!$A:$A,)+1,MATCH($N$4+AE$11-1,INDEX(РВД!$D:$I,MATCH($C19,РВД!$A:$A,),),)),IF(AE20="Я",INDEX('график 7,8'!$B$5:$AF$16,MONTH($AP$3),AE$11),"")) -> 7.8 | AF19: =IFERROR(INDEX(РВД!$D:$I,MATCH($C19,РВД!$A:$A,)+1,MATCH($N$4+AF$11-1,INDEX(РВД!$D:$I,MATCH($C19,РВД!$A:$A,),),)),IF(AF20="Я",INDEX('график 7,8'!$B$5:$AF$16,MONTH($AP$3),AF$11),"")) -> 7.8 | AG19: =IFERROR(INDEX(РВД!$D:$I,MATCH($C19,РВД!$A:$A,)+1,MATCH($N$4+AG$11-1,INDEX(РВД!$D:$I,MATCH($C19,РВД!$A:$A,),),)),IF(AG20="Я",INDEX('график 7,8'!$B$5:$AF$16,MONTH($AP$3),AG$11),"")) ->  | AH19: =IFERROR(INDEX(РВД!$D:$I,MATCH($C19,РВД!$A:$A,)+1,MATCH($N$4+AH$11-1,INDEX(РВД!$D:$I,MATCH($C19,РВД!$A:$A,),),)),IF(AH20="Я",INDEX('график 7,8'!$B$5:$AF$16,MONTH($AP$3),AH$11),"")) ->  | AI19: =IFERROR(INDEX(РВД!$D:$I,MATCH($C19,РВД!$A:$A,)+1,MATCH($N$4+AI$11-1,INDEX(РВД!$D:$I,MATCH($C19,РВД!$A:$A,),),)),IF(AI20="Я",INDEX('график 7,8'!$B$5:$AF$16,MONTH($AP$3),AI$11),"")) -> 7.8 | AJ19: =IFERROR(INDEX(РВД!$D:$I,MATCH($C19,РВД!$A:$A,)+1,MATCH($N$4+AJ$11-1,INDEX(РВД!$D:$I,MATCH($C19,РВД!$A:$A,),),)),IF(AJ20="Я",INDEX('график 7,8'!$B$5:$AF$16,MONTH($AP$3),AJ$11),"")) -> 7.8 | AK19: ="Я/"&SUMIF(E20:AJ20,"Я",E19:AJ19) -> Я/163,8 | AL19: =(SUMIF(E20:AJ20,"В",E19:AJ19)+SUMIF(E20:AJ20,"В.",E19:AJ19))*2 -> 0 | AM19: =COUNTIFS(E20:AJ20,"Я",E19:AJ19,"<>") -> 21 | AN19: =IFERROR(VLOOKUP(C19,доплаты!$A$5:$P$118,16,0),"") -> 24
E20: =TRIM(LEFT(TRIM(INDEX(отсутствия!$N:$AR,MATCH($C19,отсутствия!$A:$A,),E$11)&" "&TEXT(INDEX('график 7,8'!$B$5:$AF$16,MONTH($AP$3),E$11)&"","Я")),2)) -> В | F20: =TRIM(LEFT(TRIM(INDEX(отсутствия!$N:$AR,MATCH($C19,отсутствия!$A:$A,),F$11)&" "&TEXT(INDEX('график 7,8'!$B$5:$AF$16,MONTH($AP$3),F$11)&"","Я")),2)) -> Я | G20: =TRIM(LEFT(TRIM(INDEX(отсутствия!$N:$AR,MATCH($C19,отсутствия!$A:$A,),G$11)&" "&TEXT(INDEX('график 7,8'!$B$5:$AF$16,MONTH($AP$3),G$11)&"","Я")),2)) -> Я | H20: =TRIM(LEFT(TRIM(INDEX(отсутствия!$N:$AR,MATCH($C19,отсутствия!$A:$A,),H$11)&" "&TEXT(INDEX('график 7,8'!$B$5:$AF$16,MONTH($AP$3),H$11)&"","Я")),2)) -> Я | I20: =TRIM(LEFT(TRIM(INDEX(отсутствия!$N:$AR,MATCH($C19,отсутствия!$A:$A,),I$11)&" "&TEXT(INDEX('график 7,8'!$B$5:$AF$16,MONTH($AP$3),I$11)&"","Я")),2)) -> Я | J20: =TRIM(LEFT(TRIM(INDEX(отсутствия!$N:$AR,MATCH($C19,отсутствия!$A:$A,),J$11)&" "&TEXT(INDEX('график 7,8'!$B$5:$AF$16,MONTH($AP$3),J$11)&"","Я")),2)) -> Я | K20: =TRIM(LEFT(TRIM(INDEX(отсутствия!$N:$AR,MATCH($C19,отсутствия!$A:$A,),K$11)&" "&TEXT(INDEX('график 7,8'!$B$5:$AF$16,MONTH($AP$3),K$11)&"","Я")),2)) -> В | L20: =TRIM(LEFT(TRIM(INDEX(отсутствия!$N:$AR,MATCH($C19,отсутствия!$A:$A,),L$11)&" "&TEXT(INDEX('график 7,8'!$B$5:$AF$16,MONTH($AP$3),L$11)&"","Я")),2)) -> В. | M20: =TRIM(LEFT(TRIM(INDEX(отсутствия!$N:$AR,MATCH($C19,отсутствия!$A:$A,),M$11)&" "&TEXT(INDEX('график 7,8'!$B$5:$AF$16,MONTH($AP$3),M$11)&"","Я")),2)) -> В | N20: =TRIM(LEFT(TRIM(INDEX(отсутствия!$N:$AR,MATCH($C19,отсутствия!$A:$A,),N$11)&" "&TEXT(INDEX('график 7,8'!$B$5:$AF$16,MONTH($AP$3),N$11)&"","Я")),2)) -> Я | O20: =TRIM(LEFT(TRIM(INDEX(отсутствия!$N:$AR,MATCH($C19,отсутствия!$A:$A,),O$11)&" "&TEXT(INDEX('график 7,8'!$B$5:$AF$16,MONTH($AP$3),O$11)&"","Я")),2)) -> Я | P20: =TRIM(LEFT(TRIM(INDEX(отсутствия!$N:$AR,MATCH($C19,отсутствия!$A:$A,),P$11)&" "&TEXT(INDEX('график 7,8'!$B$5:$AF$16,MONTH($AP$3),P$11)&"","Я")),2)) -> Я | Q20: =TRIM(LEFT(TRIM(INDEX(отсутствия!$N:$AR,MATCH($C19,отсутствия!$A:$A,),Q$11)&" "&TEXT(INDEX('график 7,8'!$B$5:$AF$16,MONTH($AP$3),Q$11)&"","Я")),2)) -> Я | R20: =TRIM(LEFT(TRIM(INDEX(отсутствия!$N:$AR,MATCH($C19,отсутствия!$A:$A,),R$11)&" "&TEXT(INDEX('график 7,8'!$B$5:$AF$16,MONTH($AP$3),R$11)&"","Я")),2)) -> В | S20: =TRIM(LEFT(TRIM(INDEX(отсутствия!$N:$AR,MATCH($C19,отсутствия!$A:$A,),S$11)&" "&TEXT(INDEX('график 7,8'!$B$5:$AF$16,MONTH($AP$3),S$11)&"","Я")),2)) -> В | U20: =TRIM(LEFT(TRIM(INDEX(отсутствия!$N:$AR,MATCH($C19,отсутствия!$A:$A,),U$11)&" "&TEXT(INDEX('график 7,8'!$B$5:$AF$16,MONTH($AP$3),U$11)&"","Я")),2)) -> Я | V20: =TRIM(LEFT(TRIM(INDEX(отсутствия!$N:$AR,MATCH($C19,отсутствия!$A:$A,),V$11)&" "&TEXT(INDEX('график 7,8'!$B$5:$AF$16,MONTH($AP$3),V$11)&"","Я")),2)) -> Я | W20: =TRIM(LEFT(TRIM(INDEX(отсутствия!$N:$AR,MATCH($C19,отсутствия!$A:$A,),W$11)&" "&TEXT(INDEX('график 7,8'!$B$5:$AF$16,MONTH($AP$3),W$11)&"","Я")),2)) -> Я | X20: =TRIM(LEFT(TRIM(INDEX(отсутствия!$N:$AR,MATCH($C19,отсутствия!$A:$A,),X$11)&" "&TEXT(INDEX('график 7,8'!$B$5:$AF$16,MONTH($AP$3),X$11)&"","Я")),2)) -> Я | Y20: =TRIM(LEFT(TRIM(INDEX(отсутствия!$N:$AR,MATCH($C19,отсутствия!$A:$A,),Y$11)&" "&TEXT(INDEX('график 7,8'!$B$5:$AF$16,MONTH($AP$3),Y$11)&"","Я")),2)) -> Я | Z20: =TRIM(LEFT(TRIM(INDEX(отсутствия!$N:$AR,MATCH($C19,отсутствия!$A:$A,),Z$11)&" "&TEXT(INDEX('график 7,8'!$B$5:$AF$16,MONTH($AP$3),Z$11)&"","Я")),2)) -> В | AA20: =TRIM(LEFT(TRIM(INDEX(отсутствия!$N:$AR,MATCH($C19,отсутствия!$A:$A,),AA$11)&" "&TEXT(INDEX('график 7,8'!$B$5:$AF$16,MONTH($AP$3),AA$11)&"","Я")),2)) -> В | AB20: =TRIM(LEFT(TRIM(INDEX(отсутствия!$N:$AR,MATCH($C19,отсутствия!$A:$A,),AB$11)&" "&TEXT(INDEX('график 7,8'!$B$5:$AF$16,MONTH($AP$3),AB$11)&"","Я")),2)) -> Я | AC20: =TRIM(LEFT(TRIM(INDEX(отсутствия!$N:$AR,MATCH($C19,отсутствия!$A:$A,),AC$11)&" "&TEXT(INDEX('график 7,8'!$B$5:$AF$16,MONTH($AP$3),AC$11)&"","Я")),2)) -> Я | AD20: =TRIM(LEFT(TRIM(INDEX(отсутствия!$N:$AR,MATCH($C19,отсутствия!$A:$A,),AD$11)&" "&TEXT(INDEX('график 7,8'!$B$5:$AF$16,MONTH($AP$3),AD$11)&"","Я")),2)) -> Я | AE20: =TRIM(LEFT(TRIM(INDEX(отсутствия!$N:$AR,MATCH($C19,отсутствия!$A:$A,),AE$11)&" "&TEXT(INDEX('график 7,8'!$B$5:$AF$16,MONTH($AP$3),AE$11)&"","Я")),2)) -> Я | AF20: =TRIM(LEFT(TRIM(INDEX(отсутствия!$N:$AR,MATCH($C19,отсутствия!$A:$A,),AF$11)&" "&TEXT(INDEX('график 7,8'!$B$5:$AF$16,MONTH($AP$3),AF$11)&"","Я")),2)) -> Я | AG20: =TRIM(LEFT(TRIM(INDEX(отсутствия!$N:$AR,MATCH($C19,отсутствия!$A:$A,),AG$11)&" "&TEXT(INDEX('график 7,8'!$B$5:$AF$16,MONTH($AP$3),AG$11)&"","Я")),2)) -> В | AH20: =TRIM(LEFT(TRIM(INDEX(отсутствия!$N:$AR,MATCH($C19,отсутствия!$A:$A,),AH$11)&" "&TEXT(INDEX('график 7,8'!$B$5:$AF$16,MONTH($AP$3),AH$11)&"","Я")),2)) -> В | AI20: =TRIM(LEFT(TRIM(INDEX(отсутствия!$N:$AR,MATCH($C19,отсутствия!$A:$A,),AI$11)&" "&TEXT(INDEX('график 7,8'!$B$5:$AF$16,MONTH($AP$3),AI$11)&"","Я")),2)) -> Я | AJ20: =TRIM(LEFT(TRIM(INDEX(отсутствия!$N:$AR,MATCH($C19,отсутствия!$A:$A,),AJ$11)&" "&TEXT(INDEX('график 7,8'!$B$5:$AF$16,MONTH($AP$3),AJ$11)&"","Я")),2)) -> Я
A21: 4439 | B21: Шустов | C21: 4439 | D21: сборная | E21: =IFERROR(INDEX(РВД!$D:$I,MATCH($C21,РВД!$A:$A,)+1,MATCH($N$4+E$11-1,INDEX(РВД!$D:$I,MATCH($C21,РВД!$A:$A,),),)),IF(E22="Я",INDEX('график 7,8'!$B$5:$AF$16,MONTH($AP$3),E$11),"")) ->  | F21: =IFERROR(INDEX(РВД!$D:$I,MATCH($C21,РВД!$A:$A,)+1,MATCH($N$4+F$11-1,INDEX(РВД!$D:$I,MATCH($C21,РВД!$A:$A,),),)),IF(F22="Я",INDEX('график 7,8'!$B$5:$AF$16,MONTH($AP$3),F$11),"")) -> 7.8 | G21: =IFERROR(INDEX(РВД!$D:$I,MATCH($C21,РВД!$A:$A,)+1,MATCH($N$4+G$11-1,INDEX(РВД!$D:$I,MATCH($C21,РВД!$A:$A,),),)),IF(G22="Я",INDEX('график 7,8'!$B$5:$AF$16,MONTH($AP$3),G$11),"")) -> 7.8 | H21: =IFERROR(INDEX(РВД!$D:$I,MATCH($C21,РВД!$A:$A,)+1,MATCH($N$4+H$11-1,INDEX(РВД!$D:$I,MATCH($C21,РВД!$A:$A,),),)),IF(H22="Я",INDEX('график 7,8'!$B$5:$AF$16,MONTH($AP$3),H$11),"")) -> 7.8 | I21: =IFERROR(INDEX(РВД!$D:$I,MATCH($C21,РВД!$A:$A,)+1,MATCH($N$4+I$11-1,INDEX(РВД!$D:$I,MATCH($C21,РВД!$A:$A,),),)),IF(I22="Я",INDEX('график 7,8'!$B$5:$AF$16,MONTH($AP$3),I$11),"")) -> 7.8 | J21: =IFERROR(INDEX(РВД!$D:$I,MATCH($C21,РВД!$A:$A,)+1,MATCH($N$4+J$11-1,INDEX(РВД!$D:$I,MATCH($C21,РВД!$A:$A,),),)),IF(J22="Я",INDEX('график 7,8'!$B$5:$AF$16,MONTH($AP$3),J$11),"")) -> 7.8 | K21: =IFERROR(INDEX(РВД!$D:$I,MATCH($C21,РВД!$A:$A,)+1,MATCH($N$4+K$11-1,INDEX(РВД!$D:$I,MATCH($C21,РВД!$A:$A,),),)),IF(K22="Я",INDEX('график 7,8'!$B$5:$AF$16,MONTH($AP$3),K$11),"")) ->  | L21: =IFERROR(INDEX(РВД!$D:$I,MATCH($C21,РВД!$A:$A,)+1,MATCH($N$4+L$11-1,INDEX(РВД!$D:$I,MATCH($C21,РВД!$A:$A,),),)),IF(L22="Я",INDEX('график 7,8'!$B$5:$AF$16,MONTH($AP$3),L$11),"")) ->  | M21: =IFERROR(INDEX(РВД!$D:$I,MATCH($C21,РВД!$A:$A,)+1,MATCH($N$4+M$11-1,INDEX(РВД!$D:$I,MATCH($C21,РВД!$A:$A,),),)),IF(M22="Я",INDEX('график 7,8'!$B$5:$AF$16,MONTH($AP$3),M$11),"")) ->  | N21: =IFERROR(INDEX(РВД!$D:$I,MATCH($C21,РВД!$A:$A,)+1,MATCH($N$4+N$11-1,INDEX(РВД!$D:$I,MATCH($C21,РВД!$A:$A,),),)),IF(N22="Я",INDEX('график 7,8'!$B$5:$AF$16,MONTH($AP$3),N$11),"")) -> 7.8 | O21: =IFERROR(INDEX(РВД!$D:$I,MATCH($C21,РВД!$A:$A,)+1,MATCH($N$4+O$11-1,INDEX(РВД!$D:$I,MATCH($C21,РВД!$A:$A,),),)),IF(O22="Я",INDEX('график 7,8'!$B$5:$AF$16,MONTH($AP$3),O$11),"")) -> 7.8 | P21: =IFERROR(INDEX(РВД!$D:$I,MATCH($C21,РВД!$A:$A,)+1,MATCH($N$4+P$11-1,INDEX(РВД!$D:$I,MATCH($C21,РВД!$A:$A,),),)),IF(P22="Я",INDEX('график 7,8'!$B$5:$AF$16,MONTH($AP$3),P$11),"")) -> 7.8 | Q21: =IFERROR(INDEX(РВД!$D:$I,MATCH($C21,РВД!$A:$A,)+1,MATCH($N$4+Q$11-1,INDEX(РВД!$D:$I,MATCH($C21,РВД!$A:$A,),),)),IF(Q22="Я",INDEX('график 7,8'!$B$5:$AF$16,MONTH($AP$3),Q$11),"")) -> 7.8 | R21: =IFERROR(INDEX(РВД!$D:$I,MATCH($C21,РВД!$A:$A,)+1,MATCH($N$4+R$11-1,INDEX(РВД!$D:$I,MATCH($C21,РВД!$A:$A,),),)),IF(R22="Я",INDEX('график 7,8'!$B$5:$AF$16,MONTH($AP$3),R$11),"")) ->  | S21: =IFERROR(INDEX(РВД!$D:$I,MATCH($C21,РВД!$A:$A,)+1,MATCH($N$4+S$11-1,INDEX(РВД!$D:$I,MATCH($C21,РВД!$A:$A,),),)),IF(S22="Я",INDEX('график 7,8'!$B$5:$AF$16,MONTH($AP$3),S$11),"")) ->  | T21: =SUMIF(E22:S22,"Я",E21:S21) -> 70.2 | U21: =IFERROR(INDEX(РВД!$D:$I,MATCH($C21,РВД!$A:$A,)+1,MATCH($N$4+U$11-1,INDEX(РВД!$D:$I,MATCH($C21,РВД!$A:$A,),),)),IF(U22="Я",INDEX('график 7,8'!$B$5:$AF$16,MONTH($AP$3),U$11),"")) -> 7.8 | V21: =IFERROR(INDEX(РВД!$D:$I,MATCH($C21,РВД!$A:$A,)+1,MATCH($N$4+V$11-1,INDEX(РВД!$D:$I,MATCH($C21,РВД!$A:$A,),),)),IF(V22="Я",INDEX('график 7,8'!$B$5:$AF$16,MONTH($AP$3),V$11),"")) -> 7.8 | W21: =IFERROR(INDEX(РВД!$D:$I,MATCH($C21,РВД!$A:$A,)+1,MATCH($N$4+W$11-1,INDEX(РВД!$D:$I,MATCH($C21,РВД!$A:$A,),),)),IF(W22="Я",INDEX('график 7,8'!$B$5:$AF$16,MONTH($AP$3),W$11),"")) -> 7.8 | X21: =IFERROR(INDEX(РВД!$D:$I,MATCH($C21,РВД!$A:$A,)+1,MATCH($N$4+X$11-1,INDEX(РВД!$D:$I,MATCH($C21,РВД!$A:$A,),),)),IF(X22="Я",INDEX('график 7,8'!$B$5:$AF$16,MONTH($AP$3),X$11),"")) -> 7.8 | Y21: =IFERROR(INDEX(РВД!$D:$I,MATCH($C21,РВД!$A:$A,)+1,MATCH($N$4+Y$11-1,INDEX(РВД!$D:$I,MATCH($C21,РВД!$A:$A,),),)),IF(Y22="Я",INDEX('график 7,8'!$B$5:$AF$16,MONTH($AP$3),Y$11),"")) -> 7.8 | Z21: =IFERROR(INDEX(РВД!$D:$I,MATCH($C21,РВД!$A:$A,)+1,MATCH($N$4+Z$11-1,INDEX(РВД!$D:$I,MATCH($C21,РВД!$A:$A,),),)),IF(Z22="Я",INDEX('график 7,8'!$B$5:$AF$16,MONTH($AP$3),Z$11),"")) ->  | AA21: =IFERROR(INDEX(РВД!$D:$I,MATCH($C21,РВД!$A:$A,)+1,MATCH($N$4+AA$11-1,INDEX(РВД!$D:$I,MATCH($C21,РВД!$A:$A,),),)),IF(AA22="Я",INDEX('график 7,8'!$B$5:$AF$16,MONTH($AP$3),AA$11),"")) ->  | AB21: =IFERROR(INDEX(РВД!$D:$I,MATCH($C21,РВД!$A:$A,)+1,MATCH($N$4+AB$11-1,INDEX(РВД!$D:$I,MATCH($C21,РВД!$A:$A,),),)),IF(AB22="Я",INDEX('график 7,8'!$B$5:$AF$16,MONTH($AP$3),AB$11),"")) -> 7.8 | AC21: =IFERROR(INDEX(РВД!$D:$I,MATCH($C21,РВД!$A:$A,)+1,MATCH($N$4+AC$11-1,INDEX(РВД!$D:$I,MATCH($C21,РВД!$A:$A,),),)),IF(AC22="Я",INDEX('график 7,8'!$B$5:$AF$16,MONTH($AP$3),AC$11),"")) -> 7.8 | AD21: =IFERROR(INDEX(РВД!$D:$I,MATCH($C21,РВД!$A:$A,)+1,MATCH($N$4+AD$11-1,INDEX(РВД!$D:$I,MATCH($C21,РВД!$A:$A,),),)),IF(AD22="Я",INDEX('график 7,8'!$B$5:$AF$16,MONTH($AP$3),AD$11),"")) -> 7.8 | AE21: =IFERROR(INDEX(РВД!$D:$I,MATCH($C21,РВД!$A:$A,)+1,MATCH($N$4+AE$11-1,INDEX(РВД!$D:$I,MATCH($C21,РВД!$A:$A,),),)),IF(AE22="Я",INDEX('график 7,8'!$B$5:$AF$16,MONTH($AP$3),AE$11),"")) -> 7.8 | AF21: =IFERROR(INDEX(РВД!$D:$I,MATCH($C21,РВД!$A:$A,)+1,MATCH($N$4+AF$11-1,INDEX(РВД!$D:$I,MATCH($C21,РВД!$A:$A,),),)),IF(AF22="Я",INDEX('график 7,8'!$B$5:$AF$16,MONTH($AP$3),AF$11),"")) -> 7.8 | AG21: =IFERROR(INDEX(РВД!$D:$I,MATCH($C21,РВД!$A:$A,)+1,MATCH($N$4+AG$11-1,INDEX(РВД!$D:$I,MATCH($C21,РВД!$A:$A,),),)),IF(AG22="Я",INDEX('график 7,8'!$B$5:$AF$16,MONTH($AP$3),AG$11),"")) ->  | AH21: =IFERROR(INDEX(РВД!$D:$I,MATCH($C21,РВД!$A:$A,)+1,MATCH($N$4+AH$11-1,INDEX(РВД!$D:$I,MATCH($C21,РВД!$A:$A,),),)),IF(AH22="Я",INDEX('график 7,8'!$B$5:$AF$16,MONTH($AP$3),AH$11),"")) ->  | AI21: =IFERROR(INDEX(РВД!$D:$I,MATCH($C21,РВД!$A:$A,)+1,MATCH($N$4+AI$11-1,INDEX(РВД!$D:$I,MATCH($C21,РВД!$A:$A,),),)),IF(AI22="Я",INDEX('график 7,8'!$B$5:$AF$16,MONTH($AP$3),AI$11),"")) -> 7.8 | AJ21: =IFERROR(INDEX(РВД!$D:$I,MATCH($C21,РВД!$A:$A,)+1,MATCH($N$4+AJ$11-1,INDEX(РВД!$D:$I,MATCH($C21,РВД!$A:$A,),),)),IF(AJ22="Я",INDEX('график 7,8'!$B$5:$AF$16,MONTH($AP$3),AJ$11),"")) -> 7.8 | AK21: ="Я/"&SUMIF(E22:AJ22,"Я",E21:AJ21) -> Я/163,8 | AL21: =(SUMIF(E22:AJ22,"В",E21:AJ21)+SUMIF(E22:AJ22,"В.",E21:AJ21))*2 -> 0 | AM21: =COUNTIFS(E22:AJ22,"Я",E21:AJ21,"<>") -> 21 | AN21: =IFERROR(VLOOKUP(C21,доплаты!$A$5:$P$118,16,0),"") -> 24
E22: =TRIM(LEFT(TRIM(INDEX(отсутствия!$N:$AR,MATCH($C21,отсутствия!$A:$A,),E$11)&" "&TEXT(INDEX('график 7,8'!$B$5:$AF$16,MONTH($AP$3),E$11)&"","Я")),2)) -> В | F22: =TRIM(LEFT(TRIM(INDEX(отсутствия!$N:$AR,MATCH($C21,отсутствия!$A:$A,),F$11)&" "&TEXT(INDEX('график 7,8'!$B$5:$AF$16,MONTH($AP$3),F$11)&"","Я")),2)) -> Я | G22: =TRIM(LEFT(TRIM(INDEX(отсутствия!$N:$AR,MATCH($C21,отсутствия!$A:$A,),G$11)&" "&TEXT(INDEX('график 7,8'!$B$5:$AF$16,MONTH($AP$3),G$11)&"","Я")),2)) -> Я | H22: =TRIM(LEFT(TRIM(INDEX(отсутствия!$N:$AR,MATCH($C21,отсутствия!$A:$A,),H$11)&" "&TEXT(INDEX('график 7,8'!$B$5:$AF$16,MONTH($AP$3),H$11)&"","Я")),2)) -> Я | I22: =TRIM(LEFT(TRIM(INDEX(отсутствия!$N:$AR,MATCH($C21,отсутствия!$A:$A,),I$11)&" "&TEXT(INDEX('график 7,8'!$B$5:$AF$16,MONTH($AP$3),I$11)&"","Я")),2)) -> Я | J22: =TRIM(LEFT(TRIM(INDEX(отсутствия!$N:$AR,MATCH($C21,отсутствия!$A:$A,),J$11)&" "&TEXT(INDEX('график 7,8'!$B$5:$AF$16,MONTH($AP$3),J$11)&"","Я")),2)) -> Я | K22: =TRIM(LEFT(TRIM(INDEX(отсутствия!$N:$AR,MATCH($C21,отсутствия!$A:$A,),K$11)&" "&TEXT(INDEX('график 7,8'!$B$5:$AF$16,MONTH($AP$3),K$11)&"","Я")),2)) -> В | L22: =TRIM(LEFT(TRIM(INDEX(отсутствия!$N:$AR,MATCH($C21,отсутствия!$A:$A,),L$11)&" "&TEXT(INDEX('график 7,8'!$B$5:$AF$16,MONTH($AP$3),L$11)&"","Я")),2)) -> В. | M22: =TRIM(LEFT(TRIM(INDEX(отсутствия!$N:$AR,MATCH($C21,отсутствия!$A:$A,),M$11)&" "&TEXT(INDEX('график 7,8'!$B$5:$AF$16,MONTH($AP$3),M$11)&"","Я")),2)) -> В | N22: =TRIM(LEFT(TRIM(INDEX(отсутствия!$N:$AR,MATCH($C21,отсутствия!$A:$A,),N$11)&" "&TEXT(INDEX('график 7,8'!$B$5:$AF$16,MONTH($AP$3),N$11)&"","Я")),2)) -> Я | O22: =TRIM(LEFT(TRIM(INDEX(отсутствия!$N:$AR,MATCH($C21,отсутствия!$A:$A,),O$11)&" "&TEXT(INDEX('график 7,8'!$B$5:$AF$16,MONTH($AP$3),O$11)&"","Я")),2)) -> Я | P22: =TRIM(LEFT(TRIM(INDEX(отсутствия!$N:$AR,MATCH($C21,отсутствия!$A:$A,),P$11)&" "&TEXT(INDEX('график 7,8'!$B$5:$AF$16,MONTH($AP$3),P$11)&"","Я")),2)) -> Я | Q22: =TRIM(LEFT(TRIM(INDEX(отсутствия!$N:$AR,MATCH($C21,отсутствия!$A:$A,),Q$11)&" "&TEXT(INDEX('график 7,8'!$B$5:$AF$16,MONTH($AP$3),Q$11)&"","Я")),2)) -> Я | R22: =TRIM(LEFT(TRIM(INDEX(отсутствия!$N:$AR,MATCH($C21,отсутствия!$A:$A,),R$11)&" "&TEXT(INDEX('график 7,8'!$B$5:$AF$16,MONTH($AP$3),R$11)&"","Я")),2)) -> В | S22: =TRIM(LEFT(TRIM(INDEX(отсутствия!$N:$AR,MATCH($C21,отсутствия!$A:$A,),S$11)&" "&TEXT(INDEX('график 7,8'!$B$5:$AF$16,MONTH($AP$3),S$11)&"","Я")),2)) -> В | U22: =TRIM(LEFT(TRIM(INDEX(отсутствия!$N:$AR,MATCH($C21,отсутствия!$A:$A,),U$11)&" "&TEXT(INDEX('график 7,8'!$B$5:$AF$16,MONTH($AP$3),U$11)&"","Я")),2)) -> Я | V22: =TRIM(LEFT(TRIM(INDEX(отсутствия!$N:$AR,MATCH($C21,отсутствия!$A:$A,),V$11)&" "&TEXT(INDEX('график 7,8'!$B$5:$AF$16,MONTH($AP$3),V$11)&"","Я")),2)) -> Я | W22: =TRIM(LEFT(TRIM(INDEX(отсутствия!$N:$AR,MATCH($C21,отсутствия!$A:$A,),W$11)&" "&TEXT(INDEX('график 7,8'!$B$5:$AF$16,MONTH($AP$3),W$11)&"","Я")),2)) -> Я | X22: =TRIM(LEFT(TRIM(INDEX(отсутствия!$N:$AR,MATCH($C21,отсутствия!$A:$A,),X$11)&" "&TEXT(INDEX('график 7,8'!$B$5:$AF$16,MONTH($AP$3),X$11)&"","Я")),2)) -> Я | Y22: =TRIM(LEFT(TRIM(INDEX(отсутствия!$N:$AR,MATCH($C21,отсутствия!$A:$A,),Y$11)&" "&TEXT(INDEX('график 7,8'!$B$5:$AF$16,MONTH($AP$3),Y$11)&"","Я")),2)) -> Я | Z22: =TRIM(LEFT(TRIM(INDEX(отсутствия!$N:$AR,MATCH($C21,отсутствия!$A:$A,),Z$11)&" "&TEXT(INDEX('график 7,8'!$B$5:$AF$16,MONTH($AP$3),Z$11)&"","Я")),2)) -> В | AA22: =TRIM(LEFT(TRIM(INDEX(отсутствия!$N:$AR,MATCH($C21,отсутствия!$A:$A,),AA$11)&" "&TEXT(INDEX('график 7,8'!$B$5:$AF$16,MONTH($AP$3),AA$11)&"","Я")),2)) -> В | AB22: =TRIM(LEFT(TRIM(INDEX(отсутствия!$N:$AR,MATCH($C21,отсутствия!$A:$A,),AB$11)&" "&TEXT(INDEX('график 7,8'!$B$5:$AF$16,MONTH($AP$3),AB$11)&"","Я")),2)) -> Я | AC22: =TRIM(LEFT(TRIM(INDEX(отсутствия!$N:$AR,MATCH($C21,отсутствия!$A:$A,),AC$11)&" "&TEXT(INDEX('график 7,8'!$B$5:$AF$16,MONTH($AP$3),AC$11)&"","Я")),2)) -> Я | AD22: =TRIM(LEFT(TRIM(INDEX(отсутствия!$N:$AR,MATCH($C21,отсутствия!$A:$A,),AD$11)&" "&TEXT(INDEX('график 7,8'!$B$5:$AF$16,MONTH($AP$3),AD$11)&"","Я")),2)) -> Я | AE22: =TRIM(LEFT(TRIM(INDEX(отсутствия!$N:$AR,MATCH($C21,отсутствия!$A:$A,),AE$11)&" "&TEXT(INDEX('график 7,8'!$B$5:$AF$16,MONTH($AP$3),AE$11)&"","Я")),2)) -> Я | AF22: =TRIM(LEFT(TRIM(INDEX(отсутствия!$N:$AR,MATCH($C21,отсутствия!$A:$A,),AF$11)&" "&TEXT(INDEX('график 7,8'!$B$5:$AF$16,MONTH($AP$3),AF$11)&"","Я")),2)) -> Я | AG22: =TRIM(LEFT(TRIM(INDEX(отсутствия!$N:$AR,MATCH($C21,отсутствия!$A:$A,),AG$11)&" "&TEXT(INDEX('график 7,8'!$B$5:$AF$16,MONTH($AP$3),AG$11)&"","Я")),2)) -> В | AH22: =TRIM(LEFT(TRIM(INDEX(отсутствия!$N:$AR,MATCH($C21,отсутствия!$A:$A,),AH$11)&" "&TEXT(INDEX('график 7,8'!$B$5:$AF$16,MONTH($AP$3),AH$11)&"","Я")),2)) -> В | AI22: =TRIM(LEFT(TRIM(INDEX(отсутствия!$N:$AR,MATCH($C21,отсутствия!$A:$A,),AI$11)&" "&TEXT(INDEX('график 7,8'!$B$5:$AF$16,MONTH($AP$3),AI$11)&"","Я")),2)) -> Я | AJ22: =TRIM(LEFT(TRIM(INDEX(отсутствия!$N:$AR,MATCH($C21,отсутствия!$A:$A,),AJ$11)&" "&TEXT(INDEX('график 7,8'!$B$5:$AF$16,MONTH($AP$3),AJ$11)&"","Я")),2)) -> Я
A23: 4813 | B23: Овечкин | C23: 4813 | D23: сборная | E23: =IFERROR(INDEX(РВД!$D:$I,MATCH($C23,РВД!$A:$A,)+1,MATCH($N$4+E$11-1,INDEX(РВД!$D:$I,MATCH($C23,РВД!$A:$A,),),)),IF(E24="Я",INDEX('график 7,8'!$B$5:$AF$16,MONTH($AP$3),E$11),"")) ->  | F23: =IFERROR(INDEX(РВД!$D:$I,MATCH($C23,РВД!$A:$A,)+1,MATCH($N$4+F$11-1,INDEX(РВД!$D:$I,MATCH($C23,РВД!$A:$A,),),)),IF(F24="Я",INDEX('график 7,8'!$B$5:$AF$16,MONTH($AP$3),F$11),"")) -> 7.8 | G23: =IFERROR(INDEX(РВД!$D:$I,MATCH($C23,РВД!$A:$A,)+1,MATCH($N$4+G$11-1,INDEX(РВД!$D:$I,MATCH($C23,РВД!$A:$A,),),)),IF(G24="Я",INDEX('график 7,8'!$B$5:$AF$16,MONTH($AP$3),G$11),"")) -> 7.8 | H23: =IFERROR(INDEX(РВД!$D:$I,MATCH($C23,РВД!$A:$A,)+1,MATCH($N$4+H$11-1,INDEX(РВД!$D:$I,MATCH($C23,РВД!$A:$A,),),)),IF(H24="Я",INDEX('график 7,8'!$B$5:$AF$16,MONTH($AP$3),H$11),"")) -> 7.8 | I23: =IFERROR(INDEX(РВД!$D:$I,MATCH($C23,РВД!$A:$A,)+1,MATCH($N$4+I$11-1,INDEX(РВД!$D:$I,MATCH($C23,РВД!$A:$A,),),)),IF(I24="Я",INDEX('график 7,8'!$B$5:$AF$16,MONTH($AP$3),I$11),"")) -> 7.8 | J23: =IFERROR(INDEX(РВД!$D:$I,MATCH($C23,РВД!$A:$A,)+1,MATCH($N$4+J$11-1,INDEX(РВД!$D:$I,MATCH($C23,РВД!$A:$A,),),)),IF(J24="Я",INDEX('график 7,8'!$B$5:$AF$16,MONTH($AP$3),J$11),"")) -> 7.8 | K23: =IFERROR(INDEX(РВД!$D:$I,MATCH($C23,РВД!$A:$A,)+1,MATCH($N$4+K$11-1,INDEX(РВД!$D:$I,MATCH($C23,РВД!$A:$A,),),)),IF(K24="Я",INDEX('график 7,8'!$B$5:$AF$16,MONTH($AP$3),K$11),"")) ->  | L23: =IFERROR(INDEX(РВД!$D:$I,MATCH($C23,РВД!$A:$A,)+1,MATCH($N$4+L$11-1,INDEX(РВД!$D:$I,MATCH($C23,РВД!$A:$A,),),)),IF(L24="Я",INDEX('график 7,8'!$B$5:$AF$16,MONTH($AP$3),L$11),"")) ->  | M23: =IFERROR(INDEX(РВД!$D:$I,MATCH($C23,РВД!$A:$A,)+1,MATCH($N$4+M$11-1,INDEX(РВД!$D:$I,MATCH($C23,РВД!$A:$A,),),)),IF(M24="Я",INDEX('график 7,8'!$B$5:$AF$16,MONTH($AP$3),M$11),"")) ->  | N23: =IFERROR(INDEX(РВД!$D:$I,MATCH($C23,РВД!$A:$A,)+1,MATCH($N$4+N$11-1,INDEX(РВД!$D:$I,MATCH($C23,РВД!$A:$A,),),)),IF(N24="Я",INDEX('график 7,8'!$B$5:$AF$16,MONTH($AP$3),N$11),"")) -> 7.8 | O23: =IFERROR(INDEX(РВД!$D:$I,MATCH($C23,РВД!$A:$A,)+1,MATCH($N$4+O$11-1,INDEX(РВД!$D:$I,MATCH($C23,РВД!$A:$A,),),)),IF(O24="Я",INDEX('график 7,8'!$B$5:$AF$16,MONTH($AP$3),O$11),"")) -> 7.8 | P23: =IFERROR(INDEX(РВД!$D:$I,MATCH($C23,РВД!$A:$A,)+1,MATCH($N$4+P$11-1,INDEX(РВД!$D:$I,MATCH($C23,РВД!$A:$A,),),)),IF(P24="Я",INDEX('график 7,8'!$B$5:$AF$16,MONTH($AP$3),P$11),"")) -> 7.8 | Q23: =IFERROR(INDEX(РВД!$D:$I,MATCH($C23,РВД!$A:$A,)+1,MATCH($N$4+Q$11-1,INDEX(РВД!$D:$I,MATCH($C23,РВД!$A:$A,),),)),IF(Q24="Я",INDEX('график 7,8'!$B$5:$AF$16,MONTH($AP$3),Q$11),"")) -> 7.8 | R23: =IFERROR(INDEX(РВД!$D:$I,MATCH($C23,РВД!$A:$A,)+1,MATCH($N$4+R$11-1,INDEX(РВД!$D:$I,MATCH($C23,РВД!$A:$A,),),)),IF(R24="Я",INDEX('график 7,8'!$B$5:$AF$16,MONTH($AP$3),R$11),"")) ->  | S23: =IFERROR(INDEX(РВД!$D:$I,MATCH($C23,РВД!$A:$A,)+1,MATCH($N$4+S$11-1,INDEX(РВД!$D:$I,MATCH($C23,РВД!$A:$A,),),)),IF(S24="Я",INDEX('график 7,8'!$B$5:$AF$16,MONTH($AP$3),S$11),"")) ->  | T23: =SUMIF(E24:S24,"Я",E23:S23) -> 70.2 | U23: =IFERROR(INDEX(РВД!$D:$I,MATCH($C23,РВД!$A:$A,)+1,MATCH($N$4+U$11-1,INDEX(РВД!$D:$I,MATCH($C23,РВД!$A:$A,),),)),IF(U24="Я",INDEX('график 7,8'!$B$5:$AF$16,MONTH($AP$3),U$11),"")) -> 7.8 | V23: =IFERROR(INDEX(РВД!$D:$I,MATCH($C23,РВД!$A:$A,)+1,MATCH($N$4+V$11-1,INDEX(РВД!$D:$I,MATCH($C23,РВД!$A:$A,),),)),IF(V24="Я",INDEX('график 7,8'!$B$5:$AF$16,MONTH($AP$3),V$11),"")) -> 7.8 | W23: =IFERROR(INDEX(РВД!$D:$I,MATCH($C23,РВД!$A:$A,)+1,MATCH($N$4+W$11-1,INDEX(РВД!$D:$I,MATCH($C23,РВД!$A:$A,),),)),IF(W24="Я",INDEX('график 7,8'!$B$5:$AF$16,MONTH($AP$3),W$11),"")) -> 7.8 | X23: =IFERROR(INDEX(РВД!$D:$I,MATCH($C23,РВД!$A:$A,)+1,MATCH($N$4+X$11-1,INDEX(РВД!$D:$I,MATCH($C23,РВД!$A:$A,),),)),IF(X24="Я",INDEX('график 7,8'!$B$5:$AF$16,MONTH($AP$3),X$11),"")) -> 7.8 | Y23: =IFERROR(INDEX(РВД!$D:$I,MATCH($C23,РВД!$A:$A,)+1,MATCH($N$4+Y$11-1,INDEX(РВД!$D:$I,MATCH($C23,РВД!$A:$A,),),)),IF(Y24="Я",INDEX('график 7,8'!$B$5:$AF$16,MONTH($AP$3),Y$11),"")) -> 7.8 | Z23: =IFERROR(INDEX(РВД!$D:$I,MATCH($C23,РВД!$A:$A,)+1,MATCH($N$4+Z$11-1,INDEX(РВД!$D:$I,MATCH($C23,РВД!$A:$A,),),)),IF(Z24="Я",INDEX('график 7,8'!$B$5:$AF$16,MONTH($AP$3),Z$11),"")) ->  | AA23: =IFERROR(INDEX(РВД!$D:$I,MATCH($C23,РВД!$A:$A,)+1,MATCH($N$4+AA$11-1,INDEX(РВД!$D:$I,MATCH($C23,РВД!$A:$A,),),)),IF(AA24="Я",INDEX('график 7,8'!$B$5:$AF$16,MONTH($AP$3),AA$11),"")) ->  | AB23: =IFERROR(INDEX(РВД!$D:$I,MATCH($C23,РВД!$A:$A,)+1,MATCH($N$4+AB$11-1,INDEX(РВД!$D:$I,MATCH($C23,РВД!$A:$A,),),)),IF(AB24="Я",INDEX('график 7,8'!$B$5:$AF$16,MONTH($AP$3),AB$11),"")) -> 7.8 | AC23: =IFERROR(INDEX(РВД!$D:$I,MATCH($C23,РВД!$A:$A,)+1,MATCH($N$4+AC$11-1,INDEX(РВД!$D:$I,MATCH($C23,РВД!$A:$A,),),)),IF(AC24="Я",INDEX('график 7,8'!$B$5:$AF$16,MONTH($AP$3),AC$11),"")) -> 7.8 | AD23: =IFERROR(INDEX(РВД!$D:$I,MATCH($C23,РВД!$A:$A,)+1,MATCH($N$4+AD$11-1,INDEX(РВД!$D:$I,MATCH($C23,РВД!$A:$A,),),)),IF(AD24="Я",INDEX('график 7,8'!$B$5:$AF$16,MONTH($AP$3),AD$11),"")) -> 7.8 | AE23: =IFERROR(INDEX(РВД!$D:$I,MATCH($C23,РВД!$A:$A,)+1,MATCH($N$4+AE$11-1,INDEX(РВД!$D:$I,MATCH($C23,РВД!$A:$A,),),)),IF(AE24="Я",INDEX('график 7,8'!$B$5:$AF$16,MONTH($AP$3),AE$11),"")) -> 7.8 | AF23: =IFERROR(INDEX(РВД!$D:$I,MATCH($C23,РВД!$A:$A,)+1,MATCH($N$4+AF$11-1,INDEX(РВД!$D:$I,MATCH($C23,РВД!$A:$A,),),)),IF(AF24="Я",INDEX('график 7,8'!$B$5:$AF$16,MONTH($AP$3),AF$11),"")) -> 7.8 | AG23: =IFERROR(INDEX(РВД!$D:$I,MATCH($C23,РВД!$A:$A,)+1,MATCH($N$4+AG$11-1,INDEX(РВД!$D:$I,MATCH($C23,РВД!$A:$A,),),)),IF(AG24="Я",INDEX('график 7,8'!$B$5:$AF$16,MONTH($AP$3),AG$11),"")) ->  | AH23: =IFERROR(INDEX(РВД!$D:$I,MATCH($C23,РВД!$A:$A,)+1,MATCH($N$4+AH$11-1,INDEX(РВД!$D:$I,MATCH($C23,РВД!$A:$A,),),)),IF(AH24="Я",INDEX('график 7,8'!$B$5:$AF$16,MONTH($AP$3),AH$11),"")) ->  | AI23: =IFERROR(INDEX(РВД!$D:$I,MATCH($C23,РВД!$A:$A,)+1,MATCH($N$4+AI$11-1,INDEX(РВД!$D:$I,MATCH($C23,РВД!$A:$A,),),)),IF(AI24="Я",INDEX('график 7,8'!$B$5:$AF$16,MONTH($AP$3),AI$11),"")) -> 7.8 | AJ23: =IFERROR(INDEX(РВД!$D:$I,MATCH($C23,РВД!$A:$A,)+1,MATCH($N$4+AJ$11-1,INDEX(РВД!$D:$I,MATCH($C23,РВД!$A:$A,),),)),IF(AJ24="Я",INDEX('график 7,8'!$B$5:$AF$16,MONTH($AP$3),AJ$11),"")) -> 7.8 | AK23: ="Я/"&SUMIF(E24:AJ24,"Я",E23:AJ23) -> Я/163,8 | AL23: =(SUMIF(E24:AJ24,"В",E23:AJ23)+SUMIF(E24:AJ24,"В.",E23:AJ23))*2 -> 0 | AM23: =COUNTIFS(E24:AJ24,"Я",E23:AJ23,"<>") -> 21 | AN23: =IFERROR(VLOOKUP(C23,доплаты!$A$5:$P$118,16,0),"") -> 17,17,17,30
E24: =TRIM(LEFT(TRIM(INDEX(отсутствия!$N:$AR,MATCH($C23,отсутствия!$A:$A,),E$11)&" "&TEXT(INDEX('график 7,8'!$B$5:$AF$16,MONTH($AP$3),E$11)&"","Я")),2)) -> В | F24: =TRIM(LEFT(TRIM(INDEX(отсутствия!$N:$AR,MATCH($C23,отсутствия!$A:$A,),F$11)&" "&TEXT(INDEX('график 7,8'!$B$5:$AF$16,MONTH($AP$3),F$11)&"","Я")),2)) -> Я | G24: =TRIM(LEFT(TRIM(INDEX(отсутствия!$N:$AR,MATCH($C23,отсутствия!$A:$A,),G$11)&" "&TEXT(INDEX('график 7,8'!$B$5:$AF$16,MONTH($AP$3),G$11)&"","Я")),2)) -> Я | H24: =TRIM(LEFT(TRIM(INDEX(отсутствия!$N:$AR,MATCH($C23,отсутствия!$A:$A,),H$11)&" "&TEXT(INDEX('график 7,8'!$B$5:$AF$16,MONTH($AP$3),H$11)&"","Я")),2)) -> Я | I24: =TRIM(LEFT(TRIM(INDEX(отсутствия!$N:$AR,MATCH($C23,отсутствия!$A:$A,),I$11)&" "&TEXT(INDEX('график 7,8'!$B$5:$AF$16,MONTH($AP$3),I$11)&"","Я")),2)) -> Я | J24: =TRIM(LEFT(TRIM(INDEX(отсутствия!$N:$AR,MATCH($C23,отсутствия!$A:$A,),J$11)&" "&TEXT(INDEX('график 7,8'!$B$5:$AF$16,MONTH($AP$3),J$11)&"","Я")),2)) -> Я | K24: =TRIM(LEFT(TRIM(INDEX(отсутствия!$N:$AR,MATCH($C23,отсутствия!$A:$A,),K$11)&" "&TEXT(INDEX('график 7,8'!$B$5:$AF$16,MONTH($AP$3),K$11)&"","Я")),2)) -> В | L24: =TRIM(LEFT(TRIM(INDEX(отсутствия!$N:$AR,MATCH($C23,отсутствия!$A:$A,),L$11)&" "&TEXT(INDEX('график 7,8'!$B$5:$AF$16,MONTH($AP$3),L$11)&"","Я")),2)) -> В. | M24: =TRIM(LEFT(TRIM(INDEX(отсутствия!$N:$AR,MATCH($C23,отсутствия!$A:$A,),M$11)&" "&TEXT(INDEX('график 7,8'!$B$5:$AF$16,MONTH($AP$3),M$11)&"","Я")),2)) -> В | N24: =TRIM(LEFT(TRIM(INDEX(отсутствия!$N:$AR,MATCH($C23,отсутствия!$A:$A,),N$11)&" "&TEXT(INDEX('график 7,8'!$B$5:$AF$16,MONTH($AP$3),N$11)&"","Я")),2)) -> Я | O24: =TRIM(LEFT(TRIM(INDEX(отсутствия!$N:$AR,MATCH($C23,отсутствия!$A:$A,),O$11)&" "&TEXT(INDEX('график 7,8'!$B$5:$AF$16,MONTH($AP$3),O$11)&"","Я")),2)) -> Я | P24: =TRIM(LEFT(TRIM(INDEX(отсутствия!$N:$AR,MATCH($C23,отсутствия!$A:$A,),P$11)&" "&TEXT(INDEX('график 7,8'!$B$5:$AF$16,MONTH($AP$3),P$11)&"","Я")),2)) -> Я | Q24: =TRIM(LEFT(TRIM(INDEX(отсутствия!$N:$AR,MATCH($C23,отсутствия!$A:$A,),Q$11)&" "&TEXT(INDEX('график 7,8'!$B$5:$AF$16,MONTH($AP$3),Q$11)&"","Я")),2)) -> Я | R24: =TRIM(LEFT(TRIM(INDEX(отсутствия!$N:$AR,MATCH($C23,отсутствия!$A:$A,),R$11)&" "&TEXT(INDEX('график 7,8'!$B$5:$AF$16,MONTH($AP$3),R$11)&"","Я")),2)) -> В | S24: =TRIM(LEFT(TRIM(INDEX(отсутствия!$N:$AR,MATCH($C23,отсутствия!$A:$A,),S$11)&" "&TEXT(INDEX('график 7,8'!$B$5:$AF$16,MONTH($AP$3),S$11)&"","Я")),2)) -> В | U24: =TRIM(LEFT(TRIM(INDEX(отсутствия!$N:$AR,MATCH($C23,отсутствия!$A:$A,),U$11)&" "&TEXT(INDEX('график 7,8'!$B$5:$AF$16,MONTH($AP$3),U$11)&"","Я")),2)) -> Я | V24: =TRIM(LEFT(TRIM(INDEX(отсутствия!$N:$AR,MATCH($C23,отсутствия!$A:$A,),V$11)&" "&TEXT(INDEX('график 7,8'!$B$5:$AF$16,MONTH($AP$3),V$11)&"","Я")),2)) -> Я | W24: =TRIM(LEFT(TRIM(INDEX(отсутствия!$N:$AR,MATCH($C23,отсутствия!$A:$A,),W$11)&" "&TEXT(INDEX('график 7,8'!$B$5:$AF$16,MONTH($AP$3),W$11)&"","Я")),2)) -> Я | X24: =TRIM(LEFT(TRIM(INDEX(отсутствия!$N:$AR,MATCH($C23,отсутствия!$A:$A,),X$11)&" "&TEXT(INDEX('график 7,8'!$B$5:$AF$16,MONTH($AP$3),X$11)&"","Я")),2)) -> Я | Y24: =TRIM(LEFT(TRIM(INDEX(отсутствия!$N:$AR,MATCH($C23,отсутствия!$A:$A,),Y$11)&" "&TEXT(INDEX('график 7,8'!$B$5:$AF$16,MONTH($AP$3),Y$11)&"","Я")),2)) -> Я | Z24: =TRIM(LEFT(TRIM(INDEX(отсутствия!$N:$AR,MATCH($C23,отсутствия!$A:$A,),Z$11)&" "&TEXT(INDEX('график 7,8'!$B$5:$AF$16,MONTH($AP$3),Z$11)&"","Я")),2)) -> В | AA24: =TRIM(LEFT(TRIM(INDEX(отсутствия!$N:$AR,MATCH($C23,отсутствия!$A:$A,),AA$11)&" "&TEXT(INDEX('график 7,8'!$B$5:$AF$16,MONTH($AP$3),AA$11)&"","Я")),2)) -> В | AB24: =TRIM(LEFT(TRIM(INDEX(отсутствия!$N:$AR,MATCH($C23,отсутствия!$A:$A,),AB$11)&" "&TEXT(INDEX('график 7,8'!$B$5:$AF$16,MONTH($AP$3),AB$11)&"","Я")),2)) -> Я | AC24: =TRIM(LEFT(TRIM(INDEX(отсутствия!$N:$AR,MATCH($C23,отсутствия!$A:$A,),AC$11)&" "&TEXT(INDEX('график 7,8'!$B$5:$AF$16,MONTH($AP$3),AC$11)&"","Я")),2)) -> Я | AD24: =TRIM(LEFT(TRIM(INDEX(отсутствия!$N:$AR,MATCH($C23,отсутствия!$A:$A,),AD$11)&" "&TEXT(INDEX('график 7,8'!$B$5:$AF$16,MONTH($AP$3),AD$11)&"","Я")),2)) -> Я | AE24: =TRIM(LEFT(TRIM(INDEX(отсутствия!$N:$AR,MATCH($C23,отсутствия!$A:$A,),AE$11)&" "&TEXT(INDEX('график 7,8'!$B$5:$AF$16,MONTH($AP$3),AE$11)&"","Я")),2)) -> Я | AF24: =TRIM(LEFT(TRIM(INDEX(отсутствия!$N:$AR,MATCH($C23,отсутствия!$A:$A,),AF$11)&" "&TEXT(INDEX('график 7,8'!$B$5:$AF$16,MONTH($AP$3),AF$11)&"","Я")),2)) -> Я | AG24: =TRIM(LEFT(TRIM(INDEX(отсутствия!$N:$AR,MATCH($C23,отсутствия!$A:$A,),AG$11)&" "&TEXT(INDEX('график 7,8'!$B$5:$AF$16,MONTH($AP$3),AG$11)&"","Я")),2)) -> В | AH24: =TRIM(LEFT(TRIM(INDEX(отсутствия!$N:$AR,MATCH($C23,отсутствия!$A:$A,),AH$11)&" "&TEXT(INDEX('график 7,8'!$B$5:$AF$16,MONTH($AP$3),AH$11)&"","Я")),2)) -> В | AI24: =TRIM(LEFT(TRIM(INDEX(отсутствия!$N:$AR,MATCH($C23,отсутствия!$A:$A,),AI$11)&" "&TEXT(INDEX('график 7,8'!$B$5:$AF$16,MONTH($AP$3),AI$11)&"","Я")),2)) -> Я | AJ24: =TRIM(LEFT(TRIM(INDEX(отсутствия!$N:$AR,MATCH($C23,отсутствия!$A:$A,),AJ$11)&" "&TEXT(INDEX('график 7,8'!$B$5:$AF$16,MONTH($AP$3),AJ$11)&"","Я")),2)) -> Я
A25: 2231 | B25: Фитисов | C25: 2231 | D25: сборная | E25: =IFERROR(INDEX(РВД!$D:$I,MATCH($C25,РВД!$A:$A,)+1,MATCH($N$4+E$11-1,INDEX(РВД!$D:$I,MATCH($C25,РВД!$A:$A,),),)),IF(E26="Я",INDEX('график 7,8'!$B$5:$AF$16,MONTH($AP$3),E$11),"")) ->  | F25: =IFERROR(INDEX(РВД!$D:$I,MATCH($C25,РВД!$A:$A,)+1,MATCH($N$4+F$11-1,INDEX(РВД!$D:$I,MATCH($C25,РВД!$A:$A,),),)),IF(F26="Я",INDEX('график 7,8'!$B$5:$AF$16,MONTH($AP$3),F$11),"")) -> 7.8 | G25: =IFERROR(INDEX(РВД!$D:$I,MATCH($C25,РВД!$A:$A,)+1,MATCH($N$4+G$11-1,INDEX(РВД!$D:$I,MATCH($C25,РВД!$A:$A,),),)),IF(G26="Я",INDEX('график 7,8'!$B$5:$AF$16,MONTH($AP$3),G$11),"")) -> 7.8 | H25: =IFERROR(INDEX(РВД!$D:$I,MATCH($C25,РВД!$A:$A,)+1,MATCH($N$4+H$11-1,INDEX(РВД!$D:$I,MATCH($C25,РВД!$A:$A,),),)),IF(H26="Я",INDEX('график 7,8'!$B$5:$AF$16,MONTH($AP$3),H$11),"")) -> 7.8 | I25: =IFERROR(INDEX(РВД!$D:$I,MATCH($C25,РВД!$A:$A,)+1,MATCH($N$4+I$11-1,INDEX(РВД!$D:$I,MATCH($C25,РВД!$A:$A,),),)),IF(I26="Я",INDEX('график 7,8'!$B$5:$AF$16,MONTH($AP$3),I$11),"")) -> 7.8 | J25: =IFERROR(INDEX(РВД!$D:$I,MATCH($C25,РВД!$A:$A,)+1,MATCH($N$4+J$11-1,INDEX(РВД!$D:$I,MATCH($C25,РВД!$A:$A,),),)),IF(J26="Я",INDEX('график 7,8'!$B$5:$AF$16,MONTH($AP$3),J$11),"")) -> 7.8 | K25: =IFERROR(INDEX(РВД!$D:$I,MATCH($C25,РВД!$A:$A,)+1,MATCH($N$4+K$11-1,INDEX(РВД!$D:$I,MATCH($C25,РВД!$A:$A,),),)),IF(K26="Я",INDEX('график 7,8'!$B$5:$AF$16,MONTH($AP$3),K$11),"")) ->  | L25: =IFERROR(INDEX(РВД!$D:$I,MATCH($C25,РВД!$A:$A,)+1,MATCH($N$4+L$11-1,INDEX(РВД!$D:$I,MATCH($C25,РВД!$A:$A,),),)),IF(L26="Я",INDEX('график 7,8'!$B$5:$AF$16,MONTH($AP$3),L$11),"")) ->  | M25: =IFERROR(INDEX(РВД!$D:$I,MATCH($C25,РВД!$A:$A,)+1,MATCH($N$4+M$11-1,INDEX(РВД!$D:$I,MATCH($C25,РВД!$A:$A,),),)),IF(M26="Я",INDEX('график 7,8'!$B$5:$AF$16,MONTH($AP$3),M$11),"")) ->  | N25: =IFERROR(INDEX(РВД!$D:$I,MATCH($C25,РВД!$A:$A,)+1,MATCH($N$4+N$11-1,INDEX(РВД!$D:$I,MATCH($C25,РВД!$A:$A,),),)),IF(N26="Я",INDEX('график 7,8'!$B$5:$AF$16,MONTH($AP$3),N$11),"")) -> 7.8 | O25: =IFERROR(INDEX(РВД!$D:$I,MATCH($C25,РВД!$A:$A,)+1,MATCH($N$4+O$11-1,INDEX(РВД!$D:$I,MATCH($C25,РВД!$A:$A,),),)),IF(O26="Я",INDEX('график 7,8'!$B$5:$AF$16,MONTH($AP$3),O$11),"")) -> 7.8 | P25: =IFERROR(INDEX(РВД!$D:$I,MATCH($C25,РВД!$A:$A,)+1,MATCH($N$4+P$11-1,INDEX(РВД!$D:$I,MATCH($C25,РВД!$A:$A,),),)),IF(P26="Я",INDEX('график 7,8'!$B$5:$AF$16,MONTH($AP$3),P$11),"")) -> 7.8 | Q25: =IFERROR(INDEX(РВД!$D:$I,MATCH($C25,РВД!$A:$A,)+1,MATCH($N$4+Q$11-1,INDEX(РВД!$D:$I,MATCH($C25,РВД!$A:$A,),),)),IF(Q26="Я",INDEX('график 7,8'!$B$5:$AF$16,MONTH($AP$3),Q$11),"")) -> 7.8 | R25: =IFERROR(INDEX(РВД!$D:$I,MATCH($C25,РВД!$A:$A,)+1,MATCH($N$4+R$11-1,INDEX(РВД!$D:$I,MATCH($C25,РВД!$A:$A,),),)),IF(R26="Я",INDEX('график 7,8'!$B$5:$AF$16,MONTH($AP$3),R$11),"")) ->  | S25: =IFERROR(INDEX(РВД!$D:$I,MATCH($C25,РВД!$A:$A,)+1,MATCH($N$4+S$11-1,INDEX(РВД!$D:$I,MATCH($C25,РВД!$A:$A,),),)),IF(S26="Я",INDEX('график 7,8'!$B$5:$AF$16,MONTH($AP$3),S$11),"")) ->  | T25: =SUMIF(E26:S26,"Я",E25:S25) -> 70.2 | U25: =IFERROR(INDEX(РВД!$D:$I,MATCH($C25,РВД!$A:$A,)+1,MATCH($N$4+U$11-1,INDEX(РВД!$D:$I,MATCH($C25,РВД!$A:$A,),),)),IF(U26="Я",INDEX('график 7,8'!$B$5:$AF$16,MONTH($AP$3),U$11),"")) -> 7.8 | V25: =IFERROR(INDEX(РВД!$D:$I,MATCH($C25,РВД!$A:$A,)+1,MATCH($N$4+V$11-1,INDEX(РВД!$D:$I,MATCH($C25,РВД!$A:$A,),),)),IF(V26="Я",INDEX('график 7,8'!$B$5:$AF$16,MONTH($AP$3),V$11),"")) -> 7.8 | W25: =IFERROR(INDEX(РВД!$D:$I,MATCH($C25,РВД!$A:$A,)+1,MATCH($N$4+W$11-1,INDEX(РВД!$D:$I,MATCH($C25,РВД!$A:$A,),),)),IF(W26="Я",INDEX('график 7,8'!$B$5:$AF$16,MONTH($AP$3),W$11),"")) -> 7.8 | X25: =IFERROR(INDEX(РВД!$D:$I,MATCH($C25,РВД!$A:$A,)+1,MATCH($N$4+X$11-1,INDEX(РВД!$D:$I,MATCH($C25,РВД!$A:$A,),),)),IF(X26="Я",INDEX('график 7,8'!$B$5:$AF$16,MONTH($AP$3),X$11),"")) -> 7.8 | Y25: =IFERROR(INDEX(РВД!$D:$I,MATCH($C25,РВД!$A:$A,)+1,MATCH($N$4+Y$11-1,INDEX(РВД!$D:$I,MATCH($C25,РВД!$A:$A,),),)),IF(Y26="Я",INDEX('график 7,8'!$B$5:$AF$16,MONTH($AP$3),Y$11),"")) -> 7.8 | Z25: =IFERROR(INDEX(РВД!$D:$I,MATCH($C25,РВД!$A:$A,)+1,MATCH($N$4+Z$11-1,INDEX(РВД!$D:$I,MATCH($C25,РВД!$A:$A,),),)),IF(Z26="Я",INDEX('график 7,8'!$B$5:$AF$16,MONTH($AP$3),Z$11),"")) ->  | AA25: =IFERROR(INDEX(РВД!$D:$I,MATCH($C25,РВД!$A:$A,)+1,MATCH($N$4+AA$11-1,INDEX(РВД!$D:$I,MATCH($C25,РВД!$A:$A,),),)),IF(AA26="Я",INDEX('график 7,8'!$B$5:$AF$16,MONTH($AP$3),AA$11),"")) ->  | AB25: =IFERROR(INDEX(РВД!$D:$I,MATCH($C25,РВД!$A:$A,)+1,MATCH($N$4+AB$11-1,INDEX(РВД!$D:$I,MATCH($C25,РВД!$A:$A,),),)),IF(AB26="Я",INDEX('график 7,8'!$B$5:$AF$16,MONTH($AP$3),AB$11),"")) -> 7.8 | AC25: =IFERROR(INDEX(РВД!$D:$I,MATCH($C25,РВД!$A:$A,)+1,MATCH($N$4+AC$11-1,INDEX(РВД!$D:$I,MATCH($C25,РВД!$A:$A,),),)),IF(AC26="Я",INDEX('график 7,8'!$B$5:$AF$16,MONTH($AP$3),AC$11),"")) -> 7.8 | AD25: =IFERROR(INDEX(РВД!$D:$I,MATCH($C25,РВД!$A:$A,)+1,MATCH($N$4+AD$11-1,INDEX(РВД!$D:$I,MATCH($C25,РВД!$A:$A,),),)),IF(AD26="Я",INDEX('график 7,8'!$B$5:$AF$16,MONTH($AP$3),AD$11),"")) -> 7.8 | AE25: =IFERROR(INDEX(РВД!$D:$I,MATCH($C25,РВД!$A:$A,)+1,MATCH($N$4+AE$11-1,INDEX(РВД!$D:$I,MATCH($C25,РВД!$A:$A,),),)),IF(AE26="Я",INDEX('график 7,8'!$B$5:$AF$16,MONTH($AP$3),AE$11),"")) -> 7.8 | AF25: =IFERROR(INDEX(РВД!$D:$I,MATCH($C25,РВД!$A:$A,)+1,MATCH($N$4+AF$11-1,INDEX(РВД!$D:$I,MATCH($C25,РВД!$A:$A,),),)),IF(AF26="Я",INDEX('график 7,8'!$B$5:$AF$16,MONTH($AP$3),AF$11),"")) -> 7.8 | AG25: =IFERROR(INDEX(РВД!$D:$I,MATCH($C25,РВД!$A:$A,)+1,MATCH($N$4+AG$11-1,INDEX(РВД!$D:$I,MATCH($C25,РВД!$A:$A,),),)),IF(AG26="Я",INDEX('график 7,8'!$B$5:$AF$16,MONTH($AP$3),AG$11),"")) ->  | AH25: =IFERROR(INDEX(РВД!$D:$I,MATCH($C25,РВД!$A:$A,)+1,MATCH($N$4+AH$11-1,INDEX(РВД!$D:$I,MATCH($C25,РВД!$A:$A,),),)),IF(AH26="Я",INDEX('график 7,8'!$B$5:$AF$16,MONTH($AP$3),AH$11),"")) ->  | AI25: =IFERROR(INDEX(РВД!$D:$I,MATCH($C25,РВД!$A:$A,)+1,MATCH($N$4+AI$11-1,INDEX(РВД!$D:$I,MATCH($C25,РВД!$A:$A,),),)),IF(AI26="Я",INDEX('график 7,8'!$B$5:$AF$16,MONTH($AP$3),AI$11),"")) -> 7.8 | AJ25: =IFERROR(INDEX(РВД!$D:$I,MATCH($C25,РВД!$A:$A,)+1,MATCH($N$4+AJ$11-1,INDEX(РВД!$D:$I,MATCH($C25,РВД!$A:$A,),),)),IF(AJ26="Я",INDEX('график 7,8'!$B$5:$AF$16,MONTH($AP$3),AJ$11),"")) -> 7.8 | AK25: ="Я/"&SUMIF(E26:AJ26,"Я",E25:AJ25) -> Я/163,8 | AL25: =(SUMIF(E26:AJ26,"В",E25:AJ25)+SUMIF(E26:AJ26,"В.",E25:AJ25))*2 -> 0 | AM25: =COUNTIFS(E26:AJ26,"Я",E25:AJ25,"<>") -> 21 | AN25: =IFERROR(VLOOKUP(C25,доплаты!$A$5:$P$118,16,0),"") -> 
E26: =TRIM(LEFT(TRIM(INDEX(отсутствия!$N:$AR,MATCH($C25,отсутствия!$A:$A,),E$11)&" "&TEXT(INDEX('график 7,8'!$B$5:$AF$16,MONTH($AP$3),E$11)&"","Я")),2)) -> В | F26: =TRIM(LEFT(TRIM(INDEX(отсутствия!$N:$AR,MATCH($C25,отсутствия!$A:$A,),F$11)&" "&TEXT(INDEX('график 7,8'!$B$5:$AF$16,MONTH($AP$3),F$11)&"","Я")),2)) -> Я | G26: =TRIM(LEFT(TRIM(INDEX(отсутствия!$N:$AR,MATCH($C25,отсутствия!$A:$A,),G$11)&" "&TEXT(INDEX('график 7,8'!$B$5:$AF$16,MONTH($AP$3),G$11)&"","Я")),2)) -> Я | H26: =TRIM(LEFT(TRIM(INDEX(отсутствия!$N:$AR,MATCH($C25,отсутствия!$A:$A,),H$11)&" "&TEXT(INDEX('график 7,8'!$B$5:$AF$16,MONTH($AP$3),H$11)&"","Я")),2)) -> Я | I26: =TRIM(LEFT(TRIM(INDEX(отсутствия!$N:$AR,MATCH($C25,отсутствия!$A:$A,),I$11)&" "&TEXT(INDEX('график 7,8'!$B$5:$AF$16,MONTH($AP$3),I$11)&"","Я")),2)) -> Я | J26: =TRIM(LEFT(TRIM(INDEX(отсутствия!$N:$AR,MATCH($C25,отсутствия!$A:$A,),J$11)&" "&TEXT(INDEX('график 7,8'!$B$5:$AF$16,MONTH($AP$3),J$11)&"","Я")),2)) -> Я | K26: =TRIM(LEFT(TRIM(INDEX(отсутствия!$N:$AR,MATCH($C25,отсутствия!$A:$A,),K$11)&" "&TEXT(INDEX('график 7,8'!$B$5:$AF$16,MONTH($AP$3),K$11)&"","Я")),2)) -> В | L26: =TRIM(LEFT(TRIM(INDEX(отсутствия!$N:$AR,MATCH($C25,отсутствия!$A:$A,),L$11)&" "&TEXT(INDEX('график 7,8'!$B$5:$AF$16,MONTH($AP$3),L$11)&"","Я")),2)) -> В. | M26: =TRIM(LEFT(TRIM(INDEX(отсутствия!$N:$AR,MATCH($C25,отсутствия!$A:$A,),M$11)&" "&TEXT(INDEX('график 7,8'!$B$5:$AF$16,MONTH($AP$3),M$11)&"","Я")),2)) -> В | N26: =TRIM(LEFT(TRIM(INDEX(отсутствия!$N:$AR,MATCH($C25,отсутствия!$A:$A,),N$11)&" "&TEXT(INDEX('график 7,8'!$B$5:$AF$16,MONTH($AP$3),N$11)&"","Я")),2)) -> Я | O26: =TRIM(LEFT(TRIM(INDEX(отсутствия!$N:$AR,MATCH($C25,отсутствия!$A:$A,),O$11)&" "&TEXT(INDEX('график 7,8'!$B$5:$AF$16,MONTH($AP$3),O$11)&"","Я")),2)) -> Я | P26: =TRIM(LEFT(TRIM(INDEX(отсутствия!$N:$AR,MATCH($C25,отсутствия!$A:$A,),P$11)&" "&TEXT(INDEX('график 7,8'!$B$5:$AF$16,MONTH($AP$3),P$11)&"","Я")),2)) -> Я | Q26: =TRIM(LEFT(TRIM(INDEX(отсутствия!$N:$AR,MATCH($C25,отсутствия!$A:$A,),Q$11)&" "&TEXT(INDEX('график 7,8'!$B$5:$AF$16,MONTH($AP$3),Q$11)&"","Я")),2)) -> Я | R26: =TRIM(LEFT(TRIM(INDEX(отсутствия!$N:$AR,MATCH($C25,отсутствия!$A:$A,),R$11)&" "&TEXT(INDEX('график 7,8'!$B$5:$AF$16,MONTH($AP$3),R$11)&"","Я")),2)) -> В | S26: =TRIM(LEFT(TRIM(INDEX(отсутствия!$N:$AR,MATCH($C25,отсутствия!$A:$A,),S$11)&" "&TEXT(INDEX('график 7,8'!$B$5:$AF$16,MONTH($AP$3),S$11)&"","Я")),2)) -> В | U26: =TRIM(LEFT(TRIM(INDEX(отсутствия!$N:$AR,MATCH($C25,отсутствия!$A:$A,),U$11)&" "&TEXT(INDEX('график 7,8'!$B$5:$AF$16,MONTH($AP$3),U$11)&"","Я")),2)) -> Я | V26: =TRIM(LEFT(TRIM(INDEX(отсутствия!$N:$AR,MATCH($C25,отсутствия!$A:$A,),V$11)&" "&TEXT(INDEX('график 7,8'!$B$5:$AF$16,MONTH($AP$3),V$11)&"","Я")),2)) -> Я | W26: =TRIM(LEFT(TRIM(INDEX(отсутствия!$N:$AR,MATCH($C25,отсутствия!$A:$A,),W$11)&" "&TEXT(INDEX('график 7,8'!$B$5:$AF$16,MONTH($AP$3),W$11)&"","Я")),2)) -> Я | X26: =TRIM(LEFT(TRIM(INDEX(отсутствия!$N:$AR,MATCH($C25,отсутствия!$A:$A,),X$11)&" "&TEXT(INDEX('график 7,8'!$B$5:$AF$16,MONTH($AP$3),X$11)&"","Я")),2)) -> Я | Y26: =TRIM(LEFT(TRIM(INDEX(отсутствия!$N:$AR,MATCH($C25,отсутствия!$A:$A,),Y$11)&" "&TEXT(INDEX('график 7,8'!$B$5:$AF$16,MONTH($AP$3),Y$11)&"","Я")),2)) -> Я | Z26: =TRIM(LEFT(TRIM(INDEX(отсутствия!$N:$AR,MATCH($C25,отсутствия!$A:$A,),Z$11)&" "&TEXT(INDEX('график 7,8'!$B$5:$AF$16,MONTH($AP$3),Z$11)&"","Я")),2)) -> В | AA26: =TRIM(LEFT(TRIM(INDEX(отсутствия!$N:$AR,MATCH($C25,отсутствия!$A:$A,),AA$11)&" "&TEXT(INDEX('график 7,8'!$B$5:$AF$16,MONTH($AP$3),AA$11)&"","Я")),2)) -> В | AB26: =TRIM(LEFT(TRIM(INDEX(отсутствия!$N:$AR,MATCH($C25,отсутствия!$A:$A,),AB$11)&" "&TEXT(INDEX('график 7,8'!$B$5:$AF$16,MONTH($AP$3),AB$11)&"","Я")),2)) -> Я | AC26: =TRIM(LEFT(TRIM(INDEX(отсутствия!$N:$AR,MATCH($C25,отсутствия!$A:$A,),AC$11)&" "&TEXT(INDEX('график 7,8'!$B$5:$AF$16,MONTH($AP$3),AC$11)&"","Я")),2)) -> Я | AD26: =TRIM(LEFT(TRIM(INDEX(отсутствия!$N:$AR,MATCH($C25,отсутствия!$A:$A,),AD$11)&" "&TEXT(INDEX('график 7,8'!$B$5:$AF$16,MONTH($AP$3),AD$11)&"","Я")),2)) -> Я | AE26: =TRIM(LEFT(TRIM(INDEX(отсутствия!$N:$AR,MATCH($C25,отсутствия!$A:$A,),AE$11)&" "&TEXT(INDEX('график 7,8'!$B$5:$AF$16,MONTH($AP$3),AE$11)&"","Я")),2)) -> Я | AF26: =TRIM(LEFT(TRIM(INDEX(отсутствия!$N:$AR,MATCH($C25,отсутствия!$A:$A,),AF$11)&" "&TEXT(INDEX('график 7,8'!$B$5:$AF$16,MONTH($AP$3),AF$11)&"","Я")),2)) -> Я | AG26: =TRIM(LEFT(TRIM(INDEX(отсутствия!$N:$AR,MATCH($C25,отсутствия!$A:$A,),AG$11)&" "&TEXT(INDEX('график 7,8'!$B$5:$AF$16,MONTH($AP$3),AG$11)&"","Я")),2)) -> В | AH26: =TRIM(LEFT(TRIM(INDEX(отсутствия!$N:$AR,MATCH($C25,отсутствия!$A:$A,),AH$11)&" "&TEXT(INDEX('график 7,8'!$B$5:$AF$16,MONTH($AP$3),AH$11)&"","Я")),2)) -> В | AI26: =TRIM(LEFT(TRIM(INDEX(отсутствия!$N:$AR,MATCH($C25,отсутствия!$A:$A,),AI$11)&" "&TEXT(INDEX('график 7,8'!$B$5:$AF$16,MONTH($AP$3),AI$11)&"","Я")),2)) -> Я | AJ26: =TRIM(LEFT(TRIM(INDEX(отсутствия!$N:$AR,MATCH($C25,отсутствия!$A:$A,),AJ$11)&" "&TEXT(INDEX('график 7,8'!$B$5:$AF$16,MONTH($AP$3),AJ$11)&"","Я")),2)) -> Я
A27: 4552 | B27: Ларионов | C27: 4552 | D27: сборная | E27: =IFERROR(INDEX(РВД!$D:$I,MATCH($C27,РВД!$A:$A,)+1,MATCH($N$4+E$11-1,INDEX(РВД!$D:$I,MATCH($C27,РВД!$A:$A,),),)),IF(E28="Я",INDEX('график 7,8'!$B$5:$AF$16,MONTH($AP$3),E$11),"")) ->  | F27: =IFERROR(INDEX(РВД!$D:$I,MATCH($C27,РВД!$A:$A,)+1,MATCH($N$4+F$11-1,INDEX(РВД!$D:$I,MATCH($C27,РВД!$A:$A,),),)),IF(F28="Я",INDEX('график 7,8'!$B$5:$AF$16,MONTH($AP$3),F$11),"")) -> 7.8 | G27: =IFERROR(INDEX(РВД!$D:$I,MATCH($C27,РВД!$A:$A,)+1,MATCH($N$4+G$11-1,INDEX(РВД!$D:$I,MATCH($C27,РВД!$A:$A,),),)),IF(G28="Я",INDEX('график 7,8'!$B$5:$AF$16,MONTH($AP$3),G$11),"")) -> 7.8 | H27: =IFERROR(INDEX(РВД!$D:$I,MATCH($C27,РВД!$A:$A,)+1,MATCH($N$4+H$11-1,INDEX(РВД!$D:$I,MATCH($C27,РВД!$A:$A,),),)),IF(H28="Я",INDEX('график 7,8'!$B$5:$AF$16,MONTH($AP$3),H$11),"")) -> 7.8 | I27: =IFERROR(INDEX(РВД!$D:$I,MATCH($C27,РВД!$A:$A,)+1,MATCH($N$4+I$11-1,INDEX(РВД!$D:$I,MATCH($C27,РВД!$A:$A,),),)),IF(I28="Я",INDEX('график 7,8'!$B$5:$AF$16,MONTH($AP$3),I$11),"")) -> 7.8 | J27: =IFERROR(INDEX(РВД!$D:$I,MATCH($C27,РВД!$A:$A,)+1,MATCH($N$4+J$11-1,INDEX(РВД!$D:$I,MATCH($C27,РВД!$A:$A,),),)),IF(J28="Я",INDEX('график 7,8'!$B$5:$AF$16,MONTH($AP$3),J$11),"")) -> 7.8 | K27: =IFERROR(INDEX(РВД!$D:$I,MATCH($C27,РВД!$A:$A,)+1,MATCH($N$4+K$11-1,INDEX(РВД!$D:$I,MATCH($C27,РВД!$A:$A,),),)),IF(K28="Я",INDEX('график 7,8'!$B$5:$AF$16,MONTH($AP$3),K$11),"")) ->  | L27: =IFERROR(INDEX(РВД!$D:$I,MATCH($C27,РВД!$A:$A,)+1,MATCH($N$4+L$11-1,INDEX(РВД!$D:$I,MATCH($C27,РВД!$A:$A,),),)),IF(L28="Я",INDEX('график 7,8'!$B$5:$AF$16,MONTH($AP$3),L$11),"")) ->  | M27: =IFERROR(INDEX(РВД!$D:$I,MATCH($C27,РВД!$A:$A,)+1,MATCH($N$4+M$11-1,INDEX(РВД!$D:$I,MATCH($C27,РВД!$A:$A,),),)),IF(M28="Я",INDEX('график 7,8'!$B$5:$AF$16,MONTH($AP$3),M$11),"")) ->  | N27: =IFERROR(INDEX(РВД!$D:$I,MATCH($C27,РВД!$A:$A,)+1,MATCH($N$4+N$11-1,INDEX(РВД!$D:$I,MATCH($C27,РВД!$A:$A,),),)),IF(N28="Я",INDEX('график 7,8'!$B$5:$AF$16,MONTH($AP$3),N$11),"")) -> 7.8 | O27: =IFERROR(INDEX(РВД!$D:$I,MATCH($C27,РВД!$A:$A,)+1,MATCH($N$4+O$11-1,INDEX(РВД!$D:$I,MATCH($C27,РВД!$A:$A,),),)),IF(O28="Я",INDEX('график 7,8'!$B$5:$AF$16,MONTH($AP$3),O$11),"")) -> 7.8 | P27: =IFERROR(INDEX(РВД!$D:$I,MATCH($C27,РВД!$A:$A,)+1,MATCH($N$4+P$11-1,INDEX(РВД!$D:$I,MATCH($C27,РВД!$A:$A,),),)),IF(P28="Я",INDEX('график 7,8'!$B$5:$AF$16,MONTH($AP$3),P$11),"")) -> 7.8 | Q27: =IFERROR(INDEX(РВД!$D:$I,MATCH($C27,РВД!$A:$A,)+1,MATCH($N$4+Q$11-1,INDEX(РВД!$D:$I,MATCH($C27,РВД!$A:$A,),),)),IF(Q28="Я",INDEX('график 7,8'!$B$5:$AF$16,MONTH($AP$3),Q$11),"")) -> 7.8 | R27: =IFERROR(INDEX(РВД!$D:$I,MATCH($C27,РВД!$A:$A,)+1,MATCH($N$4+R$11-1,INDEX(РВД!$D:$I,MATCH($C27,РВД!$A:$A,),),)),IF(R28="Я",INDEX('график 7,8'!$B$5:$AF$16,MONTH($AP$3),R$11),"")) ->  | S27: =IFERROR(INDEX(РВД!$D:$I,MATCH($C27,РВД!$A:$A,)+1,MATCH($N$4+S$11-1,INDEX(РВД!$D:$I,MATCH($C27,РВД!$A:$A,),),)),IF(S28="Я",INDEX('график 7,8'!$B$5:$AF$16,MONTH($AP$3),S$11),"")) ->  | T27: =SUMIF(E28:S28,"Я",E27:S27) -> 70.2 | U27: =IFERROR(INDEX(РВД!$D:$I,MATCH($C27,РВД!$A:$A,)+1,MATCH($N$4+U$11-1,INDEX(РВД!$D:$I,MATCH($C27,РВД!$A:$A,),),)),IF(U28="Я",INDEX('график 7,8'!$B$5:$AF$16,MONTH($AP$3),U$11),"")) -> 7.8 | V27: =IFERROR(INDEX(РВД!$D:$I,MATCH($C27,РВД!$A:$A,)+1,MATCH($N$4+V$11-1,INDEX(РВД!$D:$I,MATCH($C27,РВД!$A:$A,),),)),IF(V28="Я",INDEX('график 7,8'!$B$5:$AF$16,MONTH($AP$3),V$11),"")) -> 7.8 | W27: =IFERROR(INDEX(РВД!$D:$I,MATCH($C27,РВД!$A:$A,)+1,MATCH($N$4+W$11-1,INDEX(РВД!$D:$I,MATCH($C27,РВД!$A:$A,),),)),IF(W28="Я",INDEX('график 7,8'!$B$5:$AF$16,MONTH($AP$3),W$11),"")) -> 7.8 | X27: =IFERROR(INDEX(РВД!$D:$I,MATCH($C27,РВД!$A:$A,)+1,MATCH($N$4+X$11-1,INDEX(РВД!$D:$I,MATCH($C27,РВД!$A:$A,),),)),IF(X28="Я",INDEX('график 7,8'!$B$5:$AF$16,MONTH($AP$3),X$11),"")) -> 7.8 | Y27: =IFERROR(INDEX(РВД!$D:$I,MATCH($C27,РВД!$A:$A,)+1,MATCH($N$4+Y$11-1,INDEX(РВД!$D:$I,MATCH($C27,РВД!$A:$A,),),)),IF(Y28="Я",INDEX('график 7,8'!$B$5:$AF$16,MONTH($AP$3),Y$11),"")) -> 7.8 | Z27: =IFERROR(INDEX(РВД!$D:$I,MATCH($C27,РВД!$A:$A,)+1,MATCH($N$4+Z$11-1,INDEX(РВД!$D:$I,MATCH($C27,РВД!$A:$A,),),)),IF(Z28="Я",INDEX('график 7,8'!$B$5:$AF$16,MONTH($AP$3),Z$11),"")) ->  | AA27: =IFERROR(INDEX(РВД!$D:$I,MATCH($C27,РВД!$A:$A,)+1,MATCH($N$4+AA$11-1,INDEX(РВД!$D:$I,MATCH($C27,РВД!$A:$A,),),)),IF(AA28="Я",INDEX('график 7,8'!$B$5:$AF$16,MONTH($AP$3),AA$11),"")) ->  | AB27: =IFERROR(INDEX(РВД!$D:$I,MATCH($C27,РВД!$A:$A,)+1,MATCH($N$4+AB$11-1,INDEX(РВД!$D:$I,MATCH($C27,РВД!$A:$A,),),)),IF(AB28="Я",INDEX('график 7,8'!$B$5:$AF$16,MONTH($AP$3),AB$11),"")) -> 7.8 | AC27: =IFERROR(INDEX(РВД!$D:$I,MATCH($C27,РВД!$A:$A,)+1,MATCH($N$4+AC$11-1,INDEX(РВД!$D:$I,MATCH($C27,РВД!$A:$A,),),)),IF(AC28="Я",INDEX('график 7,8'!$B$5:$AF$16,MONTH($AP$3),AC$11),"")) -> 7.8 | AD27: =IFERROR(INDEX(РВД!$D:$I,MATCH($C27,РВД!$A:$A,)+1,MATCH($N$4+AD$11-1,INDEX(РВД!$D:$I,MATCH($C27,РВД!$A:$A,),),)),IF(AD28="Я",INDEX('график 7,8'!$B$5:$AF$16,MONTH($AP$3),AD$11),"")) -> 7.8 | AE27: =IFERROR(INDEX(РВД!$D:$I,MATCH($C27,РВД!$A:$A,)+1,MATCH($N$4+AE$11-1,INDEX(РВД!$D:$I,MATCH($C27,РВД!$A:$A,),),)),IF(AE28="Я",INDEX('график 7,8'!$B$5:$AF$16,MONTH($AP$3),AE$11),"")) -> 7.8 | AF27: =IFERROR(INDEX(РВД!$D:$I,MATCH($C27,РВД!$A:$A,)+1,MATCH($N$4+AF$11-1,INDEX(РВД!$D:$I,MATCH($C27,РВД!$A:$A,),),)),IF(AF28="Я",INDEX('график 7,8'!$B$5:$AF$16,MONTH($AP$3),AF$11),"")) -> 7.8 | AG27: =IFERROR(INDEX(РВД!$D:$I,MATCH($C27,РВД!$A:$A,)+1,MATCH($N$4+AG$11-1,INDEX(РВД!$D:$I,MATCH($C27,РВД!$A:$A,),),)),IF(AG28="Я",INDEX('график 7,8'!$B$5:$AF$16,MONTH($AP$3),AG$11),"")) ->  | AH27: =IFERROR(INDEX(РВД!$D:$I,MATCH($C27,РВД!$A:$A,)+1,MATCH($N$4+AH$11-1,INDEX(РВД!$D:$I,MATCH($C27,РВД!$A:$A,),),)),IF(AH28="Я",INDEX('график 7,8'!$B$5:$AF$16,MONTH($AP$3),AH$11),"")) ->  | AI27: =IFERROR(INDEX(РВД!$D:$I,MATCH($C27,РВД!$A:$A,)+1,MATCH($N$4+AI$11-1,INDEX(РВД!$D:$I,MATCH($C27,РВД!$A:$A,),),)),IF(AI28="Я",INDEX('график 7,8'!$B$5:$AF$16,MONTH($AP$3),AI$11),"")) -> 7.8 | AJ27: =IFERROR(INDEX(РВД!$D:$I,MATCH($C27,РВД!$A:$A,)+1,MATCH($N$4+AJ$11-1,INDEX(РВД!$D:$I,MATCH($C27,РВД!$A:$A,),),)),IF(AJ28="Я",INDEX('график 7,8'!$B$5:$AF$16,MONTH($AP$3),AJ$11),"")) -> 7.8 | AK27: ="Я/"&SUMIF(E28:AJ28,"Я",E27:AJ27) -> Я/163,8 | AL27: =(SUMIF(E28:AJ28,"В",E27:AJ27)+SUMIF(E28:AJ28,"В.",E27:AJ27))*2 -> 0 | AM27: =COUNTIFS(E28:AJ28,"Я",E27:AJ27,"<>") -> 21 | AN27: =IFERROR(VLOOKUP(C27,доплаты!$A$5:$P$118,16,0),"") -> 24
E28: =TRIM(LEFT(TRIM(INDEX(отсутствия!$N:$AR,MATCH($C27,отсутствия!$A:$A,),E$11)&" "&TEXT(INDEX('график 7,8'!$B$5:$AF$16,MONTH($AP$3),E$11)&"","Я")),2)) -> В | F28: =TRIM(LEFT(TRIM(INDEX(отсутствия!$N:$AR,MATCH($C27,отсутствия!$A:$A,),F$11)&" "&TEXT(INDEX('график 7,8'!$B$5:$AF$16,MONTH($AP$3),F$11)&"","Я")),2)) -> Я | G28: =TRIM(LEFT(TRIM(INDEX(отсутствия!$N:$AR,MATCH($C27,отсутствия!$A:$A,),G$11)&" "&TEXT(INDEX('график 7,8'!$B$5:$AF$16,MONTH($AP$3),G$11)&"","Я")),2)) -> Я | H28: =TRIM(LEFT(TRIM(INDEX(отсутствия!$N:$AR,MATCH($C27,отсутствия!$A:$A,),H$11)&" "&TEXT(INDEX('график 7,8'!$B$5:$AF$16,MONTH($AP$3),H$11)&"","Я")),2)) -> Я | I28: =TRIM(LEFT(TRIM(INDEX(отсутствия!$N:$AR,MATCH($C27,отсутствия!$A:$A,),I$11)&" "&TEXT(INDEX('график 7,8'!$B$5:$AF$16,MONTH($AP$3),I$11)&"","Я")),2)) -> Я | J28: =TRIM(LEFT(TRIM(INDEX(отсутствия!$N:$AR,MATCH($C27,отсутствия!$A:$A,),J$11)&" "&TEXT(INDEX('график 7,8'!$B$5:$AF$16,MONTH($AP$3),J$11)&"","Я")),2)) -> Я | K28: =TRIM(LEFT(TRIM(INDEX(отсутствия!$N:$AR,MATCH($C27,отсутствия!$A:$A,),K$11)&" "&TEXT(INDEX('график 7,8'!$B$5:$AF$16,MONTH($AP$3),K$11)&"","Я")),2)) -> В | L28: =TRIM(LEFT(TRIM(INDEX(отсутствия!$N:$AR,MATCH($C27,отсутствия!$A:$A,),L$11)&" "&TEXT(INDEX('график 7,8'!$B$5:$AF$16,MONTH($AP$3),L$11)&"","Я")),2)) -> В. | M28: =TRIM(LEFT(TRIM(INDEX(отсутствия!$N:$AR,MATCH($C27,отсутствия!$A:$A,),M$11)&" "&TEXT(INDEX('график 7,8'!$B$5:$AF$16,MONTH($AP$3),M$11)&"","Я")),2)) -> В | N28: =TRIM(LEFT(TRIM(INDEX(отсутствия!$N:$AR,MATCH($C27,отсутствия!$A:$A,),N$11)&" "&TEXT(INDEX('график 7,8'!$B$5:$AF$16,MONTH($AP$3),N$11)&"","Я")),2)) -> Я | O28: =TRIM(LEFT(TRIM(INDEX(отсутствия!$N:$AR,MATCH($C27,отсутствия!$A:$A,),O$11)&" "&TEXT(INDEX('график 7,8'!$B$5:$AF$16,MONTH($AP$3),O$11)&"","Я")),2)) -> Я | P28: =TRIM(LEFT(TRIM(INDEX(отсутствия!$N:$AR,MATCH($C27,отсутствия!$A:$A,),P$11)&" "&TEXT(INDEX('график 7,8'!$B$5:$AF$16,MONTH($AP$3),P$11)&"","Я")),2)) -> Я | Q28: =TRIM(LEFT(TRIM(INDEX(отсутствия!$N:$AR,MATCH($C27,отсутствия!$A:$A,),Q$11)&" "&TEXT(INDEX('график 7,8'!$B$5:$AF$16,MONTH($AP$3),Q$11)&"","Я")),2)) -> Я | R28: =TRIM(LEFT(TRIM(INDEX(отсутствия!$N:$AR,MATCH($C27,отсутствия!$A:$A,),R$11)&" "&TEXT(INDEX('график 7,8'!$B$5:$AF$16,MONTH($AP$3),R$11)&"","Я")),2)) -> В | S28: =TRIM(LEFT(TRIM(INDEX(отсутствия!$N:$AR,MATCH($C27,отсутствия!$A:$A,),S$11)&" "&TEXT(INDEX('график 7,8'!$B$5:$AF$16,MONTH($AP$3),S$11)&"","Я")),2)) -> В | U28: =TRIM(LEFT(TRIM(INDEX(отсутствия!$N:$AR,MATCH($C27,отсутствия!$A:$A,),U$11)&" "&TEXT(INDEX('график 7,8'!$B$5:$AF$16,MONTH($AP$3),U$11)&"","Я")),2)) -> Я | V28: =TRIM(LEFT(TRIM(INDEX(отсутствия!$N:$AR,MATCH($C27,отсутствия!$A:$A,),V$11)&" "&TEXT(INDEX('график 7,8'!$B$5:$AF$16,MONTH($AP$3),V$11)&"","Я")),2)) -> Я | W28: =TRIM(LEFT(TRIM(INDEX(отсутствия!$N:$AR,MATCH($C27,отсутствия!$A:$A,),W$11)&" "&TEXT(INDEX('график 7,8'!$B$5:$AF$16,MONTH($AP$3),W$11)&"","Я")),2)) -> Я | X28: =TRIM(LEFT(TRIM(INDEX(отсутствия!$N:$AR,MATCH($C27,отсутствия!$A:$A,),X$11)&" "&TEXT(INDEX('график 7,8'!$B$5:$AF$16,MONTH($AP$3),X$11)&"","Я")),2)) -> Я | Y28: =TRIM(LEFT(TRIM(INDEX(отсутствия!$N:$AR,MATCH($C27,отсутствия!$A:$A,),Y$11)&" "&TEXT(INDEX('график 7,8'!$B$5:$AF$16,MONTH($AP$3),Y$11)&"","Я")),2)) -> Я | Z28: =TRIM(LEFT(TRIM(INDEX(отсутствия!$N:$AR,MATCH($C27,отсутствия!$A:$A,),Z$11)&" "&TEXT(INDEX('график 7,8'!$B$5:$AF$16,MONTH($AP$3),Z$11)&"","Я")),2)) -> В | AA28: =TRIM(LEFT(TRIM(INDEX(отсутствия!$N:$AR,MATCH($C27,отсутствия!$A:$A,),AA$11)&" "&TEXT(INDEX('график 7,8'!$B$5:$AF$16,MONTH($AP$3),AA$11)&"","Я")),2)) -> В | AB28: =TRIM(LEFT(TRIM(INDEX(отсутствия!$N:$AR,MATCH($C27,отсутствия!$A:$A,),AB$11)&" "&TEXT(INDEX('график 7,8'!$B$5:$AF$16,MONTH($AP$3),AB$11)&"","Я")),2)) -> Я | AC28: =TRIM(LEFT(TRIM(INDEX(отсутствия!$N:$AR,MATCH($C27,отсутствия!$A:$A,),AC$11)&" "&TEXT(INDEX('график 7,8'!$B$5:$AF$16,MONTH($AP$3),AC$11)&"","Я")),2)) -> Я | AD28: =TRIM(LEFT(TRIM(INDEX(отсутствия!$N:$AR,MATCH($C27,отсутствия!$A:$A,),AD$11)&" "&TEXT(INDEX('график 7,8'!$B$5:$AF$16,MONTH($AP$3),AD$11)&"","Я")),2)) -> Я | AE28: =TRIM(LEFT(TRIM(INDEX(отсутствия!$N:$AR,MATCH($C27,отсутствия!$A:$A,),AE$11)&" "&TEXT(INDEX('график 7,8'!$B$5:$AF$16,MONTH($AP$3),AE$11)&"","Я")),2)) -> Я | AF28: =TRIM(LEFT(TRIM(INDEX(отсутствия!$N:$AR,MATCH($C27,отсутствия!$A:$A,),AF$11)&" "&TEXT(INDEX('график 7,8'!$B$5:$AF$16,MONTH($AP$3),AF$11)&"","Я")),2)) -> Я | AG28: =TRIM(LEFT(TRIM(INDEX(отсутствия!$N:$AR,MATCH($C27,отсутствия!$A:$A,),AG$11)&" "&TEXT(INDEX('график 7,8'!$B$5:$AF$16,MONTH($AP$3),AG$11)&"","Я")),2)) -> В | AH28: =TRIM(LEFT(TRIM(INDEX(отсутствия!$N:$AR,MATCH($C27,отсутствия!$A:$A,),AH$11)&" "&TEXT(INDEX('график 7,8'!$B$5:$AF$16,MONTH($AP$3),AH$11)&"","Я")),2)) -> В | AI28: =TRIM(LEFT(TRIM(INDEX(отсутствия!$N:$AR,MATCH($C27,отсутствия!$A:$A,),AI$11)&" "&TEXT(INDEX('график 7,8'!$B$5:$AF$16,MONTH($AP$3),AI$11)&"","Я")),2)) -> Я | AJ28: =TRIM(LEFT(TRIM(INDEX(отсутствия!$N:$AR,MATCH($C27,отсутствия!$A:$A,),AJ$11)&" "&TEXT(INDEX('график 7,8'!$B$5:$AF$16,MONTH($AP$3),AJ$11)&"","Я")),2)) -> Я
A29: 2833 | B29: Макаров | C29: 2833 | D29: сборная | E29: =IFERROR(INDEX(РВД!$D:$I,MATCH($C29,РВД!$A:$A,)+1,MATCH($N$4+E$11-1,INDEX(РВД!$D:$I,MATCH($C29,РВД!$A:$A,),),)),IF(E30="Я",INDEX('график 7,8'!$B$5:$AF$16,MONTH($AP$3),E$11),"")) ->  | F29: =IFERROR(INDEX(РВД!$D:$I,MATCH($C29,РВД!$A:$A,)+1,MATCH($N$4+F$11-1,INDEX(РВД!$D:$I,MATCH($C29,РВД!$A:$A,),),)),IF(F30="Я",INDEX('график 7,8'!$B$5:$AF$16,MONTH($AP$3),F$11),"")) -> 7.8 | G29: =IFERROR(INDEX(РВД!$D:$I,MATCH($C29,РВД!$A:$A,)+1,MATCH($N$4+G$11-1,INDEX(РВД!$D:$I,MATCH($C29,РВД!$A:$A,),),)),IF(G30="Я",INDEX('график 7,8'!$B$5:$AF$16,MONTH($AP$3),G$11),"")) -> 7.8 | H29: =IFERROR(INDEX(РВД!$D:$I,MATCH($C29,РВД!$A:$A,)+1,MATCH($N$4+H$11-1,INDEX(РВД!$D:$I,MATCH($C29,РВД!$A:$A,),),)),IF(H30="Я",INDEX('график 7,8'!$B$5:$AF$16,MONTH($AP$3),H$11),"")) -> 7.8 | I29: =IFERROR(INDEX(РВД!$D:$I,MATCH($C29,РВД!$A:$A,)+1,MATCH($N$4+I$11-1,INDEX(РВД!$D:$I,MATCH($C29,РВД!$A:$A,),),)),IF(I30="Я",INDEX('график 7,8'!$B$5:$AF$16,MONTH($AP$3),I$11),"")) -> 7.8 | J29: =IFERROR(INDEX(РВД!$D:$I,MATCH($C29,РВД!$A:$A,)+1,MATCH($N$4+J$11-1,INDEX(РВД!$D:$I,MATCH($C29,РВД!$A:$A,),),)),IF(J30="Я",INDEX('график 7,8'!$B$5:$AF$16,MONTH($AP$3),J$11),"")) -> 7.8 | K29: =IFERROR(INDEX(РВД!$D:$I,MATCH($C29,РВД!$A:$A,)+1,MATCH($N$4+K$11-1,INDEX(РВД!$D:$I,MATCH($C29,РВД!$A:$A,),),)),IF(K30="Я",INDEX('график 7,8'!$B$5:$AF$16,MONTH($AP$3),K$11),"")) ->  | L29: =IFERROR(INDEX(РВД!$D:$I,MATCH($C29,РВД!$A:$A,)+1,MATCH($N$4+L$11-1,INDEX(РВД!$D:$I,MATCH($C29,РВД!$A:$A,),),)),IF(L30="Я",INDEX('график 7,8'!$B$5:$AF$16,MONTH($AP$3),L$11),"")) ->  | M29: =IFERROR(INDEX(РВД!$D:$I,MATCH($C29,РВД!$A:$A,)+1,MATCH($N$4+M$11-1,INDEX(РВД!$D:$I,MATCH($C29,РВД!$A:$A,),),)),IF(M30="Я",INDEX('график 7,8'!$B$5:$AF$16,MONTH($AP$3),M$11),"")) ->  | N29: =IFERROR(INDEX(РВД!$D:$I,MATCH($C29,РВД!$A:$A,)+1,MATCH($N$4+N$11-1,INDEX(РВД!$D:$I,MATCH($C29,РВД!$A:$A,),),)),IF(N30="Я",INDEX('график 7,8'!$B$5:$AF$16,MONTH($AP$3),N$11),"")) -> 7.8 | O29: =IFERROR(INDEX(РВД!$D:$I,MATCH($C29,РВД!$A:$A,)+1,MATCH($N$4+O$11-1,INDEX(РВД!$D:$I,MATCH($C29,РВД!$A:$A,),),)),IF(O30="Я",INDEX('график 7,8'!$B$5:$AF$16,MONTH($AP$3),O$11),"")) -> 7.8 | P29: =IFERROR(INDEX(РВД!$D:$I,MATCH($C29,РВД!$A:$A,)+1,MATCH($N$4+P$11-1,INDEX(РВД!$D:$I,MATCH($C29,РВД!$A:$A,),),)),IF(P30="Я",INDEX('график 7,8'!$B$5:$AF$16,MONTH($AP$3),P$11),"")) -> 7.8 | Q29: =IFERROR(INDEX(РВД!$D:$I,MATCH($C29,РВД!$A:$A,)+1,MATCH($N$4+Q$11-1,INDEX(РВД!$D:$I,MATCH($C29,РВД!$A:$A,),),)),IF(Q30="Я",INDEX('график 7,8'!$B$5:$AF$16,MONTH($AP$3),Q$11),"")) -> 7.8 | R29: =IFERROR(INDEX(РВД!$D:$I,MATCH($C29,РВД!$A:$A,)+1,MATCH($N$4+R$11-1,INDEX(РВД!$D:$I,MATCH($C29,РВД!$A:$A,),),)),IF(R30="Я",INDEX('график 7,8'!$B$5:$AF$16,MONTH($AP$3),R$11),"")) ->  | S29: =IFERROR(INDEX(РВД!$D:$I,MATCH($C29,РВД!$A:$A,)+1,MATCH($N$4+S$11-1,INDEX(РВД!$D:$I,MATCH($C29,РВД!$A:$A,),),)),IF(S30="Я",INDEX('график 7,8'!$B$5:$AF$16,MONTH($AP$3),S$11),"")) ->  | T29: =SUMIF(E30:S30,"Я",E29:S29) -> 70.2 | U29: =IFERROR(INDEX(РВД!$D:$I,MATCH($C29,РВД!$A:$A,)+1,MATCH($N$4+U$11-1,INDEX(РВД!$D:$I,MATCH($C29,РВД!$A:$A,),),)),IF(U30="Я",INDEX('график 7,8'!$B$5:$AF$16,MONTH($AP$3),U$11),"")) -> 7.8 | V29: =IFERROR(INDEX(РВД!$D:$I,MATCH($C29,РВД!$A:$A,)+1,MATCH($N$4+V$11-1,INDEX(РВД!$D:$I,MATCH($C29,РВД!$A:$A,),),)),IF(V30="Я",INDEX('график 7,8'!$B$5:$AF$16,MONTH($AP$3),V$11),"")) -> 7.8 | W29: =IFERROR(INDEX(РВД!$D:$I,MATCH($C29,РВД!$A:$A,)+1,MATCH($N$4+W$11-1,INDEX(РВД!$D:$I,MATCH($C29,РВД!$A:$A,),),)),IF(W30="Я",INDEX('график 7,8'!$B$5:$AF$16,MONTH($AP$3),W$11),"")) -> 7.8 | X29: =IFERROR(INDEX(РВД!$D:$I,MATCH($C29,РВД!$A:$A,)+1,MATCH($N$4+X$11-1,INDEX(РВД!$D:$I,MATCH($C29,РВД!$A:$A,),),)),IF(X30="Я",INDEX('график 7,8'!$B$5:$AF$16,MONTH($AP$3),X$11),"")) -> 7.8 | Y29: =IFERROR(INDEX(РВД!$D:$I,MATCH($C29,РВД!$A:$A,)+1,MATCH($N$4+Y$11-1,INDEX(РВД!$D:$I,MATCH($C29,РВД!$A:$A,),),)),IF(Y30="Я",INDEX('график 7,8'!$B$5:$AF$16,MONTH($AP$3),Y$11),"")) -> 7.8 | Z29: =IFERROR(INDEX(РВД!$D:$I,MATCH($C29,РВД!$A:$A,)+1,MATCH($N$4+Z$11-1,INDEX(РВД!$D:$I,MATCH($C29,РВД!$A:$A,),),)),IF(Z30="Я",INDEX('график 7,8'!$B$5:$AF$16,MONTH($AP$3),Z$11),"")) ->  | AA29: =IFERROR(INDEX(РВД!$D:$I,MATCH($C29,РВД!$A:$A,)+1,MATCH($N$4+AA$11-1,INDEX(РВД!$D:$I,MATCH($C29,РВД!$A:$A,),),)),IF(AA30="Я",INDEX('график 7,8'!$B$5:$AF$16,MONTH($AP$3),AA$11),"")) ->  | AB29: =IFERROR(INDEX(РВД!$D:$I,MATCH($C29,РВД!$A:$A,)+1,MATCH($N$4+AB$11-1,INDEX(РВД!$D:$I,MATCH($C29,РВД!$A:$A,),),)),IF(AB30="Я",INDEX('график 7,8'!$B$5:$AF$16,MONTH($AP$3),AB$11),"")) -> 7.8 | AC29: =IFERROR(INDEX(РВД!$D:$I,MATCH($C29,РВД!$A:$A,)+1,MATCH($N$4+AC$11-1,INDEX(РВД!$D:$I,MATCH($C29,РВД!$A:$A,),),)),IF(AC30="Я",INDEX('график 7,8'!$B$5:$AF$16,MONTH($AP$3),AC$11),"")) -> 7.8 | AD29: =IFERROR(INDEX(РВД!$D:$I,MATCH($C29,РВД!$A:$A,)+1,MATCH($N$4+AD$11-1,INDEX(РВД!$D:$I,MATCH($C29,РВД!$A:$A,),),)),IF(AD30="Я",INDEX('график 7,8'!$B$5:$AF$16,MONTH($AP$3),AD$11),"")) -> 7.8 | AE29: =IFERROR(INDEX(РВД!$D:$I,MATCH($C29,РВД!$A:$A,)+1,MATCH($N$4+AE$11-1,INDEX(РВД!$D:$I,MATCH($C29,РВД!$A:$A,),),)),IF(AE30="Я",INDEX('график 7,8'!$B$5:$AF$16,MONTH($AP$3),AE$11),"")) -> 7.8 | AF29: =IFERROR(INDEX(РВД!$D:$I,MATCH($C29,РВД!$A:$A,)+1,MATCH($N$4+AF$11-1,INDEX(РВД!$D:$I,MATCH($C29,РВД!$A:$A,),),)),IF(AF30="Я",INDEX('график 7,8'!$B$5:$AF$16,MONTH($AP$3),AF$11),"")) -> 7.8 | AG29: =IFERROR(INDEX(РВД!$D:$I,MATCH($C29,РВД!$A:$A,)+1,MATCH($N$4+AG$11-1,INDEX(РВД!$D:$I,MATCH($C29,РВД!$A:$A,),),)),IF(AG30="Я",INDEX('график 7,8'!$B$5:$AF$16,MONTH($AP$3),AG$11),"")) ->  | AH29: =IFERROR(INDEX(РВД!$D:$I,MATCH($C29,РВД!$A:$A,)+1,MATCH($N$4+AH$11-1,INDEX(РВД!$D:$I,MATCH($C29,РВД!$A:$A,),),)),IF(AH30="Я",INDEX('график 7,8'!$B$5:$AF$16,MONTH($AP$3),AH$11),"")) ->  | AI29: =IFERROR(INDEX(РВД!$D:$I,MATCH($C29,РВД!$A:$A,)+1,MATCH($N$4+AI$11-1,INDEX(РВД!$D:$I,MATCH($C29,РВД!$A:$A,),),)),IF(AI30="Я",INDEX('график 7,8'!$B$5:$AF$16,MONTH($AP$3),AI$11),"")) -> 7.8 | AJ29: =IFERROR(INDEX(РВД!$D:$I,MATCH($C29,РВД!$A:$A,)+1,MATCH($N$4+AJ$11-1,INDEX(РВД!$D:$I,MATCH($C29,РВД!$A:$A,),),)),IF(AJ30="Я",INDEX('график 7,8'!$B$5:$AF$16,MONTH($AP$3),AJ$11),"")) -> 7.8 | AK29: ="Я/"&SUMIF(E30:AJ30,"Я",E29:AJ29) -> Я/163,8 | AL29: =(SUMIF(E30:AJ30,"В",E29:AJ29)+SUMIF(E30:AJ30,"В.",E29:AJ29))*2 -> 0 | AM29: =COUNTIFS(E30:AJ30,"Я",E29:AJ29,"<>") -> 21 | AN29: =IFERROR(VLOOKUP(C29,доплаты!$A$5:$P$118,16,0),"") -> 20,100
E30: =TRIM(LEFT(TRIM(INDEX(отсутствия!$N:$AR,MATCH($C29,отсутствия!$A:$A,),E$11)&" "&TEXT(INDEX('график 7,8'!$B$5:$AF$16,MONTH($AP$3),E$11)&"","Я")),2)) -> В | F30: =TRIM(LEFT(TRIM(INDEX(отсутствия!$N:$AR,MATCH($C29,отсутствия!$A:$A,),F$11)&" "&TEXT(INDEX('график 7,8'!$B$5:$AF$16,MONTH($AP$3),F$11)&"","Я")),2)) -> Я | G30: =TRIM(LEFT(TRIM(INDEX(отсутствия!$N:$AR,MATCH($C29,отсутствия!$A:$A,),G$11)&" "&TEXT(INDEX('график 7,8'!$B$5:$AF$16,MONTH($AP$3),G$11)&"","Я")),2)) -> Я | H30: =TRIM(LEFT(TRIM(INDEX(отсутствия!$N:$AR,MATCH($C29,отсутствия!$A:$A,),H$11)&" "&TEXT(INDEX('график 7,8'!$B$5:$AF$16,MONTH($AP$3),H$11)&"","Я")),2)) -> Я | I30: =TRIM(LEFT(TRIM(INDEX(отсутствия!$N:$AR,MATCH($C29,отсутствия!$A:$A,),I$11)&" "&TEXT(INDEX('график 7,8'!$B$5:$AF$16,MONTH($AP$3),I$11)&"","Я")),2)) -> Я | J30: =TRIM(LEFT(TRIM(INDEX(отсутствия!$N:$AR,MATCH($C29,отсутствия!$A:$A,),J$11)&" "&TEXT(INDEX('график 7,8'!$B$5:$AF$16,MONTH($AP$3),J$11)&"","Я")),2)) -> Я | K30: =TRIM(LEFT(TRIM(INDEX(отсутствия!$N:$AR,MATCH($C29,отсутствия!$A:$A,),K$11)&" "&TEXT(INDEX('график 7,8'!$B$5:$AF$16,MONTH($AP$3),K$11)&"","Я")),2)) -> В | L30: =TRIM(LEFT(TRIM(INDEX(отсутствия!$N:$AR,MATCH($C29,отсутствия!$A:$A,),L$11)&" "&TEXT(INDEX('график 7,8'!$B$5:$AF$16,MONTH($AP$3),L$11)&"","Я")),2)) -> В. | M30: =TRIM(LEFT(TRIM(INDEX(отсутствия!$N:$AR,MATCH($C29,отсутствия!$A:$A,),M$11)&" "&TEXT(INDEX('график 7,8'!$B$5:$AF$16,MONTH($AP$3),M$11)&"","Я")),2)) -> В | N30: =TRIM(LEFT(TRIM(INDEX(отсутствия!$N:$AR,MATCH($C29,отсутствия!$A:$A,),N$11)&" "&TEXT(INDEX('график 7,8'!$B$5:$AF$16,MONTH($AP$3),N$11)&"","Я")),2)) -> Я | O30: =TRIM(LEFT(TRIM(INDEX(отсутствия!$N:$AR,MATCH($C29,отсутствия!$A:$A,),O$11)&" "&TEXT(INDEX('график 7,8'!$B$5:$AF$16,MONTH($AP$3),O$11)&"","Я")),2)) -> Я | P30: =TRIM(LEFT(TRIM(INDEX(отсутствия!$N:$AR,MATCH($C29,отсутствия!$A:$A,),P$11)&" "&TEXT(INDEX('график 7,8'!$B$5:$AF$16,MONTH($AP$3),P$11)&"","Я")),2)) -> Я | Q30: =TRIM(LEFT(TRIM(INDEX(отсутствия!$N:$AR,MATCH($C29,отсутствия!$A:$A,),Q$11)&" "&TEXT(INDEX('график 7,8'!$B$5:$AF$16,MONTH($AP$3),Q$11)&"","Я")),2)) -> Я | R30: =TRIM(LEFT(TRIM(INDEX(отсутствия!$N:$AR,MATCH($C29,отсутствия!$A:$A,),R$11)&" "&TEXT(INDEX('график 7,8'!$B$5:$AF$16,MONTH($AP$3),R$11)&"","Я")),2)) -> В | S30: =TRIM(LEFT(TRIM(INDEX(отсутствия!$N:$AR,MATCH($C29,отсутствия!$A:$A,),S$11)&" "&TEXT(INDEX('график 7,8'!$B$5:$AF$16,MONTH($AP$3),S$11)&"","Я")),2)) -> В | U30: =TRIM(LEFT(TRIM(INDEX(отсутствия!$N:$AR,MATCH($C29,отсутствия!$A:$A,),U$11)&" "&TEXT(INDEX('график 7,8'!$B$5:$AF$16,MONTH($AP$3),U$11)&"","Я")),2)) -> Я | V30: =TRIM(LEFT(TRIM(INDEX(отсутствия!$N:$AR,MATCH($C29,отсутствия!$A:$A,),V$11)&" "&TEXT(INDEX('график 7,8'!$B$5:$AF$16,MONTH($AP$3),V$11)&"","Я")),2)) -> Я | W30: =TRIM(LEFT(TRIM(INDEX(отсутствия!$N:$AR,MATCH($C29,отсутствия!$A:$A,),W$11)&" "&TEXT(INDEX('график 7,8'!$B$5:$AF$16,MONTH($AP$3),W$11)&"","Я")),2)) -> Я | X30: =TRIM(LEFT(TRIM(INDEX(отсутствия!$N:$AR,MATCH($C29,отсутствия!$A:$A,),X$11)&" "&TEXT(INDEX('график 7,8'!$B$5:$AF$16,MONTH($AP$3),X$11)&"","Я")),2)) -> Я | Y30: =TRIM(LEFT(TRIM(INDEX(отсутствия!$N:$AR,MATCH($C29,отсутствия!$A:$A,),Y$11)&" "&TEXT(INDEX('график 7,8'!$B$5:$AF$16,MONTH($AP$3),Y$11)&"","Я")),2)) -> Я | Z30: =TRIM(LEFT(TRIM(INDEX(отсутствия!$N:$AR,MATCH($C29,отсутствия!$A:$A,),Z$11)&" "&TEXT(INDEX('график 7,8'!$B$5:$AF$16,MONTH($AP$3),Z$11)&"","Я")),2)) -> В | AA30: =TRIM(LEFT(TRIM(INDEX(отсутствия!$N:$AR,MATCH($C29,отсутствия!$A:$A,),AA$11)&" "&TEXT(INDEX('график 7,8'!$B$5:$AF$16,MONTH($AP$3),AA$11)&"","Я")),2)) -> В | AB30: =TRIM(LEFT(TRIM(INDEX(отсутствия!$N:$AR,MATCH($C29,отсутствия!$A:$A,),AB$11)&" "&TEXT(INDEX('график 7,8'!$B$5:$AF$16,MONTH($AP$3),AB$11)&"","Я")),2)) -> Я | AC30: =TRIM(LEFT(TRIM(INDEX(отсутствия!$N:$AR,MATCH($C29,отсутствия!$A:$A,),AC$11)&" "&TEXT(INDEX('график 7,8'!$B$5:$AF$16,MONTH($AP$3),AC$11)&"","Я")),2)) -> Я | AD30: =TRIM(LEFT(TRIM(INDEX(отсутствия!$N:$AR,MATCH($C29,отсутствия!$A:$A,),AD$11)&" "&TEXT(INDEX('график 7,8'!$B$5:$AF$16,MONTH($AP$3),AD$11)&"","Я")),2)) -> Я | AE30: =TRIM(LEFT(TRIM(INDEX(отсутствия!$N:$AR,MATCH($C29,отсутствия!$A:$A,),AE$11)&" "&TEXT(INDEX('график 7,8'!$B$5:$AF$16,MONTH($AP$3),AE$11)&"","Я")),2)) -> Я | AF30: =TRIM(LEFT(TRIM(INDEX(отсутствия!$N:$AR,MATCH($C29,отсутствия!$A:$A,),AF$11)&" "&TEXT(INDEX('график 7,8'!$B$5:$AF$16,MONTH($AP$3),AF$11)&"","Я")),2)) -> Я | AG30: =TRIM(LEFT(TRIM(INDEX(отсутствия!$N:$AR,MATCH($C29,отсутствия!$A:$A,),AG$11)&" "&TEXT(INDEX('график 7,8'!$B$5:$AF$16,MONTH($AP$3),AG$11)&"","Я")),2)) -> В | AH30: =TRIM(LEFT(TRIM(INDEX(отсутствия!$N:$AR,MATCH($C29,отсутствия!$A:$A,),AH$11)&" "&TEXT(INDEX('график 7,8'!$B$5:$AF$16,MONTH($AP$3),AH$11)&"","Я")),2)) -> В | AI30: =TRIM(LEFT(TRIM(INDEX(отсутствия!$N:$AR,MATCH($C29,отсутствия!$A:$A,),AI$11)&" "&TEXT(INDEX('график 7,8'!$B$5:$AF$16,MONTH($AP$3),AI$11)&"","Я")),2)) -> Я | AJ30: =TRIM(LEFT(TRIM(INDEX(отсутствия!$N:$AR,MATCH($C29,отсутствия!$A:$A,),AJ$11)&" "&TEXT(INDEX('график 7,8'!$B$5:$AF$16,MONTH($AP$3),AJ$11)&"","Я")),2)) -> Я
A31: 4814 | B31: Касатонов | C31: 4814 | D31: сборная | E31: =IFERROR(INDEX(РВД!$D:$I,MATCH($C31,РВД!$A:$A,)+1,MATCH($N$4+E$11-1,INDEX(РВД!$D:$I,MATCH($C31,РВД!$A:$A,),),)),IF(E32="Я",INDEX('график 7,8'!$B$5:$AF$16,MONTH($AP$3),E$11),"")) ->  | F31: =IFERROR(INDEX(РВД!$D:$I,MATCH($C31,РВД!$A:$A,)+1,MATCH($N$4+F$11-1,INDEX(РВД!$D:$I,MATCH($C31,РВД!$A:$A,),),)),IF(F32="Я",INDEX('график 7,8'!$B$5:$AF$16,MONTH($AP$3),F$11),"")) -> 7.8 | G31: =IFERROR(INDEX(РВД!$D:$I,MATCH($C31,РВД!$A:$A,)+1,MATCH($N$4+G$11-1,INDEX(РВД!$D:$I,MATCH($C31,РВД!$A:$A,),),)),IF(G32="Я",INDEX('график 7,8'!$B$5:$AF$16,MONTH($AP$3),G$11),"")) -> 7.8 | H31: =IFERROR(INDEX(РВД!$D:$I,MATCH($C31,РВД!$A:$A,)+1,MATCH($N$4+H$11-1,INDEX(РВД!$D:$I,MATCH($C31,РВД!$A:$A,),),)),IF(H32="Я",INDEX('график 7,8'!$B$5:$AF$16,MONTH($AP$3),H$11),"")) -> 7.8 | I31: =IFERROR(INDEX(РВД!$D:$I,MATCH($C31,РВД!$A:$A,)+1,MATCH($N$4+I$11-1,INDEX(РВД!$D:$I,MATCH($C31,РВД!$A:$A,),),)),IF(I32="Я",INDEX('график 7,8'!$B$5:$AF$16,MONTH($AP$3),I$11),"")) -> 7.8 | J31: =IFERROR(INDEX(РВД!$D:$I,MATCH($C31,РВД!$A:$A,)+1,MATCH($N$4+J$11-1,INDEX(РВД!$D:$I,MATCH($C31,РВД!$A:$A,),),)),IF(J32="Я",INDEX('график 7,8'!$B$5:$AF$16,MONTH($AP$3),J$11),"")) -> 7.8 | K31: =IFERROR(INDEX(РВД!$D:$I,MATCH($C31,РВД!$A:$A,)+1,MATCH($N$4+K$11-1,INDEX(РВД!$D:$I,MATCH($C31,РВД!$A:$A,),),)),IF(K32="Я",INDEX('график 7,8'!$B$5:$AF$16,MONTH($AP$3),K$11),"")) ->  | L31: =IFERROR(INDEX(РВД!$D:$I,MATCH($C31,РВД!$A:$A,)+1,MATCH($N$4+L$11-1,INDEX(РВД!$D:$I,MATCH($C31,РВД!$A:$A,),),)),IF(L32="Я",INDEX('график 7,8'!$B$5:$AF$16,MONTH($AP$3),L$11),"")) ->  | M31: =IFERROR(INDEX(РВД!$D:$I,MATCH($C31,РВД!$A:$A,)+1,MATCH($N$4+M$11-1,INDEX(РВД!$D:$I,MATCH($C31,РВД!$A:$A,),),)),IF(M32="Я",INDEX('график 7,8'!$B$5:$AF$16,MONTH($AP$3),M$11),"")) ->  | N31: =IFERROR(INDEX(РВД!$D:$I,MATCH($C31,РВД!$A:$A,)+1,MATCH($N$4+N$11-1,INDEX(РВД!$D:$I,MATCH($C31,РВД!$A:$A,),),)),IF(N32="Я",INDEX('график 7,8'!$B$5:$AF$16,MONTH($AP$3),N$11),"")) -> 7.8 | O31: =IFERROR(INDEX(РВД!$D:$I,MATCH($C31,РВД!$A:$A,)+1,MATCH($N$4+O$11-1,INDEX(РВД!$D:$I,MATCH($C31,РВД!$A:$A,),),)),IF(O32="Я",INDEX('график 7,8'!$B$5:$AF$16,MONTH($AP$3),O$11),"")) -> 7.8 | P31: =IFERROR(INDEX(РВД!$D:$I,MATCH($C31,РВД!$A:$A,)+1,MATCH($N$4+P$11-1,INDEX(РВД!$D:$I,MATCH($C31,РВД!$A:$A,),),)),IF(P32="Я",INDEX('график 7,8'!$B$5:$AF$16,MONTH($AP$3),P$11),"")) -> 7.8 | Q31: =IFERROR(INDEX(РВД!$D:$I,MATCH($C31,РВД!$A:$A,)+1,MATCH($N$4+Q$11-1,INDEX(РВД!$D:$I,MATCH($C31,РВД!$A:$A,),),)),IF(Q32="Я",INDEX('график 7,8'!$B$5:$AF$16,MONTH($AP$3),Q$11),"")) -> 7.8 | R31: =IFERROR(INDEX(РВД!$D:$I,MATCH($C31,РВД!$A:$A,)+1,MATCH($N$4+R$11-1,INDEX(РВД!$D:$I,MATCH($C31,РВД!$A:$A,),),)),IF(R32="Я",INDEX('график 7,8'!$B$5:$AF$16,MONTH($AP$3),R$11),"")) ->  | S31: =IFERROR(INDEX(РВД!$D:$I,MATCH($C31,РВД!$A:$A,)+1,MATCH($N$4+S$11-1,INDEX(РВД!$D:$I,MATCH($C31,РВД!$A:$A,),),)),IF(S32="Я",INDEX('график 7,8'!$B$5:$AF$16,MONTH($AP$3),S$11),"")) ->  | T31: =SUMIF(E32:S32,"Я",E31:S31) -> 70.2 | U31: =IFERROR(INDEX(РВД!$D:$I,MATCH($C31,РВД!$A:$A,)+1,MATCH($N$4+U$11-1,INDEX(РВД!$D:$I,MATCH($C31,РВД!$A:$A,),),)),IF(U32="Я",INDEX('график 7,8'!$B$5:$AF$16,MONTH($AP$3),U$11),"")) -> 7.8 | V31: =IFERROR(INDEX(РВД!$D:$I,MATCH($C31,РВД!$A:$A,)+1,MATCH($N$4+V$11-1,INDEX(РВД!$D:$I,MATCH($C31,РВД!$A:$A,),),)),IF(V32="Я",INDEX('график 7,8'!$B$5:$AF$16,MONTH($AP$3),V$11),"")) -> 7.8 | W31: =IFERROR(INDEX(РВД!$D:$I,MATCH($C31,РВД!$A:$A,)+1,MATCH($N$4+W$11-1,INDEX(РВД!$D:$I,MATCH($C31,РВД!$A:$A,),),)),IF(W32="Я",INDEX('график 7,8'!$B$5:$AF$16,MONTH($AP$3),W$11),"")) -> 7.8 | X31: =IFERROR(INDEX(РВД!$D:$I,MATCH($C31,РВД!$A:$A,)+1,MATCH($N$4+X$11-1,INDEX(РВД!$D:$I,MATCH($C31,РВД!$A:$A,),),)),IF(X32="Я",INDEX('график 7,8'!$B$5:$AF$16,MONTH($AP$3),X$11),"")) -> 7.8 | Y31: =IFERROR(INDEX(РВД!$D:$I,MATCH($C31,РВД!$A:$A,)+1,MATCH($N$4+Y$11-1,INDEX(РВД!$D:$I,MATCH($C31,РВД!$A:$A,),),)),IF(Y32="Я",INDEX('график 7,8'!$B$5:$AF$16,MONTH($AP$3),Y$11),"")) -> 7.8 | Z31: =IFERROR(INDEX(РВД!$D:$I,MATCH($C31,РВД!$A:$A,)+1,MATCH($N$4+Z$11-1,INDEX(РВД!$D:$I,MATCH($C31,РВД!$A:$A,),),)),IF(Z32="Я",INDEX('график 7,8'!$B$5:$AF$16,MONTH($AP$3),Z$11),"")) ->  | AA31: =IFERROR(INDEX(РВД!$D:$I,MATCH($C31,РВД!$A:$A,)+1,MATCH($N$4+AA$11-1,INDEX(РВД!$D:$I,MATCH($C31,РВД!$A:$A,),),)),IF(AA32="Я",INDEX('график 7,8'!$B$5:$AF$16,MONTH($AP$3),AA$11),"")) ->  | AB31: =IFERROR(INDEX(РВД!$D:$I,MATCH($C31,РВД!$A:$A,)+1,MATCH($N$4+AB$11-1,INDEX(РВД!$D:$I,MATCH($C31,РВД!$A:$A,),),)),IF(AB32="Я",INDEX('график 7,8'!$B$5:$AF$16,MONTH($AP$3),AB$11),"")) -> 7.8 | AC31: =IFERROR(INDEX(РВД!$D:$I,MATCH($C31,РВД!$A:$A,)+1,MATCH($N$4+AC$11-1,INDEX(РВД!$D:$I,MATCH($C31,РВД!$A:$A,),),)),IF(AC32="Я",INDEX('график 7,8'!$B$5:$AF$16,MONTH($AP$3),AC$11),"")) -> 7.8 | AD31: =IFERROR(INDEX(РВД!$D:$I,MATCH($C31,РВД!$A:$A,)+1,MATCH($N$4+AD$11-1,INDEX(РВД!$D:$I,MATCH($C31,РВД!$A:$A,),),)),IF(AD32="Я",INDEX('график 7,8'!$B$5:$AF$16,MONTH($AP$3),AD$11),"")) -> 7.8 | AE31: =IFERROR(INDEX(РВД!$D:$I,MATCH($C31,РВД!$A:$A,)+1,MATCH($N$4+AE$11-1,INDEX(РВД!$D:$I,MATCH($C31,РВД!$A:$A,),),)),IF(AE32="Я",INDEX('график 7,8'!$B$5:$AF$16,MONTH($AP$3),AE$11),"")) -> 7.8 | AF31: =IFERROR(INDEX(РВД!$D:$I,MATCH($C31,РВД!$A:$A,)+1,MATCH($N$4+AF$11-1,INDEX(РВД!$D:$I,MATCH($C31,РВД!$A:$A,),),)),IF(AF32="Я",INDEX('график 7,8'!$B$5:$AF$16,MONTH($AP$3),AF$11),"")) -> 7.8 | AG31: =IFERROR(INDEX(РВД!$D:$I,MATCH($C31,РВД!$A:$A,)+1,MATCH($N$4+AG$11-1,INDEX(РВД!$D:$I,MATCH($C31,РВД!$A:$A,),),)),IF(AG32="Я",INDEX('график 7,8'!$B$5:$AF$16,MONTH($AP$3),AG$11),"")) ->  | AH31: =IFERROR(INDEX(РВД!$D:$I,MATCH($C31,РВД!$A:$A,)+1,MATCH($N$4+AH$11-1,INDEX(РВД!$D:$I,MATCH($C31,РВД!$A:$A,),),)),IF(AH32="Я",INDEX('график 7,8'!$B$5:$AF$16,MONTH($AP$3),AH$11),"")) ->  | AI31: =IFERROR(INDEX(РВД!$D:$I,MATCH($C31,РВД!$A:$A,)+1,MATCH($N$4+AI$11-1,INDEX(РВД!$D:$I,MATCH($C31,РВД!$A:$A,),),)),IF(AI32="Я",INDEX('график 7,8'!$B$5:$AF$16,MONTH($AP$3),AI$11),"")) -> 7.8 | AJ31: =IFERROR(INDEX(РВД!$D:$I,MATCH($C31,РВД!$A:$A,)+1,MATCH($N$4+AJ$11-1,INDEX(РВД!$D:$I,MATCH($C31,РВД!$A:$A,),),)),IF(AJ32="Я",INDEX('график 7,8'!$B$5:$AF$16,MONTH($AP$3),AJ$11),"")) -> 7.8 | AK31: ="Я/"&SUMIF(E32:AJ32,"Я",E31:AJ31) -> Я/163,8 | AL31: =(SUMIF(E32:AJ32,"В",E31:AJ31)+SUMIF(E32:AJ32,"В.",E31:AJ31))*2 -> 0 | AM31: =COUNTIFS(E32:AJ32,"Я",E31:AJ31,"<>") -> 21 | AN31: =IFERROR(VLOOKUP(C31,доплаты!$A$5:$P$118,16,0),"") -> 17,30
E32: =TRIM(LEFT(TRIM(INDEX(отсутствия!$N:$AR,MATCH($C31,отсутствия!$A:$A,),E$11)&" "&TEXT(INDEX('график 7,8'!$B$5:$AF$16,MONTH($AP$3),E$11)&"","Я")),2)) -> В | F32: =TRIM(LEFT(TRIM(INDEX(отсутствия!$N:$AR,MATCH($C31,отсутствия!$A:$A,),F$11)&" "&TEXT(INDEX('график 7,8'!$B$5:$AF$16,MONTH($AP$3),F$11)&"","Я")),2)) -> Я | G32: =TRIM(LEFT(TRIM(INDEX(отсутствия!$N:$AR,MATCH($C31,отсутствия!$A:$A,),G$11)&" "&TEXT(INDEX('график 7,8'!$B$5:$AF$16,MONTH($AP$3),G$11)&"","Я")),2)) -> Я | H32: =TRIM(LEFT(TRIM(INDEX(отсутствия!$N:$AR,MATCH($C31,отсутствия!$A:$A,),H$11)&" "&TEXT(INDEX('график 7,8'!$B$5:$AF$16,MONTH($AP$3),H$11)&"","Я")),2)) -> Я | I32: =TRIM(LEFT(TRIM(INDEX(отсутствия!$N:$AR,MATCH($C31,отсутствия!$A:$A,),I$11)&" "&TEXT(INDEX('график 7,8'!$B$5:$AF$16,MONTH($AP$3),I$11)&"","Я")),2)) -> Я | J32: =TRIM(LEFT(TRIM(INDEX(отсутствия!$N:$AR,MATCH($C31,отсутствия!$A:$A,),J$11)&" "&TEXT(INDEX('график 7,8'!$B$5:$AF$16,MONTH($AP$3),J$11)&"","Я")),2)) -> Я | K32: =TRIM(LEFT(TRIM(INDEX(отсутствия!$N:$AR,MATCH($C31,отсутствия!$A:$A,),K$11)&" "&TEXT(INDEX('график 7,8'!$B$5:$AF$16,MONTH($AP$3),K$11)&"","Я")),2)) -> В | L32: =TRIM(LEFT(TRIM(INDEX(отсутствия!$N:$AR,MATCH($C31,отсутствия!$A:$A,),L$11)&" "&TEXT(INDEX('график 7,8'!$B$5:$AF$16,MONTH($AP$3),L$11)&"","Я")),2)) -> В. | M32: =TRIM(LEFT(TRIM(INDEX(отсутствия!$N:$AR,MATCH($C31,отсутствия!$A:$A,),M$11)&" "&TEXT(INDEX('график 7,8'!$B$5:$AF$16,MONTH($AP$3),M$11)&"","Я")),2)) -> В | N32: =TRIM(LEFT(TRIM(INDEX(отсутствия!$N:$AR,MATCH($C31,отсутствия!$A:$A,),N$11)&" "&TEXT(INDEX('график 7,8'!$B$5:$AF$16,MONTH($AP$3),N$11)&"","Я")),2)) -> Я | O32: =TRIM(LEFT(TRIM(INDEX(отсутствия!$N:$AR,MATCH($C31,отсутствия!$A:$A,),O$11)&" "&TEXT(INDEX('график 7,8'!$B$5:$AF$16,MONTH($AP$3),O$11)&"","Я")),2)) -> Я | P32: =TRIM(LEFT(TRIM(INDEX(отсутствия!$N:$AR,MATCH($C31,отсутствия!$A:$A,),P$11)&" "&TEXT(INDEX('график 7,8'!$B$5:$AF$16,MONTH($AP$3),P$11)&"","Я")),2)) -> Я | Q32: =TRIM(LEFT(TRIM(INDEX(отсутствия!$N:$AR,MATCH($C31,отсутствия!$A:$A,),Q$11)&" "&TEXT(INDEX('график 7,8'!$B$5:$AF$16,MONTH($AP$3),Q$11)&"","Я")),2)) -> Я | R32: =TRIM(LEFT(TRIM(INDEX(отсутствия!$N:$AR,MATCH($C31,отсутствия!$A:$A,),R$11)&" "&TEXT(INDEX('график 7,8'!$B$5:$AF$16,MONTH($AP$3),R$11)&"","Я")),2)) -> В | S32: =TRIM(LEFT(TRIM(INDEX(отсутствия!$N:$AR,MATCH($C31,отсутствия!$A:$A,),S$11)&" "&TEXT(INDEX('график 7,8'!$B$5:$AF$16,MONTH($AP$3),S$11)&"","Я")),2)) -> В | U32: =TRIM(LEFT(TRIM(INDEX(отсутствия!$N:$AR,MATCH($C31,отсутствия!$A:$A,),U$11)&" "&TEXT(INDEX('график 7,8'!$B$5:$AF$16,MONTH($AP$3),U$11)&"","Я")),2)) -> Я | V32: =TRIM(LEFT(TRIM(INDEX(отсутствия!$N:$AR,MATCH($C31,отсутствия!$A:$A,),V$11)&" "&TEXT(INDEX('график 7,8'!$B$5:$AF$16,MONTH($AP$3),V$11)&"","Я")),2)) -> Я | W32: =TRIM(LEFT(TRIM(INDEX(отсутствия!$N:$AR,MATCH($C31,отсутствия!$A:$A,),W$11)&" "&TEXT(INDEX('график 7,8'!$B$5:$AF$16,MONTH($AP$3),W$11)&"","Я")),2)) -> Я | X32: =TRIM(LEFT(TRIM(INDEX(отсутствия!$N:$AR,MATCH($C31,отсутствия!$A:$A,),X$11)&" "&TEXT(INDEX('график 7,8'!$B$5:$AF$16,MONTH($AP$3),X$11)&"","Я")),2)) -> Я | Y32: =TRIM(LEFT(TRIM(INDEX(отсутствия!$N:$AR,MATCH($C31,отсутствия!$A:$A,),Y$11)&" "&TEXT(INDEX('график 7,8'!$B$5:$AF$16,MONTH($AP$3),Y$11)&"","Я")),2)) -> Я | Z32: =TRIM(LEFT(TRIM(INDEX(отсутствия!$N:$AR,MATCH($C31,отсутствия!$A:$A,),Z$11)&" "&TEXT(INDEX('график 7,8'!$B$5:$AF$16,MONTH($AP$3),Z$11)&"","Я")),2)) -> В | AA32: =TRIM(LEFT(TRIM(INDEX(отсутствия!$N:$AR,MATCH($C31,отсутствия!$A:$A,),AA$11)&" "&TEXT(INDEX('график 7,8'!$B$5:$AF$16,MONTH($AP$3),AA$11)&"","Я")),2)) -> В | AB32: =TRIM(LEFT(TRIM(INDEX(отсутствия!$N:$AR,MATCH($C31,отсутствия!$A:$A,),AB$11)&" "&TEXT(INDEX('график 7,8'!$B$5:$AF$16,MONTH($AP$3),AB$11)&"","Я")),2)) -> Я | AC32: =TRIM(LEFT(TRIM(INDEX(отсутствия!$N:$AR,MATCH($C31,отсутствия!$A:$A,),AC$11)&" "&TEXT(INDEX('график 7,8'!$B$5:$AF$16,MONTH($AP$3),AC$11)&"","Я")),2)) -> Я | AD32: =TRIM(LEFT(TRIM(INDEX(отсутствия!$N:$AR,MATCH($C31,отсутствия!$A:$A,),AD$11)&" "&TEXT(INDEX('график 7,8'!$B$5:$AF$16,MONTH($AP$3),AD$11)&"","Я")),2)) -> Я | AE32: =TRIM(LEFT(TRIM(INDEX(отсутствия!$N:$AR,MATCH($C31,отсутствия!$A:$A,),AE$11)&" "&TEXT(INDEX('график 7,8'!$B$5:$AF$16,MONTH($AP$3),AE$11)&"","Я")),2)) -> Я | AF32: =TRIM(LEFT(TRIM(INDEX(отсутствия!$N:$AR,MATCH($C31,отсутствия!$A:$A,),AF$11)&" "&TEXT(INDEX('график 7,8'!$B$5:$AF$16,MONTH($AP$3),AF$11)&"","Я")),2)) -> Я | AG32: =TRIM(LEFT(TRIM(INDEX(отсутствия!$N:$AR,MATCH($C31,отсутствия!$A:$A,),AG$11)&" "&TEXT(INDEX('график 7,8'!$B$5:$AF$16,MONTH($AP$3),AG$11)&"","Я")),2)) -> В | AH32: =TRIM(LEFT(TRIM(INDEX(отсутствия!$N:$AR,MATCH($C31,отсутствия!$A:$A,),AH$11)&" "&TEXT(INDEX('график 7,8'!$B$5:$AF$16,MONTH($AP$3),AH$11)&"","Я")),2)) -> В | AI32: =TRIM(LEFT(TRIM(INDEX(отсутствия!$N:$AR,MATCH($C31,отсутствия!$A:$A,),AI$11)&" "&TEXT(INDEX('график 7,8'!$B$5:$AF$16,MONTH($AP$3),AI$11)&"","Я")),2)) -> Я | AJ32: =TRIM(LEFT(TRIM(INDEX(отсутствия!$N:$AR,MATCH($C31,отсутствия!$A:$A,),AJ$11)&" "&TEXT(INDEX('график 7,8'!$B$5:$AF$16,MONTH($AP$3),AJ$11)&"","Я")),2)) -> Я
A33: 484 | B33: Крутов | C33: 484 | D33: сборная | E33: =IFERROR(INDEX(РВД!$D:$I,MATCH($C33,РВД!$A:$A,)+1,MATCH($N$4+E$11-1,INDEX(РВД!$D:$I,MATCH($C33,РВД!$A:$A,),),)),IF(E34="Я",INDEX('график 7,8'!$B$5:$AF$16,MONTH($AP$3),E$11),"")) ->  | F33: =IFERROR(INDEX(РВД!$D:$I,MATCH($C33,РВД!$A:$A,)+1,MATCH($N$4+F$11-1,INDEX(РВД!$D:$I,MATCH($C33,РВД!$A:$A,),),)),IF(F34="Я",INDEX('график 7,8'!$B$5:$AF$16,MONTH($AP$3),F$11),"")) -> 7.8 | G33: =IFERROR(INDEX(РВД!$D:$I,MATCH($C33,РВД!$A:$A,)+1,MATCH($N$4+G$11-1,INDEX(РВД!$D:$I,MATCH($C33,РВД!$A:$A,),),)),IF(G34="Я",INDEX('график 7,8'!$B$5:$AF$16,MONTH($AP$3),G$11),"")) -> 7.8 | H33: =IFERROR(INDEX(РВД!$D:$I,MATCH($C33,РВД!$A:$A,)+1,MATCH($N$4+H$11-1,INDEX(РВД!$D:$I,MATCH($C33,РВД!$A:$A,),),)),IF(H34="Я",INDEX('график 7,8'!$B$5:$AF$16,MONTH($AP$3),H$11),"")) -> 7.8 | I33: =IFERROR(INDEX(РВД!$D:$I,MATCH($C33,РВД!$A:$A,)+1,MATCH($N$4+I$11-1,INDEX(РВД!$D:$I,MATCH($C33,РВД!$A:$A,),),)),IF(I34="Я",INDEX('график 7,8'!$B$5:$AF$16,MONTH($AP$3),I$11),"")) -> 7.8 | J33: =IFERROR(INDEX(РВД!$D:$I,MATCH($C33,РВД!$A:$A,)+1,MATCH($N$4+J$11-1,INDEX(РВД!$D:$I,MATCH($C33,РВД!$A:$A,),),)),IF(J34="Я",INDEX('график 7,8'!$B$5:$AF$16,MONTH($AP$3),J$11),"")) -> 7.8 | K33: =IFERROR(INDEX(РВД!$D:$I,MATCH($C33,РВД!$A:$A,)+1,MATCH($N$4+K$11-1,INDEX(РВД!$D:$I,MATCH($C33,РВД!$A:$A,),),)),IF(K34="Я",INDEX('график 7,8'!$B$5:$AF$16,MONTH($AP$3),K$11),"")) ->  | L33: =IFERROR(INDEX(РВД!$D:$I,MATCH($C33,РВД!$A:$A,)+1,MATCH($N$4+L$11-1,INDEX(РВД!$D:$I,MATCH($C33,РВД!$A:$A,),),)),IF(L34="Я",INDEX('график 7,8'!$B$5:$AF$16,MONTH($AP$3),L$11),"")) ->  | M33: =IFERROR(INDEX(РВД!$D:$I,MATCH($C33,РВД!$A:$A,)+1,MATCH($N$4+M$11-1,INDEX(РВД!$D:$I,MATCH($C33,РВД!$A:$A,),),)),IF(M34="Я",INDEX('график 7,8'!$B$5:$AF$16,MONTH($AP$3),M$11),"")) ->  | N33: =IFERROR(INDEX(РВД!$D:$I,MATCH($C33,РВД!$A:$A,)+1,MATCH($N$4+N$11-1,INDEX(РВД!$D:$I,MATCH($C33,РВД!$A:$A,),),)),IF(N34="Я",INDEX('график 7,8'!$B$5:$AF$16,MONTH($AP$3),N$11),"")) -> 7.8 | O33: =IFERROR(INDEX(РВД!$D:$I,MATCH($C33,РВД!$A:$A,)+1,MATCH($N$4+O$11-1,INDEX(РВД!$D:$I,MATCH($C33,РВД!$A:$A,),),)),IF(O34="Я",INDEX('график 7,8'!$B$5:$AF$16,MONTH($AP$3),O$11),"")) -> 7.8 | P33: =IFERROR(INDEX(РВД!$D:$I,MATCH($C33,РВД!$A:$A,)+1,MATCH($N$4+P$11-1,INDEX(РВД!$D:$I,MATCH($C33,РВД!$A:$A,),),)),IF(P34="Я",INDEX('график 7,8'!$B$5:$AF$16,MONTH($AP$3),P$11),"")) -> 7.8 | Q33: =IFERROR(INDEX(РВД!$D:$I,MATCH($C33,РВД!$A:$A,)+1,MATCH($N$4+Q$11-1,INDEX(РВД!$D:$I,MATCH($C33,РВД!$A:$A,),),)),IF(Q34="Я",INDEX('график 7,8'!$B$5:$AF$16,MONTH($AP$3),Q$11),"")) -> 7.8 | R33: =IFERROR(INDEX(РВД!$D:$I,MATCH($C33,РВД!$A:$A,)+1,MATCH($N$4+R$11-1,INDEX(РВД!$D:$I,MATCH($C33,РВД!$A:$A,),),)),IF(R34="Я",INDEX('график 7,8'!$B$5:$AF$16,MONTH($AP$3),R$11),"")) ->  | S33: =IFERROR(INDEX(РВД!$D:$I,MATCH($C33,РВД!$A:$A,)+1,MATCH($N$4+S$11-1,INDEX(РВД!$D:$I,MATCH($C33,РВД!$A:$A,),),)),IF(S34="Я",INDEX('график 7,8'!$B$5:$AF$16,MONTH($AP$3),S$11),"")) ->  | T33: =SUMIF(E34:S34,"Я",E33:S33) -> 70.2 | U33: =IFERROR(INDEX(РВД!$D:$I,MATCH($C33,РВД!$A:$A,)+1,MATCH($N$4+U$11-1,INDEX(РВД!$D:$I,MATCH($C33,РВД!$A:$A,),),)),IF(U34="Я",INDEX('график 7,8'!$B$5:$AF$16,MONTH($AP$3),U$11),"")) -> 7.8 | V33: =IFERROR(INDEX(РВД!$D:$I,MATCH($C33,РВД!$A:$A,)+1,MATCH($N$4+V$11-1,INDEX(РВД!$D:$I,MATCH($C33,РВД!$A:$A,),),)),IF(V34="Я",INDEX('график 7,8'!$B$5:$AF$16,MONTH($AP$3),V$11),"")) -> 7.8 | W33: =IFERROR(INDEX(РВД!$D:$I,MATCH($C33,РВД!$A:$A,)+1,MATCH($N$4+W$11-1,INDEX(РВД!$D:$I,MATCH($C33,РВД!$A:$A,),),)),IF(W34="Я",INDEX('график 7,8'!$B$5:$AF$16,MONTH($AP$3),W$11),"")) -> 7.8 | X33: =IFERROR(INDEX(РВД!$D:$I,MATCH($C33,РВД!$A:$A,)+1,MATCH($N$4+X$11-1,INDEX(РВД!$D:$I,MATCH($C33,РВД!$A:$A,),),)),IF(X34="Я",INDEX('график 7,8'!$B$5:$AF$16,MONTH($AP$3),X$11),"")) -> 7.8 | Y33: =IFERROR(INDEX(РВД!$D:$I,MATCH($C33,РВД!$A:$A,)+1,MATCH($N$4+Y$11-1,INDEX(РВД!$D:$I,MATCH($C33,РВД!$A:$A,),),)),IF(Y34="Я",INDEX('график 7,8'!$B$5:$AF$16,MONTH($AP$3),Y$11),"")) -> 7.8 | Z33: =IFERROR(INDEX(РВД!$D:$I,MATCH($C33,РВД!$A:$A,)+1,MATCH($N$4+Z$11-1,INDEX(РВД!$D:$I,MATCH($C33,РВД!$A:$A,),),)),IF(Z34="Я",INDEX('график 7,8'!$B$5:$AF$16,MONTH($AP$3),Z$11),"")) ->  | AA33: =IFERROR(INDEX(РВД!$D:$I,MATCH($C33,РВД!$A:$A,)+1,MATCH($N$4+AA$11-1,INDEX(РВД!$D:$I,MATCH($C33,РВД!$A:$A,),),)),IF(AA34="Я",INDEX('график 7,8'!$B$5:$AF$16,MONTH($AP$3),AA$11),"")) ->  | AB33: =IFERROR(INDEX(РВД!$D:$I,MATCH($C33,РВД!$A:$A,)+1,MATCH($N$4+AB$11-1,INDEX(РВД!$D:$I,MATCH($C33,РВД!$A:$A,),),)),IF(AB34="Я",INDEX('график 7,8'!$B$5:$AF$16,MONTH($AP$3),AB$11),"")) -> 7.8 | AC33: =IFERROR(INDEX(РВД!$D:$I,MATCH($C33,РВД!$A:$A,)+1,MATCH($N$4+AC$11-1,INDEX(РВД!$D:$I,MATCH($C33,РВД!$A:$A,),),)),IF(AC34="Я",INDEX('график 7,8'!$B$5:$AF$16,MONTH($AP$3),AC$11),"")) -> 7.8 | AD33: =IFERROR(INDEX(РВД!$D:$I,MATCH($C33,РВД!$A:$A,)+1,MATCH($N$4+AD$11-1,INDEX(РВД!$D:$I,MATCH($C33,РВД!$A:$A,),),)),IF(AD34="Я",INDEX('график 7,8'!$B$5:$AF$16,MONTH($AP$3),AD$11),"")) -> 7.8 | AE33: =IFERROR(INDEX(РВД!$D:$I,MATCH($C33,РВД!$A:$A,)+1,MATCH($N$4+AE$11-1,INDEX(РВД!$D:$I,MATCH($C33,РВД!$A:$A,),),)),IF(AE34="Я",INDEX('график 7,8'!$B$5:$AF$16,MONTH($AP$3),AE$11),"")) -> 7.8 | AF33: =IFERROR(INDEX(РВД!$D:$I,MATCH($C33,РВД!$A:$A,)+1,MATCH($N$4+AF$11-1,INDEX(РВД!$D:$I,MATCH($C33,РВД!$A:$A,),),)),IF(AF34="Я",INDEX('график 7,8'!$B$5:$AF$16,MONTH($AP$3),AF$11),"")) -> 7.8 | AG33: =IFERROR(INDEX(РВД!$D:$I,MATCH($C33,РВД!$A:$A,)+1,MATCH($N$4+AG$11-1,INDEX(РВД!$D:$I,MATCH($C33,РВД!$A:$A,),),)),IF(AG34="Я",INDEX('график 7,8'!$B$5:$AF$16,MONTH($AP$3),AG$11),"")) ->  | AH33: =IFERROR(INDEX(РВД!$D:$I,MATCH($C33,РВД!$A:$A,)+1,MATCH($N$4+AH$11-1,INDEX(РВД!$D:$I,MATCH($C33,РВД!$A:$A,),),)),IF(AH34="Я",INDEX('график 7,8'!$B$5:$AF$16,MONTH($AP$3),AH$11),"")) ->  | AI33: =IFERROR(INDEX(РВД!$D:$I,MATCH($C33,РВД!$A:$A,)+1,MATCH($N$4+AI$11-1,INDEX(РВД!$D:$I,MATCH($C33,РВД!$A:$A,),),)),IF(AI34="Я",INDEX('график 7,8'!$B$5:$AF$16,MONTH($AP$3),AI$11),"")) -> 7.8 | AJ33: =IFERROR(INDEX(РВД!$D:$I,MATCH($C33,РВД!$A:$A,)+1,MATCH($N$4+AJ$11-1,INDEX(РВД!$D:$I,MATCH($C33,РВД!$A:$A,),),)),IF(AJ34="Я",INDEX('график 7,8'!$B$5:$AF$16,MONTH($AP$3),AJ$11),"")) -> 7.8 | AK33: ="Я/"&SUMIF(E34:AJ34,"Я",E33:AJ33) -> Я/163,8 | AL33: =(SUMIF(E34:AJ34,"В",E33:AJ33)+SUMIF(E34:AJ34,"В.",E33:AJ33))*2 -> 0 | AM33: =COUNTIFS(E34:AJ34,"Я",E33:AJ33,"<>") -> 21 | AN33: =IFERROR(VLOOKUP(C33,доплаты!$A$5:$P$118,16,0),"") -> 17,90,82,17,17
E34: =TRIM(LEFT(TRIM(INDEX(отсутствия!$N:$AR,MATCH($C33,отсутствия!$A:$A,),E$11)&" "&TEXT(INDEX('график 7,8'!$B$5:$AF$16,MONTH($AP$3),E$11)&"","Я")),2)) -> В | F34: =TRIM(LEFT(TRIM(INDEX(отсутствия!$N:$AR,MATCH($C33,отсутствия!$A:$A,),F$11)&" "&TEXT(INDEX('график 7,8'!$B$5:$AF$16,MONTH($AP$3),F$11)&"","Я")),2)) -> Я | G34: =TRIM(LEFT(TRIM(INDEX(отсутствия!$N:$AR,MATCH($C33,отсутствия!$A:$A,),G$11)&" "&TEXT(INDEX('график 7,8'!$B$5:$AF$16,MONTH($AP$3),G$11)&"","Я")),2)) -> Я | H34: =TRIM(LEFT(TRIM(INDEX(отсутствия!$N:$AR,MATCH($C33,отсутствия!$A:$A,),H$11)&" "&TEXT(INDEX('график 7,8'!$B$5:$AF$16,MONTH($AP$3),H$11)&"","Я")),2)) -> Я | I34: =TRIM(LEFT(TRIM(INDEX(отсутствия!$N:$AR,MATCH($C33,отсутствия!$A:$A,),I$11)&" "&TEXT(INDEX('график 7,8'!$B$5:$AF$16,MONTH($AP$3),I$11)&"","Я")),2)) -> Я | J34: =TRIM(LEFT(TRIM(INDEX(отсутствия!$N:$AR,MATCH($C33,отсутствия!$A:$A,),J$11)&" "&TEXT(INDEX('график 7,8'!$B$5:$AF$16,MONTH($AP$3),J$11)&"","Я")),2)) -> Я | K34: =TRIM(LEFT(TRIM(INDEX(отсутствия!$N:$AR,MATCH($C33,отсутствия!$A:$A,),K$11)&" "&TEXT(INDEX('график 7,8'!$B$5:$AF$16,MONTH($AP$3),K$11)&"","Я")),2)) -> В | L34: =TRIM(LEFT(TRIM(INDEX(отсутствия!$N:$AR,MATCH($C33,отсутствия!$A:$A,),L$11)&" "&TEXT(INDEX('график 7,8'!$B$5:$AF$16,MONTH($AP$3),L$11)&"","Я")),2)) -> В. | M34: =TRIM(LEFT(TRIM(INDEX(отсутствия!$N:$AR,MATCH($C33,отсутствия!$A:$A,),M$11)&" "&TEXT(INDEX('график 7,8'!$B$5:$AF$16,MONTH($AP$3),M$11)&"","Я")),2)) -> В | N34: =TRIM(LEFT(TRIM(INDEX(отсутствия!$N:$AR,MATCH($C33,отсутствия!$A:$A,),N$11)&" "&TEXT(INDEX('график 7,8'!$B$5:$AF$16,MONTH($AP$3),N$11)&"","Я")),2)) -> Я | O34: =TRIM(LEFT(TRIM(INDEX(отсутствия!$N:$AR,MATCH($C33,отсутствия!$A:$A,),O$11)&" "&TEXT(INDEX('график 7,8'!$B$5:$AF$16,MONTH($AP$3),O$11)&"","Я")),2)) -> Я | P34: =TRIM(LEFT(TRIM(INDEX(отсутствия!$N:$AR,MATCH($C33,отсутствия!$A:$A,),P$11)&" "&TEXT(INDEX('график 7,8'!$B$5:$AF$16,MONTH($AP$3),P$11)&"","Я")),2)) -> Я | Q34: =TRIM(LEFT(TRIM(INDEX(отсутствия!$N:$AR,MATCH($C33,отсутствия!$A:$A,),Q$11)&" "&TEXT(INDEX('график 7,8'!$B$5:$AF$16,MONTH($AP$3),Q$11)&"","Я")),2)) -> Я | R34: =TRIM(LEFT(TRIM(INDEX(отсутствия!$N:$AR,MATCH($C33,отсутствия!$A:$A,),R$11)&" "&TEXT(INDEX('график 7,8'!$B$5:$AF$16,MONTH($AP$3),R$11)&"","Я")),2)) -> В | S34: =TRIM(LEFT(TRIM(INDEX(отсутствия!$N:$AR,MATCH($C33,отсутствия!$A:$A,),S$11)&" "&TEXT(INDEX('график 7,8'!$B$5:$AF$16,MONTH($AP$3),S$11)&"","Я")),2)) -> В | U34: =TRIM(LEFT(TRIM(INDEX(отсутствия!$N:$AR,MATCH($C33,отсутствия!$A:$A,),U$11)&" "&TEXT(INDEX('график 7,8'!$B$5:$AF$16,MONTH($AP$3),U$11)&"","Я")),2)) -> Я | V34: =TRIM(LEFT(TRIM(INDEX(отсутствия!$N:$AR,MATCH($C33,отсутствия!$A:$A,),V$11)&" "&TEXT(INDEX('график 7,8'!$B$5:$AF$16,MONTH($AP$3),V$11)&"","Я")),2)) -> Я | W34: =TRIM(LEFT(TRIM(INDEX(отсутствия!$N:$AR,MATCH($C33,отсутствия!$A:$A,),W$11)&" "&TEXT(INDEX('график 7,8'!$B$5:$AF$16,MONTH($AP$3),W$11)&"","Я")),2)) -> Я | X34: =TRIM(LEFT(TRIM(INDEX(отсутствия!$N:$AR,MATCH($C33,отсутствия!$A:$A,),X$11)&" "&TEXT(INDEX('график 7,8'!$B$5:$AF$16,MONTH($AP$3),X$11)&"","Я")),2)) -> Я | Y34: =TRIM(LEFT(TRIM(INDEX(отсутствия!$N:$AR,MATCH($C33,отсутствия!$A:$A,),Y$11)&" "&TEXT(INDEX('график 7,8'!$B$5:$AF$16,MONTH($AP$3),Y$11)&"","Я")),2)) -> Я | Z34: =TRIM(LEFT(TRIM(INDEX(отсутствия!$N:$AR,MATCH($C33,отсутствия!$A:$A,),Z$11)&" "&TEXT(INDEX('график 7,8'!$B$5:$AF$16,MONTH($AP$3),Z$11)&"","Я")),2)) -> В | AA34: =TRIM(LEFT(TRIM(INDEX(отсутствия!$N:$AR,MATCH($C33,отсутствия!$A:$A,),AA$11)&" "&TEXT(INDEX('график 7,8'!$B$5:$AF$16,MONTH($AP$3),AA$11)&"","Я")),2)) -> В | AB34: =TRIM(LEFT(TRIM(INDEX(отсутствия!$N:$AR,MATCH($C33,отсутствия!$A:$A,),AB$11)&" "&TEXT(INDEX('график 7,8'!$B$5:$AF$16,MONTH($AP$3),AB$11)&"","Я")),2)) -> Я | AC34: =TRIM(LEFT(TRIM(INDEX(отсутствия!$N:$AR,MATCH($C33,отсутствия!$A:$A,),AC$11)&" "&TEXT(INDEX('график 7,8'!$B$5:$AF$16,MONTH($AP$3),AC$11)&"","Я")),2)) -> Я | AD34: =TRIM(LEFT(TRIM(INDEX(отсутствия!$N:$AR,MATCH($C33,отсутствия!$A:$A,),AD$11)&" "&TEXT(INDEX('график 7,8'!$B$5:$AF$16,MONTH($AP$3),AD$11)&"","Я")),2)) -> Я | AE34: =TRIM(LEFT(TRIM(INDEX(отсутствия!$N:$AR,MATCH($C33,отсутствия!$A:$A,),AE$11)&" "&TEXT(INDEX('график 7,8'!$B$5:$AF$16,MONTH($AP$3),AE$11)&"","Я")),2)) -> Я | AF34: =TRIM(LEFT(TRIM(INDEX(отсутствия!$N:$AR,MATCH($C33,отсутствия!$A:$A,),AF$11)&" "&TEXT(INDEX('график 7,8'!$B$5:$AF$16,MONTH($AP$3),AF$11)&"","Я")),2)) -> Я | AG34: =TRIM(LEFT(TRIM(INDEX(отсутствия!$N:$AR,MATCH($C33,отсутствия!$A:$A,),AG$11)&" "&TEXT(INDEX('график 7,8'!$B$5:$AF$16,MONTH($AP$3),AG$11)&"","Я")),2)) -> В | AH34: =TRIM(LEFT(TRIM(INDEX(отсутствия!$N:$AR,MATCH($C33,отсутствия!$A:$A,),AH$11)&" "&TEXT(INDEX('график 7,8'!$B$5:$AF$16,MONTH($AP$3),AH$11)&"","Я")),2)) -> В | AI34: =TRIM(LEFT(TRIM(INDEX(отсутствия!$N:$AR,MATCH($C33,отсутствия!$A:$A,),AI$11)&" "&TEXT(INDEX('график 7,8'!$B$5:$AF$16,MONTH($AP$3),AI$11)&"","Я")),2)) -> Я | AJ34: =TRIM(LEFT(TRIM(INDEX(отсутствия!$N:$AR,MATCH($C33,отсутствия!$A:$A,),AJ$11)&" "&TEXT(INDEX('график 7,8'!$B$5:$AF$16,MONTH($AP$3),AJ$11)&"","Я")),2)) -> Я
A35: 3496 | B35: Тихонов | C35: 3496 | D35: сборная | E35: =IFERROR(INDEX(РВД!$D:$I,MATCH($C35,РВД!$A:$A,)+1,MATCH($N$4+E$11-1,INDEX(РВД!$D:$I,MATCH($C35,РВД!$A:$A,),),)),IF(E36="Я",INDEX('график 7,8'!$B$28:$AF$39,MONTH($AP$3),E$11),"")) ->  | F35: =IFERROR(INDEX(РВД!$D:$I,MATCH($C35,РВД!$A:$A,)+1,MATCH($N$4+F$11-1,INDEX(РВД!$D:$I,MATCH($C35,РВД!$A:$A,),),)),IF(F36="Я",INDEX('график 7,8'!$B$28:$AF$39,MONTH($AP$3),F$11),"")) -> 5.85 | G35: =IFERROR(INDEX(РВД!$D:$I,MATCH($C35,РВД!$A:$A,)+1,MATCH($N$4+G$11-1,INDEX(РВД!$D:$I,MATCH($C35,РВД!$A:$A,),),)),IF(G36="Я",INDEX('график 7,8'!$B$28:$AF$39,MONTH($AP$3),G$11),"")) -> 5.85 | H35: =IFERROR(INDEX(РВД!$D:$I,MATCH($C35,РВД!$A:$A,)+1,MATCH($N$4+H$11-1,INDEX(РВД!$D:$I,MATCH($C35,РВД!$A:$A,),),)),IF(H36="Я",INDEX('график 7,8'!$B$28:$AF$39,MONTH($AP$3),H$11),"")) -> 5.85 | I35: =IFERROR(INDEX(РВД!$D:$I,MATCH($C35,РВД!$A:$A,)+1,MATCH($N$4+I$11-1,INDEX(РВД!$D:$I,MATCH($C35,РВД!$A:$A,),),)),IF(I36="Я",INDEX('график 7,8'!$B$28:$AF$39,MONTH($AP$3),I$11),"")) -> 5.85 | J35: =IFERROR(INDEX(РВД!$D:$I,MATCH($C35,РВД!$A:$A,)+1,MATCH($N$4+J$11-1,INDEX(РВД!$D:$I,MATCH($C35,РВД!$A:$A,),),)),IF(J36="Я",INDEX('график 7,8'!$B$28:$AF$39,MONTH($AP$3),J$11),"")) -> 5.85 | K35: =IFERROR(INDEX(РВД!$D:$I,MATCH($C35,РВД!$A:$A,)+1,MATCH($N$4+K$11-1,INDEX(РВД!$D:$I,MATCH($C35,РВД!$A:$A,),),)),IF(K36="Я",INDEX('график 7,8'!$B$28:$AF$39,MONTH($AP$3),K$11),"")) ->  | L35: =IFERROR(INDEX(РВД!$D:$I,MATCH($C35,РВД!$A:$A,)+1,MATCH($N$4+L$11-1,INDEX(РВД!$D:$I,MATCH($C35,РВД!$A:$A,),),)),IF(L36="Я",INDEX('график 7,8'!$B$28:$AF$39,MONTH($AP$3),L$11),"")) ->  | M35: =IFERROR(INDEX(РВД!$D:$I,MATCH($C35,РВД!$A:$A,)+1,MATCH($N$4+M$11-1,INDEX(РВД!$D:$I,MATCH($C35,РВД!$A:$A,),),)),IF(M36="Я",INDEX('график 7,8'!$B$28:$AF$39,MONTH($AP$3),M$11),"")) ->  | N35: =IFERROR(INDEX(РВД!$D:$I,MATCH($C35,РВД!$A:$A,)+1,MATCH($N$4+N$11-1,INDEX(РВД!$D:$I,MATCH($C35,РВД!$A:$A,),),)),IF(N36="Я",INDEX('график 7,8'!$B$28:$AF$39,MONTH($AP$3),N$11),"")) -> 5.85 | O35: =IFERROR(INDEX(РВД!$D:$I,MATCH($C35,РВД!$A:$A,)+1,MATCH($N$4+O$11-1,INDEX(РВД!$D:$I,MATCH($C35,РВД!$A:$A,),),)),IF(O36="Я",INDEX('график 7,8'!$B$28:$AF$39,MONTH($AP$3),O$11),"")) -> 5.85 | P35: =IFERROR(INDEX(РВД!$D:$I,MATCH($C35,РВД!$A:$A,)+1,MATCH($N$4+P$11-1,INDEX(РВД!$D:$I,MATCH($C35,РВД!$A:$A,),),)),IF(P36="Я",INDEX('график 7,8'!$B$28:$AF$39,MONTH($AP$3),P$11),"")) -> 5.85 | Q35: =IFERROR(INDEX(РВД!$D:$I,MATCH($C35,РВД!$A:$A,)+1,MATCH($N$4+Q$11-1,INDEX(РВД!$D:$I,MATCH($C35,РВД!$A:$A,),),)),IF(Q36="Я",INDEX('график 7,8'!$B$28:$AF$39,MONTH($AP$3),Q$11),"")) -> 5.85 | R35: =IFERROR(INDEX(РВД!$D:$I,MATCH($C35,РВД!$A:$A,)+1,MATCH($N$4+R$11-1,INDEX(РВД!$D:$I,MATCH($C35,РВД!$A:$A,),),)),IF(R36="Я",INDEX('график 7,8'!$B$28:$AF$39,MONTH($AP$3),R$11),"")) ->  | S35: =IFERROR(INDEX(РВД!$D:$I,MATCH($C35,РВД!$A:$A,)+1,MATCH($N$4+S$11-1,INDEX(РВД!$D:$I,MATCH($C35,РВД!$A:$A,),),)),IF(S36="Я",INDEX('график 7,8'!$B$28:$AF$39,MONTH($AP$3),S$11),"")) ->  | T35: =SUMIF(E36:S36,"Я",E35:S35) -> 52.65 | U35: =IFERROR(INDEX(РВД!$D:$I,MATCH($C35,РВД!$A:$A,)+1,MATCH($N$4+U$11-1,INDEX(РВД!$D:$I,MATCH($C35,РВД!$A:$A,),),)),IF(U36="Я",INDEX('график 7,8'!$B$28:$AF$39,MONTH($AP$3),U$11),"")) -> 5.85 | V35: =IFERROR(INDEX(РВД!$D:$I,MATCH($C35,РВД!$A:$A,)+1,MATCH($N$4+V$11-1,INDEX(РВД!$D:$I,MATCH($C35,РВД!$A:$A,),),)),IF(V36="Я",INDEX('график 7,8'!$B$28:$AF$39,MONTH($AP$3),V$11),"")) -> 5.85 | W35: =IFERROR(INDEX(РВД!$D:$I,MATCH($C35,РВД!$A:$A,)+1,MATCH($N$4+W$11-1,INDEX(РВД!$D:$I,MATCH($C35,РВД!$A:$A,),),)),IF(W36="Я",INDEX('график 7,8'!$B$28:$AF$39,MONTH($AP$3),W$11),"")) -> 5.85 | X35: =IFERROR(INDEX(РВД!$D:$I,MATCH($C35,РВД!$A:$A,)+1,MATCH($N$4+X$11-1,INDEX(РВД!$D:$I,MATCH($C35,РВД!$A:$A,),),)),IF(X36="Я",INDEX('график 7,8'!$B$28:$AF$39,MONTH($AP$3),X$11),"")) -> 5.85 | Y35: =IFERROR(INDEX(РВД!$D:$I,MATCH($C35,РВД!$A:$A,)+1,MATCH($N$4+Y$11-1,INDEX(РВД!$D:$I,MATCH($C35,РВД!$A:$A,),),)),IF(Y36="Я",INDEX('график 7,8'!$B$28:$AF$39,MONTH($AP$3),Y$11),"")) -> 5.85 | Z35: =IFERROR(INDEX(РВД!$D:$I,MATCH($C35,РВД!$A:$A,)+1,MATCH($N$4+Z$11-1,INDEX(РВД!$D:$I,MATCH($C35,РВД!$A:$A,),),)),IF(Z36="Я",INDEX('график 7,8'!$B$28:$AF$39,MONTH($AP$3),Z$11),"")) ->  | AA35: =IFERROR(INDEX(РВД!$D:$I,MATCH($C35,РВД!$A:$A,)+1,MATCH($N$4+AA$11-1,INDEX(РВД!$D:$I,MATCH($C35,РВД!$A:$A,),),)),IF(AA36="Я",INDEX('график 7,8'!$B$28:$AF$39,MONTH($AP$3),AA$11),"")) ->  | AB35: =IFERROR(INDEX(РВД!$D:$I,MATCH($C35,РВД!$A:$A,)+1,MATCH($N$4+AB$11-1,INDEX(РВД!$D:$I,MATCH($C35,РВД!$A:$A,),),)),IF(AB36="Я",INDEX('график 7,8'!$B$28:$AF$39,MONTH($AP$3),AB$11),"")) -> 5.85 | AC35: =IFERROR(INDEX(РВД!$D:$I,MATCH($C35,РВД!$A:$A,)+1,MATCH($N$4+AC$11-1,INDEX(РВД!$D:$I,MATCH($C35,РВД!$A:$A,),),)),IF(AC36="Я",INDEX('график 7,8'!$B$28:$AF$39,MONTH($AP$3),AC$11),"")) -> 5.85 | AD35: =IFERROR(INDEX(РВД!$D:$I,MATCH($C35,РВД!$A:$A,)+1,MATCH($N$4+AD$11-1,INDEX(РВД!$D:$I,MATCH($C35,РВД!$A:$A,),),)),IF(AD36="Я",INDEX('график 7,8'!$B$28:$AF$39,MONTH($AP$3),AD$11),"")) -> 5.85 | AE35: =IFERROR(INDEX(РВД!$D:$I,MATCH($C35,РВД!$A:$A,)+1,MATCH($N$4+AE$11-1,INDEX(РВД!$D:$I,MATCH($C35,РВД!$A:$A,),),)),IF(AE36="Я",INDEX('график 7,8'!$B$28:$AF$39,MONTH($AP$3),AE$11),"")) -> 5.85 | AF35: =IFERROR(INDEX(РВД!$D:$I,MATCH($C35,РВД!$A:$A,)+1,MATCH($N$4+AF$11-1,INDEX(РВД!$D:$I,MATCH($C35,РВД!$A:$A,),),)),IF(AF36="Я",INDEX('график 7,8'!$B$28:$AF$39,MONTH($AP$3),AF$11),"")) -> 5.85 | AG35: =IFERROR(INDEX(РВД!$D:$I,MATCH($C35,РВД!$A:$A,)+1,MATCH($N$4+AG$11-1,INDEX(РВД!$D:$I,MATCH($C35,РВД!$A:$A,),),)),IF(AG36="Я",INDEX('график 7,8'!$B$28:$AF$39,MONTH($AP$3),AG$11),"")) ->  | AH35: =IFERROR(INDEX(РВД!$D:$I,MATCH($C35,РВД!$A:$A,)+1,MATCH($N$4+AH$11-1,INDEX(РВД!$D:$I,MATCH($C35,РВД!$A:$A,),),)),IF(AH36="Я",INDEX('график 7,8'!$B$28:$AF$39,MONTH($AP$3),AH$11),"")) ->  | AI35: =IFERROR(INDEX(РВД!$D:$I,MATCH($C35,РВД!$A:$A,)+1,MATCH($N$4+AI$11-1,INDEX(РВД!$D:$I,MATCH($C35,РВД!$A:$A,),),)),IF(AI36="Я",INDEX('график 7,8'!$B$28:$AF$39,MONTH($AP$3),AI$11),"")) -> 5.85 | AJ35: =IFERROR(INDEX(РВД!$D:$I,MATCH($C35,РВД!$A:$A,)+1,MATCH($N$4+AJ$11-1,INDEX(РВД!$D:$I,MATCH($C35,РВД!$A:$A,),),)),IF(AJ36="Я",INDEX('график 7,8'!$B$28:$AF$39,MONTH($AP$3),AJ$11),"")) -> 5.85 | AK35: ="Я/"&SUMIF(E36:AJ36,"Я",E35:AJ35) -> Я/122,85 | AL35: =(SUMIF(E36:AJ36,"В",E35:AJ35)+SUMIF(E36:AJ36,"В.",E35:AJ35))*2 -> 0 | AM35: =COUNTIFS(E36:AJ36,"Я",E35:AJ35,"<>") -> 21 | AN35: =IFERROR(VLOOKUP(C35,доплаты!$A$5:$P$118,16,0),"") -> 30
E36: =TRIM(LEFT(TRIM(INDEX(отсутствия!$N:$AR,MATCH($C35,отсутствия!$A:$A,),E$11)&" "&TEXT(INDEX('график 7,8'!$B$28:$AF$39,MONTH($AP$3),E$11)&"","Я")),2)) -> В | F36: =TRIM(LEFT(TRIM(INDEX(отсутствия!$N:$AR,MATCH($C35,отсутствия!$A:$A,),F$11)&" "&TEXT(INDEX('график 7,8'!$B$28:$AF$39,MONTH($AP$3),F$11)&"","Я")),2)) -> Я | G36: =TRIM(LEFT(TRIM(INDEX(отсутствия!$N:$AR,MATCH($C35,отсутствия!$A:$A,),G$11)&" "&TEXT(INDEX('график 7,8'!$B$28:$AF$39,MONTH($AP$3),G$11)&"","Я")),2)) -> Я | H36: =TRIM(LEFT(TRIM(INDEX(отсутствия!$N:$AR,MATCH($C35,отсутствия!$A:$A,),H$11)&" "&TEXT(INDEX('график 7,8'!$B$28:$AF$39,MONTH($AP$3),H$11)&"","Я")),2)) -> Я | I36: =TRIM(LEFT(TRIM(INDEX(отсутствия!$N:$AR,MATCH($C35,отсутствия!$A:$A,),I$11)&" "&TEXT(INDEX('график 7,8'!$B$28:$AF$39,MONTH($AP$3),I$11)&"","Я")),2)) -> Я | J36: =TRIM(LEFT(TRIM(INDEX(отсутствия!$N:$AR,MATCH($C35,отсутствия!$A:$A,),J$11)&" "&TEXT(INDEX('график 7,8'!$B$28:$AF$39,MONTH($AP$3),J$11)&"","Я")),2)) -> Я | K36: =TRIM(LEFT(TRIM(INDEX(отсутствия!$N:$AR,MATCH($C35,отсутствия!$A:$A,),K$11)&" "&TEXT(INDEX('график 7,8'!$B$28:$AF$39,MONTH($AP$3),K$11)&"","Я")),2)) -> В | L36: =TRIM(LEFT(TRIM(INDEX(отсутствия!$N:$AR,MATCH($C35,отсутствия!$A:$A,),L$11)&" "&TEXT(INDEX('график 7,8'!$B$28:$AF$39,MONTH($AP$3),L$11)&"","Я")),2)) -> В. | M36: =TRIM(LEFT(TRIM(INDEX(отсутствия!$N:$AR,MATCH($C35,отсутствия!$A:$A,),M$11)&" "&TEXT(INDEX('график 7,8'!$B$28:$AF$39,MONTH($AP$3),M$11)&"","Я")),2)) -> В | N36: =TRIM(LEFT(TRIM(INDEX(отсутствия!$N:$AR,MATCH($C35,отсутствия!$A:$A,),N$11)&" "&TEXT(INDEX('график 7,8'!$B$28:$AF$39,MONTH($AP$3),N$11)&"","Я")),2)) -> Я | O36: =TRIM(LEFT(TRIM(INDEX(отсутствия!$N:$AR,MATCH($C35,отсутствия!$A:$A,),O$11)&" "&TEXT(INDEX('график 7,8'!$B$28:$AF$39,MONTH($AP$3),O$11)&"","Я")),2)) -> Я | P36: =TRIM(LEFT(TRIM(INDEX(отсутствия!$N:$AR,MATCH($C35,отсутствия!$A:$A,),P$11)&" "&TEXT(INDEX('график 7,8'!$B$28:$AF$39,MONTH($AP$3),P$11)&"","Я")),2)) -> Я | Q36: =TRIM(LEFT(TRIM(INDEX(отсутствия!$N:$AR,MATCH($C35,отсутствия!$A:$A,),Q$11)&" "&TEXT(INDEX('график 7,8'!$B$28:$AF$39,MONTH($AP$3),Q$11)&"","Я")),2)) -> Я | R36: =TRIM(LEFT(TRIM(INDEX(отсутствия!$N:$AR,MATCH($C35,отсутствия!$A:$A,),R$11)&" "&TEXT(INDEX('график 7,8'!$B$28:$AF$39,MONTH($AP$3),R$11)&"","Я")),2)) -> В | S36: =TRIM(LEFT(TRIM(INDEX(отсутствия!$N:$AR,MATCH($C35,отсутствия!$A:$A,),S$11)&" "&TEXT(INDEX('график 7,8'!$B$28:$AF$39,MONTH($AP$3),S$11)&"","Я")),2)) -> В | U36: =TRIM(LEFT(TRIM(INDEX(отсутствия!$N:$AR,MATCH($C35,отсутствия!$A:$A,),U$11)&" "&TEXT(INDEX('график 7,8'!$B$28:$AF$39,MONTH($AP$3),U$11)&"","Я")),2)) -> Я | V36: =TRIM(LEFT(TRIM(INDEX(отсутствия!$N:$AR,MATCH($C35,отсутствия!$A:$A,),V$11)&" "&TEXT(INDEX('график 7,8'!$B$28:$AF$39,MONTH($AP$3),V$11)&"","Я")),2)) -> Я | W36: =TRIM(LEFT(TRIM(INDEX(отсутствия!$N:$AR,MATCH($C35,отсутствия!$A:$A,),W$11)&" "&TEXT(INDEX('график 7,8'!$B$28:$AF$39,MONTH($AP$3),W$11)&"","Я")),2)) -> Я | X36: =TRIM(LEFT(TRIM(INDEX(отсутствия!$N:$AR,MATCH($C35,отсутствия!$A:$A,),X$11)&" "&TEXT(INDEX('график 7,8'!$B$28:$AF$39,MONTH($AP$3),X$11)&"","Я")),2)) -> Я | Y36: =TRIM(LEFT(TRIM(INDEX(отсутствия!$N:$AR,MATCH($C35,отсутствия!$A:$A,),Y$11)&" "&TEXT(INDEX('график 7,8'!$B$28:$AF$39,MONTH($AP$3),Y$11)&"","Я")),2)) -> Я | Z36: =TRIM(LEFT(TRIM(INDEX(отсутствия!$N:$AR,MATCH($C35,отсутствия!$A:$A,),Z$11)&" "&TEXT(INDEX('график 7,8'!$B$28:$AF$39,MONTH($AP$3),Z$11)&"","Я")),2)) -> В | AA36: =TRIM(LEFT(TRIM(INDEX(отсутствия!$N:$AR,MATCH($C35,отсутствия!$A:$A,),AA$11)&" "&TEXT(INDEX('график 7,8'!$B$28:$AF$39,MONTH($AP$3),AA$11)&"","Я")),2)) -> В | AB36: =TRIM(LEFT(TRIM(INDEX(отсутствия!$N:$AR,MATCH($C35,отсутствия!$A:$A,),AB$11)&" "&TEXT(INDEX('график 7,8'!$B$28:$AF$39,MONTH($AP$3),AB$11)&"","Я")),2)) -> Я | AC36: =TRIM(LEFT(TRIM(INDEX(отсутствия!$N:$AR,MATCH($C35,отсутствия!$A:$A,),AC$11)&" "&TEXT(INDEX('график 7,8'!$B$28:$AF$39,MONTH($AP$3),AC$11)&"","Я")),2)) -> Я | AD36: =TRIM(LEFT(TRIM(INDEX(отсутствия!$N:$AR,MATCH($C35,отсутствия!$A:$A,),AD$11)&" "&TEXT(INDEX('график 7,8'!$B$28:$AF$39,MONTH($AP$3),AD$11)&"","Я")),2)) -> Я | AE36: =TRIM(LEFT(TRIM(INDEX(отсутствия!$N:$AR,MATCH($C35,отсутствия!$A:$A,),AE$11)&" "&TEXT(INDEX('график 7,8'!$B$28:$AF$39,MONTH($AP$3),AE$11)&"","Я")),2)) -> Я | AF36: =TRIM(LEFT(TRIM(INDEX(отсутствия!$N:$AR,MATCH($C35,отсутствия!$A:$A,),AF$11)&" "&TEXT(INDEX('график 7,8'!$B$28:$AF$39,MONTH($AP$3),AF$11)&"","Я")),2)) -> Я | AG36: =TRIM(LEFT(TRIM(INDEX(отсутствия!$N:$AR,MATCH($C35,отсутствия!$A:$A,),AG$11)&" "&TEXT(INDEX('график 7,8'!$B$28:$AF$39,MONTH($AP$3),AG$11)&"","Я")),2)) -> В | AH36: =TRIM(LEFT(TRIM(INDEX(отсутствия!$N:$AR,MATCH($C35,отсутствия!$A:$A,),AH$11)&" "&TEXT(INDEX('график 7,8'!$B$28:$AF$39,MONTH($AP$3),AH$11)&"","Я")),2)) -> В | AI36: =TRIM(LEFT(TRIM(INDEX(отсутствия!$N:$AR,MATCH($C35,отсутствия!$A:$A,),AI$11)&" "&TEXT(INDEX('график 7,8'!$B$28:$AF$39,MONTH($AP$3),AI$11)&"","Я")),2)) -> Я | AJ36: =TRIM(LEFT(TRIM(INDEX(отсутствия!$N:$AR,MATCH($C35,отсутствия!$A:$A,),AJ$11)&" "&TEXT(INDEX('график 7,8'!$B$28:$AF$39,MONTH($AP$3),AJ$11)&"","Я")),2)) -> Я
A37: 4453 | B37: Малкин | C37: 4453 | D37: сборная | E37: =IFERROR(INDEX(РВД!$D:$I,MATCH($C37,РВД!$A:$A,)+1,MATCH($N$4+E$11-1,INDEX(РВД!$D:$I,MATCH($C37,РВД!$A:$A,),),)),IF(E38="Я",INDEX('график 7,8'!$B$5:$AF$16,MONTH($AP$3),E$11),"")) ->  | F37: =IFERROR(INDEX(РВД!$D:$I,MATCH($C37,РВД!$A:$A,)+1,MATCH($N$4+F$11-1,INDEX(РВД!$D:$I,MATCH($C37,РВД!$A:$A,),),)),IF(F38="Я",INDEX('график 7,8'!$B$5:$AF$16,MONTH($AP$3),F$11),"")) -> 7.8 | G37: =IFERROR(INDEX(РВД!$D:$I,MATCH($C37,РВД!$A:$A,)+1,MATCH($N$4+G$11-1,INDEX(РВД!$D:$I,MATCH($C37,РВД!$A:$A,),),)),IF(G38="Я",INDEX('график 7,8'!$B$5:$AF$16,MONTH($AP$3),G$11),"")) -> 7.8 | H37: =IFERROR(INDEX(РВД!$D:$I,MATCH($C37,РВД!$A:$A,)+1,MATCH($N$4+H$11-1,INDEX(РВД!$D:$I,MATCH($C37,РВД!$A:$A,),),)),IF(H38="Я",INDEX('график 7,8'!$B$5:$AF$16,MONTH($AP$3),H$11),"")) -> 7.8 | I37: =IFERROR(INDEX(РВД!$D:$I,MATCH($C37,РВД!$A:$A,)+1,MATCH($N$4+I$11-1,INDEX(РВД!$D:$I,MATCH($C37,РВД!$A:$A,),),)),IF(I38="Я",INDEX('график 7,8'!$B$5:$AF$16,MONTH($AP$3),I$11),"")) -> 7.8 | J37: =IFERROR(INDEX(РВД!$D:$I,MATCH($C37,РВД!$A:$A,)+1,MATCH($N$4+J$11-1,INDEX(РВД!$D:$I,MATCH($C37,РВД!$A:$A,),),)),IF(J38="Я",INDEX('график 7,8'!$B$5:$AF$16,MONTH($AP$3),J$11),"")) -> 7.8 | K37: =IFERROR(INDEX(РВД!$D:$I,MATCH($C37,РВД!$A:$A,)+1,MATCH($N$4+K$11-1,INDEX(РВД!$D:$I,MATCH($C37,РВД!$A:$A,),),)),IF(K38="Я",INDEX('график 7,8'!$B$5:$AF$16,MONTH($AP$3),K$11),"")) ->  | L37: =IFERROR(INDEX(РВД!$D:$I,MATCH($C37,РВД!$A:$A,)+1,MATCH($N$4+L$11-1,INDEX(РВД!$D:$I,MATCH($C37,РВД!$A:$A,),),)),IF(L38="Я",INDEX('график 7,8'!$B$5:$AF$16,MONTH($AP$3),L$11),"")) ->  | M37: =IFERROR(INDEX(РВД!$D:$I,MATCH($C37,РВД!$A:$A,)+1,MATCH($N$4+M$11-1,INDEX(РВД!$D:$I,MATCH($C37,РВД!$A:$A,),),)),IF(M38="Я",INDEX('график 7,8'!$B$5:$AF$16,MONTH($AP$3),M$11),"")) ->  | N37: =IFERROR(INDEX(РВД!$D:$I,MATCH($C37,РВД!$A:$A,)+1,MATCH($N$4+N$11-1,INDEX(РВД!$D:$I,MATCH($C37,РВД!$A:$A,),),)),IF(N38="Я",INDEX('график 7,8'!$B$5:$AF$16,MONTH($AP$3),N$11),"")) -> 7.8 | O37: =IFERROR(INDEX(РВД!$D:$I,MATCH($C37,РВД!$A:$A,)+1,MATCH($N$4+O$11-1,INDEX(РВД!$D:$I,MATCH($C37,РВД!$A:$A,),),)),IF(O38="Я",INDEX('график 7,8'!$B$5:$AF$16,MONTH($AP$3),O$11),"")) -> 7.8 | P37: =IFERROR(INDEX(РВД!$D:$I,MATCH($C37,РВД!$A:$A,)+1,MATCH($N$4+P$11-1,INDEX(РВД!$D:$I,MATCH($C37,РВД!$A:$A,),),)),IF(P38="Я",INDEX('график 7,8'!$B$5:$AF$16,MONTH($AP$3),P$11),"")) -> 7.8 | Q37: =IFERROR(INDEX(РВД!$D:$I,MATCH($C37,РВД!$A:$A,)+1,MATCH($N$4+Q$11-1,INDEX(РВД!$D:$I,MATCH($C37,РВД!$A:$A,),),)),IF(Q38="Я",INDEX('график 7,8'!$B$5:$AF$16,MONTH($AP$3),Q$11),"")) -> 7.8 | R37: =IFERROR(INDEX(РВД!$D:$I,MATCH($C37,РВД!$A:$A,)+1,MATCH($N$4+R$11-1,INDEX(РВД!$D:$I,MATCH($C37,РВД!$A:$A,),),)),IF(R38="Я",INDEX('график 7,8'!$B$5:$AF$16,MONTH($AP$3),R$11),"")) ->  | S37: =IFERROR(INDEX(РВД!$D:$I,MATCH($C37,РВД!$A:$A,)+1,MATCH($N$4+S$11-1,INDEX(РВД!$D:$I,MATCH($C37,РВД!$A:$A,),),)),IF(S38="Я",INDEX('график 7,8'!$B$5:$AF$16,MONTH($AP$3),S$11),"")) ->  | T37: =SUMIF(E38:S38,"Я",E37:S37) -> 70.2 | U37: =IFERROR(INDEX(РВД!$D:$I,MATCH($C37,РВД!$A:$A,)+1,MATCH($N$4+U$11-1,INDEX(РВД!$D:$I,MATCH($C37,РВД!$A:$A,),),)),IF(U38="Я",INDEX('график 7,8'!$B$5:$AF$16,MONTH($AP$3),U$11),"")) -> 7.8 | V37: =IFERROR(INDEX(РВД!$D:$I,MATCH($C37,РВД!$A:$A,)+1,MATCH($N$4+V$11-1,INDEX(РВД!$D:$I,MATCH($C37,РВД!$A:$A,),),)),IF(V38="Я",INDEX('график 7,8'!$B$5:$AF$16,MONTH($AP$3),V$11),"")) -> 7.8 | W37: =IFERROR(INDEX(РВД!$D:$I,MATCH($C37,РВД!$A:$A,)+1,MATCH($N$4+W$11-1,INDEX(РВД!$D:$I,MATCH($C37,РВД!$A:$A,),),)),IF(W38="Я",INDEX('график 7,8'!$B$5:$AF$16,MONTH($AP$3),W$11),"")) -> 7.8 | X37: =IFERROR(INDEX(РВД!$D:$I,MATCH($C37,РВД!$A:$A,)+1,MATCH($N$4+X$11-1,INDEX(РВД!$D:$I,MATCH($C37,РВД!$A:$A,),),)),IF(X38="Я",INDEX('график 7,8'!$B$5:$AF$16,MONTH($AP$3),X$11),"")) -> 7.8 | Y37: =IFERROR(INDEX(РВД!$D:$I,MATCH($C37,РВД!$A:$A,)+1,MATCH($N$4+Y$11-1,INDEX(РВД!$D:$I,MATCH($C37,РВД!$A:$A,),),)),IF(Y38="Я",INDEX('график 7,8'!$B$5:$AF$16,MONTH($AP$3),Y$11),"")) -> 7.8 | Z37: =IFERROR(INDEX(РВД!$D:$I,MATCH($C37,РВД!$A:$A,)+1,MATCH($N$4+Z$11-1,INDEX(РВД!$D:$I,MATCH($C37,РВД!$A:$A,),),)),IF(Z38="Я",INDEX('график 7,8'!$B$5:$AF$16,MONTH($AP$3),Z$11),"")) ->  | AA37: =IFERROR(INDEX(РВД!$D:$I,MATCH($C37,РВД!$A:$A,)+1,MATCH($N$4+AA$11-1,INDEX(РВД!$D:$I,MATCH($C37,РВД!$A:$A,),),)),IF(AA38="Я",INDEX('график 7,8'!$B$5:$AF$16,MONTH($AP$3),AA$11),"")) ->  | AB37: =IFERROR(INDEX(РВД!$D:$I,MATCH($C37,РВД!$A:$A,)+1,MATCH($N$4+AB$11-1,INDEX(РВД!$D:$I,MATCH($C37,РВД!$A:$A,),),)),IF(AB38="Я",INDEX('график 7,8'!$B$5:$AF$16,MONTH($AP$3),AB$11),"")) -> 7.8 | AC37: =IFERROR(INDEX(РВД!$D:$I,MATCH($C37,РВД!$A:$A,)+1,MATCH($N$4+AC$11-1,INDEX(РВД!$D:$I,MATCH($C37,РВД!$A:$A,),),)),IF(AC38="Я",INDEX('график 7,8'!$B$5:$AF$16,MONTH($AP$3),AC$11),"")) -> 7.8 | AD37: =IFERROR(INDEX(РВД!$D:$I,MATCH($C37,РВД!$A:$A,)+1,MATCH($N$4+AD$11-1,INDEX(РВД!$D:$I,MATCH($C37,РВД!$A:$A,),),)),IF(AD38="Я",INDEX('график 7,8'!$B$5:$AF$16,MONTH($AP$3),AD$11),"")) -> 7.8 | AE37: =IFERROR(INDEX(РВД!$D:$I,MATCH($C37,РВД!$A:$A,)+1,MATCH($N$4+AE$11-1,INDEX(РВД!$D:$I,MATCH($C37,РВД!$A:$A,),),)),IF(AE38="Я",INDEX('график 7,8'!$B$5:$AF$16,MONTH($AP$3),AE$11),"")) -> 7.8 | AF37: =IFERROR(INDEX(РВД!$D:$I,MATCH($C37,РВД!$A:$A,)+1,MATCH($N$4+AF$11-1,INDEX(РВД!$D:$I,MATCH($C37,РВД!$A:$A,),),)),IF(AF38="Я",INDEX('график 7,8'!$B$5:$AF$16,MONTH($AP$3),AF$11),"")) -> 7.8 | AG37: =IFERROR(INDEX(РВД!$D:$I,MATCH($C37,РВД!$A:$A,)+1,MATCH($N$4+AG$11-1,INDEX(РВД!$D:$I,MATCH($C37,РВД!$A:$A,),),)),IF(AG38="Я",INDEX('график 7,8'!$B$5:$AF$16,MONTH($AP$3),AG$11),"")) ->  | AH37: =IFERROR(INDEX(РВД!$D:$I,MATCH($C37,РВД!$A:$A,)+1,MATCH($N$4+AH$11-1,INDEX(РВД!$D:$I,MATCH($C37,РВД!$A:$A,),),)),IF(AH38="Я",INDEX('график 7,8'!$B$5:$AF$16,MONTH($AP$3),AH$11),"")) ->  | AI37: =IFERROR(INDEX(РВД!$D:$I,MATCH($C37,РВД!$A:$A,)+1,MATCH($N$4+AI$11-1,INDEX(РВД!$D:$I,MATCH($C37,РВД!$A:$A,),),)),IF(AI38="Я",INDEX('график 7,8'!$B$5:$AF$16,MONTH($AP$3),AI$11),"")) -> 7.8 | AJ37: =IFERROR(INDEX(РВД!$D:$I,MATCH($C37,РВД!$A:$A,)+1,MATCH($N$4+AJ$11-1,INDEX(РВД!$D:$I,MATCH($C37,РВД!$A:$A,),),)),IF(AJ38="Я",INDEX('график 7,8'!$B$5:$AF$16,MONTH($AP$3),AJ$11),"")) -> 7.8 | AK37: ="Я/"&SUMIF(E38:AJ38,"Я",E37:AJ37) -> Я/163,8 | AL37: =(SUMIF(E38:AJ38,"В",E37:AJ37)+SUMIF(E38:AJ38,"В.",E37:AJ37))*2 -> 0 | AM37: =COUNTIFS(E38:AJ38,"Я",E37:AJ37,"<>") -> 21 | AN37: =IFERROR(VLOOKUP(C37,доплаты!$A$5:$P$118,16,0),"") -> 17,17
E38: =TRIM(LEFT(TRIM(INDEX(отсутствия!$N:$AR,MATCH($C37,отсутствия!$A:$A,),E$11)&" "&TEXT(INDEX('график 7,8'!$B$5:$AF$16,MONTH($AP$3),E$11)&"","Я")),2)) -> В | F38: =TRIM(LEFT(TRIM(INDEX(отсутствия!$N:$AR,MATCH($C37,отсутствия!$A:$A,),F$11)&" "&TEXT(INDEX('график 7,8'!$B$5:$AF$16,MONTH($AP$3),F$11)&"","Я")),2)) -> Я | G38: =TRIM(LEFT(TRIM(INDEX(отсутствия!$N:$AR,MATCH($C37,отсутствия!$A:$A,),G$11)&" "&TEXT(INDEX('график 7,8'!$B$5:$AF$16,MONTH($AP$3),G$11)&"","Я")),2)) -> Я | H38: =TRIM(LEFT(TRIM(INDEX(отсутствия!$N:$AR,MATCH($C37,отсутствия!$A:$A,),H$11)&" "&TEXT(INDEX('график 7,8'!$B$5:$AF$16,MONTH($AP$3),H$11)&"","Я")),2)) -> Я | I38: =TRIM(LEFT(TRIM(INDEX(отсутствия!$N:$AR,MATCH($C37,отсутствия!$A:$A,),I$11)&" "&TEXT(INDEX('график 7,8'!$B$5:$AF$16,MONTH($AP$3),I$11)&"","Я")),2)) -> Я | J38: =TRIM(LEFT(TRIM(INDEX(отсутствия!$N:$AR,MATCH($C37,отсутствия!$A:$A,),J$11)&" "&TEXT(INDEX('график 7,8'!$B$5:$AF$16,MONTH($AP$3),J$11)&"","Я")),2)) -> Я | K38: =TRIM(LEFT(TRIM(INDEX(отсутствия!$N:$AR,MATCH($C37,отсутствия!$A:$A,),K$11)&" "&TEXT(INDEX('график 7,8'!$B$5:$AF$16,MONTH($AP$3),K$11)&"","Я")),2)) -> В | L38: =TRIM(LEFT(TRIM(INDEX(отсутствия!$N:$AR,MATCH($C37,отсутствия!$A:$A,),L$11)&" "&TEXT(INDEX('график 7,8'!$B$5:$AF$16,MONTH($AP$3),L$11)&"","Я")),2)) -> В. | M38: =TRIM(LEFT(TRIM(INDEX(отсутствия!$N:$AR,MATCH($C37,отсутствия!$A:$A,),M$11)&" "&TEXT(INDEX('график 7,8'!$B$5:$AF$16,MONTH($AP$3),M$11)&"","Я")),2)) -> В | N38: =TRIM(LEFT(TRIM(INDEX(отсутствия!$N:$AR,MATCH($C37,отсутствия!$A:$A,),N$11)&" "&TEXT(INDEX('график 7,8'!$B$5:$AF$16,MONTH($AP$3),N$11)&"","Я")),2)) -> Я | O38: =TRIM(LEFT(TRIM(INDEX(отсутствия!$N:$AR,MATCH($C37,отсутствия!$A:$A,),O$11)&" "&TEXT(INDEX('график 7,8'!$B$5:$AF$16,MONTH($AP$3),O$11)&"","Я")),2)) -> Я | P38: =TRIM(LEFT(TRIM(INDEX(отсутствия!$N:$AR,MATCH($C37,отсутствия!$A:$A,),P$11)&" "&TEXT(INDEX('график 7,8'!$B$5:$AF$16,MONTH($AP$3),P$11)&"","Я")),2)) -> Я | Q38: =TRIM(LEFT(TRIM(INDEX(отсутствия!$N:$AR,MATCH($C37,отсутствия!$A:$A,),Q$11)&" "&TEXT(INDEX('график 7,8'!$B$5:$AF$16,MONTH($AP$3),Q$11)&"","Я")),2)) -> Я | R38: =TRIM(LEFT(TRIM(INDEX(отсутствия!$N:$AR,MATCH($C37,отсутствия!$A:$A,),R$11)&" "&TEXT(INDEX('график 7,8'!$B$5:$AF$16,MONTH($AP$3),R$11)&"","Я")),2)) -> В | S38: =TRIM(LEFT(TRIM(INDEX(отсутствия!$N:$AR,MATCH($C37,отсутствия!$A:$A,),S$11)&" "&TEXT(INDEX('график 7,8'!$B$5:$AF$16,MONTH($AP$3),S$11)&"","Я")),2)) -> В | U38: =TRIM(LEFT(TRIM(INDEX(отсутствия!$N:$AR,MATCH($C37,отсутствия!$A:$A,),U$11)&" "&TEXT(INDEX('график 7,8'!$B$5:$AF$16,MONTH($AP$3),U$11)&"","Я")),2)) -> Я | V38: =TRIM(LEFT(TRIM(INDEX(отсутствия!$N:$AR,MATCH($C37,отсутствия!$A:$A,),V$11)&" "&TEXT(INDEX('график 7,8'!$B$5:$AF$16,MONTH($AP$3),V$11)&"","Я")),2)) -> Я | W38: =TRIM(LEFT(TRIM(INDEX(отсутствия!$N:$AR,MATCH($C37,отсутствия!$A:$A,),W$11)&" "&TEXT(INDEX('график 7,8'!$B$5:$AF$16,MONTH($AP$3),W$11)&"","Я")),2)) -> Я | X38: =TRIM(LEFT(TRIM(INDEX(отсутствия!$N:$AR,MATCH($C37,отсутствия!$A:$A,),X$11)&" "&TEXT(INDEX('график 7,8'!$B$5:$AF$16,MONTH($AP$3),X$11)&"","Я")),2)) -> Я | Y38: =TRIM(LEFT(TRIM(INDEX(отсутствия!$N:$AR,MATCH($C37,отсутствия!$A:$A,),Y$11)&" "&TEXT(INDEX('график 7,8'!$B$5:$AF$16,MONTH($AP$3),Y$11)&"","Я")),2)) -> Я | Z38: =TRIM(LEFT(TRIM(INDEX(отсутствия!$N:$AR,MATCH($C37,отсутствия!$A:$A,),Z$11)&" "&TEXT(INDEX('график 7,8'!$B$5:$AF$16,MONTH($AP$3),Z$11)&"","Я")),2)) -> В | AA38: =TRIM(LEFT(TRIM(INDEX(отсутствия!$N:$AR,MATCH($C37,отсутствия!$A:$A,),AA$11)&" "&TEXT(INDEX('график 7,8'!$B$5:$AF$16,MONTH($AP$3),AA$11)&"","Я")),2)) -> В | AB38: =TRIM(LEFT(TRIM(INDEX(отсутствия!$N:$AR,MATCH($C37,отсутствия!$A:$A,),AB$11)&" "&TEXT(INDEX('график 7,8'!$B$5:$AF$16,MONTH($AP$3),AB$11)&"","Я")),2)) -> Я | AC38: =TRIM(LEFT(TRIM(INDEX(отсутствия!$N:$AR,MATCH($C37,отсутствия!$A:$A,),AC$11)&" "&TEXT(INDEX('график 7,8'!$B$5:$AF$16,MONTH($AP$3),AC$11)&"","Я")),2)) -> Я | AD38: =TRIM(LEFT(TRIM(INDEX(отсутствия!$N:$AR,MATCH($C37,отсутствия!$A:$A,),AD$11)&" "&TEXT(INDEX('график 7,8'!$B$5:$AF$16,MONTH($AP$3),AD$11)&"","Я")),2)) -> Я | AE38: =TRIM(LEFT(TRIM(INDEX(отсутствия!$N:$AR,MATCH($C37,отсутствия!$A:$A,),AE$11)&" "&TEXT(INDEX('график 7,8'!$B$5:$AF$16,MONTH($AP$3),AE$11)&"","Я")),2)) -> Я | AF38: =TRIM(LEFT(TRIM(INDEX(отсутствия!$N:$AR,MATCH($C37,отсутствия!$A:$A,),AF$11)&" "&TEXT(INDEX('график 7,8'!$B$5:$AF$16,MONTH($AP$3),AF$11)&"","Я")),2)) -> Я | AG38: =TRIM(LEFT(TRIM(INDEX(отсутствия!$N:$AR,MATCH($C37,отсутствия!$A:$A,),AG$11)&" "&TEXT(INDEX('график 7,8'!$B$5:$AF$16,MONTH($AP$3),AG$11)&"","Я")),2)) -> В | AH38: =TRIM(LEFT(TRIM(INDEX(отсутствия!$N:$AR,MATCH($C37,отсутствия!$A:$A,),AH$11)&" "&TEXT(INDEX('график 7,8'!$B$5:$AF$16,MONTH($AP$3),AH$11)&"","Я")),2)) -> В | AI38: =TRIM(LEFT(TRIM(INDEX(отсутствия!$N:$AR,MATCH($C37,отсутствия!$A:$A,),AI$11)&" "&TEXT(INDEX('график 7,8'!$B$5:$AF$16,MONTH($AP$3),AI$11)&"","Я")),2)) -> Я | AJ38: =TRIM(LEFT(TRIM(INDEX(отсутствия!$N:$AR,MATCH($C37,отсутствия!$A:$A,),AJ$11)&" "&TEXT(INDEX('график 7,8'!$B$5:$AF$16,MONTH($AP$3),AJ$11)&"","Я")),2)) -> Я
A39: 4671 | B39: Буре | C39: 4671 | D39: сборная | E39: =IFERROR(INDEX(РВД!$D:$I,MATCH($C39,РВД!$A:$A,)+1,MATCH($N$4+E$11-1,INDEX(РВД!$D:$I,MATCH($C39,РВД!$A:$A,),),)),IF(E40="Я",INDEX('график 7,8'!$B$5:$AF$16,MONTH($AP$3),E$11),"")) ->  | F39: =IFERROR(INDEX(РВД!$D:$I,MATCH($C39,РВД!$A:$A,)+1,MATCH($N$4+F$11-1,INDEX(РВД!$D:$I,MATCH($C39,РВД!$A:$A,),),)),IF(F40="Я",INDEX('график 7,8'!$B$5:$AF$16,MONTH($AP$3),F$11),"")) -> 7.8 | G39: =IFERROR(INDEX(РВД!$D:$I,MATCH($C39,РВД!$A:$A,)+1,MATCH($N$4+G$11-1,INDEX(РВД!$D:$I,MATCH($C39,РВД!$A:$A,),),)),IF(G40="Я",INDEX('график 7,8'!$B$5:$AF$16,MONTH($AP$3),G$11),"")) -> 7.8 | H39: =IFERROR(INDEX(РВД!$D:$I,MATCH($C39,РВД!$A:$A,)+1,MATCH($N$4+H$11-1,INDEX(РВД!$D:$I,MATCH($C39,РВД!$A:$A,),),)),IF(H40="Я",INDEX('график 7,8'!$B$5:$AF$16,MONTH($AP$3),H$11),"")) -> 7.8 | I39: =IFERROR(INDEX(РВД!$D:$I,MATCH($C39,РВД!$A:$A,)+1,MATCH($N$4+I$11-1,INDEX(РВД!$D:$I,MATCH($C39,РВД!$A:$A,),),)),IF(I40="Я",INDEX('график 7,8'!$B$5:$AF$16,MONTH($AP$3),I$11),"")) -> 7.8 | J39: =IFERROR(INDEX(РВД!$D:$I,MATCH($C39,РВД!$A:$A,)+1,MATCH($N$4+J$11-1,INDEX(РВД!$D:$I,MATCH($C39,РВД!$A:$A,),),)),IF(J40="Я",INDEX('график 7,8'!$B$5:$AF$16,MONTH($AP$3),J$11),"")) -> 7.8 | K39: =IFERROR(INDEX(РВД!$D:$I,MATCH($C39,РВД!$A:$A,)+1,MATCH($N$4+K$11-1,INDEX(РВД!$D:$I,MATCH($C39,РВД!$A:$A,),),)),IF(K40="Я",INDEX('график 7,8'!$B$5:$AF$16,MONTH($AP$3),K$11),"")) ->  | L39: =IFERROR(INDEX(РВД!$D:$I,MATCH($C39,РВД!$A:$A,)+1,MATCH($N$4+L$11-1,INDEX(РВД!$D:$I,MATCH($C39,РВД!$A:$A,),),)),IF(L40="Я",INDEX('график 7,8'!$B$5:$AF$16,MONTH($AP$3),L$11),"")) ->  | M39: =IFERROR(INDEX(РВД!$D:$I,MATCH($C39,РВД!$A:$A,)+1,MATCH($N$4+M$11-1,INDEX(РВД!$D:$I,MATCH($C39,РВД!$A:$A,),),)),IF(M40="Я",INDEX('график 7,8'!$B$5:$AF$16,MONTH($AP$3),M$11),"")) ->  | N39: =IFERROR(INDEX(РВД!$D:$I,MATCH($C39,РВД!$A:$A,)+1,MATCH($N$4+N$11-1,INDEX(РВД!$D:$I,MATCH($C39,РВД!$A:$A,),),)),IF(N40="Я",INDEX('график 7,8'!$B$5:$AF$16,MONTH($AP$3),N$11),"")) -> 7.8 | O39: =IFERROR(INDEX(РВД!$D:$I,MATCH($C39,РВД!$A:$A,)+1,MATCH($N$4+O$11-1,INDEX(РВД!$D:$I,MATCH($C39,РВД!$A:$A,),),)),IF(O40="Я",INDEX('график 7,8'!$B$5:$AF$16,MONTH($AP$3),O$11),"")) -> 7.8 | P39: =IFERROR(INDEX(РВД!$D:$I,MATCH($C39,РВД!$A:$A,)+1,MATCH($N$4+P$11-1,INDEX(РВД!$D:$I,MATCH($C39,РВД!$A:$A,),),)),IF(P40="Я",INDEX('график 7,8'!$B$5:$AF$16,MONTH($AP$3),P$11),"")) -> 7.8 | Q39: =IFERROR(INDEX(РВД!$D:$I,MATCH($C39,РВД!$A:$A,)+1,MATCH($N$4+Q$11-1,INDEX(РВД!$D:$I,MATCH($C39,РВД!$A:$A,),),)),IF(Q40="Я",INDEX('график 7,8'!$B$5:$AF$16,MONTH($AP$3),Q$11),"")) -> 7.8 | R39: =IFERROR(INDEX(РВД!$D:$I,MATCH($C39,РВД!$A:$A,)+1,MATCH($N$4+R$11-1,INDEX(РВД!$D:$I,MATCH($C39,РВД!$A:$A,),),)),IF(R40="Я",INDEX('график 7,8'!$B$5:$AF$16,MONTH($AP$3),R$11),"")) ->  | S39: =IFERROR(INDEX(РВД!$D:$I,MATCH($C39,РВД!$A:$A,)+1,MATCH($N$4+S$11-1,INDEX(РВД!$D:$I,MATCH($C39,РВД!$A:$A,),),)),IF(S40="Я",INDEX('график 7,8'!$B$5:$AF$16,MONTH($AP$3),S$11),"")) ->  | T39: =SUMIF(E40:S40,"Я",E39:S39) -> 70.2 | U39: =IFERROR(INDEX(РВД!$D:$I,MATCH($C39,РВД!$A:$A,)+1,MATCH($N$4+U$11-1,INDEX(РВД!$D:$I,MATCH($C39,РВД!$A:$A,),),)),IF(U40="Я",INDEX('график 7,8'!$B$5:$AF$16,MONTH($AP$3),U$11),"")) -> 7.8 | V39: =IFERROR(INDEX(РВД!$D:$I,MATCH($C39,РВД!$A:$A,)+1,MATCH($N$4+V$11-1,INDEX(РВД!$D:$I,MATCH($C39,РВД!$A:$A,),),)),IF(V40="Я",INDEX('график 7,8'!$B$5:$AF$16,MONTH($AP$3),V$11),"")) -> 7.8 | W39: =IFERROR(INDEX(РВД!$D:$I,MATCH($C39,РВД!$A:$A,)+1,MATCH($N$4+W$11-1,INDEX(РВД!$D:$I,MATCH($C39,РВД!$A:$A,),),)),IF(W40="Я",INDEX('график 7,8'!$B$5:$AF$16,MONTH($AP$3),W$11),"")) -> 7.8 | X39: =IFERROR(INDEX(РВД!$D:$I,MATCH($C39,РВД!$A:$A,)+1,MATCH($N$4+X$11-1,INDEX(РВД!$D:$I,MATCH($C39,РВД!$A:$A,),),)),IF(X40="Я",INDEX('график 7,8'!$B$5:$AF$16,MONTH($AP$3),X$11),"")) -> 7.8 | Y39: =IFERROR(INDEX(РВД!$D:$I,MATCH($C39,РВД!$A:$A,)+1,MATCH($N$4+Y$11-1,INDEX(РВД!$D:$I,MATCH($C39,РВД!$A:$A,),),)),IF(Y40="Я",INDEX('график 7,8'!$B$5:$AF$16,MONTH($AP$3),Y$11),"")) -> 7.8 | Z39: =IFERROR(INDEX(РВД!$D:$I,MATCH($C39,РВД!$A:$A,)+1,MATCH($N$4+Z$11-1,INDEX(РВД!$D:$I,MATCH($C39,РВД!$A:$A,),),)),IF(Z40="Я",INDEX('график 7,8'!$B$5:$AF$16,MONTH($AP$3),Z$11),"")) ->  | AA39: =IFERROR(INDEX(РВД!$D:$I,MATCH($C39,РВД!$A:$A,)+1,MATCH($N$4+AA$11-1,INDEX(РВД!$D:$I,MATCH($C39,РВД!$A:$A,),),)),IF(AA40="Я",INDEX('график 7,8'!$B$5:$AF$16,MONTH($AP$3),AA$11),"")) ->  | AB39: =IFERROR(INDEX(РВД!$D:$I,MATCH($C39,РВД!$A:$A,)+1,MATCH($N$4+AB$11-1,INDEX(РВД!$D:$I,MATCH($C39,РВД!$A:$A,),),)),IF(AB40="Я",INDEX('график 7,8'!$B$5:$AF$16,MONTH($AP$3),AB$11),"")) -> 7.8 | AC39: =IFERROR(INDEX(РВД!$D:$I,MATCH($C39,РВД!$A:$A,)+1,MATCH($N$4+AC$11-1,INDEX(РВД!$D:$I,MATCH($C39,РВД!$A:$A,),),)),IF(AC40="Я",INDEX('график 7,8'!$B$5:$AF$16,MONTH($AP$3),AC$11),"")) -> 7.8 | AD39: =IFERROR(INDEX(РВД!$D:$I,MATCH($C39,РВД!$A:$A,)+1,MATCH($N$4+AD$11-1,INDEX(РВД!$D:$I,MATCH($C39,РВД!$A:$A,),),)),IF(AD40="Я",INDEX('график 7,8'!$B$5:$AF$16,MONTH($AP$3),AD$11),"")) -> 7.8 | AE39: =IFERROR(INDEX(РВД!$D:$I,MATCH($C39,РВД!$A:$A,)+1,MATCH($N$4+AE$11-1,INDEX(РВД!$D:$I,MATCH($C39,РВД!$A:$A,),),)),IF(AE40="Я",INDEX('график 7,8'!$B$5:$AF$16,MONTH($AP$3),AE$11),"")) -> 7.8 | AF39: =IFERROR(INDEX(РВД!$D:$I,MATCH($C39,РВД!$A:$A,)+1,MATCH($N$4+AF$11-1,INDEX(РВД!$D:$I,MATCH($C39,РВД!$A:$A,),),)),IF(AF40="Я",INDEX('график 7,8'!$B$5:$AF$16,MONTH($AP$3),AF$11),"")) -> 7.8 | AG39: =IFERROR(INDEX(РВД!$D:$I,MATCH($C39,РВД!$A:$A,)+1,MATCH($N$4+AG$11-1,INDEX(РВД!$D:$I,MATCH($C39,РВД!$A:$A,),),)),IF(AG40="Я",INDEX('график 7,8'!$B$5:$AF$16,MONTH($AP$3),AG$11),"")) ->  | AH39: =IFERROR(INDEX(РВД!$D:$I,MATCH($C39,РВД!$A:$A,)+1,MATCH($N$4+AH$11-1,INDEX(РВД!$D:$I,MATCH($C39,РВД!$A:$A,),),)),IF(AH40="Я",INDEX('график 7,8'!$B$5:$AF$16,MONTH($AP$3),AH$11),"")) ->  | AI39: =IFERROR(INDEX(РВД!$D:$I,MATCH($C39,РВД!$A:$A,)+1,MATCH($N$4+AI$11-1,INDEX(РВД!$D:$I,MATCH($C39,РВД!$A:$A,),),)),IF(AI40="Я",INDEX('график 7,8'!$B$5:$AF$16,MONTH($AP$3),AI$11),"")) -> 7.8 | AJ39: =IFERROR(INDEX(РВД!$D:$I,MATCH($C39,РВД!$A:$A,)+1,MATCH($N$4+AJ$11-1,INDEX(РВД!$D:$I,MATCH($C39,РВД!$A:$A,),),)),IF(AJ40="Я",INDEX('график 7,8'!$B$5:$AF$16,MONTH($AP$3),AJ$11),"")) -> 7.8 | AK39: ="Я/"&SUMIF(E40:AJ40,"Я",E39:AJ39) -> Я/163,8 | AL39: =(SUMIF(E40:AJ40,"В",E39:AJ39)+SUMIF(E40:AJ40,"В.",E39:AJ39))*2 -> 0 | AM39: =COUNTIFS(E40:AJ40,"Я",E39:AJ39,"<>") -> 21 | AN39: =IFERROR(VLOOKUP(C39,доплаты!$A$5:$P$118,16,0),"") -> 24
E40: =TRIM(LEFT(TRIM(INDEX(отсутствия!$N:$AR,MATCH($C39,отсутствия!$A:$A,),E$11)&" "&TEXT(INDEX('график 7,8'!$B$5:$AF$16,MONTH($AP$3),E$11)&"","Я")),2)) -> В | F40: =TRIM(LEFT(TRIM(INDEX(отсутствия!$N:$AR,MATCH($C39,отсутствия!$A:$A,),F$11)&" "&TEXT(INDEX('график 7,8'!$B$5:$AF$16,MONTH($AP$3),F$11)&"","Я")),2)) -> Я | G40: =TRIM(LEFT(TRIM(INDEX(отсутствия!$N:$AR,MATCH($C39,отсутствия!$A:$A,),G$11)&" "&TEXT(INDEX('график 7,8'!$B$5:$AF$16,MONTH($AP$3),G$11)&"","Я")),2)) -> Я | H40: =TRIM(LEFT(TRIM(INDEX(отсутствия!$N:$AR,MATCH($C39,отсутствия!$A:$A,),H$11)&" "&TEXT(INDEX('график 7,8'!$B$5:$AF$16,MONTH($AP$3),H$11)&"","Я")),2)) -> Я | I40: =TRIM(LEFT(TRIM(INDEX(отсутствия!$N:$AR,MATCH($C39,отсутствия!$A:$A,),I$11)&" "&TEXT(INDEX('график 7,8'!$B$5:$AF$16,MONTH($AP$3),I$11)&"","Я")),2)) -> Я | J40: =TRIM(LEFT(TRIM(INDEX(отсутствия!$N:$AR,MATCH($C39,отсутствия!$A:$A,),J$11)&" "&TEXT(INDEX('график 7,8'!$B$5:$AF$16,MONTH($AP$3),J$11)&"","Я")),2)) -> Я | K40: =TRIM(LEFT(TRIM(INDEX(отсутствия!$N:$AR,MATCH($C39,отсутствия!$A:$A,),K$11)&" "&TEXT(INDEX('график 7,8'!$B$5:$AF$16,MONTH($AP$3),K$11)&"","Я")),2)) -> В | L40: =TRIM(LEFT(TRIM(INDEX(отсутствия!$N:$AR,MATCH($C39,отсутствия!$A:$A,),L$11)&" "&TEXT(INDEX('график 7,8'!$B$5:$AF$16,MONTH($AP$3),L$11)&"","Я")),2)) -> В. | M40: =TRIM(LEFT(TRIM(INDEX(отсутствия!$N:$AR,MATCH($C39,отсутствия!$A:$A,),M$11)&" "&TEXT(INDEX('график 7,8'!$B$5:$AF$16,MONTH($AP$3),M$11)&"","Я")),2)) -> В | N40: =TRIM(LEFT(TRIM(INDEX(отсутствия!$N:$AR,MATCH($C39,отсутствия!$A:$A,),N$11)&" "&TEXT(INDEX('график 7,8'!$B$5:$AF$16,MONTH($AP$3),N$11)&"","Я")),2)) -> Я | O40: =TRIM(LEFT(TRIM(INDEX(отсутствия!$N:$AR,MATCH($C39,отсутствия!$A:$A,),O$11)&" "&TEXT(INDEX('график 7,8'!$B$5:$AF$16,MONTH($AP$3),O$11)&"","Я")),2)) -> Я | P40: =TRIM(LEFT(TRIM(INDEX(отсутствия!$N:$AR,MATCH($C39,отсутствия!$A:$A,),P$11)&" "&TEXT(INDEX('график 7,8'!$B$5:$AF$16,MONTH($AP$3),P$11)&"","Я")),2)) -> Я | Q40: =TRIM(LEFT(TRIM(INDEX(отсутствия!$N:$AR,MATCH($C39,отсутствия!$A:$A,),Q$11)&" "&TEXT(INDEX('график 7,8'!$B$5:$AF$16,MONTH($AP$3),Q$11)&"","Я")),2)) -> Я | R40: =TRIM(LEFT(TRIM(INDEX(отсутствия!$N:$AR,MATCH($C39,отсутствия!$A:$A,),R$11)&" "&TEXT(INDEX('график 7,8'!$B$5:$AF$16,MONTH($AP$3),R$11)&"","Я")),2)) -> В | S40: =TRIM(LEFT(TRIM(INDEX(отсутствия!$N:$AR,MATCH($C39,отсутствия!$A:$A,),S$11)&" "&TEXT(INDEX('график 7,8'!$B$5:$AF$16,MONTH($AP$3),S$11)&"","Я")),2)) -> В | U40: =TRIM(LEFT(TRIM(INDEX(отсутствия!$N:$AR,MATCH($C39,отсутствия!$A:$A,),U$11)&" "&TEXT(INDEX('график 7,8'!$B$5:$AF$16,MONTH($AP$3),U$11)&"","Я")),2)) -> Я | V40: =TRIM(LEFT(TRIM(INDEX(отсутствия!$N:$AR,MATCH($C39,отсутствия!$A:$A,),V$11)&" "&TEXT(INDEX('график 7,8'!$B$5:$AF$16,MONTH($AP$3),V$11)&"","Я")),2)) -> Я | W40: =TRIM(LEFT(TRIM(INDEX(отсутствия!$N:$AR,MATCH($C39,отсутствия!$A:$A,),W$11)&" "&TEXT(INDEX('график 7,8'!$B$5:$AF$16,MONTH($AP$3),W$11)&"","Я")),2)) -> Я | X40: =TRIM(LEFT(TRIM(INDEX(отсутствия!$N:$AR,MATCH($C39,отсутствия!$A:$A,),X$11)&" "&TEXT(INDEX('график 7,8'!$B$5:$AF$16,MONTH($AP$3),X$11)&"","Я")),2)) -> Я | Y40: =TRIM(LEFT(TRIM(INDEX(отсутствия!$N:$AR,MATCH($C39,отсутствия!$A:$A,),Y$11)&" "&TEXT(INDEX('график 7,8'!$B$5:$AF$16,MONTH($AP$3),Y$11)&"","Я")),2)) -> Я | Z40: =TRIM(LEFT(TRIM(INDEX(отсутствия!$N:$AR,MATCH($C39,отсутствия!$A:$A,),Z$11)&" "&TEXT(INDEX('график 7,8'!$B$5:$AF$16,MONTH($AP$3),Z$11)&"","Я")),2)) -> В | AA40: =TRIM(LEFT(TRIM(INDEX(отсутствия!$N:$AR,MATCH($C39,отсутствия!$A:$A,),AA$11)&" "&TEXT(INDEX('график 7,8'!$B$5:$AF$16,MONTH($AP$3),AA$11)&"","Я")),2)) -> В | AB40: =TRIM(LEFT(TRIM(INDEX(отсутствия!$N:$AR,MATCH($C39,отсутствия!$A:$A,),AB$11)&" "&TEXT(INDEX('график 7,8'!$B$5:$AF$16,MONTH($AP$3),AB$11)&"","Я")),2)) -> Я | AC40: =TRIM(LEFT(TRIM(INDEX(отсутствия!$N:$AR,MATCH($C39,отсутствия!$A:$A,),AC$11)&" "&TEXT(INDEX('график 7,8'!$B$5:$AF$16,MONTH($AP$3),AC$11)&"","Я")),2)) -> Я | AD40: =TRIM(LEFT(TRIM(INDEX(отсутствия!$N:$AR,MATCH($C39,отсутствия!$A:$A,),AD$11)&" "&TEXT(INDEX('график 7,8'!$B$5:$AF$16,MONTH($AP$3),AD$11)&"","Я")),2)) -> Я | AE40: =TRIM(LEFT(TRIM(INDEX(отсутствия!$N:$AR,MATCH($C39,отсутствия!$A:$A,),AE$11)&" "&TEXT(INDEX('график 7,8'!$B$5:$AF$16,MONTH($AP$3),AE$11)&"","Я")),2)) -> Я | AF40: =TRIM(LEFT(TRIM(INDEX(отсутствия!$N:$AR,MATCH($C39,отсутствия!$A:$A,),AF$11)&" "&TEXT(INDEX('график 7,8'!$B$5:$AF$16,MONTH($AP$3),AF$11)&"","Я")),2)) -> Я | AG40: =TRIM(LEFT(TRIM(INDEX(отсутствия!$N:$AR,MATCH($C39,отсутствия!$A:$A,),AG$11)&" "&TEXT(INDEX('график 7,8'!$B$5:$AF$16,MONTH($AP$3),AG$11)&"","Я")),2)) -> В | AH40: =TRIM(LEFT(TRIM(INDEX(отсутствия!$N:$AR,MATCH($C39,отсутствия!$A:$A,),AH$11)&" "&TEXT(INDEX('график 7,8'!$B$5:$AF$16,MONTH($AP$3),AH$11)&"","Я")),2)) -> В | AI40: =TRIM(LEFT(TRIM(INDEX(отсутствия!$N:$AR,MATCH($C39,отсутствия!$A:$A,),AI$11)&" "&TEXT(INDEX('график 7,8'!$B$5:$AF$16,MONTH($AP$3),AI$11)&"","Я")),2)) -> Я | AJ40: =TRIM(LEFT(TRIM(INDEX(отсутствия!$N:$AR,MATCH($C39,отсутствия!$A:$A,),AJ$11)&" "&TEXT(INDEX('график 7,8'!$B$5:$AF$16,MONTH($AP$3),AJ$11)&"","Я")),2)) -> Я
A41: 4883 | B41: Дасаев | C41: 4883 | D41: сборная | E41: =IFERROR(INDEX(РВД!$D:$I,MATCH($C41,РВД!$A:$A,)+1,MATCH($N$4+E$11-1,INDEX(РВД!$D:$I,MATCH($C41,РВД!$A:$A,),),)),IF(E42="Я",INDEX('график 7,8'!$B$52:$AF$63,MONTH($AP$3),E$11),"")) ->  | F41: =IFERROR(INDEX(РВД!$D:$I,MATCH($C41,РВД!$A:$A,)+1,MATCH($N$4+F$11-1,INDEX(РВД!$D:$I,MATCH($C41,РВД!$A:$A,),),)),IF(F42="Я",INDEX('график 7,8'!$B$52:$AF$63,MONTH($AP$3),F$11),"")) -> 3.9 | G41: =IFERROR(INDEX(РВД!$D:$I,MATCH($C41,РВД!$A:$A,)+1,MATCH($N$4+G$11-1,INDEX(РВД!$D:$I,MATCH($C41,РВД!$A:$A,),),)),IF(G42="Я",INDEX('график 7,8'!$B$52:$AF$63,MONTH($AP$3),G$11),"")) -> 3.9 | H41: =IFERROR(INDEX(РВД!$D:$I,MATCH($C41,РВД!$A:$A,)+1,MATCH($N$4+H$11-1,INDEX(РВД!$D:$I,MATCH($C41,РВД!$A:$A,),),)),IF(H42="Я",INDEX('график 7,8'!$B$52:$AF$63,MONTH($AP$3),H$11),"")) -> 3.9 | I41: =IFERROR(INDEX(РВД!$D:$I,MATCH($C41,РВД!$A:$A,)+1,MATCH($N$4+I$11-1,INDEX(РВД!$D:$I,MATCH($C41,РВД!$A:$A,),),)),IF(I42="Я",INDEX('график 7,8'!$B$52:$AF$63,MONTH($AP$3),I$11),"")) -> 3.9 | J41: =IFERROR(INDEX(РВД!$D:$I,MATCH($C41,РВД!$A:$A,)+1,MATCH($N$4+J$11-1,INDEX(РВД!$D:$I,MATCH($C41,РВД!$A:$A,),),)),IF(J42="Я",INDEX('график 7,8'!$B$52:$AF$63,MONTH($AP$3),J$11),"")) -> 3.9 | K41: =IFERROR(INDEX(РВД!$D:$I,MATCH($C41,РВД!$A:$A,)+1,MATCH($N$4+K$11-1,INDEX(РВД!$D:$I,MATCH($C41,РВД!$A:$A,),),)),IF(K42="Я",INDEX('график 7,8'!$B$52:$AF$63,MONTH($AP$3),K$11),"")) ->  | L41: =IFERROR(INDEX(РВД!$D:$I,MATCH($C41,РВД!$A:$A,)+1,MATCH($N$4+L$11-1,INDEX(РВД!$D:$I,MATCH($C41,РВД!$A:$A,),),)),IF(L42="Я",INDEX('график 7,8'!$B$52:$AF$63,MONTH($AP$3),L$11),"")) ->  | M41: =IFERROR(INDEX(РВД!$D:$I,MATCH($C41,РВД!$A:$A,)+1,MATCH($N$4+M$11-1,INDEX(РВД!$D:$I,MATCH($C41,РВД!$A:$A,),),)),IF(M42="Я",INDEX('график 7,8'!$B$52:$AF$63,MONTH($AP$3),M$11),"")) ->  | N41: =IFERROR(INDEX(РВД!$D:$I,MATCH($C41,РВД!$A:$A,)+1,MATCH($N$4+N$11-1,INDEX(РВД!$D:$I,MATCH($C41,РВД!$A:$A,),),)),IF(N42="Я",INDEX('график 7,8'!$B$52:$AF$63,MONTH($AP$3),N$11),"")) -> 3.9 | O41: =IFERROR(INDEX(РВД!$D:$I,MATCH($C41,РВД!$A:$A,)+1,MATCH($N$4+O$11-1,INDEX(РВД!$D:$I,MATCH($C41,РВД!$A:$A,),),)),IF(O42="Я",INDEX('график 7,8'!$B$52:$AF$63,MONTH($AP$3),O$11),"")) -> 3.9 | P41: =IFERROR(INDEX(РВД!$D:$I,MATCH($C41,РВД!$A:$A,)+1,MATCH($N$4+P$11-1,INDEX(РВД!$D:$I,MATCH($C41,РВД!$A:$A,),),)),IF(P42="Я",INDEX('график 7,8'!$B$52:$AF$63,MONTH($AP$3),P$11),"")) -> 3.9 | Q41: =IFERROR(INDEX(РВД!$D:$I,MATCH($C41,РВД!$A:$A,)+1,MATCH($N$4+Q$11-1,INDEX(РВД!$D:$I,MATCH($C41,РВД!$A:$A,),),)),IF(Q42="Я",INDEX('график 7,8'!$B$52:$AF$63,MONTH($AP$3),Q$11),"")) -> 3.9 | R41: =IFERROR(INDEX(РВД!$D:$I,MATCH($C41,РВД!$A:$A,)+1,MATCH($N$4+R$11-1,INDEX(РВД!$D:$I,MATCH($C41,РВД!$A:$A,),),)),IF(R42="Я",INDEX('график 7,8'!$B$52:$AF$63,MONTH($AP$3),R$11),"")) ->  | S41: =IFERROR(INDEX(РВД!$D:$I,MATCH($C41,РВД!$A:$A,)+1,MATCH($N$4+S$11-1,INDEX(РВД!$D:$I,MATCH($C41,РВД!$A:$A,),),)),IF(S42="Я",INDEX('график 7,8'!$B$52:$AF$63,MONTH($AP$3),S$11),"")) ->  | T41: =SUMIF(E42:S42,"Я",E41:S41) -> 35.1 | U41: =IFERROR(INDEX(РВД!$D:$I,MATCH($C41,РВД!$A:$A,)+1,MATCH($N$4+U$11-1,INDEX(РВД!$D:$I,MATCH($C41,РВД!$A:$A,),),)),IF(U42="Я",INDEX('график 7,8'!$B$52:$AF$63,MONTH($AP$3),U$11),"")) -> 3.9 | V41: =IFERROR(INDEX(РВД!$D:$I,MATCH($C41,РВД!$A:$A,)+1,MATCH($N$4+V$11-1,INDEX(РВД!$D:$I,MATCH($C41,РВД!$A:$A,),),)),IF(V42="Я",INDEX('график 7,8'!$B$52:$AF$63,MONTH($AP$3),V$11),"")) -> 3.9 | W41: =IFERROR(INDEX(РВД!$D:$I,MATCH($C41,РВД!$A:$A,)+1,MATCH($N$4+W$11-1,INDEX(РВД!$D:$I,MATCH($C41,РВД!$A:$A,),),)),IF(W42="Я",INDEX('график 7,8'!$B$52:$AF$63,MONTH($AP$3),W$11),"")) -> 3.9 | X41: =IFERROR(INDEX(РВД!$D:$I,MATCH($C41,РВД!$A:$A,)+1,MATCH($N$4+X$11-1,INDEX(РВД!$D:$I,MATCH($C41,РВД!$A:$A,),),)),IF(X42="Я",INDEX('график 7,8'!$B$52:$AF$63,MONTH($AP$3),X$11),"")) -> 3.9 | Y41: =IFERROR(INDEX(РВД!$D:$I,MATCH($C41,РВД!$A:$A,)+1,MATCH($N$4+Y$11-1,INDEX(РВД!$D:$I,MATCH($C41,РВД!$A:$A,),),)),IF(Y42="Я",INDEX('график 7,8'!$B$52:$AF$63,MONTH($AP$3),Y$11),"")) -> 3.9 | Z41: =IFERROR(INDEX(РВД!$D:$I,MATCH($C41,РВД!$A:$A,)+1,MATCH($N$4+Z$11-1,INDEX(РВД!$D:$I,MATCH($C41,РВД!$A:$A,),),)),IF(Z42="Я",INDEX('график 7,8'!$B$52:$AF$63,MONTH($AP$3),Z$11),"")) ->  | AA41: =IFERROR(INDEX(РВД!$D:$I,MATCH($C41,РВД!$A:$A,)+1,MATCH($N$4+AA$11-1,INDEX(РВД!$D:$I,MATCH($C41,РВД!$A:$A,),),)),IF(AA42="Я",INDEX('график 7,8'!$B$52:$AF$63,MONTH($AP$3),AA$11),"")) ->  | AB41: =IFERROR(INDEX(РВД!$D:$I,MATCH($C41,РВД!$A:$A,)+1,MATCH($N$4+AB$11-1,INDEX(РВД!$D:$I,MATCH($C41,РВД!$A:$A,),),)),IF(AB42="Я",INDEX('график 7,8'!$B$52:$AF$63,MONTH($AP$3),AB$11),"")) -> 3.9 | AC41: =IFERROR(INDEX(РВД!$D:$I,MATCH($C41,РВД!$A:$A,)+1,MATCH($N$4+AC$11-1,INDEX(РВД!$D:$I,MATCH($C41,РВД!$A:$A,),),)),IF(AC42="Я",INDEX('график 7,8'!$B$52:$AF$63,MONTH($AP$3),AC$11),"")) -> 3.9 | AD41: =IFERROR(INDEX(РВД!$D:$I,MATCH($C41,РВД!$A:$A,)+1,MATCH($N$4+AD$11-1,INDEX(РВД!$D:$I,MATCH($C41,РВД!$A:$A,),),)),IF(AD42="Я",INDEX('график 7,8'!$B$52:$AF$63,MONTH($AP$3),AD$11),"")) -> 3.9 | AE41: =IFERROR(INDEX(РВД!$D:$I,MATCH($C41,РВД!$A:$A,)+1,MATCH($N$4+AE$11-1,INDEX(РВД!$D:$I,MATCH($C41,РВД!$A:$A,),),)),IF(AE42="Я",INDEX('график 7,8'!$B$52:$AF$63,MONTH($AP$3),AE$11),"")) -> 3.9 | AF41: =IFERROR(INDEX(РВД!$D:$I,MATCH($C41,РВД!$A:$A,)+1,MATCH($N$4+AF$11-1,INDEX(РВД!$D:$I,MATCH($C41,РВД!$A:$A,),),)),IF(AF42="Я",INDEX('график 7,8'!$B$52:$AF$63,MONTH($AP$3),AF$11),"")) -> 3.9 | AG41: =IFERROR(INDEX(РВД!$D:$I,MATCH($C41,РВД!$A:$A,)+1,MATCH($N$4+AG$11-1,INDEX(РВД!$D:$I,MATCH($C41,РВД!$A:$A,),),)),IF(AG42="Я",INDEX('график 7,8'!$B$52:$AF$63,MONTH($AP$3),AG$11),"")) ->  | AH41: =IFERROR(INDEX(РВД!$D:$I,MATCH($C41,РВД!$A:$A,)+1,MATCH($N$4+AH$11-1,INDEX(РВД!$D:$I,MATCH($C41,РВД!$A:$A,),),)),IF(AH42="Я",INDEX('график 7,8'!$B$52:$AF$63,MONTH($AP$3),AH$11),"")) ->  | AI41: =IFERROR(INDEX(РВД!$D:$I,MATCH($C41,РВД!$A:$A,)+1,MATCH($N$4+AI$11-1,INDEX(РВД!$D:$I,MATCH($C41,РВД!$A:$A,),),)),IF(AI42="Я",INDEX('график 7,8'!$B$52:$AF$63,MONTH($AP$3),AI$11),"")) -> 3.9 | AJ41: =IFERROR(INDEX(РВД!$D:$I,MATCH($C41,РВД!$A:$A,)+1,MATCH($N$4+AJ$11-1,INDEX(РВД!$D:$I,MATCH($C41,РВД!$A:$A,),),)),IF(AJ42="Я",INDEX('график 7,8'!$B$52:$AF$63,MONTH($AP$3),AJ$11),"")) -> 3.9 | AK41: ="Я/"&SUMIF(E42:AJ42,"Я",E41:AJ41) -> Я/81,9 | AL41: =(SUMIF(E42:AJ42,"В",E41:AJ41)+SUMIF(E42:AJ42,"В.",E41:AJ41))*2 -> 0 | AM41: =COUNTIFS(E42:AJ42,"Я",E41:AJ41,"<>") -> 21 | AN41: =IFERROR(VLOOKUP(C41,доплаты!$A$5:$P$118,16,0),"") -> 28
E42: =TRIM(LEFT(TRIM(INDEX(отсутствия!$N:$AR,MATCH($C41,отсутствия!$A:$A,),E$11)&" "&TEXT(INDEX('график 7,8'!$B$52:$AF$63,MONTH($AP$3),E$11)&"","Я")),2)) -> В | F42: =TRIM(LEFT(TRIM(INDEX(отсутствия!$N:$AR,MATCH($C41,отсутствия!$A:$A,),F$11)&" "&TEXT(INDEX('график 7,8'!$B$52:$AF$63,MONTH($AP$3),F$11)&"","Я")),2)) -> Я | G42: =TRIM(LEFT(TRIM(INDEX(отсутствия!$N:$AR,MATCH($C41,отсутствия!$A:$A,),G$11)&" "&TEXT(INDEX('график 7,8'!$B$52:$AF$63,MONTH($AP$3),G$11)&"","Я")),2)) -> Я | H42: =TRIM(LEFT(TRIM(INDEX(отсутствия!$N:$AR,MATCH($C41,отсутствия!$A:$A,),H$11)&" "&TEXT(INDEX('график 7,8'!$B$52:$AF$63,MONTH($AP$3),H$11)&"","Я")),2)) -> Я | I42: =TRIM(LEFT(TRIM(INDEX(отсутствия!$N:$AR,MATCH($C41,отсутствия!$A:$A,),I$11)&" "&TEXT(INDEX('график 7,8'!$B$52:$AF$63,MONTH($AP$3),I$11)&"","Я")),2)) -> Я | J42: =TRIM(LEFT(TRIM(INDEX(отсутствия!$N:$AR,MATCH($C41,отсутствия!$A:$A,),J$11)&" "&TEXT(INDEX('график 7,8'!$B$52:$AF$63,MONTH($AP$3),J$11)&"","Я")),2)) -> Я | K42: =TRIM(LEFT(TRIM(INDEX(отсутствия!$N:$AR,MATCH($C41,отсутствия!$A:$A,),K$11)&" "&TEXT(INDEX('график 7,8'!$B$52:$AF$63,MONTH($AP$3),K$11)&"","Я")),2)) -> В | L42: =TRIM(LEFT(TRIM(INDEX(отсутствия!$N:$AR,MATCH($C41,отсутствия!$A:$A,),L$11)&" "&TEXT(INDEX('график 7,8'!$B$52:$AF$63,MONTH($AP$3),L$11)&"","Я")),2)) -> В. | M42: =TRIM(LEFT(TRIM(INDEX(отсутствия!$N:$AR,MATCH($C41,отсутствия!$A:$A,),M$11)&" "&TEXT(INDEX('график 7,8'!$B$52:$AF$63,MONTH($AP$3),M$11)&"","Я")),2)) -> В | N42: =TRIM(LEFT(TRIM(INDEX(отсутствия!$N:$AR,MATCH($C41,отсутствия!$A:$A,),N$11)&" "&TEXT(INDEX('график 7,8'!$B$52:$AF$63,MONTH($AP$3),N$11)&"","Я")),2)) -> Я | O42: =TRIM(LEFT(TRIM(INDEX(отсутствия!$N:$AR,MATCH($C41,отсутствия!$A:$A,),O$11)&" "&TEXT(INDEX('график 7,8'!$B$52:$AF$63,MONTH($AP$3),O$11)&"","Я")),2)) -> Я | P42: =TRIM(LEFT(TRIM(INDEX(отсутствия!$N:$AR,MATCH($C41,отсутствия!$A:$A,),P$11)&" "&TEXT(INDEX('график 7,8'!$B$52:$AF$63,MONTH($AP$3),P$11)&"","Я")),2)) -> Я | Q42: =TRIM(LEFT(TRIM(INDEX(отсутствия!$N:$AR,MATCH($C41,отсутствия!$A:$A,),Q$11)&" "&TEXT(INDEX('график 7,8'!$B$52:$AF$63,MONTH($AP$3),Q$11)&"","Я")),2)) -> Я | R42: =TRIM(LEFT(TRIM(INDEX(отсутствия!$N:$AR,MATCH($C41,отсутствия!$A:$A,),R$11)&" "&TEXT(INDEX('график 7,8'!$B$52:$AF$63,MONTH($AP$3),R$11)&"","Я")),2)) -> В | S42: =TRIM(LEFT(TRIM(INDEX(отсутствия!$N:$AR,MATCH($C41,отсутствия!$A:$A,),S$11)&" "&TEXT(INDEX('график 7,8'!$B$52:$AF$63,MONTH($AP$3),S$11)&"","Я")),2)) -> В | U42: =TRIM(LEFT(TRIM(INDEX(отсутствия!$N:$AR,MATCH($C41,отсутствия!$A:$A,),U$11)&" "&TEXT(INDEX('график 7,8'!$B$52:$AF$63,MONTH($AP$3),U$11)&"","Я")),2)) -> Я | V42: =TRIM(LEFT(TRIM(INDEX(отсутствия!$N:$AR,MATCH($C41,отсутствия!$A:$A,),V$11)&" "&TEXT(INDEX('график 7,8'!$B$52:$AF$63,MONTH($AP$3),V$11)&"","Я")),2)) -> Я | W42: =TRIM(LEFT(TRIM(INDEX(отсутствия!$N:$AR,MATCH($C41,отсутствия!$A:$A,),W$11)&" "&TEXT(INDEX('график 7,8'!$B$52:$AF$63,MONTH($AP$3),W$11)&"","Я")),2)) -> Я | X42: =TRIM(LEFT(TRIM(INDEX(отсутствия!$N:$AR,MATCH($C41,отсутствия!$A:$A,),X$11)&" "&TEXT(INDEX('график 7,8'!$B$52:$AF$63,MONTH($AP$3),X$11)&"","Я")),2)) -> Я | Y42: =TRIM(LEFT(TRIM(INDEX(отсутствия!$N:$AR,MATCH($C41,отсутствия!$A:$A,),Y$11)&" "&TEXT(INDEX('график 7,8'!$B$52:$AF$63,MONTH($AP$3),Y$11)&"","Я")),2)) -> Я | Z42: =TRIM(LEFT(TRIM(INDEX(отсутствия!$N:$AR,MATCH($C41,отсутствия!$A:$A,),Z$11)&" "&TEXT(INDEX('график 7,8'!$B$52:$AF$63,MONTH($AP$3),Z$11)&"","Я")),2)) -> В | AA42: =TRIM(LEFT(TRIM(INDEX(отсутствия!$N:$AR,MATCH($C41,отсутствия!$A:$A,),AA$11)&" "&TEXT(INDEX('график 7,8'!$B$52:$AF$63,MONTH($AP$3),AA$11)&"","Я")),2)) -> В | AB42: =TRIM(LEFT(TRIM(INDEX(отсутствия!$N:$AR,MATCH($C41,отсутствия!$A:$A,),AB$11)&" "&TEXT(INDEX('график 7,8'!$B$52:$AF$63,MONTH($AP$3),AB$11)&"","Я")),2)) -> Я | AC42: =TRIM(LEFT(TRIM(INDEX(отсутствия!$N:$AR,MATCH($C41,отсутствия!$A:$A,),AC$11)&" "&TEXT(INDEX('график 7,8'!$B$52:$AF$63,MONTH($AP$3),AC$11)&"","Я")),2)) -> Я | AD42: =TRIM(LEFT(TRIM(INDEX(отсутствия!$N:$AR,MATCH($C41,отсутствия!$A:$A,),AD$11)&" "&TEXT(INDEX('график 7,8'!$B$52:$AF$63,MONTH($AP$3),AD$11)&"","Я")),2)) -> Я | AE42: =TRIM(LEFT(TRIM(INDEX(отсутствия!$N:$AR,MATCH($C41,отсутствия!$A:$A,),AE$11)&" "&TEXT(INDEX('график 7,8'!$B$52:$AF$63,MONTH($AP$3),AE$11)&"","Я")),2)) -> Я | AF42: =TRIM(LEFT(TRIM(INDEX(отсутствия!$N:$AR,MATCH($C41,отсутствия!$A:$A,),AF$11)&" "&TEXT(INDEX('график 7,8'!$B$52:$AF$63,MONTH($AP$3),AF$11)&"","Я")),2)) -> Я | AG42: =TRIM(LEFT(TRIM(INDEX(отсутствия!$N:$AR,MATCH($C41,отсутствия!$A:$A,),AG$11)&" "&TEXT(INDEX('график 7,8'!$B$52:$AF$63,MONTH($AP$3),AG$11)&"","Я")),2)) -> В | AH42: =TRIM(LEFT(TRIM(INDEX(отсутствия!$N:$AR,MATCH($C41,отсутствия!$A:$A,),AH$11)&" "&TEXT(INDEX('график 7,8'!$B$52:$AF$63,MONTH($AP$3),AH$11)&"","Я")),2)) -> В | AI42: =TRIM(LEFT(TRIM(INDEX(отсутствия!$N:$AR,MATCH($C41,отсутствия!$A:$A,),AI$11)&" "&TEXT(INDEX('график 7,8'!$B$52:$AF$63,MONTH($AP$3),AI$11)&"","Я")),2)) -> Я | AJ42: =TRIM(LEFT(TRIM(INDEX(отсутствия!$N:$AR,MATCH($C41,отсутствия!$A:$A,),AJ$11)&" "&TEXT(INDEX('график 7,8'!$B$52:$AF$63,MONTH($AP$3),AJ$11)&"","Я")),2)) -> Я
A43: 4991 | B43: Федоров | C43: 4991 | D43: сборная | E43: =IFERROR(INDEX(РВД!$D:$I,MATCH($C43,РВД!$A:$A,)+1,MATCH($N$4+E$11-1,INDEX(РВД!$D:$I,MATCH($C43,РВД!$A:$A,),),)),IF(E44="Я",INDEX('график 7,8'!$B$5:$AF$16,MONTH($AP$3),E$11),"")) ->  | F43: =IFERROR(INDEX(РВД!$D:$I,MATCH($C43,РВД!$A:$A,)+1,MATCH($N$4+F$11-1,INDEX(РВД!$D:$I,MATCH($C43,РВД!$A:$A,),),)),IF(F44="Я",INDEX('график 7,8'!$B$5:$AF$16,MONTH($AP$3),F$11),"")) -> 7.8 | G43: =IFERROR(INDEX(РВД!$D:$I,MATCH($C43,РВД!$A:$A,)+1,MATCH($N$4+G$11-1,INDEX(РВД!$D:$I,MATCH($C43,РВД!$A:$A,),),)),IF(G44="Я",INDEX('график 7,8'!$B$5:$AF$16,MONTH($AP$3),G$11),"")) -> 7.8 | H43: =IFERROR(INDEX(РВД!$D:$I,MATCH($C43,РВД!$A:$A,)+1,MATCH($N$4+H$11-1,INDEX(РВД!$D:$I,MATCH($C43,РВД!$A:$A,),),)),IF(H44="Я",INDEX('график 7,8'!$B$5:$AF$16,MONTH($AP$3),H$11),"")) -> 7.8 | I43: =IFERROR(INDEX(РВД!$D:$I,MATCH($C43,РВД!$A:$A,)+1,MATCH($N$4+I$11-1,INDEX(РВД!$D:$I,MATCH($C43,РВД!$A:$A,),),)),IF(I44="Я",INDEX('график 7,8'!$B$5:$AF$16,MONTH($AP$3),I$11),"")) -> 7.8 | J43: =IFERROR(INDEX(РВД!$D:$I,MATCH($C43,РВД!$A:$A,)+1,MATCH($N$4+J$11-1,INDEX(РВД!$D:$I,MATCH($C43,РВД!$A:$A,),),)),IF(J44="Я",INDEX('график 7,8'!$B$5:$AF$16,MONTH($AP$3),J$11),"")) -> 7.8 | K43: =IFERROR(INDEX(РВД!$D:$I,MATCH($C43,РВД!$A:$A,)+1,MATCH($N$4+K$11-1,INDEX(РВД!$D:$I,MATCH($C43,РВД!$A:$A,),),)),IF(K44="Я",INDEX('график 7,8'!$B$5:$AF$16,MONTH($AP$3),K$11),"")) ->  | L43: =IFERROR(INDEX(РВД!$D:$I,MATCH($C43,РВД!$A:$A,)+1,MATCH($N$4+L$11-1,INDEX(РВД!$D:$I,MATCH($C43,РВД!$A:$A,),),)),IF(L44="Я",INDEX('график 7,8'!$B$5:$AF$16,MONTH($AP$3),L$11),"")) ->  | M43: =IFERROR(INDEX(РВД!$D:$I,MATCH($C43,РВД!$A:$A,)+1,MATCH($N$4+M$11-1,INDEX(РВД!$D:$I,MATCH($C43,РВД!$A:$A,),),)),IF(M44="Я",INDEX('график 7,8'!$B$5:$AF$16,MONTH($AP$3),M$11),"")) ->  | N43: =IFERROR(INDEX(РВД!$D:$I,MATCH($C43,РВД!$A:$A,)+1,MATCH($N$4+N$11-1,INDEX(РВД!$D:$I,MATCH($C43,РВД!$A:$A,),),)),IF(N44="Я",INDEX('график 7,8'!$B$5:$AF$16,MONTH($AP$3),N$11),"")) -> 7.8 | O43: =IFERROR(INDEX(РВД!$D:$I,MATCH($C43,РВД!$A:$A,)+1,MATCH($N$4+O$11-1,INDEX(РВД!$D:$I,MATCH($C43,РВД!$A:$A,),),)),IF(O44="Я",INDEX('график 7,8'!$B$5:$AF$16,MONTH($AP$3),O$11),"")) -> 7.8 | P43: =IFERROR(INDEX(РВД!$D:$I,MATCH($C43,РВД!$A:$A,)+1,MATCH($N$4+P$11-1,INDEX(РВД!$D:$I,MATCH($C43,РВД!$A:$A,),),)),IF(P44="Я",INDEX('график 7,8'!$B$5:$AF$16,MONTH($AP$3),P$11),"")) -> 7.8 | Q43: =IFERROR(INDEX(РВД!$D:$I,MATCH($C43,РВД!$A:$A,)+1,MATCH($N$4+Q$11-1,INDEX(РВД!$D:$I,MATCH($C43,РВД!$A:$A,),),)),IF(Q44="Я",INDEX('график 7,8'!$B$5:$AF$16,MONTH($AP$3),Q$11),"")) -> 7.8 | R43: =IFERROR(INDEX(РВД!$D:$I,MATCH($C43,РВД!$A:$A,)+1,MATCH($N$4+R$11-1,INDEX(РВД!$D:$I,MATCH($C43,РВД!$A:$A,),),)),IF(R44="Я",INDEX('график 7,8'!$B$5:$AF$16,MONTH($AP$3),R$11),"")) ->  | S43: =IFERROR(INDEX(РВД!$D:$I,MATCH($C43,РВД!$A:$A,)+1,MATCH($N$4+S$11-1,INDEX(РВД!$D:$I,MATCH($C43,РВД!$A:$A,),),)),IF(S44="Я",INDEX('график 7,8'!$B$5:$AF$16,MONTH($AP$3),S$11),"")) ->  | T43: =SUMIF(E44:S44,"Я",E43:S43) -> 70.2 | U43: =IFERROR(INDEX(РВД!$D:$I,MATCH($C43,РВД!$A:$A,)+1,MATCH($N$4+U$11-1,INDEX(РВД!$D:$I,MATCH($C43,РВД!$A:$A,),),)),IF(U44="Я",INDEX('график 7,8'!$B$5:$AF$16,MONTH($AP$3),U$11),"")) -> 7.8 | V43: =IFERROR(INDEX(РВД!$D:$I,MATCH($C43,РВД!$A:$A,)+1,MATCH($N$4+V$11-1,INDEX(РВД!$D:$I,MATCH($C43,РВД!$A:$A,),),)),IF(V44="Я",INDEX('график 7,8'!$B$5:$AF$16,MONTH($AP$3),V$11),"")) -> 7.8 | W43: =IFERROR(INDEX(РВД!$D:$I,MATCH($C43,РВД!$A:$A,)+1,MATCH($N$4+W$11-1,INDEX(РВД!$D:$I,MATCH($C43,РВД!$A:$A,),),)),IF(W44="Я",INDEX('график 7,8'!$B$5:$AF$16,MONTH($AP$3),W$11),"")) -> 7.8 | X43: =IFERROR(INDEX(РВД!$D:$I,MATCH($C43,РВД!$A:$A,)+1,MATCH($N$4+X$11-1,INDEX(РВД!$D:$I,MATCH($C43,РВД!$A:$A,),),)),IF(X44="Я",INDEX('график 7,8'!$B$5:$AF$16,MONTH($AP$3),X$11),"")) -> 7.8 | Y43: =IFERROR(INDEX(РВД!$D:$I,MATCH($C43,РВД!$A:$A,)+1,MATCH($N$4+Y$11-1,INDEX(РВД!$D:$I,MATCH($C43,РВД!$A:$A,),),)),IF(Y44="Я",INDEX('график 7,8'!$B$5:$AF$16,MONTH($AP$3),Y$11),"")) -> 7.8 | Z43: =IFERROR(INDEX(РВД!$D:$I,MATCH($C43,РВД!$A:$A,)+1,MATCH($N$4+Z$11-1,INDEX(РВД!$D:$I,MATCH($C43,РВД!$A:$A,),),)),IF(Z44="Я",INDEX('график 7,8'!$B$5:$AF$16,MONTH($AP$3),Z$11),"")) ->  | AA43: =IFERROR(INDEX(РВД!$D:$I,MATCH($C43,РВД!$A:$A,)+1,MATCH($N$4+AA$11-1,INDEX(РВД!$D:$I,MATCH($C43,РВД!$A:$A,),),)),IF(AA44="Я",INDEX('график 7,8'!$B$5:$AF$16,MONTH($AP$3),AA$11),"")) ->  | AB43: =IFERROR(INDEX(РВД!$D:$I,MATCH($C43,РВД!$A:$A,)+1,MATCH($N$4+AB$11-1,INDEX(РВД!$D:$I,MATCH($C43,РВД!$A:$A,),),)),IF(AB44="Я",INDEX('график 7,8'!$B$5:$AF$16,MONTH($AP$3),AB$11),"")) -> 7.8 | AC43: =IFERROR(INDEX(РВД!$D:$I,MATCH($C43,РВД!$A:$A,)+1,MATCH($N$4+AC$11-1,INDEX(РВД!$D:$I,MATCH($C43,РВД!$A:$A,),),)),IF(AC44="Я",INDEX('график 7,8'!$B$5:$AF$16,MONTH($AP$3),AC$11),"")) -> 7.8 | AD43: =IFERROR(INDEX(РВД!$D:$I,MATCH($C43,РВД!$A:$A,)+1,MATCH($N$4+AD$11-1,INDEX(РВД!$D:$I,MATCH($C43,РВД!$A:$A,),),)),IF(AD44="Я",INDEX('график 7,8'!$B$5:$AF$16,MONTH($AP$3),AD$11),"")) -> 7.8 | AE43: =IFERROR(INDEX(РВД!$D:$I,MATCH($C43,РВД!$A:$A,)+1,MATCH($N$4+AE$11-1,INDEX(РВД!$D:$I,MATCH($C43,РВД!$A:$A,),),)),IF(AE44="Я",INDEX('график 7,8'!$B$5:$AF$16,MONTH($AP$3),AE$11),"")) -> 7.8 | AF43: =IFERROR(INDEX(РВД!$D:$I,MATCH($C43,РВД!$A:$A,)+1,MATCH($N$4+AF$11-1,INDEX(РВД!$D:$I,MATCH($C43,РВД!$A:$A,),),)),IF(AF44="Я",INDEX('график 7,8'!$B$5:$AF$16,MONTH($AP$3),AF$11),"")) -> 7.8 | AG43: =IFERROR(INDEX(РВД!$D:$I,MATCH($C43,РВД!$A:$A,)+1,MATCH($N$4+AG$11-1,INDEX(РВД!$D:$I,MATCH($C43,РВД!$A:$A,),),)),IF(AG44="Я",INDEX('график 7,8'!$B$5:$AF$16,MONTH($AP$3),AG$11),"")) ->  | AH43: =IFERROR(INDEX(РВД!$D:$I,MATCH($C43,РВД!$A:$A,)+1,MATCH($N$4+AH$11-1,INDEX(РВД!$D:$I,MATCH($C43,РВД!$A:$A,),),)),IF(AH44="Я",INDEX('график 7,8'!$B$5:$AF$16,MONTH($AP$3),AH$11),"")) ->  | AI43: =IFERROR(INDEX(РВД!$D:$I,MATCH($C43,РВД!$A:$A,)+1,MATCH($N$4+AI$11-1,INDEX(РВД!$D:$I,MATCH($C43,РВД!$A:$A,),),)),IF(AI44="Я",INDEX('график 7,8'!$B$5:$AF$16,MONTH($AP$3),AI$11),"")) -> 7.8 | AJ43: =IFERROR(INDEX(РВД!$D:$I,MATCH($C43,РВД!$A:$A,)+1,MATCH($N$4+AJ$11-1,INDEX(РВД!$D:$I,MATCH($C43,РВД!$A:$A,),),)),IF(AJ44="Я",INDEX('график 7,8'!$B$5:$AF$16,MONTH($AP$3),AJ$11),"")) -> 7.8 | AK43: ="Я/"&SUMIF(E44:AJ44,"Я",E43:AJ43) -> Я/163,8 | AL43: =(SUMIF(E44:AJ44,"В",E43:AJ43)+SUMIF(E44:AJ44,"В.",E43:AJ43))*2 -> 0 | AM43: =COUNTIFS(E44:AJ44,"Я",E43:AJ43,"<>") -> 21 | AN43: =IFERROR(VLOOKUP(C43,доплаты!$A$5:$P$118,16,0),"") -> 24
E44: =TRIM(LEFT(TRIM(INDEX(отсутствия!$N:$AR,MATCH($C43,отсутствия!$A:$A,),E$11)&" "&TEXT(INDEX('график 7,8'!$B$5:$AF$16,MONTH($AP$3),E$11)&"","Я")),2)) -> В | F44: =TRIM(LEFT(TRIM(INDEX(отсутствия!$N:$AR,MATCH($C43,отсутствия!$A:$A,),F$11)&" "&TEXT(INDEX('график 7,8'!$B$5:$AF$16,MONTH($AP$3),F$11)&"","Я")),2)) -> Я | G44: =TRIM(LEFT(TRIM(INDEX(отсутствия!$N:$AR,MATCH($C43,отсутствия!$A:$A,),G$11)&" "&TEXT(INDEX('график 7,8'!$B$5:$AF$16,MONTH($AP$3),G$11)&"","Я")),2)) -> Я | H44: =TRIM(LEFT(TRIM(INDEX(отсутствия!$N:$AR,MATCH($C43,отсутствия!$A:$A,),H$11)&" "&TEXT(INDEX('график 7,8'!$B$5:$AF$16,MONTH($AP$3),H$11)&"","Я")),2)) -> Я | I44: =TRIM(LEFT(TRIM(INDEX(отсутствия!$N:$AR,MATCH($C43,отсутствия!$A:$A,),I$11)&" "&TEXT(INDEX('график 7,8'!$B$5:$AF$16,MONTH($AP$3),I$11)&"","Я")),2)) -> Я | J44: =TRIM(LEFT(TRIM(INDEX(отсутствия!$N:$AR,MATCH($C43,отсутствия!$A:$A,),J$11)&" "&TEXT(INDEX('график 7,8'!$B$5:$AF$16,MONTH($AP$3),J$11)&"","Я")),2)) -> Я | K44: =TRIM(LEFT(TRIM(INDEX(отсутствия!$N:$AR,MATCH($C43,отсутствия!$A:$A,),K$11)&" "&TEXT(INDEX('график 7,8'!$B$5:$AF$16,MONTH($AP$3),K$11)&"","Я")),2)) -> В | L44: =TRIM(LEFT(TRIM(INDEX(отсутствия!$N:$AR,MATCH($C43,отсутствия!$A:$A,),L$11)&" "&TEXT(INDEX('график 7,8'!$B$5:$AF$16,MONTH($AP$3),L$11)&"","Я")),2)) -> В. | M44: =TRIM(LEFT(TRIM(INDEX(отсутствия!$N:$AR,MATCH($C43,отсутствия!$A:$A,),M$11)&" "&TEXT(INDEX('график 7,8'!$B$5:$AF$16,MONTH($AP$3),M$11)&"","Я")),2)) -> В | N44: =TRIM(LEFT(TRIM(INDEX(отсутствия!$N:$AR,MATCH($C43,отсутствия!$A:$A,),N$11)&" "&TEXT(INDEX('график 7,8'!$B$5:$AF$16,MONTH($AP$3),N$11)&"","Я")),2)) -> Я | O44: =TRIM(LEFT(TRIM(INDEX(отсутствия!$N:$AR,MATCH($C43,отсутствия!$A:$A,),O$11)&" "&TEXT(INDEX('график 7,8'!$B$5:$AF$16,MONTH($AP$3),O$11)&"","Я")),2)) -> Я | P44: =TRIM(LEFT(TRIM(INDEX(отсутствия!$N:$AR,MATCH($C43,отсутствия!$A:$A,),P$11)&" "&TEXT(INDEX('график 7,8'!$B$5:$AF$16,MONTH($AP$3),P$11)&"","Я")),2)) -> Я | Q44: =TRIM(LEFT(TRIM(INDEX(отсутствия!$N:$AR,MATCH($C43,отсутствия!$A:$A,),Q$11)&" "&TEXT(INDEX('график 7,8'!$B$5:$AF$16,MONTH($AP$3),Q$11)&"","Я")),2)) -> Я | R44: =TRIM(LEFT(TRIM(INDEX(отсутствия!$N:$AR,MATCH($C43,отсутствия!$A:$A,),R$11)&" "&TEXT(INDEX('график 7,8'!$B$5:$AF$16,MONTH($AP$3),R$11)&"","Я")),2)) -> В | S44: =TRIM(LEFT(TRIM(INDEX(отсутствия!$N:$AR,MATCH($C43,отсутствия!$A:$A,),S$11)&" "&TEXT(INDEX('график 7,8'!$B$5:$AF$16,MONTH($AP$3),S$11)&"","Я")),2)) -> В | U44: =TRIM(LEFT(TRIM(INDEX(отсутствия!$N:$AR,MATCH($C43,отсутствия!$A:$A,),U$11)&" "&TEXT(INDEX('график 7,8'!$B$5:$AF$16,MONTH($AP$3),U$11)&"","Я")),2)) -> Я | V44: =TRIM(LEFT(TRIM(INDEX(отсутствия!$N:$AR,MATCH($C43,отсутствия!$A:$A,),V$11)&" "&TEXT(INDEX('график 7,8'!$B$5:$AF$16,MONTH($AP$3),V$11)&"","Я")),2)) -> Я | W44: =TRIM(LEFT(TRIM(INDEX(отсутствия!$N:$AR,MATCH($C43,отсутствия!$A:$A,),W$11)&" "&TEXT(INDEX('график 7,8'!$B$5:$AF$16,MONTH($AP$3),W$11)&"","Я")),2)) -> Я | X44: =TRIM(LEFT(TRIM(INDEX(отсутствия!$N:$AR,MATCH($C43,отсутствия!$A:$A,),X$11)&" "&TEXT(INDEX('график 7,8'!$B$5:$AF$16,MONTH($AP$3),X$11)&"","Я")),2)) -> Я | Y44: =TRIM(LEFT(TRIM(INDEX(отсутствия!$N:$AR,MATCH($C43,отсутствия!$A:$A,),Y$11)&" "&TEXT(INDEX('график 7,8'!$B$5:$AF$16,MONTH($AP$3),Y$11)&"","Я")),2)) -> Я | Z44: =TRIM(LEFT(TRIM(INDEX(отсутствия!$N:$AR,MATCH($C43,отсутствия!$A:$A,),Z$11)&" "&TEXT(INDEX('график 7,8'!$B$5:$AF$16,MONTH($AP$3),Z$11)&"","Я")),2)) -> В | AA44: =TRIM(LEFT(TRIM(INDEX(отсутствия!$N:$AR,MATCH($C43,отсутствия!$A:$A,),AA$11)&" "&TEXT(INDEX('график 7,8'!$B$5:$AF$16,MONTH($AP$3),AA$11)&"","Я")),2)) -> В | AB44: =TRIM(LEFT(TRIM(INDEX(отсутствия!$N:$AR,MATCH($C43,отсутствия!$A:$A,),AB$11)&" "&TEXT(INDEX('график 7,8'!$B$5:$AF$16,MONTH($AP$3),AB$11)&"","Я")),2)) -> Я | AC44: =TRIM(LEFT(TRIM(INDEX(отсутствия!$N:$AR,MATCH($C43,отсутствия!$A:$A,),AC$11)&" "&TEXT(INDEX('график 7,8'!$B$5:$AF$16,MONTH($AP$3),AC$11)&"","Я")),2)) -> Я | AD44: =TRIM(LEFT(TRIM(INDEX(отсутствия!$N:$AR,MATCH($C43,отсутствия!$A:$A,),AD$11)&" "&TEXT(INDEX('график 7,8'!$B$5:$AF$16,MONTH($AP$3),AD$11)&"","Я")),2)) -> Я | AE44: =TRIM(LEFT(TRIM(INDEX(отсутствия!$N:$AR,MATCH($C43,отсутствия!$A:$A,),AE$11)&" "&TEXT(INDEX('график 7,8'!$B$5:$AF$16,MONTH($AP$3),AE$11)&"","Я")),2)) -> Я | AF44: =TRIM(LEFT(TRIM(INDEX(отсутствия!$N:$AR,MATCH($C43,отсутствия!$A:$A,),AF$11)&" "&TEXT(INDEX('график 7,8'!$B$5:$AF$16,MONTH($AP$3),AF$11)&"","Я")),2)) -> Я | AG44: =TRIM(LEFT(TRIM(INDEX(отсутствия!$N:$AR,MATCH($C43,отсутствия!$A:$A,),AG$11)&" "&TEXT(INDEX('график 7,8'!$B$5:$AF$16,MONTH($AP$3),AG$11)&"","Я")),2)) -> В | AH44: =TRIM(LEFT(TRIM(INDEX(отсутствия!$N:$AR,MATCH($C43,отсутствия!$A:$A,),AH$11)&" "&TEXT(INDEX('график 7,8'!$B$5:$AF$16,MONTH($AP$3),AH$11)&"","Я")),2)) -> В | AI44: =TRIM(LEFT(TRIM(INDEX(отсутствия!$N:$AR,MATCH($C43,отсутствия!$A:$A,),AI$11)&" "&TEXT(INDEX('график 7,8'!$B$5:$AF$16,MONTH($AP$3),AI$11)&"","Я")),2)) -> Я | AJ44: =TRIM(LEFT(TRIM(INDEX(отсутствия!$N:$AR,MATCH($C43,отсутствия!$A:$A,),AJ$11)&" "&TEXT(INDEX('график 7,8'!$B$5:$AF$16,MONTH($AP$3),AJ$11)&"","Я")),2)) -> Я
A45: 4990 | B45: Ковальчук | C45: 4990 | D45: сборная | E45: =IFERROR(INDEX(РВД!$D:$I,MATCH($C45,РВД!$A:$A,)+1,MATCH($N$4+E$11-1,INDEX(РВД!$D:$I,MATCH($C45,РВД!$A:$A,),),)),IF(E46="Я",INDEX('график 7,8'!$B$52:$AF$63,MONTH($AP$3),E$11),"")) ->  | F45: =IFERROR(INDEX(РВД!$D:$I,MATCH($C45,РВД!$A:$A,)+1,MATCH($N$4+F$11-1,INDEX(РВД!$D:$I,MATCH($C45,РВД!$A:$A,),),)),IF(F46="Я",INDEX('график 7,8'!$B$52:$AF$63,MONTH($AP$3),F$11),"")) -> 3.9 | G45: =IFERROR(INDEX(РВД!$D:$I,MATCH($C45,РВД!$A:$A,)+1,MATCH($N$4+G$11-1,INDEX(РВД!$D:$I,MATCH($C45,РВД!$A:$A,),),)),IF(G46="Я",INDEX('график 7,8'!$B$52:$AF$63,MONTH($AP$3),G$11),"")) -> 3.9 | H45: =IFERROR(INDEX(РВД!$D:$I,MATCH($C45,РВД!$A:$A,)+1,MATCH($N$4+H$11-1,INDEX(РВД!$D:$I,MATCH($C45,РВД!$A:$A,),),)),IF(H46="Я",INDEX('график 7,8'!$B$52:$AF$63,MONTH($AP$3),H$11),"")) -> 3.9 | I45: =IFERROR(INDEX(РВД!$D:$I,MATCH($C45,РВД!$A:$A,)+1,MATCH($N$4+I$11-1,INDEX(РВД!$D:$I,MATCH($C45,РВД!$A:$A,),),)),IF(I46="Я",INDEX('график 7,8'!$B$52:$AF$63,MONTH($AP$3),I$11),"")) -> 3.9 | J45: =IFERROR(INDEX(РВД!$D:$I,MATCH($C45,РВД!$A:$A,)+1,MATCH($N$4+J$11-1,INDEX(РВД!$D:$I,MATCH($C45,РВД!$A:$A,),),)),IF(J46="Я",INDEX('график 7,8'!$B$52:$AF$63,MONTH($AP$3),J$11),"")) -> 3.9 | K45: =IFERROR(INDEX(РВД!$D:$I,MATCH($C45,РВД!$A:$A,)+1,MATCH($N$4+K$11-1,INDEX(РВД!$D:$I,MATCH($C45,РВД!$A:$A,),),)),IF(K46="Я",INDEX('график 7,8'!$B$52:$AF$63,MONTH($AP$3),K$11),"")) ->  | L45: =IFERROR(INDEX(РВД!$D:$I,MATCH($C45,РВД!$A:$A,)+1,MATCH($N$4+L$11-1,INDEX(РВД!$D:$I,MATCH($C45,РВД!$A:$A,),),)),IF(L46="Я",INDEX('график 7,8'!$B$52:$AF$63,MONTH($AP$3),L$11),"")) ->  | M45: =IFERROR(INDEX(РВД!$D:$I,MATCH($C45,РВД!$A:$A,)+1,MATCH($N$4+M$11-1,INDEX(РВД!$D:$I,MATCH($C45,РВД!$A:$A,),),)),IF(M46="Я",INDEX('график 7,8'!$B$52:$AF$63,MONTH($AP$3),M$11),"")) ->  | N45: =IFERROR(INDEX(РВД!$D:$I,MATCH($C45,РВД!$A:$A,)+1,MATCH($N$4+N$11-1,INDEX(РВД!$D:$I,MATCH($C45,РВД!$A:$A,),),)),IF(N46="Я",INDEX('график 7,8'!$B$52:$AF$63,MONTH($AP$3),N$11),"")) -> 3.9 | O45: =IFERROR(INDEX(РВД!$D:$I,MATCH($C45,РВД!$A:$A,)+1,MATCH($N$4+O$11-1,INDEX(РВД!$D:$I,MATCH($C45,РВД!$A:$A,),),)),IF(O46="Я",INDEX('график 7,8'!$B$52:$AF$63,MONTH($AP$3),O$11),"")) -> 3.9 | P45: =IFERROR(INDEX(РВД!$D:$I,MATCH($C45,РВД!$A:$A,)+1,MATCH($N$4+P$11-1,INDEX(РВД!$D:$I,MATCH($C45,РВД!$A:$A,),),)),IF(P46="Я",INDEX('график 7,8'!$B$52:$AF$63,MONTH($AP$3),P$11),"")) -> 3.9 | Q45: =IFERROR(INDEX(РВД!$D:$I,MATCH($C45,РВД!$A:$A,)+1,MATCH($N$4+Q$11-1,INDEX(РВД!$D:$I,MATCH($C45,РВД!$A:$A,),),)),IF(Q46="Я",INDEX('график 7,8'!$B$52:$AF$63,MONTH($AP$3),Q$11),"")) -> 3.9 | R45: =IFERROR(INDEX(РВД!$D:$I,MATCH($C45,РВД!$A:$A,)+1,MATCH($N$4+R$11-1,INDEX(РВД!$D:$I,MATCH($C45,РВД!$A:$A,),),)),IF(R46="Я",INDEX('график 7,8'!$B$52:$AF$63,MONTH($AP$3),R$11),"")) ->  | S45: =IFERROR(INDEX(РВД!$D:$I,MATCH($C45,РВД!$A:$A,)+1,MATCH($N$4+S$11-1,INDEX(РВД!$D:$I,MATCH($C45,РВД!$A:$A,),),)),IF(S46="Я",INDEX('график 7,8'!$B$52:$AF$63,MONTH($AP$3),S$11),"")) ->  | T45: =SUMIF(E46:S46,"Я",E45:S45) -> 35.1 | U45: =IFERROR(INDEX(РВД!$D:$I,MATCH($C45,РВД!$A:$A,)+1,MATCH($N$4+U$11-1,INDEX(РВД!$D:$I,MATCH($C45,РВД!$A:$A,),),)),IF(U46="Я",INDEX('график 7,8'!$B$52:$AF$63,MONTH($AP$3),U$11),"")) -> 3.9 | V45: =IFERROR(INDEX(РВД!$D:$I,MATCH($C45,РВД!$A:$A,)+1,MATCH($N$4+V$11-1,INDEX(РВД!$D:$I,MATCH($C45,РВД!$A:$A,),),)),IF(V46="Я",INDEX('график 7,8'!$B$52:$AF$63,MONTH($AP$3),V$11),"")) -> 3.9 | W45: =IFERROR(INDEX(РВД!$D:$I,MATCH($C45,РВД!$A:$A,)+1,MATCH($N$4+W$11-1,INDEX(РВД!$D:$I,MATCH($C45,РВД!$A:$A,),),)),IF(W46="Я",INDEX('график 7,8'!$B$52:$AF$63,MONTH($AP$3),W$11),"")) -> 3.9 | X45: =IFERROR(INDEX(РВД!$D:$I,MATCH($C45,РВД!$A:$A,)+1,MATCH($N$4+X$11-1,INDEX(РВД!$D:$I,MATCH($C45,РВД!$A:$A,),),)),IF(X46="Я",INDEX('график 7,8'!$B$52:$AF$63,MONTH($AP$3),X$11),"")) -> 3.9 | Y45: =IFERROR(INDEX(РВД!$D:$I,MATCH($C45,РВД!$A:$A,)+1,MATCH($N$4+Y$11-1,INDEX(РВД!$D:$I,MATCH($C45,РВД!$A:$A,),),)),IF(Y46="Я",INDEX('график 7,8'!$B$52:$AF$63,MONTH($AP$3),Y$11),"")) -> 3.9 | Z45: =IFERROR(INDEX(РВД!$D:$I,MATCH($C45,РВД!$A:$A,)+1,MATCH($N$4+Z$11-1,INDEX(РВД!$D:$I,MATCH($C45,РВД!$A:$A,),),)),IF(Z46="Я",INDEX('график 7,8'!$B$52:$AF$63,MONTH($AP$3),Z$11),"")) ->  | AA45: =IFERROR(INDEX(РВД!$D:$I,MATCH($C45,РВД!$A:$A,)+1,MATCH($N$4+AA$11-1,INDEX(РВД!$D:$I,MATCH($C45,РВД!$A:$A,),),)),IF(AA46="Я",INDEX('график 7,8'!$B$52:$AF$63,MONTH($AP$3),AA$11),"")) ->  | AB45: =IFERROR(INDEX(РВД!$D:$I,MATCH($C45,РВД!$A:$A,)+1,MATCH($N$4+AB$11-1,INDEX(РВД!$D:$I,MATCH($C45,РВД!$A:$A,),),)),IF(AB46="Я",INDEX('график 7,8'!$B$52:$AF$63,MONTH($AP$3),AB$11),"")) -> 3.9 | AC45: =IFERROR(INDEX(РВД!$D:$I,MATCH($C45,РВД!$A:$A,)+1,MATCH($N$4+AC$11-1,INDEX(РВД!$D:$I,MATCH($C45,РВД!$A:$A,),),)),IF(AC46="Я",INDEX('график 7,8'!$B$52:$AF$63,MONTH($AP$3),AC$11),"")) -> 3.9 | AD45: =IFERROR(INDEX(РВД!$D:$I,MATCH($C45,РВД!$A:$A,)+1,MATCH($N$4+AD$11-1,INDEX(РВД!$D:$I,MATCH($C45,РВД!$A:$A,),),)),IF(AD46="Я",INDEX('график 7,8'!$B$52:$AF$63,MONTH($AP$3),AD$11),"")) -> 3.9 | AE45: =IFERROR(INDEX(РВД!$D:$I,MATCH($C45,РВД!$A:$A,)+1,MATCH($N$4+AE$11-1,INDEX(РВД!$D:$I,MATCH($C45,РВД!$A:$A,),),)),IF(AE46="Я",INDEX('график 7,8'!$B$52:$AF$63,MONTH($AP$3),AE$11),"")) -> 3.9 | AF45: =IFERROR(INDEX(РВД!$D:$I,MATCH($C45,РВД!$A:$A,)+1,MATCH($N$4+AF$11-1,INDEX(РВД!$D:$I,MATCH($C45,РВД!$A:$A,),),)),IF(AF46="Я",INDEX('график 7,8'!$B$52:$AF$63,MONTH($AP$3),AF$11),"")) -> 3.9 | AG45: =IFERROR(INDEX(РВД!$D:$I,MATCH($C45,РВД!$A:$A,)+1,MATCH($N$4+AG$11-1,INDEX(РВД!$D:$I,MATCH($C45,РВД!$A:$A,),),)),IF(AG46="Я",INDEX('график 7,8'!$B$52:$AF$63,MONTH($AP$3),AG$11),"")) ->  | AH45: =IFERROR(INDEX(РВД!$D:$I,MATCH($C45,РВД!$A:$A,)+1,MATCH($N$4+AH$11-1,INDEX(РВД!$D:$I,MATCH($C45,РВД!$A:$A,),),)),IF(AH46="Я",INDEX('график 7,8'!$B$52:$AF$63,MONTH($AP$3),AH$11),"")) ->  | AI45: =IFERROR(INDEX(РВД!$D:$I,MATCH($C45,РВД!$A:$A,)+1,MATCH($N$4+AI$11-1,INDEX(РВД!$D:$I,MATCH($C45,РВД!$A:$A,),),)),IF(AI46="Я",INDEX('график 7,8'!$B$52:$AF$63,MONTH($AP$3),AI$11),"")) -> 3.9 | AJ45: =IFERROR(INDEX(РВД!$D:$I,MATCH($C45,РВД!$A:$A,)+1,MATCH($N$4+AJ$11-1,INDEX(РВД!$D:$I,MATCH($C45,РВД!$A:$A,),),)),IF(AJ46="Я",INDEX('график 7,8'!$B$52:$AF$63,MONTH($AP$3),AJ$11),"")) -> 3.9 | AK45: ="Я/"&SUMIF(E46:AJ46,"Я",E45:AJ45) -> Я/81,9 | AL45: =(SUMIF(E46:AJ46,"В",E45:AJ45)+SUMIF(E46:AJ46,"В.",E45:AJ45))*2 -> 0 | AM45: =COUNTIFS(E46:AJ46,"Я",E45:AJ45,"<>") -> 21 | AN45: =IFERROR(VLOOKUP(C45,доплаты!$A$5:$P$118,16,0),"") -> 28
E46: =TRIM(LEFT(TRIM(INDEX(отсутствия!$N:$AR,MATCH($C45,отсутствия!$A:$A,),E$11)&" "&TEXT(INDEX('график 7,8'!$B$52:$AF$63,MONTH($AP$3),E$11)&"","Я")),2)) -> В | F46: =TRIM(LEFT(TRIM(INDEX(отсутствия!$N:$AR,MATCH($C45,отсутствия!$A:$A,),F$11)&" "&TEXT(INDEX('график 7,8'!$B$52:$AF$63,MONTH($AP$3),F$11)&"","Я")),2)) -> Я | G46: =TRIM(LEFT(TRIM(INDEX(отсутствия!$N:$AR,MATCH($C45,отсутствия!$A:$A,),G$11)&" "&TEXT(INDEX('график 7,8'!$B$52:$AF$63,MONTH($AP$3),G$11)&"","Я")),2)) -> Я | H46: =TRIM(LEFT(TRIM(INDEX(отсутствия!$N:$AR,MATCH($C45,отсутствия!$A:$A,),H$11)&" "&TEXT(INDEX('график 7,8'!$B$52:$AF$63,MONTH($AP$3),H$11)&"","Я")),2)) -> Я | I46: =TRIM(LEFT(TRIM(INDEX(отсутствия!$N:$AR,MATCH($C45,отсутствия!$A:$A,),I$11)&" "&TEXT(INDEX('график 7,8'!$B$52:$AF$63,MONTH($AP$3),I$11)&"","Я")),2)) -> Я | J46: =TRIM(LEFT(TRIM(INDEX(отсутствия!$N:$AR,MATCH($C45,отсутствия!$A:$A,),J$11)&" "&TEXT(INDEX('график 7,8'!$B$52:$AF$63,MONTH($AP$3),J$11)&"","Я")),2)) -> Я | K46: =TRIM(LEFT(TRIM(INDEX(отсутствия!$N:$AR,MATCH($C45,отсутствия!$A:$A,),K$11)&" "&TEXT(INDEX('график 7,8'!$B$52:$AF$63,MONTH($AP$3),K$11)&"","Я")),2)) -> В | L46: =TRIM(LEFT(TRIM(INDEX(отсутствия!$N:$AR,MATCH($C45,отсутствия!$A:$A,),L$11)&" "&TEXT(INDEX('график 7,8'!$B$52:$AF$63,MONTH($AP$3),L$11)&"","Я")),2)) -> В. | M46: =TRIM(LEFT(TRIM(INDEX(отсутствия!$N:$AR,MATCH($C45,отсутствия!$A:$A,),M$11)&" "&TEXT(INDEX('график 7,8'!$B$52:$AF$63,MONTH($AP$3),M$11)&"","Я")),2)) -> В | N46: =TRIM(LEFT(TRIM(INDEX(отсутствия!$N:$AR,MATCH($C45,отсутствия!$A:$A,),N$11)&" "&TEXT(INDEX('график 7,8'!$B$52:$AF$63,MONTH($AP$3),N$11)&"","Я")),2)) -> Я | O46: =TRIM(LEFT(TRIM(INDEX(отсутствия!$N:$AR,MATCH($C45,отсутствия!$A:$A,),O$11)&" "&TEXT(INDEX('график 7,8'!$B$52:$AF$63,MONTH($AP$3),O$11)&"","Я")),2)) -> Я | P46: =TRIM(LEFT(TRIM(INDEX(отсутствия!$N:$AR,MATCH($C45,отсутствия!$A:$A,),P$11)&" "&TEXT(INDEX('график 7,8'!$B$52:$AF$63,MONTH($AP$3),P$11)&"","Я")),2)) -> Я | Q46: =TRIM(LEFT(TRIM(INDEX(отсутствия!$N:$AR,MATCH($C45,отсутствия!$A:$A,),Q$11)&" "&TEXT(INDEX('график 7,8'!$B$52:$AF$63,MONTH($AP$3),Q$11)&"","Я")),2)) -> Я | R46: =TRIM(LEFT(TRIM(INDEX(отсутствия!$N:$AR,MATCH($C45,отсутствия!$A:$A,),R$11)&" "&TEXT(INDEX('график 7,8'!$B$52:$AF$63,MONTH($AP$3),R$11)&"","Я")),2)) -> В | S46: =TRIM(LEFT(TRIM(INDEX(отсутствия!$N:$AR,MATCH($C45,отсутствия!$A:$A,),S$11)&" "&TEXT(INDEX('график 7,8'!$B$52:$AF$63,MONTH($AP$3),S$11)&"","Я")),2)) -> В | U46: =TRIM(LEFT(TRIM(INDEX(отсутствия!$N:$AR,MATCH($C45,отсутствия!$A:$A,),U$11)&" "&TEXT(INDEX('график 7,8'!$B$52:$AF$63,MONTH($AP$3),U$11)&"","Я")),2)) -> Я | V46: =TRIM(LEFT(TRIM(INDEX(отсутствия!$N:$AR,MATCH($C45,отсутствия!$A:$A,),V$11)&" "&TEXT(INDEX('график 7,8'!$B$52:$AF$63,MONTH($AP$3),V$11)&"","Я")),2)) -> Я | W46: =TRIM(LEFT(TRIM(INDEX(отсутствия!$N:$AR,MATCH($C45,отсутствия!$A:$A,),W$11)&" "&TEXT(INDEX('график 7,8'!$B$52:$AF$63,MONTH($AP$3),W$11)&"","Я")),2)) -> Я | X46: =TRIM(LEFT(TRIM(INDEX(отсутствия!$N:$AR,MATCH($C45,отсутствия!$A:$A,),X$11)&" "&TEXT(INDEX('график 7,8'!$B$52:$AF$63,MONTH($AP$3),X$11)&"","Я")),2)) -> Я | Y46: =TRIM(LEFT(TRIM(INDEX(отсутствия!$N:$AR,MATCH($C45,отсутствия!$A:$A,),Y$11)&" "&TEXT(INDEX('график 7,8'!$B$52:$AF$63,MONTH($AP$3),Y$11)&"","Я")),2)) -> Я | Z46: =TRIM(LEFT(TRIM(INDEX(отсутствия!$N:$AR,MATCH($C45,отсутствия!$A:$A,),Z$11)&" "&TEXT(INDEX('график 7,8'!$B$52:$AF$63,MONTH($AP$3),Z$11)&"","Я")),2)) -> В | AA46: =TRIM(LEFT(TRIM(INDEX(отсутствия!$N:$AR,MATCH($C45,отсутствия!$A:$A,),AA$11)&" "&TEXT(INDEX('график 7,8'!$B$52:$AF$63,MONTH($AP$3),AA$11)&"","Я")),2)) -> В | AB46: =TRIM(LEFT(TRIM(INDEX(отсутствия!$N:$AR,MATCH($C45,отсутствия!$A:$A,),AB$11)&" "&TEXT(INDEX('график 7,8'!$B$52:$AF$63,MONTH($AP$3),AB$11)&"","Я")),2)) -> Я | AC46: =TRIM(LEFT(TRIM(INDEX(отсутствия!$N:$AR,MATCH($C45,отсутствия!$A:$A,),AC$11)&" "&TEXT(INDEX('график 7,8'!$B$52:$AF$63,MONTH($AP$3),AC$11)&"","Я")),2)) -> Я | AD46: =TRIM(LEFT(TRIM(INDEX(отсутствия!$N:$AR,MATCH($C45,отсутствия!$A:$A,),AD$11)&" "&TEXT(INDEX('график 7,8'!$B$52:$AF$63,MONTH($AP$3),AD$11)&"","Я")),2)) -> Я | AE46: =TRIM(LEFT(TRIM(INDEX(отсутствия!$N:$AR,MATCH($C45,отсутствия!$A:$A,),AE$11)&" "&TEXT(INDEX('график 7,8'!$B$52:$AF$63,MONTH($AP$3),AE$11)&"","Я")),2)) -> Я | AF46: =TRIM(LEFT(TRIM(INDEX(отсутствия!$N:$AR,MATCH($C45,отсутствия!$A:$A,),AF$11)&" "&TEXT(INDEX('график 7,8'!$B$52:$AF$63,MONTH($AP$3),AF$11)&"","Я")),2)) -> Я | AG46: =TRIM(LEFT(TRIM(INDEX(отсутствия!$N:$AR,MATCH($C45,отсутствия!$A:$A,),AG$11)&" "&TEXT(INDEX('график 7,8'!$B$52:$AF$63,MONTH($AP$3),AG$11)&"","Я")),2)) -> В | AH46: =TRIM(LEFT(TRIM(INDEX(отсутствия!$N:$AR,MATCH($C45,отсутствия!$A:$A,),AH$11)&" "&TEXT(INDEX('график 7,8'!$B$52:$AF$63,MONTH($AP$3),AH$11)&"","Я")),2)) -> В | AI46: =TRIM(LEFT(TRIM(INDEX(отсутствия!$N:$AR,MATCH($C45,отсутствия!$A:$A,),AI$11)&" "&TEXT(INDEX('график 7,8'!$B$52:$AF$63,MONTH($AP$3),AI$11)&"","Я")),2)) -> Я | AJ46: =TRIM(LEFT(TRIM(INDEX(отсутствия!$N:$AR,MATCH($C45,отсутствия!$A:$A,),AJ$11)&" "&TEXT(INDEX('график 7,8'!$B$52:$AF$63,MONTH($AP$3),AJ$11)&"","Я")),2)) -> Я
A47: 5015 | B47: Аршавин | C47: 5015 | D47: сборная | E47: =IFERROR(INDEX(РВД!$D:$I,MATCH($C47,РВД!$A:$A,)+1,MATCH($N$4+E$11-1,INDEX(РВД!$D:$I,MATCH($C47,РВД!$A:$A,),),)),IF(E48="Я",INDEX('график 7,8'!$B$5:$AF$16,MONTH($AP$3),E$11),"")) ->  | F47: =IFERROR(INDEX(РВД!$D:$I,MATCH($C47,РВД!$A:$A,)+1,MATCH($N$4+F$11-1,INDEX(РВД!$D:$I,MATCH($C47,РВД!$A:$A,),),)),IF(F48="Я",INDEX('график 7,8'!$B$5:$AF$16,MONTH($AP$3),F$11),"")) -> 7.8 | G47: =IFERROR(INDEX(РВД!$D:$I,MATCH($C47,РВД!$A:$A,)+1,MATCH($N$4+G$11-1,INDEX(РВД!$D:$I,MATCH($C47,РВД!$A:$A,),),)),IF(G48="Я",INDEX('график 7,8'!$B$5:$AF$16,MONTH($AP$3),G$11),"")) -> 7.8 | H47: =IFERROR(INDEX(РВД!$D:$I,MATCH($C47,РВД!$A:$A,)+1,MATCH($N$4+H$11-1,INDEX(РВД!$D:$I,MATCH($C47,РВД!$A:$A,),),)),IF(H48="Я",INDEX('график 7,8'!$B$5:$AF$16,MONTH($AP$3),H$11),"")) -> 7.8 | I47: =IFERROR(INDEX(РВД!$D:$I,MATCH($C47,РВД!$A:$A,)+1,MATCH($N$4+I$11-1,INDEX(РВД!$D:$I,MATCH($C47,РВД!$A:$A,),),)),IF(I48="Я",INDEX('график 7,8'!$B$5:$AF$16,MONTH($AP$3),I$11),"")) -> 7.8 | J47: =IFERROR(INDEX(РВД!$D:$I,MATCH($C47,РВД!$A:$A,)+1,MATCH($N$4+J$11-1,INDEX(РВД!$D:$I,MATCH($C47,РВД!$A:$A,),),)),IF(J48="Я",INDEX('график 7,8'!$B$5:$AF$16,MONTH($AP$3),J$11),"")) -> 7.8 | K47: =IFERROR(INDEX(РВД!$D:$I,MATCH($C47,РВД!$A:$A,)+1,MATCH($N$4+K$11-1,INDEX(РВД!$D:$I,MATCH($C47,РВД!$A:$A,),),)),IF(K48="Я",INDEX('график 7,8'!$B$5:$AF$16,MONTH($AP$3),K$11),"")) ->  | L47: =IFERROR(INDEX(РВД!$D:$I,MATCH($C47,РВД!$A:$A,)+1,MATCH($N$4+L$11-1,INDEX(РВД!$D:$I,MATCH($C47,РВД!$A:$A,),),)),IF(L48="Я",INDEX('график 7,8'!$B$5:$AF$16,MONTH($AP$3),L$11),"")) ->  | M47: =IFERROR(INDEX(РВД!$D:$I,MATCH($C47,РВД!$A:$A,)+1,MATCH($N$4+M$11-1,INDEX(РВД!$D:$I,MATCH($C47,РВД!$A:$A,),),)),IF(M48="Я",INDEX('график 7,8'!$B$5:$AF$16,MONTH($AP$3),M$11),"")) ->  | N47: =IFERROR(INDEX(РВД!$D:$I,MATCH($C47,РВД!$A:$A,)+1,MATCH($N$4+N$11-1,INDEX(РВД!$D:$I,MATCH($C47,РВД!$A:$A,),),)),IF(N48="Я",INDEX('график 7,8'!$B$5:$AF$16,MONTH($AP$3),N$11),"")) -> 7.8 | O47: =IFERROR(INDEX(РВД!$D:$I,MATCH($C47,РВД!$A:$A,)+1,MATCH($N$4+O$11-1,INDEX(РВД!$D:$I,MATCH($C47,РВД!$A:$A,),),)),IF(O48="Я",INDEX('график 7,8'!$B$5:$AF$16,MONTH($AP$3),O$11),"")) -> 7.8 | P47: =IFERROR(INDEX(РВД!$D:$I,MATCH($C47,РВД!$A:$A,)+1,MATCH($N$4+P$11-1,INDEX(РВД!$D:$I,MATCH($C47,РВД!$A:$A,),),)),IF(P48="Я",INDEX('график 7,8'!$B$5:$AF$16,MONTH($AP$3),P$11),"")) -> 7.8 | Q47: =IFERROR(INDEX(РВД!$D:$I,MATCH($C47,РВД!$A:$A,)+1,MATCH($N$4+Q$11-1,INDEX(РВД!$D:$I,MATCH($C47,РВД!$A:$A,),),)),IF(Q48="Я",INDEX('график 7,8'!$B$5:$AF$16,MONTH($AP$3),Q$11),"")) -> 7.8 | R47: =IFERROR(INDEX(РВД!$D:$I,MATCH($C47,РВД!$A:$A,)+1,MATCH($N$4+R$11-1,INDEX(РВД!$D:$I,MATCH($C47,РВД!$A:$A,),),)),IF(R48="Я",INDEX('график 7,8'!$B$5:$AF$16,MONTH($AP$3),R$11),"")) ->  | S47: =IFERROR(INDEX(РВД!$D:$I,MATCH($C47,РВД!$A:$A,)+1,MATCH($N$4+S$11-1,INDEX(РВД!$D:$I,MATCH($C47,РВД!$A:$A,),),)),IF(S48="Я",INDEX('график 7,8'!$B$5:$AF$16,MONTH($AP$3),S$11),"")) ->  | T47: =SUMIF(E48:S48,"Я",E47:S47) -> 70.2 | U47: =IFERROR(INDEX(РВД!$D:$I,MATCH($C47,РВД!$A:$A,)+1,MATCH($N$4+U$11-1,INDEX(РВД!$D:$I,MATCH($C47,РВД!$A:$A,),),)),IF(U48="Я",INDEX('график 7,8'!$B$5:$AF$16,MONTH($AP$3),U$11),"")) -> 7.8 | V47: =IFERROR(INDEX(РВД!$D:$I,MATCH($C47,РВД!$A:$A,)+1,MATCH($N$4+V$11-1,INDEX(РВД!$D:$I,MATCH($C47,РВД!$A:$A,),),)),IF(V48="Я",INDEX('график 7,8'!$B$5:$AF$16,MONTH($AP$3),V$11),"")) -> 7.8 | W47: =IFERROR(INDEX(РВД!$D:$I,MATCH($C47,РВД!$A:$A,)+1,MATCH($N$4+W$11-1,INDEX(РВД!$D:$I,MATCH($C47,РВД!$A:$A,),),)),IF(W48="Я",INDEX('график 7,8'!$B$5:$AF$16,MONTH($AP$3),W$11),"")) -> 7.8 | X47: =IFERROR(INDEX(РВД!$D:$I,MATCH($C47,РВД!$A:$A,)+1,MATCH($N$4+X$11-1,INDEX(РВД!$D:$I,MATCH($C47,РВД!$A:$A,),),)),IF(X48="Я",INDEX('график 7,8'!$B$5:$AF$16,MONTH($AP$3),X$11),"")) -> 7.8 | Y47: =IFERROR(INDEX(РВД!$D:$I,MATCH($C47,РВД!$A:$A,)+1,MATCH($N$4+Y$11-1,INDEX(РВД!$D:$I,MATCH($C47,РВД!$A:$A,),),)),IF(Y48="Я",INDEX('график 7,8'!$B$5:$AF$16,MONTH($AP$3),Y$11),"")) -> 7.8 | Z47: =IFERROR(INDEX(РВД!$D:$I,MATCH($C47,РВД!$A:$A,)+1,MATCH($N$4+Z$11-1,INDEX(РВД!$D:$I,MATCH($C47,РВД!$A:$A,),),)),IF(Z48="Я",INDEX('график 7,8'!$B$5:$AF$16,MONTH($AP$3),Z$11),"")) ->  | AA47: =IFERROR(INDEX(РВД!$D:$I,MATCH($C47,РВД!$A:$A,)+1,MATCH($N$4+AA$11-1,INDEX(РВД!$D:$I,MATCH($C47,РВД!$A:$A,),),)),IF(AA48="Я",INDEX('график 7,8'!$B$5:$AF$16,MONTH($AP$3),AA$11),"")) ->  | AB47: =IFERROR(INDEX(РВД!$D:$I,MATCH($C47,РВД!$A:$A,)+1,MATCH($N$4+AB$11-1,INDEX(РВД!$D:$I,MATCH($C47,РВД!$A:$A,),),)),IF(AB48="Я",INDEX('график 7,8'!$B$5:$AF$16,MONTH($AP$3),AB$11),"")) -> 7.8 | AC47: =IFERROR(INDEX(РВД!$D:$I,MATCH($C47,РВД!$A:$A,)+1,MATCH($N$4+AC$11-1,INDEX(РВД!$D:$I,MATCH($C47,РВД!$A:$A,),),)),IF(AC48="Я",INDEX('график 7,8'!$B$5:$AF$16,MONTH($AP$3),AC$11),"")) -> 7.8 | AD47: =IFERROR(INDEX(РВД!$D:$I,MATCH($C47,РВД!$A:$A,)+1,MATCH($N$4+AD$11-1,INDEX(РВД!$D:$I,MATCH($C47,РВД!$A:$A,),),)),IF(AD48="Я",INDEX('график 7,8'!$B$5:$AF$16,MONTH($AP$3),AD$11),"")) -> 7.8 | AE47: =IFERROR(INDEX(РВД!$D:$I,MATCH($C47,РВД!$A:$A,)+1,MATCH($N$4+AE$11-1,INDEX(РВД!$D:$I,MATCH($C47,РВД!$A:$A,),),)),IF(AE48="Я",INDEX('график 7,8'!$B$5:$AF$16,MONTH($AP$3),AE$11),"")) -> 7.8 | AF47: =IFERROR(INDEX(РВД!$D:$I,MATCH($C47,РВД!$A:$A,)+1,MATCH($N$4+AF$11-1,INDEX(РВД!$D:$I,MATCH($C47,РВД!$A:$A,),),)),IF(AF48="Я",INDEX('график 7,8'!$B$5:$AF$16,MONTH($AP$3),AF$11),"")) -> 7.8 | AG47: =IFERROR(INDEX(РВД!$D:$I,MATCH($C47,РВД!$A:$A,)+1,MATCH($N$4+AG$11-1,INDEX(РВД!$D:$I,MATCH($C47,РВД!$A:$A,),),)),IF(AG48="Я",INDEX('график 7,8'!$B$5:$AF$16,MONTH($AP$3),AG$11),"")) ->  | AH47: =IFERROR(INDEX(РВД!$D:$I,MATCH($C47,РВД!$A:$A,)+1,MATCH($N$4+AH$11-1,INDEX(РВД!$D:$I,MATCH($C47,РВД!$A:$A,),),)),IF(AH48="Я",INDEX('график 7,8'!$B$5:$AF$16,MONTH($AP$3),AH$11),"")) ->  | AI47: =IFERROR(INDEX(РВД!$D:$I,MATCH($C47,РВД!$A:$A,)+1,MATCH($N$4+AI$11-1,INDEX(РВД!$D:$I,MATCH($C47,РВД!$A:$A,),),)),IF(AI48="Я",INDEX('график 7,8'!$B$5:$AF$16,MONTH($AP$3),AI$11),"")) -> 7.8 | AJ47: =IFERROR(INDEX(РВД!$D:$I,MATCH($C47,РВД!$A:$A,)+1,MATCH($N$4+AJ$11-1,INDEX(РВД!$D:$I,MATCH($C47,РВД!$A:$A,),),)),IF(AJ48="Я",INDEX('график 7,8'!$B$5:$AF$16,MONTH($AP$3),AJ$11),"")) -> 7.8 | AK47: ="Я/"&SUMIF(E48:AJ48,"Я",E47:AJ47) -> Я/163,8 | AL47: =(SUMIF(E48:AJ48,"В",E47:AJ47)+SUMIF(E48:AJ48,"В.",E47:AJ47))*2 -> 0 | AM47: =COUNTIFS(E48:AJ48,"Я",E47:AJ47,"<>") -> 21 | AN47: =IFERROR(VLOOKUP(C47,доплаты!$A$5:$P$118,16,0),"") -> 20,100
E48: =TRIM(LEFT(TRIM(INDEX(отсутствия!$N:$AR,MATCH($C47,отсутствия!$A:$A,),E$11)&" "&TEXT(INDEX('график 7,8'!$B$5:$AF$16,MONTH($AP$3),E$11)&"","Я")),2)) -> В | F48: =TRIM(LEFT(TRIM(INDEX(отсутствия!$N:$AR,MATCH($C47,отсутствия!$A:$A,),F$11)&" "&TEXT(INDEX('график 7,8'!$B$5:$AF$16,MONTH($AP$3),F$11)&"","Я")),2)) -> Я | G48: =TRIM(LEFT(TRIM(INDEX(отсутствия!$N:$AR,MATCH($C47,отсутствия!$A:$A,),G$11)&" "&TEXT(INDEX('график 7,8'!$B$5:$AF$16,MONTH($AP$3),G$11)&"","Я")),2)) -> Я | H48: =TRIM(LEFT(TRIM(INDEX(отсутствия!$N:$AR,MATCH($C47,отсутствия!$A:$A,),H$11)&" "&TEXT(INDEX('график 7,8'!$B$5:$AF$16,MONTH($AP$3),H$11)&"","Я")),2)) -> Я | I48: =TRIM(LEFT(TRIM(INDEX(отсутствия!$N:$AR,MATCH($C47,отсутствия!$A:$A,),I$11)&" "&TEXT(INDEX('график 7,8'!$B$5:$AF$16,MONTH($AP$3),I$11)&"","Я")),2)) -> Я | J48: =TRIM(LEFT(TRIM(INDEX(отсутствия!$N:$AR,MATCH($C47,отсутствия!$A:$A,),J$11)&" "&TEXT(INDEX('график 7,8'!$B$5:$AF$16,MONTH($AP$3),J$11)&"","Я")),2)) -> Я | K48: =TRIM(LEFT(TRIM(INDEX(отсутствия!$N:$AR,MATCH($C47,отсутствия!$A:$A,),K$11)&" "&TEXT(INDEX('график 7,8'!$B$5:$AF$16,MONTH($AP$3),K$11)&"","Я")),2)) -> В | L48: =TRIM(LEFT(TRIM(INDEX(отсутствия!$N:$AR,MATCH($C47,отсутствия!$A:$A,),L$11)&" "&TEXT(INDEX('график 7,8'!$B$5:$AF$16,MONTH($AP$3),L$11)&"","Я")),2)) -> В. | M48: =TRIM(LEFT(TRIM(INDEX(отсутствия!$N:$AR,MATCH($C47,отсутствия!$A:$A,),M$11)&" "&TEXT(INDEX('график 7,8'!$B$5:$AF$16,MONTH($AP$3),M$11)&"","Я")),2)) -> В | N48: =TRIM(LEFT(TRIM(INDEX(отсутствия!$N:$AR,MATCH($C47,отсутствия!$A:$A,),N$11)&" "&TEXT(INDEX('график 7,8'!$B$5:$AF$16,MONTH($AP$3),N$11)&"","Я")),2)) -> Я | O48: =TRIM(LEFT(TRIM(INDEX(отсутствия!$N:$AR,MATCH($C47,отсутствия!$A:$A,),O$11)&" "&TEXT(INDEX('график 7,8'!$B$5:$AF$16,MONTH($AP$3),O$11)&"","Я")),2)) -> Я | P48: =TRIM(LEFT(TRIM(INDEX(отсутствия!$N:$AR,MATCH($C47,отсутствия!$A:$A,),P$11)&" "&TEXT(INDEX('график 7,8'!$B$5:$AF$16,MONTH($AP$3),P$11)&"","Я")),2)) -> Я | Q48: =TRIM(LEFT(TRIM(INDEX(отсутствия!$N:$AR,MATCH($C47,отсутствия!$A:$A,),Q$11)&" "&TEXT(INDEX('график 7,8'!$B$5:$AF$16,MONTH($AP$3),Q$11)&"","Я")),2)) -> Я | R48: =TRIM(LEFT(TRIM(INDEX(отсутствия!$N:$AR,MATCH($C47,отсутствия!$A:$A,),R$11)&" "&TEXT(INDEX('график 7,8'!$B$5:$AF$16,MONTH($AP$3),R$11)&"","Я")),2)) -> В | S48: =TRIM(LEFT(TRIM(INDEX(отсутствия!$N:$AR,MATCH($C47,отсутствия!$A:$A,),S$11)&" "&TEXT(INDEX('график 7,8'!$B$5:$AF$16,MONTH($AP$3),S$11)&"","Я")),2)) -> В | U48: =TRIM(LEFT(TRIM(INDEX(отсутствия!$N:$AR,MATCH($C47,отсутствия!$A:$A,),U$11)&" "&TEXT(INDEX('график 7,8'!$B$5:$AF$16,MONTH($AP$3),U$11)&"","Я")),2)) -> Я | V48: =TRIM(LEFT(TRIM(INDEX(отсутствия!$N:$AR,MATCH($C47,отсутствия!$A:$A,),V$11)&" "&TEXT(INDEX('график 7,8'!$B$5:$AF$16,MONTH($AP$3),V$11)&"","Я")),2)) -> Я | W48: =TRIM(LEFT(TRIM(INDEX(отсутствия!$N:$AR,MATCH($C47,отсутствия!$A:$A,),W$11)&" "&TEXT(INDEX('график 7,8'!$B$5:$AF$16,MONTH($AP$3),W$11)&"","Я")),2)) -> Я | X48: =TRIM(LEFT(TRIM(INDEX(отсутствия!$N:$AR,MATCH($C47,отсутствия!$A:$A,),X$11)&" "&TEXT(INDEX('график 7,8'!$B$5:$AF$16,MONTH($AP$3),X$11)&"","Я")),2)) -> Я | Y48: =TRIM(LEFT(TRIM(INDEX(отсутствия!$N:$AR,MATCH($C47,отсутствия!$A:$A,),Y$11)&" "&TEXT(INDEX('график 7,8'!$B$5:$AF$16,MONTH($AP$3),Y$11)&"","Я")),2)) -> Я | Z48: =TRIM(LEFT(TRIM(INDEX(отсутствия!$N:$AR,MATCH($C47,отсутствия!$A:$A,),Z$11)&" "&TEXT(INDEX('график 7,8'!$B$5:$AF$16,MONTH($AP$3),Z$11)&"","Я")),2)) -> В | AA48: =TRIM(LEFT(TRIM(INDEX(отсутствия!$N:$AR,MATCH($C47,отсутствия!$A:$A,),AA$11)&" "&TEXT(INDEX('график 7,8'!$B$5:$AF$16,MONTH($AP$3),AA$11)&"","Я")),2)) -> В | AB48: =TRIM(LEFT(TRIM(INDEX(отсутствия!$N:$AR,MATCH($C47,отсутствия!$A:$A,),AB$11)&" "&TEXT(INDEX('график 7,8'!$B$5:$AF$16,MONTH($AP$3),AB$11)&"","Я")),2)) -> Я | AC48: =TRIM(LEFT(TRIM(INDEX(отсутствия!$N:$AR,MATCH($C47,отсутствия!$A:$A,),AC$11)&" "&TEXT(INDEX('график 7,8'!$B$5:$AF$16,MONTH($AP$3),AC$11)&"","Я")),2)) -> Я | AD48: =TRIM(LEFT(TRIM(INDEX(отсутствия!$N:$AR,MATCH($C47,отсутствия!$A:$A,),AD$11)&" "&TEXT(INDEX('график 7,8'!$B$5:$AF$16,MONTH($AP$3),AD$11)&"","Я")),2)) -> Я | AE48: =TRIM(LEFT(TRIM(INDEX(отсутствия!$N:$AR,MATCH($C47,отсутствия!$A:$A,),AE$11)&" "&TEXT(INDEX('график 7,8'!$B$5:$AF$16,MONTH($AP$3),AE$11)&"","Я")),2)) -> Я | AF48: =TRIM(LEFT(TRIM(INDEX(отсутствия!$N:$AR,MATCH($C47,отсутствия!$A:$A,),AF$11)&" "&TEXT(INDEX('график 7,8'!$B$5:$AF$16,MONTH($AP$3),AF$11)&"","Я")),2)) -> Я | AG48: =TRIM(LEFT(TRIM(INDEX(отсутствия!$N:$AR,MATCH($C47,отсутствия!$A:$A,),AG$11)&" "&TEXT(INDEX('график 7,8'!$B$5:$AF$16,MONTH($AP$3),AG$11)&"","Я")),2)) -> В | AH48: =TRIM(LEFT(TRIM(INDEX(отсутствия!$N:$AR,MATCH($C47,отсутствия!$A:$A,),AH$11)&" "&TEXT(INDEX('график 7,8'!$B$5:$AF$16,MONTH($AP$3),AH$11)&"","Я")),2)) -> В | AI48: =TRIM(LEFT(TRIM(INDEX(отсутствия!$N:$AR,MATCH($C47,отсутствия!$A:$A,),AI$11)&" "&TEXT(INDEX('график 7,8'!$B$5:$AF$16,MONTH($AP$3),AI$11)&"","Я")),2)) -> Я | AJ48: =TRIM(LEFT(TRIM(INDEX(отсутствия!$N:$AR,MATCH($C47,отсутствия!$A:$A,),AJ$11)&" "&TEXT(INDEX('график 7,8'!$B$5:$AF$16,MONTH($AP$3),AJ$11)&"","Я")),2)) -> Я
A49: 5021 | B49: Яшин | C49: 5021 | D49: сборная | E49: =IFERROR(INDEX(РВД!$D:$I,MATCH($C49,РВД!$A:$A,)+1,MATCH($N$4+E$11-1,INDEX(РВД!$D:$I,MATCH($C49,РВД!$A:$A,),),)),IF(E50="Я",INDEX('график 7,8'!$B$5:$AF$16,MONTH($AP$3),E$11),"")) ->  | F49: =IFERROR(INDEX(РВД!$D:$I,MATCH($C49,РВД!$A:$A,)+1,MATCH($N$4+F$11-1,INDEX(РВД!$D:$I,MATCH($C49,РВД!$A:$A,),),)),IF(F50="Я",INDEX('график 7,8'!$B$5:$AF$16,MONTH($AP$3),F$11),"")) -> 7.8 | G49: =IFERROR(INDEX(РВД!$D:$I,MATCH($C49,РВД!$A:$A,)+1,MATCH($N$4+G$11-1,INDEX(РВД!$D:$I,MATCH($C49,РВД!$A:$A,),),)),IF(G50="Я",INDEX('график 7,8'!$B$5:$AF$16,MONTH($AP$3),G$11),"")) -> 7.8 | H49: =IFERROR(INDEX(РВД!$D:$I,MATCH($C49,РВД!$A:$A,)+1,MATCH($N$4+H$11-1,INDEX(РВД!$D:$I,MATCH($C49,РВД!$A:$A,),),)),IF(H50="Я",INDEX('график 7,8'!$B$5:$AF$16,MONTH($AP$3),H$11),"")) -> 7.8 | I49: =IFERROR(INDEX(РВД!$D:$I,MATCH($C49,РВД!$A:$A,)+1,MATCH($N$4+I$11-1,INDEX(РВД!$D:$I,MATCH($C49,РВД!$A:$A,),),)),IF(I50="Я",INDEX('график 7,8'!$B$5:$AF$16,MONTH($AP$3),I$11),"")) -> 7.8 | J49: =IFERROR(INDEX(РВД!$D:$I,MATCH($C49,РВД!$A:$A,)+1,MATCH($N$4+J$11-1,INDEX(РВД!$D:$I,MATCH($C49,РВД!$A:$A,),),)),IF(J50="Я",INDEX('график 7,8'!$B$5:$AF$16,MONTH($AP$3),J$11),"")) -> 7.8 | K49: =IFERROR(INDEX(РВД!$D:$I,MATCH($C49,РВД!$A:$A,)+1,MATCH($N$4+K$11-1,INDEX(РВД!$D:$I,MATCH($C49,РВД!$A:$A,),),)),IF(K50="Я",INDEX('график 7,8'!$B$5:$AF$16,MONTH($AP$3),K$11),"")) ->  | L49: =IFERROR(INDEX(РВД!$D:$I,MATCH($C49,РВД!$A:$A,)+1,MATCH($N$4+L$11-1,INDEX(РВД!$D:$I,MATCH($C49,РВД!$A:$A,),),)),IF(L50="Я",INDEX('график 7,8'!$B$5:$AF$16,MONTH($AP$3),L$11),"")) ->  | M49: =IFERROR(INDEX(РВД!$D:$I,MATCH($C49,РВД!$A:$A,)+1,MATCH($N$4+M$11-1,INDEX(РВД!$D:$I,MATCH($C49,РВД!$A:$A,),),)),IF(M50="Я",INDEX('график 7,8'!$B$5:$AF$16,MONTH($AP$3),M$11),"")) ->  | N49: =IFERROR(INDEX(РВД!$D:$I,MATCH($C49,РВД!$A:$A,)+1,MATCH($N$4+N$11-1,INDEX(РВД!$D:$I,MATCH($C49,РВД!$A:$A,),),)),IF(N50="Я",INDEX('график 7,8'!$B$5:$AF$16,MONTH($AP$3),N$11),"")) -> 7.8 | O49: =IFERROR(INDEX(РВД!$D:$I,MATCH($C49,РВД!$A:$A,)+1,MATCH($N$4+O$11-1,INDEX(РВД!$D:$I,MATCH($C49,РВД!$A:$A,),),)),IF(O50="Я",INDEX('график 7,8'!$B$5:$AF$16,MONTH($AP$3),O$11),"")) -> 7.8 | P49: =IFERROR(INDEX(РВД!$D:$I,MATCH($C49,РВД!$A:$A,)+1,MATCH($N$4+P$11-1,INDEX(РВД!$D:$I,MATCH($C49,РВД!$A:$A,),),)),IF(P50="Я",INDEX('график 7,8'!$B$5:$AF$16,MONTH($AP$3),P$11),"")) -> 7.8 | Q49: =IFERROR(INDEX(РВД!$D:$I,MATCH($C49,РВД!$A:$A,)+1,MATCH($N$4+Q$11-1,INDEX(РВД!$D:$I,MATCH($C49,РВД!$A:$A,),),)),IF(Q50="Я",INDEX('график 7,8'!$B$5:$AF$16,MONTH($AP$3),Q$11),"")) -> 7.8 | R49: =IFERROR(INDEX(РВД!$D:$I,MATCH($C49,РВД!$A:$A,)+1,MATCH($N$4+R$11-1,INDEX(РВД!$D:$I,MATCH($C49,РВД!$A:$A,),),)),IF(R50="Я",INDEX('график 7,8'!$B$5:$AF$16,MONTH($AP$3),R$11),"")) ->  | S49: =IFERROR(INDEX(РВД!$D:$I,MATCH($C49,РВД!$A:$A,)+1,MATCH($N$4+S$11-1,INDEX(РВД!$D:$I,MATCH($C49,РВД!$A:$A,),),)),IF(S50="Я",INDEX('график 7,8'!$B$5:$AF$16,MONTH($AP$3),S$11),"")) ->  | T49: =SUMIF(E50:S50,"Я",E49:S49) -> 70.2 | U49: =IFERROR(INDEX(РВД!$D:$I,MATCH($C49,РВД!$A:$A,)+1,MATCH($N$4+U$11-1,INDEX(РВД!$D:$I,MATCH($C49,РВД!$A:$A,),),)),IF(U50="Я",INDEX('график 7,8'!$B$5:$AF$16,MONTH($AP$3),U$11),"")) -> 7.8 | V49: =IFERROR(INDEX(РВД!$D:$I,MATCH($C49,РВД!$A:$A,)+1,MATCH($N$4+V$11-1,INDEX(РВД!$D:$I,MATCH($C49,РВД!$A:$A,),),)),IF(V50="Я",INDEX('график 7,8'!$B$5:$AF$16,MONTH($AP$3),V$11),"")) -> 7.8 | W49: =IFERROR(INDEX(РВД!$D:$I,MATCH($C49,РВД!$A:$A,)+1,MATCH($N$4+W$11-1,INDEX(РВД!$D:$I,MATCH($C49,РВД!$A:$A,),),)),IF(W50="Я",INDEX('график 7,8'!$B$5:$AF$16,MONTH($AP$3),W$11),"")) -> 7.8 | X49: =IFERROR(INDEX(РВД!$D:$I,MATCH($C49,РВД!$A:$A,)+1,MATCH($N$4+X$11-1,INDEX(РВД!$D:$I,MATCH($C49,РВД!$A:$A,),),)),IF(X50="Я",INDEX('график 7,8'!$B$5:$AF$16,MONTH($AP$3),X$11),"")) -> 7.8 | Y49: =IFERROR(INDEX(РВД!$D:$I,MATCH($C49,РВД!$A:$A,)+1,MATCH($N$4+Y$11-1,INDEX(РВД!$D:$I,MATCH($C49,РВД!$A:$A,),),)),IF(Y50="Я",INDEX('график 7,8'!$B$5:$AF$16,MONTH($AP$3),Y$11),"")) -> 7.8 | Z49: =IFERROR(INDEX(РВД!$D:$I,MATCH($C49,РВД!$A:$A,)+1,MATCH($N$4+Z$11-1,INDEX(РВД!$D:$I,MATCH($C49,РВД!$A:$A,),),)),IF(Z50="Я",INDEX('график 7,8'!$B$5:$AF$16,MONTH($AP$3),Z$11),"")) ->  | AA49: =IFERROR(INDEX(РВД!$D:$I,MATCH($C49,РВД!$A:$A,)+1,MATCH($N$4+AA$11-1,INDEX(РВД!$D:$I,MATCH($C49,РВД!$A:$A,),),)),IF(AA50="Я",INDEX('график 7,8'!$B$5:$AF$16,MONTH($AP$3),AA$11),"")) ->  | AB49: =IFERROR(INDEX(РВД!$D:$I,MATCH($C49,РВД!$A:$A,)+1,MATCH($N$4+AB$11-1,INDEX(РВД!$D:$I,MATCH($C49,РВД!$A:$A,),),)),IF(AB50="Я",INDEX('график 7,8'!$B$5:$AF$16,MONTH($AP$3),AB$11),"")) -> 7.8 | AC49: =IFERROR(INDEX(РВД!$D:$I,MATCH($C49,РВД!$A:$A,)+1,MATCH($N$4+AC$11-1,INDEX(РВД!$D:$I,MATCH($C49,РВД!$A:$A,),),)),IF(AC50="Я",INDEX('график 7,8'!$B$5:$AF$16,MONTH($AP$3),AC$11),"")) -> 7.8 | AD49: =IFERROR(INDEX(РВД!$D:$I,MATCH($C49,РВД!$A:$A,)+1,MATCH($N$4+AD$11-1,INDEX(РВД!$D:$I,MATCH($C49,РВД!$A:$A,),),)),IF(AD50="Я",INDEX('график 7,8'!$B$5:$AF$16,MONTH($AP$3),AD$11),"")) -> 7.8 | AE49: =IFERROR(INDEX(РВД!$D:$I,MATCH($C49,РВД!$A:$A,)+1,MATCH($N$4+AE$11-1,INDEX(РВД!$D:$I,MATCH($C49,РВД!$A:$A,),),)),IF(AE50="Я",INDEX('график 7,8'!$B$5:$AF$16,MONTH($AP$3),AE$11),"")) -> 7.8 | AF49: =IFERROR(INDEX(РВД!$D:$I,MATCH($C49,РВД!$A:$A,)+1,MATCH($N$4+AF$11-1,INDEX(РВД!$D:$I,MATCH($C49,РВД!$A:$A,),),)),IF(AF50="Я",INDEX('график 7,8'!$B$5:$AF$16,MONTH($AP$3),AF$11),"")) -> 7.8 | AG49: =IFERROR(INDEX(РВД!$D:$I,MATCH($C49,РВД!$A:$A,)+1,MATCH($N$4+AG$11-1,INDEX(РВД!$D:$I,MATCH($C49,РВД!$A:$A,),),)),IF(AG50="Я",INDEX('график 7,8'!$B$5:$AF$16,MONTH($AP$3),AG$11),"")) ->  | AH49: =IFERROR(INDEX(РВД!$D:$I,MATCH($C49,РВД!$A:$A,)+1,MATCH($N$4+AH$11-1,INDEX(РВД!$D:$I,MATCH($C49,РВД!$A:$A,),),)),IF(AH50="Я",INDEX('график 7,8'!$B$5:$AF$16,MONTH($AP$3),AH$11),"")) ->  | AI49: =IFERROR(INDEX(РВД!$D:$I,MATCH($C49,РВД!$A:$A,)+1,MATCH($N$4+AI$11-1,INDEX(РВД!$D:$I,MATCH($C49,РВД!$A:$A,),),)),IF(AI50="Я",INDEX('график 7,8'!$B$5:$AF$16,MONTH($AP$3),AI$11),"")) -> 7.8 | AJ49: =IFERROR(INDEX(РВД!$D:$I,MATCH($C49,РВД!$A:$A,)+1,MATCH($N$4+AJ$11-1,INDEX(РВД!$D:$I,MATCH($C49,РВД!$A:$A,),),)),IF(AJ50="Я",INDEX('график 7,8'!$B$5:$AF$16,MONTH($AP$3),AJ$11),"")) -> 7.8 | AK49: ="Я/"&SUMIF(E50:AJ50,"Я",E49:AJ49) -> Я/163,8 | AL49: =(SUMIF(E50:AJ50,"В",E49:AJ49)+SUMIF(E50:AJ50,"В.",E49:AJ49))*2 -> 0 | AM49: =COUNTIFS(E50:AJ50,"Я",E49:AJ49,"<>") -> 21 | AN49: =IFERROR(VLOOKUP(C49,доплаты!$A$5:$P$118,16,0),"") -> 17
E50: =TRIM(LEFT(TRIM(INDEX(отсутствия!$N:$AR,MATCH($C49,отсутствия!$A:$A,),E$11)&" "&TEXT(INDEX('график 7,8'!$B$5:$AF$16,MONTH($AP$3),E$11)&"","Я")),2)) -> В | F50: =TRIM(LEFT(TRIM(INDEX(отсутствия!$N:$AR,MATCH($C49,отсутствия!$A:$A,),F$11)&" "&TEXT(INDEX('график 7,8'!$B$5:$AF$16,MONTH($AP$3),F$11)&"","Я")),2)) -> Я | G50: =TRIM(LEFT(TRIM(INDEX(отсутствия!$N:$AR,MATCH($C49,отсутствия!$A:$A,),G$11)&" "&TEXT(INDEX('график 7,8'!$B$5:$AF$16,MONTH($AP$3),G$11)&"","Я")),2)) -> Я | H50: =TRIM(LEFT(TRIM(INDEX(отсутствия!$N:$AR,MATCH($C49,отсутствия!$A:$A,),H$11)&" "&TEXT(INDEX('график 7,8'!$B$5:$AF$16,MONTH($AP$3),H$11)&"","Я")),2)) -> Я | I50: =TRIM(LEFT(TRIM(INDEX(отсутствия!$N:$AR,MATCH($C49,отсутствия!$A:$A,),I$11)&" "&TEXT(INDEX('график 7,8'!$B$5:$AF$16,MONTH($AP$3),I$11)&"","Я")),2)) -> Я | J50: =TRIM(LEFT(TRIM(INDEX(отсутствия!$N:$AR,MATCH($C49,отсутствия!$A:$A,),J$11)&" "&TEXT(INDEX('график 7,8'!$B$5:$AF$16,MONTH($AP$3),J$11)&"","Я")),2)) -> Я | K50: =TRIM(LEFT(TRIM(INDEX(отсутствия!$N:$AR,MATCH($C49,отсутствия!$A:$A,),K$11)&" "&TEXT(INDEX('график 7,8'!$B$5:$AF$16,MONTH($AP$3),K$11)&"","Я")),2)) -> В | L50: =TRIM(LEFT(TRIM(INDEX(отсутствия!$N:$AR,MATCH($C49,отсутствия!$A:$A,),L$11)&" "&TEXT(INDEX('график 7,8'!$B$5:$AF$16,MONTH($AP$3),L$11)&"","Я")),2)) -> В. | M50: =TRIM(LEFT(TRIM(INDEX(отсутствия!$N:$AR,MATCH($C49,отсутствия!$A:$A,),M$11)&" "&TEXT(INDEX('график 7,8'!$B$5:$AF$16,MONTH($AP$3),M$11)&"","Я")),2)) -> В | N50: =TRIM(LEFT(TRIM(INDEX(отсутствия!$N:$AR,MATCH($C49,отсутствия!$A:$A,),N$11)&" "&TEXT(INDEX('график 7,8'!$B$5:$AF$16,MONTH($AP$3),N$11)&"","Я")),2)) -> Я | O50: =TRIM(LEFT(TRIM(INDEX(отсутствия!$N:$AR,MATCH($C49,отсутствия!$A:$A,),O$11)&" "&TEXT(INDEX('график 7,8'!$B$5:$AF$16,MONTH($AP$3),O$11)&"","Я")),2)) -> Я | P50: =TRIM(LEFT(TRIM(INDEX(отсутствия!$N:$AR,MATCH($C49,отсутствия!$A:$A,),P$11)&" "&TEXT(INDEX('график 7,8'!$B$5:$AF$16,MONTH($AP$3),P$11)&"","Я")),2)) -> Я | Q50: =TRIM(LEFT(TRIM(INDEX(отсутствия!$N:$AR,MATCH($C49,отсутствия!$A:$A,),Q$11)&" "&TEXT(INDEX('график 7,8'!$B$5:$AF$16,MONTH($AP$3),Q$11)&"","Я")),2)) -> Я | R50: =TRIM(LEFT(TRIM(INDEX(отсутствия!$N:$AR,MATCH($C49,отсутствия!$A:$A,),R$11)&" "&TEXT(INDEX('график 7,8'!$B$5:$AF$16,MONTH($AP$3),R$11)&"","Я")),2)) -> В | S50: =TRIM(LEFT(TRIM(INDEX(отсутствия!$N:$AR,MATCH($C49,отсутствия!$A:$A,),S$11)&" "&TEXT(INDEX('график 7,8'!$B$5:$AF$16,MONTH($AP$3),S$11)&"","Я")),2)) -> В | U50: =TRIM(LEFT(TRIM(INDEX(отсутствия!$N:$AR,MATCH($C49,отсутствия!$A:$A,),U$11)&" "&TEXT(INDEX('график 7,8'!$B$5:$AF$16,MONTH($AP$3),U$11)&"","Я")),2)) -> Я | V50: =TRIM(LEFT(TRIM(INDEX(отсутствия!$N:$AR,MATCH($C49,отсутствия!$A:$A,),V$11)&" "&TEXT(INDEX('график 7,8'!$B$5:$AF$16,MONTH($AP$3),V$11)&"","Я")),2)) -> Я | W50: =TRIM(LEFT(TRIM(INDEX(отсутствия!$N:$AR,MATCH($C49,отсутствия!$A:$A,),W$11)&" "&TEXT(INDEX('график 7,8'!$B$5:$AF$16,MONTH($AP$3),W$11)&"","Я")),2)) -> Я | X50: =TRIM(LEFT(TRIM(INDEX(отсутствия!$N:$AR,MATCH($C49,отсутствия!$A:$A,),X$11)&" "&TEXT(INDEX('график 7,8'!$B$5:$AF$16,MONTH($AP$3),X$11)&"","Я")),2)) -> Я | Y50: =TRIM(LEFT(TRIM(INDEX(отсутствия!$N:$AR,MATCH($C49,отсутствия!$A:$A,),Y$11)&" "&TEXT(INDEX('график 7,8'!$B$5:$AF$16,MONTH($AP$3),Y$11)&"","Я")),2)) -> Я | Z50: =TRIM(LEFT(TRIM(INDEX(отсутствия!$N:$AR,MATCH($C49,отсутствия!$A:$A,),Z$11)&" "&TEXT(INDEX('график 7,8'!$B$5:$AF$16,MONTH($AP$3),Z$11)&"","Я")),2)) -> В | AA50: =TRIM(LEFT(TRIM(INDEX(отсутствия!$N:$AR,MATCH($C49,отсутствия!$A:$A,),AA$11)&" "&TEXT(INDEX('график 7,8'!$B$5:$AF$16,MONTH($AP$3),AA$11)&"","Я")),2)) -> В | AB50: =TRIM(LEFT(TRIM(INDEX(отсутствия!$N:$AR,MATCH($C49,отсутствия!$A:$A,),AB$11)&" "&TEXT(INDEX('график 7,8'!$B$5:$AF$16,MONTH($AP$3),AB$11)&"","Я")),2)) -> Я | AC50: =TRIM(LEFT(TRIM(INDEX(отсутствия!$N:$AR,MATCH($C49,отсутствия!$A:$A,),AC$11)&" "&TEXT(INDEX('график 7,8'!$B$5:$AF$16,MONTH($AP$3),AC$11)&"","Я")),2)) -> Я | AD50: =TRIM(LEFT(TRIM(INDEX(отсутствия!$N:$AR,MATCH($C49,отсутствия!$A:$A,),AD$11)&" "&TEXT(INDEX('график 7,8'!$B$5:$AF$16,MONTH($AP$3),AD$11)&"","Я")),2)) -> Я | AE50: =TRIM(LEFT(TRIM(INDEX(отсутствия!$N:$AR,MATCH($C49,отсутствия!$A:$A,),AE$11)&" "&TEXT(INDEX('график 7,8'!$B$5:$AF$16,MONTH($AP$3),AE$11)&"","Я")),2)) -> Я | AF50: =TRIM(LEFT(TRIM(INDEX(отсутствия!$N:$AR,MATCH($C49,отсутствия!$A:$A,),AF$11)&" "&TEXT(INDEX('график 7,8'!$B$5:$AF$16,MONTH($AP$3),AF$11)&"","Я")),2)) -> Я | AG50: =TRIM(LEFT(TRIM(INDEX(отсутствия!$N:$AR,MATCH($C49,отсутствия!$A:$A,),AG$11)&" "&TEXT(INDEX('график 7,8'!$B$5:$AF$16,MONTH($AP$3),AG$11)&"","Я")),2)) -> В | AH50: =TRIM(LEFT(TRIM(INDEX(отсутствия!$N:$AR,MATCH($C49,отсутствия!$A:$A,),AH$11)&" "&TEXT(INDEX('график 7,8'!$B$5:$AF$16,MONTH($AP$3),AH$11)&"","Я")),2)) -> В | AI50: =TRIM(LEFT(TRIM(INDEX(отсутствия!$N:$AR,MATCH($C49,отсутствия!$A:$A,),AI$11)&" "&TEXT(INDEX('график 7,8'!$B$5:$AF$16,MONTH($AP$3),AI$11)&"","Я")),2)) -> Я | AJ50: =TRIM(LEFT(TRIM(INDEX(отсутствия!$N:$AR,MATCH($C49,отсутствия!$A:$A,),AJ$11)&" "&TEXT(INDEX('график 7,8'!$B$5:$AF$16,MONTH($AP$3),AJ$11)&"","Я")),2)) -> Я
A51: 5035 | B51: Кузнецов | C51: 5035 | D51: сборная | E51: =IFERROR(INDEX(РВД!$D:$I,MATCH($C51,РВД!$A:$A,)+1,MATCH($N$4+E$11-1,INDEX(РВД!$D:$I,MATCH($C51,РВД!$A:$A,),),)),IF(E52="Я",INDEX('график 7,8'!$B$5:$AF$16,MONTH($AP$3),E$11),"")) ->  | F51: =IFERROR(INDEX(РВД!$D:$I,MATCH($C51,РВД!$A:$A,)+1,MATCH($N$4+F$11-1,INDEX(РВД!$D:$I,MATCH($C51,РВД!$A:$A,),),)),IF(F52="Я",INDEX('график 7,8'!$B$5:$AF$16,MONTH($AP$3),F$11),"")) -> 7.8 | G51: =IFERROR(INDEX(РВД!$D:$I,MATCH($C51,РВД!$A:$A,)+1,MATCH($N$4+G$11-1,INDEX(РВД!$D:$I,MATCH($C51,РВД!$A:$A,),),)),IF(G52="Я",INDEX('график 7,8'!$B$5:$AF$16,MONTH($AP$3),G$11),"")) -> 7.8 | H51: =IFERROR(INDEX(РВД!$D:$I,MATCH($C51,РВД!$A:$A,)+1,MATCH($N$4+H$11-1,INDEX(РВД!$D:$I,MATCH($C51,РВД!$A:$A,),),)),IF(H52="Я",INDEX('график 7,8'!$B$5:$AF$16,MONTH($AP$3),H$11),"")) -> 7.8 | I51: =IFERROR(INDEX(РВД!$D:$I,MATCH($C51,РВД!$A:$A,)+1,MATCH($N$4+I$11-1,INDEX(РВД!$D:$I,MATCH($C51,РВД!$A:$A,),),)),IF(I52="Я",INDEX('график 7,8'!$B$5:$AF$16,MONTH($AP$3),I$11),"")) -> 7.8 | J51: =IFERROR(INDEX(РВД!$D:$I,MATCH($C51,РВД!$A:$A,)+1,MATCH($N$4+J$11-1,INDEX(РВД!$D:$I,MATCH($C51,РВД!$A:$A,),),)),IF(J52="Я",INDEX('график 7,8'!$B$5:$AF$16,MONTH($AP$3),J$11),"")) -> 7.8 | K51: =IFERROR(INDEX(РВД!$D:$I,MATCH($C51,РВД!$A:$A,)+1,MATCH($N$4+K$11-1,INDEX(РВД!$D:$I,MATCH($C51,РВД!$A:$A,),),)),IF(K52="Я",INDEX('график 7,8'!$B$5:$AF$16,MONTH($AP$3),K$11),"")) ->  | L51: =IFERROR(INDEX(РВД!$D:$I,MATCH($C51,РВД!$A:$A,)+1,MATCH($N$4+L$11-1,INDEX(РВД!$D:$I,MATCH($C51,РВД!$A:$A,),),)),IF(L52="Я",INDEX('график 7,8'!$B$5:$AF$16,MONTH($AP$3),L$11),"")) ->  | M51: =IFERROR(INDEX(РВД!$D:$I,MATCH($C51,РВД!$A:$A,)+1,MATCH($N$4+M$11-1,INDEX(РВД!$D:$I,MATCH($C51,РВД!$A:$A,),),)),IF(M52="Я",INDEX('график 7,8'!$B$5:$AF$16,MONTH($AP$3),M$11),"")) ->  | N51: =IFERROR(INDEX(РВД!$D:$I,MATCH($C51,РВД!$A:$A,)+1,MATCH($N$4+N$11-1,INDEX(РВД!$D:$I,MATCH($C51,РВД!$A:$A,),),)),IF(N52="Я",INDEX('график 7,8'!$B$5:$AF$16,MONTH($AP$3),N$11),"")) -> 7.8 | O51: =IFERROR(INDEX(РВД!$D:$I,MATCH($C51,РВД!$A:$A,)+1,MATCH($N$4+O$11-1,INDEX(РВД!$D:$I,MATCH($C51,РВД!$A:$A,),),)),IF(O52="Я",INDEX('график 7,8'!$B$5:$AF$16,MONTH($AP$3),O$11),"")) -> 7.8 | P51: =IFERROR(INDEX(РВД!$D:$I,MATCH($C51,РВД!$A:$A,)+1,MATCH($N$4+P$11-1,INDEX(РВД!$D:$I,MATCH($C51,РВД!$A:$A,),),)),IF(P52="Я",INDEX('график 7,8'!$B$5:$AF$16,MONTH($AP$3),P$11),"")) -> 7.8 | Q51: =IFERROR(INDEX(РВД!$D:$I,MATCH($C51,РВД!$A:$A,)+1,MATCH($N$4+Q$11-1,INDEX(РВД!$D:$I,MATCH($C51,РВД!$A:$A,),),)),IF(Q52="Я",INDEX('график 7,8'!$B$5:$AF$16,MONTH($AP$3),Q$11),"")) -> 7.8 | R51: =IFERROR(INDEX(РВД!$D:$I,MATCH($C51,РВД!$A:$A,)+1,MATCH($N$4+R$11-1,INDEX(РВД!$D:$I,MATCH($C51,РВД!$A:$A,),),)),IF(R52="Я",INDEX('график 7,8'!$B$5:$AF$16,MONTH($AP$3),R$11),"")) ->  | S51: =IFERROR(INDEX(РВД!$D:$I,MATCH($C51,РВД!$A:$A,)+1,MATCH($N$4+S$11-1,INDEX(РВД!$D:$I,MATCH($C51,РВД!$A:$A,),),)),IF(S52="Я",INDEX('график 7,8'!$B$5:$AF$16,MONTH($AP$3),S$11),"")) ->  | T51: =SUMIF(E52:S52,"Я",E51:S51) -> 70.2 | U51: =IFERROR(INDEX(РВД!$D:$I,MATCH($C51,РВД!$A:$A,)+1,MATCH($N$4+U$11-1,INDEX(РВД!$D:$I,MATCH($C51,РВД!$A:$A,),),)),IF(U52="Я",INDEX('график 7,8'!$B$5:$AF$16,MONTH($AP$3),U$11),"")) -> 7.8 | V51: =IFERROR(INDEX(РВД!$D:$I,MATCH($C51,РВД!$A:$A,)+1,MATCH($N$4+V$11-1,INDEX(РВД!$D:$I,MATCH($C51,РВД!$A:$A,),),)),IF(V52="Я",INDEX('график 7,8'!$B$5:$AF$16,MONTH($AP$3),V$11),"")) -> 7.8 | W51: =IFERROR(INDEX(РВД!$D:$I,MATCH($C51,РВД!$A:$A,)+1,MATCH($N$4+W$11-1,INDEX(РВД!$D:$I,MATCH($C51,РВД!$A:$A,),),)),IF(W52="Я",INDEX('график 7,8'!$B$5:$AF$16,MONTH($AP$3),W$11),"")) -> 7.8 | X51: =IFERROR(INDEX(РВД!$D:$I,MATCH($C51,РВД!$A:$A,)+1,MATCH($N$4+X$11-1,INDEX(РВД!$D:$I,MATCH($C51,РВД!$A:$A,),),)),IF(X52="Я",INDEX('график 7,8'!$B$5:$AF$16,MONTH($AP$3),X$11),"")) -> 7.8 | Y51: =IFERROR(INDEX(РВД!$D:$I,MATCH($C51,РВД!$A:$A,)+1,MATCH($N$4+Y$11-1,INDEX(РВД!$D:$I,MATCH($C51,РВД!$A:$A,),),)),IF(Y52="Я",INDEX('график 7,8'!$B$5:$AF$16,MONTH($AP$3),Y$11),"")) -> 7.8 | Z51: =IFERROR(INDEX(РВД!$D:$I,MATCH($C51,РВД!$A:$A,)+1,MATCH($N$4+Z$11-1,INDEX(РВД!$D:$I,MATCH($C51,РВД!$A:$A,),),)),IF(Z52="Я",INDEX('график 7,8'!$B$5:$AF$16,MONTH($AP$3),Z$11),"")) ->  | AA51: =IFERROR(INDEX(РВД!$D:$I,MATCH($C51,РВД!$A:$A,)+1,MATCH($N$4+AA$11-1,INDEX(РВД!$D:$I,MATCH($C51,РВД!$A:$A,),),)),IF(AA52="Я",INDEX('график 7,8'!$B$5:$AF$16,MONTH($AP$3),AA$11),"")) ->  | AB51: =IFERROR(INDEX(РВД!$D:$I,MATCH($C51,РВД!$A:$A,)+1,MATCH($N$4+AB$11-1,INDEX(РВД!$D:$I,MATCH($C51,РВД!$A:$A,),),)),IF(AB52="Я",INDEX('график 7,8'!$B$5:$AF$16,MONTH($AP$3),AB$11),"")) -> 7.8 | AC51: =IFERROR(INDEX(РВД!$D:$I,MATCH($C51,РВД!$A:$A,)+1,MATCH($N$4+AC$11-1,INDEX(РВД!$D:$I,MATCH($C51,РВД!$A:$A,),),)),IF(AC52="Я",INDEX('график 7,8'!$B$5:$AF$16,MONTH($AP$3),AC$11),"")) -> 7.8 | AD51: =IFERROR(INDEX(РВД!$D:$I,MATCH($C51,РВД!$A:$A,)+1,MATCH($N$4+AD$11-1,INDEX(РВД!$D:$I,MATCH($C51,РВД!$A:$A,),),)),IF(AD52="Я",INDEX('график 7,8'!$B$5:$AF$16,MONTH($AP$3),AD$11),"")) -> 7.8 | AE51: =IFERROR(INDEX(РВД!$D:$I,MATCH($C51,РВД!$A:$A,)+1,MATCH($N$4+AE$11-1,INDEX(РВД!$D:$I,MATCH($C51,РВД!$A:$A,),),)),IF(AE52="Я",INDEX('график 7,8'!$B$5:$AF$16,MONTH($AP$3),AE$11),"")) -> 7.8 | AF51: =IFERROR(INDEX(РВД!$D:$I,MATCH($C51,РВД!$A:$A,)+1,MATCH($N$4+AF$11-1,INDEX(РВД!$D:$I,MATCH($C51,РВД!$A:$A,),),)),IF(AF52="Я",INDEX('график 7,8'!$B$5:$AF$16,MONTH($AP$3),AF$11),"")) -> 7.8 | AG51: =IFERROR(INDEX(РВД!$D:$I,MATCH($C51,РВД!$A:$A,)+1,MATCH($N$4+AG$11-1,INDEX(РВД!$D:$I,MATCH($C51,РВД!$A:$A,),),)),IF(AG52="Я",INDEX('график 7,8'!$B$5:$AF$16,MONTH($AP$3),AG$11),"")) ->  | AH51: =IFERROR(INDEX(РВД!$D:$I,MATCH($C51,РВД!$A:$A,)+1,MATCH($N$4+AH$11-1,INDEX(РВД!$D:$I,MATCH($C51,РВД!$A:$A,),),)),IF(AH52="Я",INDEX('график 7,8'!$B$5:$AF$16,MONTH($AP$3),AH$11),"")) ->  | AI51: =IFERROR(INDEX(РВД!$D:$I,MATCH($C51,РВД!$A:$A,)+1,MATCH($N$4+AI$11-1,INDEX(РВД!$D:$I,MATCH($C51,РВД!$A:$A,),),)),IF(AI52="Я",INDEX('график 7,8'!$B$5:$AF$16,MONTH($AP$3),AI$11),"")) -> 7.8 | AJ51: =IFERROR(INDEX(РВД!$D:$I,MATCH($C51,РВД!$A:$A,)+1,MATCH($N$4+AJ$11-1,INDEX(РВД!$D:$I,MATCH($C51,РВД!$A:$A,),),)),IF(AJ52="Я",INDEX('график 7,8'!$B$5:$AF$16,MONTH($AP$3),AJ$11),"")) -> 7.8 | AK51: ="Я/"&SUMIF(E52:AJ52,"Я",E51:AJ51) -> Я/163,8 | AL51: =(SUMIF(E52:AJ52,"В",E51:AJ51)+SUMIF(E52:AJ52,"В.",E51:AJ51))*2 -> 0 | AM51: =COUNTIFS(E52:AJ52,"Я",E51:AJ51,"<>") -> 21 | AN51: =IFERROR(VLOOKUP(C51,доплаты!$A$5:$P$118,16,0),"") -> 17,30
E52: =TRIM(LEFT(TRIM(INDEX(отсутствия!$N:$AR,MATCH($C51,отсутствия!$A:$A,),E$11)&" "&TEXT(INDEX('график 7,8'!$B$5:$AF$16,MONTH($AP$3),E$11)&"","Я")),2)) -> В | F52: =TRIM(LEFT(TRIM(INDEX(отсутствия!$N:$AR,MATCH($C51,отсутствия!$A:$A,),F$11)&" "&TEXT(INDEX('график 7,8'!$B$5:$AF$16,MONTH($AP$3),F$11)&"","Я")),2)) -> Я | G52: =TRIM(LEFT(TRIM(INDEX(отсутствия!$N:$AR,MATCH($C51,отсутствия!$A:$A,),G$11)&" "&TEXT(INDEX('график 7,8'!$B$5:$AF$16,MONTH($AP$3),G$11)&"","Я")),2)) -> Я | H52: =TRIM(LEFT(TRIM(INDEX(отсутствия!$N:$AR,MATCH($C51,отсутствия!$A:$A,),H$11)&" "&TEXT(INDEX('график 7,8'!$B$5:$AF$16,MONTH($AP$3),H$11)&"","Я")),2)) -> Я | I52: =TRIM(LEFT(TRIM(INDEX(отсутствия!$N:$AR,MATCH($C51,отсутствия!$A:$A,),I$11)&" "&TEXT(INDEX('график 7,8'!$B$5:$AF$16,MONTH($AP$3),I$11)&"","Я")),2)) -> Я | J52: =TRIM(LEFT(TRIM(INDEX(отсутствия!$N:$AR,MATCH($C51,отсутствия!$A:$A,),J$11)&" "&TEXT(INDEX('график 7,8'!$B$5:$AF$16,MONTH($AP$3),J$11)&"","Я")),2)) -> Я | K52: =TRIM(LEFT(TRIM(INDEX(отсутствия!$N:$AR,MATCH($C51,отсутствия!$A:$A,),K$11)&" "&TEXT(INDEX('график 7,8'!$B$5:$AF$16,MONTH($AP$3),K$11)&"","Я")),2)) -> В | L52: =TRIM(LEFT(TRIM(INDEX(отсутствия!$N:$AR,MATCH($C51,отсутствия!$A:$A,),L$11)&" "&TEXT(INDEX('график 7,8'!$B$5:$AF$16,MONTH($AP$3),L$11)&"","Я")),2)) -> В. | M52: =TRIM(LEFT(TRIM(INDEX(отсутствия!$N:$AR,MATCH($C51,отсутствия!$A:$A,),M$11)&" "&TEXT(INDEX('график 7,8'!$B$5:$AF$16,MONTH($AP$3),M$11)&"","Я")),2)) -> В | N52: =TRIM(LEFT(TRIM(INDEX(отсутствия!$N:$AR,MATCH($C51,отсутствия!$A:$A,),N$11)&" "&TEXT(INDEX('график 7,8'!$B$5:$AF$16,MONTH($AP$3),N$11)&"","Я")),2)) -> Я | O52: =TRIM(LEFT(TRIM(INDEX(отсутствия!$N:$AR,MATCH($C51,отсутствия!$A:$A,),O$11)&" "&TEXT(INDEX('график 7,8'!$B$5:$AF$16,MONTH($AP$3),O$11)&"","Я")),2)) -> Я | P52: =TRIM(LEFT(TRIM(INDEX(отсутствия!$N:$AR,MATCH($C51,отсутствия!$A:$A,),P$11)&" "&TEXT(INDEX('график 7,8'!$B$5:$AF$16,MONTH($AP$3),P$11)&"","Я")),2)) -> Я | Q52: =TRIM(LEFT(TRIM(INDEX(отсутствия!$N:$AR,MATCH($C51,отсутствия!$A:$A,),Q$11)&" "&TEXT(INDEX('график 7,8'!$B$5:$AF$16,MONTH($AP$3),Q$11)&"","Я")),2)) -> Я | R52: =TRIM(LEFT(TRIM(INDEX(отсутствия!$N:$AR,MATCH($C51,отсутствия!$A:$A,),R$11)&" "&TEXT(INDEX('график 7,8'!$B$5:$AF$16,MONTH($AP$3),R$11)&"","Я")),2)) -> В | S52: =TRIM(LEFT(TRIM(INDEX(отсутствия!$N:$AR,MATCH($C51,отсутствия!$A:$A,),S$11)&" "&TEXT(INDEX('график 7,8'!$B$5:$AF$16,MONTH($AP$3),S$11)&"","Я")),2)) -> В | U52: =TRIM(LEFT(TRIM(INDEX(отсутствия!$N:$AR,MATCH($C51,отсутствия!$A:$A,),U$11)&" "&TEXT(INDEX('график 7,8'!$B$5:$AF$16,MONTH($AP$3),U$11)&"","Я")),2)) -> Я | V52: =TRIM(LEFT(TRIM(INDEX(отсутствия!$N:$AR,MATCH($C51,отсутствия!$A:$A,),V$11)&" "&TEXT(INDEX('график 7,8'!$B$5:$AF$16,MONTH($AP$3),V$11)&"","Я")),2)) -> Я | W52: =TRIM(LEFT(TRIM(INDEX(отсутствия!$N:$AR,MATCH($C51,отсутствия!$A:$A,),W$11)&" "&TEXT(INDEX('график 7,8'!$B$5:$AF$16,MONTH($AP$3),W$11)&"","Я")),2)) -> Я | X52: =TRIM(LEFT(TRIM(INDEX(отсутствия!$N:$AR,MATCH($C51,отсутствия!$A:$A,),X$11)&" "&TEXT(INDEX('график 7,8'!$B$5:$AF$16,MONTH($AP$3),X$11)&"","Я")),2)) -> Я | Y52: =TRIM(LEFT(TRIM(INDEX(отсутствия!$N:$AR,MATCH($C51,отсутствия!$A:$A,),Y$11)&" "&TEXT(INDEX('график 7,8'!$B$5:$AF$16,MONTH($AP$3),Y$11)&"","Я")),2)) -> Я | Z52: =TRIM(LEFT(TRIM(INDEX(отсутствия!$N:$AR,MATCH($C51,отсутствия!$A:$A,),Z$11)&" "&TEXT(INDEX('график 7,8'!$B$5:$AF$16,MONTH($AP$3),Z$11)&"","Я")),2)) -> В | AA52: =TRIM(LEFT(TRIM(INDEX(отсутствия!$N:$AR,MATCH($C51,отсутствия!$A:$A,),AA$11)&" "&TEXT(INDEX('график 7,8'!$B$5:$AF$16,MONTH($AP$3),AA$11)&"","Я")),2)) -> В | AB52: =TRIM(LEFT(TRIM(INDEX(отсутствия!$N:$AR,MATCH($C51,отсутствия!$A:$A,),AB$11)&" "&TEXT(INDEX('график 7,8'!$B$5:$AF$16,MONTH($AP$3),AB$11)&"","Я")),2)) -> Я | AC52: =TRIM(LEFT(TRIM(INDEX(отсутствия!$N:$AR,MATCH($C51,отсутствия!$A:$A,),AC$11)&" "&TEXT(INDEX('график 7,8'!$B$5:$AF$16,MONTH($AP$3),AC$11)&"","Я")),2)) -> Я | AD52: =TRIM(LEFT(TRIM(INDEX(отсутствия!$N:$AR,MATCH($C51,отсутствия!$A:$A,),AD$11)&" "&TEXT(INDEX('график 7,8'!$B$5:$AF$16,MONTH($AP$3),AD$11)&"","Я")),2)) -> Я | AE52: =TRIM(LEFT(TRIM(INDEX(отсутствия!$N:$AR,MATCH($C51,отсутствия!$A:$A,),AE$11)&" "&TEXT(INDEX('график 7,8'!$B$5:$AF$16,MONTH($AP$3),AE$11)&"","Я")),2)) -> Я | AF52: =TRIM(LEFT(TRIM(INDEX(отсутствия!$N:$AR,MATCH($C51,отсутствия!$A:$A,),AF$11)&" "&TEXT(INDEX('график 7,8'!$B$5:$AF$16,MONTH($AP$3),AF$11)&"","Я")),2)) -> Я | AG52: =TRIM(LEFT(TRIM(INDEX(отсутствия!$N:$AR,MATCH($C51,отсутствия!$A:$A,),AG$11)&" "&TEXT(INDEX('график 7,8'!$B$5:$AF$16,MONTH($AP$3),AG$11)&"","Я")),2)) -> В | AH52: =TRIM(LEFT(TRIM(INDEX(отсутствия!$N:$AR,MATCH($C51,отсутствия!$A:$A,),AH$11)&" "&TEXT(INDEX('график 7,8'!$B$5:$AF$16,MONTH($AP$3),AH$11)&"","Я")),2)) -> В | AI52: =TRIM(LEFT(TRIM(INDEX(отсутствия!$N:$AR,MATCH($C51,отсутствия!$A:$A,),AI$11)&" "&TEXT(INDEX('график 7,8'!$B$5:$AF$16,MONTH($AP$3),AI$11)&"","Я")),2)) -> Я | AJ52: =TRIM(LEFT(TRIM(INDEX(отсутствия!$N:$AR,MATCH($C51,отсутствия!$A:$A,),AJ$11)&" "&TEXT(INDEX('график 7,8'!$B$5:$AF$16,MONTH($AP$3),AJ$11)&"","Я")),2)) -> Я
A53: 5119 | B53: Зубов | C53: 5119 | D53: сборная | E53: =IFERROR(INDEX(РВД!$D:$I,MATCH($C53,РВД!$A:$A,)+1,MATCH($N$4+E$11-1,INDEX(РВД!$D:$I,MATCH($C53,РВД!$A:$A,),),)),IF(E54="Я",INDEX('график 7,8'!$B$52:$AF$63,MONTH($AP$3),E$11),"")) ->  | F53: =IFERROR(INDEX(РВД!$D:$I,MATCH($C53,РВД!$A:$A,)+1,MATCH($N$4+F$11-1,INDEX(РВД!$D:$I,MATCH($C53,РВД!$A:$A,),),)),IF(F54="Я",INDEX('график 7,8'!$B$52:$AF$63,MONTH($AP$3),F$11),"")) -> 3.9 | G53: =IFERROR(INDEX(РВД!$D:$I,MATCH($C53,РВД!$A:$A,)+1,MATCH($N$4+G$11-1,INDEX(РВД!$D:$I,MATCH($C53,РВД!$A:$A,),),)),IF(G54="Я",INDEX('график 7,8'!$B$52:$AF$63,MONTH($AP$3),G$11),"")) -> 3.9 | H53: =IFERROR(INDEX(РВД!$D:$I,MATCH($C53,РВД!$A:$A,)+1,MATCH($N$4+H$11-1,INDEX(РВД!$D:$I,MATCH($C53,РВД!$A:$A,),),)),IF(H54="Я",INDEX('график 7,8'!$B$52:$AF$63,MONTH($AP$3),H$11),"")) -> 3.9 | I53: =IFERROR(INDEX(РВД!$D:$I,MATCH($C53,РВД!$A:$A,)+1,MATCH($N$4+I$11-1,INDEX(РВД!$D:$I,MATCH($C53,РВД!$A:$A,),),)),IF(I54="Я",INDEX('график 7,8'!$B$52:$AF$63,MONTH($AP$3),I$11),"")) -> 3.9 | J53: =IFERROR(INDEX(РВД!$D:$I,MATCH($C53,РВД!$A:$A,)+1,MATCH($N$4+J$11-1,INDEX(РВД!$D:$I,MATCH($C53,РВД!$A:$A,),),)),IF(J54="Я",INDEX('график 7,8'!$B$52:$AF$63,MONTH($AP$3),J$11),"")) -> 3.9 | K53: =IFERROR(INDEX(РВД!$D:$I,MATCH($C53,РВД!$A:$A,)+1,MATCH($N$4+K$11-1,INDEX(РВД!$D:$I,MATCH($C53,РВД!$A:$A,),),)),IF(K54="Я",INDEX('график 7,8'!$B$52:$AF$63,MONTH($AP$3),K$11),"")) ->  | L53: =IFERROR(INDEX(РВД!$D:$I,MATCH($C53,РВД!$A:$A,)+1,MATCH($N$4+L$11-1,INDEX(РВД!$D:$I,MATCH($C53,РВД!$A:$A,),),)),IF(L54="Я",INDEX('график 7,8'!$B$52:$AF$63,MONTH($AP$3),L$11),"")) ->  | M53: =IFERROR(INDEX(РВД!$D:$I,MATCH($C53,РВД!$A:$A,)+1,MATCH($N$4+M$11-1,INDEX(РВД!$D:$I,MATCH($C53,РВД!$A:$A,),),)),IF(M54="Я",INDEX('график 7,8'!$B$52:$AF$63,MONTH($AP$3),M$11),"")) ->  | N53: =IFERROR(INDEX(РВД!$D:$I,MATCH($C53,РВД!$A:$A,)+1,MATCH($N$4+N$11-1,INDEX(РВД!$D:$I,MATCH($C53,РВД!$A:$A,),),)),IF(N54="Я",INDEX('график 7,8'!$B$52:$AF$63,MONTH($AP$3),N$11),"")) -> 3.9 | O53: =IFERROR(INDEX(РВД!$D:$I,MATCH($C53,РВД!$A:$A,)+1,MATCH($N$4+O$11-1,INDEX(РВД!$D:$I,MATCH($C53,РВД!$A:$A,),),)),IF(O54="Я",INDEX('график 7,8'!$B$52:$AF$63,MONTH($AP$3),O$11),"")) -> 3.9 | P53: =IFERROR(INDEX(РВД!$D:$I,MATCH($C53,РВД!$A:$A,)+1,MATCH($N$4+P$11-1,INDEX(РВД!$D:$I,MATCH($C53,РВД!$A:$A,),),)),IF(P54="Я",INDEX('график 7,8'!$B$52:$AF$63,MONTH($AP$3),P$11),"")) -> 3.9 | Q53: =IFERROR(INDEX(РВД!$D:$I,MATCH($C53,РВД!$A:$A,)+1,MATCH($N$4+Q$11-1,INDEX(РВД!$D:$I,MATCH($C53,РВД!$A:$A,),),)),IF(Q54="Я",INDEX('график 7,8'!$B$52:$AF$63,MONTH($AP$3),Q$11),"")) -> 3.9 | R53: =IFERROR(INDEX(РВД!$D:$I,MATCH($C53,РВД!$A:$A,)+1,MATCH($N$4+R$11-1,INDEX(РВД!$D:$I,MATCH($C53,РВД!$A:$A,),),)),IF(R54="Я",INDEX('график 7,8'!$B$52:$AF$63,MONTH($AP$3),R$11),"")) ->  | S53: =IFERROR(INDEX(РВД!$D:$I,MATCH($C53,РВД!$A:$A,)+1,MATCH($N$4+S$11-1,INDEX(РВД!$D:$I,MATCH($C53,РВД!$A:$A,),),)),IF(S54="Я",INDEX('график 7,8'!$B$52:$AF$63,MONTH($AP$3),S$11),"")) ->  | T53: =SUMIF(E54:S54,"Я",E53:S53) -> 35.1 | U53: =IFERROR(INDEX(РВД!$D:$I,MATCH($C53,РВД!$A:$A,)+1,MATCH($N$4+U$11-1,INDEX(РВД!$D:$I,MATCH($C53,РВД!$A:$A,),),)),IF(U54="Я",INDEX('график 7,8'!$B$52:$AF$63,MONTH($AP$3),U$11),"")) -> 3.9 | V53: =IFERROR(INDEX(РВД!$D:$I,MATCH($C53,РВД!$A:$A,)+1,MATCH($N$4+V$11-1,INDEX(РВД!$D:$I,MATCH($C53,РВД!$A:$A,),),)),IF(V54="Я",INDEX('график 7,8'!$B$52:$AF$63,MONTH($AP$3),V$11),"")) -> 3.9 | W53: =IFERROR(INDEX(РВД!$D:$I,MATCH($C53,РВД!$A:$A,)+1,MATCH($N$4+W$11-1,INDEX(РВД!$D:$I,MATCH($C53,РВД!$A:$A,),),)),IF(W54="Я",INDEX('график 7,8'!$B$52:$AF$63,MONTH($AP$3),W$11),"")) -> 3.9 | X53: =IFERROR(INDEX(РВД!$D:$I,MATCH($C53,РВД!$A:$A,)+1,MATCH($N$4+X$11-1,INDEX(РВД!$D:$I,MATCH($C53,РВД!$A:$A,),),)),IF(X54="Я",INDEX('график 7,8'!$B$52:$AF$63,MONTH($AP$3),X$11),"")) -> 3.9 | Y53: =IFERROR(INDEX(РВД!$D:$I,MATCH($C53,РВД!$A:$A,)+1,MATCH($N$4+Y$11-1,INDEX(РВД!$D:$I,MATCH($C53,РВД!$A:$A,),),)),IF(Y54="Я",INDEX('график 7,8'!$B$52:$AF$63,MONTH($AP$3),Y$11),"")) -> 3.9 | Z53: =IFERROR(INDEX(РВД!$D:$I,MATCH($C53,РВД!$A:$A,)+1,MATCH($N$4+Z$11-1,INDEX(РВД!$D:$I,MATCH($C53,РВД!$A:$A,),),)),IF(Z54="Я",INDEX('график 7,8'!$B$52:$AF$63,MONTH($AP$3),Z$11),"")) ->  | AA53: =IFERROR(INDEX(РВД!$D:$I,MATCH($C53,РВД!$A:$A,)+1,MATCH($N$4+AA$11-1,INDEX(РВД!$D:$I,MATCH($C53,РВД!$A:$A,),),)),IF(AA54="Я",INDEX('график 7,8'!$B$52:$AF$63,MONTH($AP$3),AA$11),"")) ->  | AB53: =IFERROR(INDEX(РВД!$D:$I,MATCH($C53,РВД!$A:$A,)+1,MATCH($N$4+AB$11-1,INDEX(РВД!$D:$I,MATCH($C53,РВД!$A:$A,),),)),IF(AB54="Я",INDEX('график 7,8'!$B$52:$AF$63,MONTH($AP$3),AB$11),"")) -> 3.9 | AC53: =IFERROR(INDEX(РВД!$D:$I,MATCH($C53,РВД!$A:$A,)+1,MATCH($N$4+AC$11-1,INDEX(РВД!$D:$I,MATCH($C53,РВД!$A:$A,),),)),IF(AC54="Я",INDEX('график 7,8'!$B$52:$AF$63,MONTH($AP$3),AC$11),"")) -> 3.9 | AD53: =IFERROR(INDEX(РВД!$D:$I,MATCH($C53,РВД!$A:$A,)+1,MATCH($N$4+AD$11-1,INDEX(РВД!$D:$I,MATCH($C53,РВД!$A:$A,),),)),IF(AD54="Я",INDEX('график 7,8'!$B$52:$AF$63,MONTH($AP$3),AD$11),"")) -> 3.9 | AE53: =IFERROR(INDEX(РВД!$D:$I,MATCH($C53,РВД!$A:$A,)+1,MATCH($N$4+AE$11-1,INDEX(РВД!$D:$I,MATCH($C53,РВД!$A:$A,),),)),IF(AE54="Я",INDEX('график 7,8'!$B$52:$AF$63,MONTH($AP$3),AE$11),"")) -> 3.9 | AF53: =IFERROR(INDEX(РВД!$D:$I,MATCH($C53,РВД!$A:$A,)+1,MATCH($N$4+AF$11-1,INDEX(РВД!$D:$I,MATCH($C53,РВД!$A:$A,),),)),IF(AF54="Я",INDEX('график 7,8'!$B$52:$AF$63,MONTH($AP$3),AF$11),"")) -> 3.9 | AG53: =IFERROR(INDEX(РВД!$D:$I,MATCH($C53,РВД!$A:$A,)+1,MATCH($N$4+AG$11-1,INDEX(РВД!$D:$I,MATCH($C53,РВД!$A:$A,),),)),IF(AG54="Я",INDEX('график 7,8'!$B$52:$AF$63,MONTH($AP$3),AG$11),"")) ->  | AH53: =IFERROR(INDEX(РВД!$D:$I,MATCH($C53,РВД!$A:$A,)+1,MATCH($N$4+AH$11-1,INDEX(РВД!$D:$I,MATCH($C53,РВД!$A:$A,),),)),IF(AH54="Я",INDEX('график 7,8'!$B$52:$AF$63,MONTH($AP$3),AH$11),"")) ->  | AI53: =IFERROR(INDEX(РВД!$D:$I,MATCH($C53,РВД!$A:$A,)+1,MATCH($N$4+AI$11-1,INDEX(РВД!$D:$I,MATCH($C53,РВД!$A:$A,),),)),IF(AI54="Я",INDEX('график 7,8'!$B$52:$AF$63,MONTH($AP$3),AI$11),"")) -> 3.9 | AJ53: =IFERROR(INDEX(РВД!$D:$I,MATCH($C53,РВД!$A:$A,)+1,MATCH($N$4+AJ$11-1,INDEX(РВД!$D:$I,MATCH($C53,РВД!$A:$A,),),)),IF(AJ54="Я",INDEX('график 7,8'!$B$52:$AF$63,MONTH($AP$3),AJ$11),"")) -> 3.9 | AK53: ="Я/"&SUMIF(E54:AJ54,"Я",E53:AJ53) -> Я/81,9 | AL53: =(SUMIF(E54:AJ54,"В",E53:AJ53)+SUMIF(E54:AJ54,"В.",E53:AJ53))*2 -> 0 | AM53: =COUNTIFS(E54:AJ54,"Я",E53:AJ53,"<>") -> 21 | AN53: =IFERROR(VLOOKUP(C53,доплаты!$A$5:$P$118,16,0),"") -> 100
E54: =TRIM(LEFT(TRIM(INDEX(отсутствия!$N:$AR,MATCH($C53,отсутствия!$A:$A,),E$11)&" "&TEXT(INDEX('график 7,8'!$B$52:$AF$63,MONTH($AP$3),E$11)&"","Я")),2)) -> В | F54: =TRIM(LEFT(TRIM(INDEX(отсутствия!$N:$AR,MATCH($C53,отсутствия!$A:$A,),F$11)&" "&TEXT(INDEX('график 7,8'!$B$52:$AF$63,MONTH($AP$3),F$11)&"","Я")),2)) -> Я | G54: =TRIM(LEFT(TRIM(INDEX(отсутствия!$N:$AR,MATCH($C53,отсутствия!$A:$A,),G$11)&" "&TEXT(INDEX('график 7,8'!$B$52:$AF$63,MONTH($AP$3),G$11)&"","Я")),2)) -> Я | H54: =TRIM(LEFT(TRIM(INDEX(отсутствия!$N:$AR,MATCH($C53,отсутствия!$A:$A,),H$11)&" "&TEXT(INDEX('график 7,8'!$B$52:$AF$63,MONTH($AP$3),H$11)&"","Я")),2)) -> Я | I54: =TRIM(LEFT(TRIM(INDEX(отсутствия!$N:$AR,MATCH($C53,отсутствия!$A:$A,),I$11)&" "&TEXT(INDEX('график 7,8'!$B$52:$AF$63,MONTH($AP$3),I$11)&"","Я")),2)) -> Я | J54: =TRIM(LEFT(TRIM(INDEX(отсутствия!$N:$AR,MATCH($C53,отсутствия!$A:$A,),J$11)&" "&TEXT(INDEX('график 7,8'!$B$52:$AF$63,MONTH($AP$3),J$11)&"","Я")),2)) -> Я | K54: =TRIM(LEFT(TRIM(INDEX(отсутствия!$N:$AR,MATCH($C53,отсутствия!$A:$A,),K$11)&" "&TEXT(INDEX('график 7,8'!$B$52:$AF$63,MONTH($AP$3),K$11)&"","Я")),2)) -> В | L54: =TRIM(LEFT(TRIM(INDEX(отсутствия!$N:$AR,MATCH($C53,отсутствия!$A:$A,),L$11)&" "&TEXT(INDEX('график 7,8'!$B$52:$AF$63,MONTH($AP$3),L$11)&"","Я")),2)) -> В. | M54: =TRIM(LEFT(TRIM(INDEX(отсутствия!$N:$AR,MATCH($C53,отсутствия!$A:$A,),M$11)&" "&TEXT(INDEX('график 7,8'!$B$52:$AF$63,MONTH($AP$3),M$11)&"","Я")),2)) -> В | N54: =TRIM(LEFT(TRIM(INDEX(отсутствия!$N:$AR,MATCH($C53,отсутствия!$A:$A,),N$11)&" "&TEXT(INDEX('график 7,8'!$B$52:$AF$63,MONTH($AP$3),N$11)&"","Я")),2)) -> Я | O54: =TRIM(LEFT(TRIM(INDEX(отсутствия!$N:$AR,MATCH($C53,отсутствия!$A:$A,),O$11)&" "&TEXT(INDEX('график 7,8'!$B$52:$AF$63,MONTH($AP$3),O$11)&"","Я")),2)) -> Я | P54: =TRIM(LEFT(TRIM(INDEX(отсутствия!$N:$AR,MATCH($C53,отсутствия!$A:$A,),P$11)&" "&TEXT(INDEX('график 7,8'!$B$52:$AF$63,MONTH($AP$3),P$11)&"","Я")),2)) -> Я | Q54: =TRIM(LEFT(TRIM(INDEX(отсутствия!$N:$AR,MATCH($C53,отсутствия!$A:$A,),Q$11)&" "&TEXT(INDEX('график 7,8'!$B$52:$AF$63,MONTH($AP$3),Q$11)&"","Я")),2)) -> Я | R54: =TRIM(LEFT(TRIM(INDEX(отсутствия!$N:$AR,MATCH($C53,отсутствия!$A:$A,),R$11)&" "&TEXT(INDEX('график 7,8'!$B$52:$AF$63,MONTH($AP$3),R$11)&"","Я")),2)) -> В | S54: =TRIM(LEFT(TRIM(INDEX(отсутствия!$N:$AR,MATCH($C53,отсутствия!$A:$A,),S$11)&" "&TEXT(INDEX('график 7,8'!$B$52:$AF$63,MONTH($AP$3),S$11)&"","Я")),2)) -> В | U54: =TRIM(LEFT(TRIM(INDEX(отсутствия!$N:$AR,MATCH($C53,отсутствия!$A:$A,),U$11)&" "&TEXT(INDEX('график 7,8'!$B$52:$AF$63,MONTH($AP$3),U$11)&"","Я")),2)) -> Я | V54: =TRIM(LEFT(TRIM(INDEX(отсутствия!$N:$AR,MATCH($C53,отсутствия!$A:$A,),V$11)&" "&TEXT(INDEX('график 7,8'!$B$52:$AF$63,MONTH($AP$3),V$11)&"","Я")),2)) -> Я | W54: =TRIM(LEFT(TRIM(INDEX(отсутствия!$N:$AR,MATCH($C53,отсутствия!$A:$A,),W$11)&" "&TEXT(INDEX('график 7,8'!$B$52:$AF$63,MONTH($AP$3),W$11)&"","Я")),2)) -> Я | X54: =TRIM(LEFT(TRIM(INDEX(отсутствия!$N:$AR,MATCH($C53,отсутствия!$A:$A,),X$11)&" "&TEXT(INDEX('график 7,8'!$B$52:$AF$63,MONTH($AP$3),X$11)&"","Я")),2)) -> Я | Y54: =TRIM(LEFT(TRIM(INDEX(отсутствия!$N:$AR,MATCH($C53,отсутствия!$A:$A,),Y$11)&" "&TEXT(INDEX('график 7,8'!$B$52:$AF$63,MONTH($AP$3),Y$11)&"","Я")),2)) -> Я | Z54: =TRIM(LEFT(TRIM(INDEX(отсутствия!$N:$AR,MATCH($C53,отсутствия!$A:$A,),Z$11)&" "&TEXT(INDEX('график 7,8'!$B$52:$AF$63,MONTH($AP$3),Z$11)&"","Я")),2)) -> В | AA54: =TRIM(LEFT(TRIM(INDEX(отсутствия!$N:$AR,MATCH($C53,отсутствия!$A:$A,),AA$11)&" "&TEXT(INDEX('график 7,8'!$B$52:$AF$63,MONTH($AP$3),AA$11)&"","Я")),2)) -> В | AB54: =TRIM(LEFT(TRIM(INDEX(отсутствия!$N:$AR,MATCH($C53,отсутствия!$A:$A,),AB$11)&" "&TEXT(INDEX('график 7,8'!$B$52:$AF$63,MONTH($AP$3),AB$11)&"","Я")),2)) -> Я | AC54: =TRIM(LEFT(TRIM(INDEX(отсутствия!$N:$AR,MATCH($C53,отсутствия!$A:$A,),AC$11)&" "&TEXT(INDEX('график 7,8'!$B$52:$AF$63,MONTH($AP$3),AC$11)&"","Я")),2)) -> Я | AD54: =TRIM(LEFT(TRIM(INDEX(отсутствия!$N:$AR,MATCH($C53,отсутствия!$A:$A,),AD$11)&" "&TEXT(INDEX('график 7,8'!$B$52:$AF$63,MONTH($AP$3),AD$11)&"","Я")),2)) -> Я | AE54: =TRIM(LEFT(TRIM(INDEX(отсутствия!$N:$AR,MATCH($C53,отсутствия!$A:$A,),AE$11)&" "&TEXT(INDEX('график 7,8'!$B$52:$AF$63,MONTH($AP$3),AE$11)&"","Я")),2)) -> Я | AF54: =TRIM(LEFT(TRIM(INDEX(отсутствия!$N:$AR,MATCH($C53,отсутствия!$A:$A,),AF$11)&" "&TEXT(INDEX('график 7,8'!$B$52:$AF$63,MONTH($AP$3),AF$11)&"","Я")),2)) -> Я | AG54: =TRIM(LEFT(TRIM(INDEX(отсутствия!$N:$AR,MATCH($C53,отсутствия!$A:$A,),AG$11)&" "&TEXT(INDEX('график 7,8'!$B$52:$AF$63,MONTH($AP$3),AG$11)&"","Я")),2)) -> В | AH54: =TRIM(LEFT(TRIM(INDEX(отсутствия!$N:$AR,MATCH($C53,отсутствия!$A:$A,),AH$11)&" "&TEXT(INDEX('график 7,8'!$B$52:$AF$63,MONTH($AP$3),AH$11)&"","Я")),2)) -> В | AI54: =TRIM(LEFT(TRIM(INDEX(отсутствия!$N:$AR,MATCH($C53,отсутствия!$A:$A,),AI$11)&" "&TEXT(INDEX('график 7,8'!$B$52:$AF$63,MONTH($AP$3),AI$11)&"","Я")),2)) -> Я | AJ54: =TRIM(LEFT(TRIM(INDEX(отсутствия!$N:$AR,MATCH($C53,отсутствия!$A:$A,),AJ$11)&" "&TEXT(INDEX('график 7,8'!$B$52:$AF$63,MONTH($AP$3),AJ$11)&"","Я")),2)) -> Я
A55: 5140 | B55: Семин | C55: 5140 | D55: сборная | E55: =IFERROR(INDEX(РВД!$D:$I,MATCH($C55,РВД!$A:$A,)+1,MATCH($N$4+E$11-1,INDEX(РВД!$D:$I,MATCH($C55,РВД!$A:$A,),),)),IF(E56="Я",INDEX('график 7,8'!$B$52:$AF$63,MONTH($AP$3),E$11),"")) ->  | F55: =IFERROR(INDEX(РВД!$D:$I,MATCH($C55,РВД!$A:$A,)+1,MATCH($N$4+F$11-1,INDEX(РВД!$D:$I,MATCH($C55,РВД!$A:$A,),),)),IF(F56="Я",INDEX('график 7,8'!$B$52:$AF$63,MONTH($AP$3),F$11),"")) -> 3.9 | G55: =IFERROR(INDEX(РВД!$D:$I,MATCH($C55,РВД!$A:$A,)+1,MATCH($N$4+G$11-1,INDEX(РВД!$D:$I,MATCH($C55,РВД!$A:$A,),),)),IF(G56="Я",INDEX('график 7,8'!$B$52:$AF$63,MONTH($AP$3),G$11),"")) -> 3.9 | H55: =IFERROR(INDEX(РВД!$D:$I,MATCH($C55,РВД!$A:$A,)+1,MATCH($N$4+H$11-1,INDEX(РВД!$D:$I,MATCH($C55,РВД!$A:$A,),),)),IF(H56="Я",INDEX('график 7,8'!$B$52:$AF$63,MONTH($AP$3),H$11),"")) -> 3.9 | I55: =IFERROR(INDEX(РВД!$D:$I,MATCH($C55,РВД!$A:$A,)+1,MATCH($N$4+I$11-1,INDEX(РВД!$D:$I,MATCH($C55,РВД!$A:$A,),),)),IF(I56="Я",INDEX('график 7,8'!$B$52:$AF$63,MONTH($AP$3),I$11),"")) -> 3.9 | J55: =IFERROR(INDEX(РВД!$D:$I,MATCH($C55,РВД!$A:$A,)+1,MATCH($N$4+J$11-1,INDEX(РВД!$D:$I,MATCH($C55,РВД!$A:$A,),),)),IF(J56="Я",INDEX('график 7,8'!$B$52:$AF$63,MONTH($AP$3),J$11),"")) -> 3.9 | K55: =IFERROR(INDEX(РВД!$D:$I,MATCH($C55,РВД!$A:$A,)+1,MATCH($N$4+K$11-1,INDEX(РВД!$D:$I,MATCH($C55,РВД!$A:$A,),),)),IF(K56="Я",INDEX('график 7,8'!$B$52:$AF$63,MONTH($AP$3),K$11),"")) ->  | L55: =IFERROR(INDEX(РВД!$D:$I,MATCH($C55,РВД!$A:$A,)+1,MATCH($N$4+L$11-1,INDEX(РВД!$D:$I,MATCH($C55,РВД!$A:$A,),),)),IF(L56="Я",INDEX('график 7,8'!$B$52:$AF$63,MONTH($AP$3),L$11),"")) ->  | M55: =IFERROR(INDEX(РВД!$D:$I,MATCH($C55,РВД!$A:$A,)+1,MATCH($N$4+M$11-1,INDEX(РВД!$D:$I,MATCH($C55,РВД!$A:$A,),),)),IF(M56="Я",INDEX('график 7,8'!$B$52:$AF$63,MONTH($AP$3),M$11),"")) ->  | N55: =IFERROR(INDEX(РВД!$D:$I,MATCH($C55,РВД!$A:$A,)+1,MATCH($N$4+N$11-1,INDEX(РВД!$D:$I,MATCH($C55,РВД!$A:$A,),),)),IF(N56="Я",INDEX('график 7,8'!$B$52:$AF$63,MONTH($AP$3),N$11),"")) -> 3.9 | O55: =IFERROR(INDEX(РВД!$D:$I,MATCH($C55,РВД!$A:$A,)+1,MATCH($N$4+O$11-1,INDEX(РВД!$D:$I,MATCH($C55,РВД!$A:$A,),),)),IF(O56="Я",INDEX('график 7,8'!$B$52:$AF$63,MONTH($AP$3),O$11),"")) -> 3.9 | P55: =IFERROR(INDEX(РВД!$D:$I,MATCH($C55,РВД!$A:$A,)+1,MATCH($N$4+P$11-1,INDEX(РВД!$D:$I,MATCH($C55,РВД!$A:$A,),),)),IF(P56="Я",INDEX('график 7,8'!$B$52:$AF$63,MONTH($AP$3),P$11),"")) -> 3.9 | Q55: =IFERROR(INDEX(РВД!$D:$I,MATCH($C55,РВД!$A:$A,)+1,MATCH($N$4+Q$11-1,INDEX(РВД!$D:$I,MATCH($C55,РВД!$A:$A,),),)),IF(Q56="Я",INDEX('график 7,8'!$B$52:$AF$63,MONTH($AP$3),Q$11),"")) -> 3.9 | R55: =IFERROR(INDEX(РВД!$D:$I,MATCH($C55,РВД!$A:$A,)+1,MATCH($N$4+R$11-1,INDEX(РВД!$D:$I,MATCH($C55,РВД!$A:$A,),),)),IF(R56="Я",INDEX('график 7,8'!$B$52:$AF$63,MONTH($AP$3),R$11),"")) ->  | S55: =IFERROR(INDEX(РВД!$D:$I,MATCH($C55,РВД!$A:$A,)+1,MATCH($N$4+S$11-1,INDEX(РВД!$D:$I,MATCH($C55,РВД!$A:$A,),),)),IF(S56="Я",INDEX('график 7,8'!$B$52:$AF$63,MONTH($AP$3),S$11),"")) ->  | T55: =SUMIF(E56:S56,"Я",E55:S55) -> 35.1 | U55: =IFERROR(INDEX(РВД!$D:$I,MATCH($C55,РВД!$A:$A,)+1,MATCH($N$4+U$11-1,INDEX(РВД!$D:$I,MATCH($C55,РВД!$A:$A,),),)),IF(U56="Я",INDEX('график 7,8'!$B$52:$AF$63,MONTH($AP$3),U$11),"")) -> 3.9 | V55: =IFERROR(INDEX(РВД!$D:$I,MATCH($C55,РВД!$A:$A,)+1,MATCH($N$4+V$11-1,INDEX(РВД!$D:$I,MATCH($C55,РВД!$A:$A,),),)),IF(V56="Я",INDEX('график 7,8'!$B$52:$AF$63,MONTH($AP$3),V$11),"")) -> 3.9 | W55: =IFERROR(INDEX(РВД!$D:$I,MATCH($C55,РВД!$A:$A,)+1,MATCH($N$4+W$11-1,INDEX(РВД!$D:$I,MATCH($C55,РВД!$A:$A,),),)),IF(W56="Я",INDEX('график 7,8'!$B$52:$AF$63,MONTH($AP$3),W$11),"")) -> 3.9 | X55: =IFERROR(INDEX(РВД!$D:$I,MATCH($C55,РВД!$A:$A,)+1,MATCH($N$4+X$11-1,INDEX(РВД!$D:$I,MATCH($C55,РВД!$A:$A,),),)),IF(X56="Я",INDEX('график 7,8'!$B$52:$AF$63,MONTH($AP$3),X$11),"")) -> 3.9 | Y55: =IFERROR(INDEX(РВД!$D:$I,MATCH($C55,РВД!$A:$A,)+1,MATCH($N$4+Y$11-1,INDEX(РВД!$D:$I,MATCH($C55,РВД!$A:$A,),),)),IF(Y56="Я",INDEX('график 7,8'!$B$52:$AF$63,MONTH($AP$3),Y$11),"")) -> 3.9 | Z55: =IFERROR(INDEX(РВД!$D:$I,MATCH($C55,РВД!$A:$A,)+1,MATCH($N$4+Z$11-1,INDEX(РВД!$D:$I,MATCH($C55,РВД!$A:$A,),),)),IF(Z56="Я",INDEX('график 7,8'!$B$52:$AF$63,MONTH($AP$3),Z$11),"")) ->  | AA55: =IFERROR(INDEX(РВД!$D:$I,MATCH($C55,РВД!$A:$A,)+1,MATCH($N$4+AA$11-1,INDEX(РВД!$D:$I,MATCH($C55,РВД!$A:$A,),),)),IF(AA56="Я",INDEX('график 7,8'!$B$52:$AF$63,MONTH($AP$3),AA$11),"")) ->  | AB55: =IFERROR(INDEX(РВД!$D:$I,MATCH($C55,РВД!$A:$A,)+1,MATCH($N$4+AB$11-1,INDEX(РВД!$D:$I,MATCH($C55,РВД!$A:$A,),),)),IF(AB56="Я",INDEX('график 7,8'!$B$52:$AF$63,MONTH($AP$3),AB$11),"")) -> 3.9 | AC55: =IFERROR(INDEX(РВД!$D:$I,MATCH($C55,РВД!$A:$A,)+1,MATCH($N$4+AC$11-1,INDEX(РВД!$D:$I,MATCH($C55,РВД!$A:$A,),),)),IF(AC56="Я",INDEX('график 7,8'!$B$52:$AF$63,MONTH($AP$3),AC$11),"")) -> 3.9 | AD55: =IFERROR(INDEX(РВД!$D:$I,MATCH($C55,РВД!$A:$A,)+1,MATCH($N$4+AD$11-1,INDEX(РВД!$D:$I,MATCH($C55,РВД!$A:$A,),),)),IF(AD56="Я",INDEX('график 7,8'!$B$52:$AF$63,MONTH($AP$3),AD$11),"")) -> 3.9 | AE55: =IFERROR(INDEX(РВД!$D:$I,MATCH($C55,РВД!$A:$A,)+1,MATCH($N$4+AE$11-1,INDEX(РВД!$D:$I,MATCH($C55,РВД!$A:$A,),),)),IF(AE56="Я",INDEX('график 7,8'!$B$52:$AF$63,MONTH($AP$3),AE$11),"")) -> 3.9 | AF55: =IFERROR(INDEX(РВД!$D:$I,MATCH($C55,РВД!$A:$A,)+1,MATCH($N$4+AF$11-1,INDEX(РВД!$D:$I,MATCH($C55,РВД!$A:$A,),),)),IF(AF56="Я",INDEX('график 7,8'!$B$52:$AF$63,MONTH($AP$3),AF$11),"")) -> 3.9 | AG55: =IFERROR(INDEX(РВД!$D:$I,MATCH($C55,РВД!$A:$A,)+1,MATCH($N$4+AG$11-1,INDEX(РВД!$D:$I,MATCH($C55,РВД!$A:$A,),),)),IF(AG56="Я",INDEX('график 7,8'!$B$52:$AF$63,MONTH($AP$3),AG$11),"")) ->  | AH55: =IFERROR(INDEX(РВД!$D:$I,MATCH($C55,РВД!$A:$A,)+1,MATCH($N$4+AH$11-1,INDEX(РВД!$D:$I,MATCH($C55,РВД!$A:$A,),),)),IF(AH56="Я",INDEX('график 7,8'!$B$52:$AF$63,MONTH($AP$3),AH$11),"")) ->  | AI55: =IFERROR(INDEX(РВД!$D:$I,MATCH($C55,РВД!$A:$A,)+1,MATCH($N$4+AI$11-1,INDEX(РВД!$D:$I,MATCH($C55,РВД!$A:$A,),),)),IF(AI56="Я",INDEX('график 7,8'!$B$52:$AF$63,MONTH($AP$3),AI$11),"")) -> 3.9 | AJ55: =IFERROR(INDEX(РВД!$D:$I,MATCH($C55,РВД!$A:$A,)+1,MATCH($N$4+AJ$11-1,INDEX(РВД!$D:$I,MATCH($C55,РВД!$A:$A,),),)),IF(AJ56="Я",INDEX('график 7,8'!$B$52:$AF$63,MONTH($AP$3),AJ$11),"")) -> 3.9 | AK55: ="Я/"&SUMIF(E56:AJ56,"Я",E55:AJ55) -> Я/81,9 | AL55: =(SUMIF(E56:AJ56,"В",E55:AJ55)+SUMIF(E56:AJ56,"В.",E55:AJ55))*2 -> 0 | AM55: =COUNTIFS(E56:AJ56,"Я",E55:AJ55,"<>") -> 21 | AN55: =IFERROR(VLOOKUP(C55,доплаты!$A$5:$P$118,16,0),"") -> 28
E56: =TRIM(LEFT(TRIM(INDEX(отсутствия!$N:$AR,MATCH($C55,отсутствия!$A:$A,),E$11)&" "&TEXT(INDEX('график 7,8'!$B$52:$AF$63,MONTH($AP$3),E$11)&"","Я")),2)) -> В | F56: =TRIM(LEFT(TRIM(INDEX(отсутствия!$N:$AR,MATCH($C55,отсутствия!$A:$A,),F$11)&" "&TEXT(INDEX('график 7,8'!$B$52:$AF$63,MONTH($AP$3),F$11)&"","Я")),2)) -> Я | G56: =TRIM(LEFT(TRIM(INDEX(отсутствия!$N:$AR,MATCH($C55,отсутствия!$A:$A,),G$11)&" "&TEXT(INDEX('график 7,8'!$B$52:$AF$63,MONTH($AP$3),G$11)&"","Я")),2)) -> Я | H56: =TRIM(LEFT(TRIM(INDEX(отсутствия!$N:$AR,MATCH($C55,отсутствия!$A:$A,),H$11)&" "&TEXT(INDEX('график 7,8'!$B$52:$AF$63,MONTH($AP$3),H$11)&"","Я")),2)) -> Я | I56: =TRIM(LEFT(TRIM(INDEX(отсутствия!$N:$AR,MATCH($C55,отсутствия!$A:$A,),I$11)&" "&TEXT(INDEX('график 7,8'!$B$52:$AF$63,MONTH($AP$3),I$11)&"","Я")),2)) -> Я | J56: =TRIM(LEFT(TRIM(INDEX(отсутствия!$N:$AR,MATCH($C55,отсутствия!$A:$A,),J$11)&" "&TEXT(INDEX('график 7,8'!$B$52:$AF$63,MONTH($AP$3),J$11)&"","Я")),2)) -> Я | K56: =TRIM(LEFT(TRIM(INDEX(отсутствия!$N:$AR,MATCH($C55,отсутствия!$A:$A,),K$11)&" "&TEXT(INDEX('график 7,8'!$B$52:$AF$63,MONTH($AP$3),K$11)&"","Я")),2)) -> В | L56: =TRIM(LEFT(TRIM(INDEX(отсутствия!$N:$AR,MATCH($C55,отсутствия!$A:$A,),L$11)&" "&TEXT(INDEX('график 7,8'!$B$52:$AF$63,MONTH($AP$3),L$11)&"","Я")),2)) -> В. | M56: =TRIM(LEFT(TRIM(INDEX(отсутствия!$N:$AR,MATCH($C55,отсутствия!$A:$A,),M$11)&" "&TEXT(INDEX('график 7,8'!$B$52:$AF$63,MONTH($AP$3),M$11)&"","Я")),2)) -> В | N56: =TRIM(LEFT(TRIM(INDEX(отсутствия!$N:$AR,MATCH($C55,отсутствия!$A:$A,),N$11)&" "&TEXT(INDEX('график 7,8'!$B$52:$AF$63,MONTH($AP$3),N$11)&"","Я")),2)) -> Я | O56: =TRIM(LEFT(TRIM(INDEX(отсутствия!$N:$AR,MATCH($C55,отсутствия!$A:$A,),O$11)&" "&TEXT(INDEX('график 7,8'!$B$52:$AF$63,MONTH($AP$3),O$11)&"","Я")),2)) -> Я | P56: =TRIM(LEFT(TRIM(INDEX(отсутствия!$N:$AR,MATCH($C55,отсутствия!$A:$A,),P$11)&" "&TEXT(INDEX('график 7,8'!$B$52:$AF$63,MONTH($AP$3),P$11)&"","Я")),2)) -> Я | Q56: =TRIM(LEFT(TRIM(INDEX(отсутствия!$N:$AR,MATCH($C55,отсутствия!$A:$A,),Q$11)&" "&TEXT(INDEX('график 7,8'!$B$52:$AF$63,MONTH($AP$3),Q$11)&"","Я")),2)) -> Я | R56: =TRIM(LEFT(TRIM(INDEX(отсутствия!$N:$AR,MATCH($C55,отсутствия!$A:$A,),R$11)&" "&TEXT(INDEX('график 7,8'!$B$52:$AF$63,MONTH($AP$3),R$11)&"","Я")),2)) -> В | S56: =TRIM(LEFT(TRIM(INDEX(отсутствия!$N:$AR,MATCH($C55,отсутствия!$A:$A,),S$11)&" "&TEXT(INDEX('график 7,8'!$B$52:$AF$63,MONTH($AP$3),S$11)&"","Я")),2)) -> В | U56: =TRIM(LEFT(TRIM(INDEX(отсутствия!$N:$AR,MATCH($C55,отсутствия!$A:$A,),U$11)&" "&TEXT(INDEX('график 7,8'!$B$52:$AF$63,MONTH($AP$3),U$11)&"","Я")),2)) -> Я | V56: =TRIM(LEFT(TRIM(INDEX(отсутствия!$N:$AR,MATCH($C55,отсутствия!$A:$A,),V$11)&" "&TEXT(INDEX('график 7,8'!$B$52:$AF$63,MONTH($AP$3),V$11)&"","Я")),2)) -> Я | W56: =TRIM(LEFT(TRIM(INDEX(отсутствия!$N:$AR,MATCH($C55,отсутствия!$A:$A,),W$11)&" "&TEXT(INDEX('график 7,8'!$B$52:$AF$63,MONTH($AP$3),W$11)&"","Я")),2)) -> Я | X56: =TRIM(LEFT(TRIM(INDEX(отсутствия!$N:$AR,MATCH($C55,отсутствия!$A:$A,),X$11)&" "&TEXT(INDEX('график 7,8'!$B$52:$AF$63,MONTH($AP$3),X$11)&"","Я")),2)) -> Я | Y56: =TRIM(LEFT(TRIM(INDEX(отсутствия!$N:$AR,MATCH($C55,отсутствия!$A:$A,),Y$11)&" "&TEXT(INDEX('график 7,8'!$B$52:$AF$63,MONTH($AP$3),Y$11)&"","Я")),2)) -> Я | Z56: =TRIM(LEFT(TRIM(INDEX(отсутствия!$N:$AR,MATCH($C55,отсутствия!$A:$A,),Z$11)&" "&TEXT(INDEX('график 7,8'!$B$52:$AF$63,MONTH($AP$3),Z$11)&"","Я")),2)) -> В | AA56: =TRIM(LEFT(TRIM(INDEX(отсутствия!$N:$AR,MATCH($C55,отсутствия!$A:$A,),AA$11)&" "&TEXT(INDEX('график 7,8'!$B$52:$AF$63,MONTH($AP$3),AA$11)&"","Я")),2)) -> В | AB56: =TRIM(LEFT(TRIM(INDEX(отсутствия!$N:$AR,MATCH($C55,отсутствия!$A:$A,),AB$11)&" "&TEXT(INDEX('график 7,8'!$B$52:$AF$63,MONTH($AP$3),AB$11)&"","Я")),2)) -> Я | AC56: =TRIM(LEFT(TRIM(INDEX(отсутствия!$N:$AR,MATCH($C55,отсутствия!$A:$A,),AC$11)&" "&TEXT(INDEX('график 7,8'!$B$52:$AF$63,MONTH($AP$3),AC$11)&"","Я")),2)) -> Я | AD56: =TRIM(LEFT(TRIM(INDEX(отсутствия!$N:$AR,MATCH($C55,отсутствия!$A:$A,),AD$11)&" "&TEXT(INDEX('график 7,8'!$B$52:$AF$63,MONTH($AP$3),AD$11)&"","Я")),2)) -> Я | AE56: =TRIM(LEFT(TRIM(INDEX(отсутствия!$N:$AR,MATCH($C55,отсутствия!$A:$A,),AE$11)&" "&TEXT(INDEX('график 7,8'!$B$52:$AF$63,MONTH($AP$3),AE$11)&"","Я")),2)) -> Я | AF56: =TRIM(LEFT(TRIM(INDEX(отсутствия!$N:$AR,MATCH($C55,отсутствия!$A:$A,),AF$11)&" "&TEXT(INDEX('график 7,8'!$B$52:$AF$63,MONTH($AP$3),AF$11)&"","Я")),2)) -> Я | AG56: =TRIM(LEFT(TRIM(INDEX(отсутствия!$N:$AR,MATCH($C55,отсутствия!$A:$A,),AG$11)&" "&TEXT(INDEX('график 7,8'!$B$52:$AF$63,MONTH($AP$3),AG$11)&"","Я")),2)) -> В | AH56: =TRIM(LEFT(TRIM(INDEX(отсутствия!$N:$AR,MATCH($C55,отсутствия!$A:$A,),AH$11)&" "&TEXT(INDEX('график 7,8'!$B$52:$AF$63,MONTH($AP$3),AH$11)&"","Я")),2)) -> В | AI56: =TRIM(LEFT(TRIM(INDEX(отсутствия!$N:$AR,MATCH($C55,отсутствия!$A:$A,),AI$11)&" "&TEXT(INDEX('график 7,8'!$B$52:$AF$63,MONTH($AP$3),AI$11)&"","Я")),2)) -> Я | AJ56: =TRIM(LEFT(TRIM(INDEX(отсутствия!$N:$AR,MATCH($C55,отсутствия!$A:$A,),AJ$11)&" "&TEXT(INDEX('график 7,8'!$B$52:$AF$63,MONTH($AP$3),AJ$11)&"","Я")),2)) -> Я
A57: 5241 | B57: Радулов | C57: 5241 | D57: сборная | E57: =IFERROR(INDEX(РВД!$D:$I,MATCH($C57,РВД!$A:$A,)+1,MATCH($N$4+E$11-1,INDEX(РВД!$D:$I,MATCH($C57,РВД!$A:$A,),),)),IF(E58="Я",INDEX('график 7,8'!$B$52:$AF$63,MONTH($AP$3),E$11),"")) ->  | F57: =IFERROR(INDEX(РВД!$D:$I,MATCH($C57,РВД!$A:$A,)+1,MATCH($N$4+F$11-1,INDEX(РВД!$D:$I,MATCH($C57,РВД!$A:$A,),),)),IF(F58="Я",INDEX('график 7,8'!$B$52:$AF$63,MONTH($AP$3),F$11),"")) -> 3.9 | G57: =IFERROR(INDEX(РВД!$D:$I,MATCH($C57,РВД!$A:$A,)+1,MATCH($N$4+G$11-1,INDEX(РВД!$D:$I,MATCH($C57,РВД!$A:$A,),),)),IF(G58="Я",INDEX('график 7,8'!$B$52:$AF$63,MONTH($AP$3),G$11),"")) -> 3.9 | H57: =IFERROR(INDEX(РВД!$D:$I,MATCH($C57,РВД!$A:$A,)+1,MATCH($N$4+H$11-1,INDEX(РВД!$D:$I,MATCH($C57,РВД!$A:$A,),),)),IF(H58="Я",INDEX('график 7,8'!$B$52:$AF$63,MONTH($AP$3),H$11),"")) -> 3.9 | I57: =IFERROR(INDEX(РВД!$D:$I,MATCH($C57,РВД!$A:$A,)+1,MATCH($N$4+I$11-1,INDEX(РВД!$D:$I,MATCH($C57,РВД!$A:$A,),),)),IF(I58="Я",INDEX('график 7,8'!$B$52:$AF$63,MONTH($AP$3),I$11),"")) -> 3.9 | J57: =IFERROR(INDEX(РВД!$D:$I,MATCH($C57,РВД!$A:$A,)+1,MATCH($N$4+J$11-1,INDEX(РВД!$D:$I,MATCH($C57,РВД!$A:$A,),),)),IF(J58="Я",INDEX('график 7,8'!$B$52:$AF$63,MONTH($AP$3),J$11),"")) -> 3.9 | K57: =IFERROR(INDEX(РВД!$D:$I,MATCH($C57,РВД!$A:$A,)+1,MATCH($N$4+K$11-1,INDEX(РВД!$D:$I,MATCH($C57,РВД!$A:$A,),),)),IF(K58="Я",INDEX('график 7,8'!$B$52:$AF$63,MONTH($AP$3),K$11),"")) ->  | L57: =IFERROR(INDEX(РВД!$D:$I,MATCH($C57,РВД!$A:$A,)+1,MATCH($N$4+L$11-1,INDEX(РВД!$D:$I,MATCH($C57,РВД!$A:$A,),),)),IF(L58="Я",INDEX('график 7,8'!$B$52:$AF$63,MONTH($AP$3),L$11),"")) ->  | M57: =IFERROR(INDEX(РВД!$D:$I,MATCH($C57,РВД!$A:$A,)+1,MATCH($N$4+M$11-1,INDEX(РВД!$D:$I,MATCH($C57,РВД!$A:$A,),),)),IF(M58="Я",INDEX('график 7,8'!$B$52:$AF$63,MONTH($AP$3),M$11),"")) ->  | N57: =IFERROR(INDEX(РВД!$D:$I,MATCH($C57,РВД!$A:$A,)+1,MATCH($N$4+N$11-1,INDEX(РВД!$D:$I,MATCH($C57,РВД!$A:$A,),),)),IF(N58="Я",INDEX('график 7,8'!$B$52:$AF$63,MONTH($AP$3),N$11),"")) -> 3.9 | O57: =IFERROR(INDEX(РВД!$D:$I,MATCH($C57,РВД!$A:$A,)+1,MATCH($N$4+O$11-1,INDEX(РВД!$D:$I,MATCH($C57,РВД!$A:$A,),),)),IF(O58="Я",INDEX('график 7,8'!$B$52:$AF$63,MONTH($AP$3),O$11),"")) -> 3.9 | P57: =IFERROR(INDEX(РВД!$D:$I,MATCH($C57,РВД!$A:$A,)+1,MATCH($N$4+P$11-1,INDEX(РВД!$D:$I,MATCH($C57,РВД!$A:$A,),),)),IF(P58="Я",INDEX('график 7,8'!$B$52:$AF$63,MONTH($AP$3),P$11),"")) -> 3.9 | Q57: =IFERROR(INDEX(РВД!$D:$I,MATCH($C57,РВД!$A:$A,)+1,MATCH($N$4+Q$11-1,INDEX(РВД!$D:$I,MATCH($C57,РВД!$A:$A,),),)),IF(Q58="Я",INDEX('график 7,8'!$B$52:$AF$63,MONTH($AP$3),Q$11),"")) -> 3.9 | R57: =IFERROR(INDEX(РВД!$D:$I,MATCH($C57,РВД!$A:$A,)+1,MATCH($N$4+R$11-1,INDEX(РВД!$D:$I,MATCH($C57,РВД!$A:$A,),),)),IF(R58="Я",INDEX('график 7,8'!$B$52:$AF$63,MONTH($AP$3),R$11),"")) ->  | S57: =IFERROR(INDEX(РВД!$D:$I,MATCH($C57,РВД!$A:$A,)+1,MATCH($N$4+S$11-1,INDEX(РВД!$D:$I,MATCH($C57,РВД!$A:$A,),),)),IF(S58="Я",INDEX('график 7,8'!$B$52:$AF$63,MONTH($AP$3),S$11),"")) ->  | T57: =SUMIF(E58:S58,"Я",E57:S57) -> 35.1 | U57: =IFERROR(INDEX(РВД!$D:$I,MATCH($C57,РВД!$A:$A,)+1,MATCH($N$4+U$11-1,INDEX(РВД!$D:$I,MATCH($C57,РВД!$A:$A,),),)),IF(U58="Я",INDEX('график 7,8'!$B$52:$AF$63,MONTH($AP$3),U$11),"")) -> 3.9 | V57: =IFERROR(INDEX(РВД!$D:$I,MATCH($C57,РВД!$A:$A,)+1,MATCH($N$4+V$11-1,INDEX(РВД!$D:$I,MATCH($C57,РВД!$A:$A,),),)),IF(V58="Я",INDEX('график 7,8'!$B$52:$AF$63,MONTH($AP$3),V$11),"")) -> 3.9 | W57: =IFERROR(INDEX(РВД!$D:$I,MATCH($C57,РВД!$A:$A,)+1,MATCH($N$4+W$11-1,INDEX(РВД!$D:$I,MATCH($C57,РВД!$A:$A,),),)),IF(W58="Я",INDEX('график 7,8'!$B$52:$AF$63,MONTH($AP$3),W$11),"")) -> 3.9 | X57: =IFERROR(INDEX(РВД!$D:$I,MATCH($C57,РВД!$A:$A,)+1,MATCH($N$4+X$11-1,INDEX(РВД!$D:$I,MATCH($C57,РВД!$A:$A,),),)),IF(X58="Я",INDEX('график 7,8'!$B$52:$AF$63,MONTH($AP$3),X$11),"")) -> 3.9 | Y57: =IFERROR(INDEX(РВД!$D:$I,MATCH($C57,РВД!$A:$A,)+1,MATCH($N$4+Y$11-1,INDEX(РВД!$D:$I,MATCH($C57,РВД!$A:$A,),),)),IF(Y58="Я",INDEX('график 7,8'!$B$52:$AF$63,MONTH($AP$3),Y$11),"")) -> 3.9 | Z57: =IFERROR(INDEX(РВД!$D:$I,MATCH($C57,РВД!$A:$A,)+1,MATCH($N$4+Z$11-1,INDEX(РВД!$D:$I,MATCH($C57,РВД!$A:$A,),),)),IF(Z58="Я",INDEX('график 7,8'!$B$52:$AF$63,MONTH($AP$3),Z$11),"")) ->  | AA57: =IFERROR(INDEX(РВД!$D:$I,MATCH($C57,РВД!$A:$A,)+1,MATCH($N$4+AA$11-1,INDEX(РВД!$D:$I,MATCH($C57,РВД!$A:$A,),),)),IF(AA58="Я",INDEX('график 7,8'!$B$52:$AF$63,MONTH($AP$3),AA$11),"")) ->  | AB57: =IFERROR(INDEX(РВД!$D:$I,MATCH($C57,РВД!$A:$A,)+1,MATCH($N$4+AB$11-1,INDEX(РВД!$D:$I,MATCH($C57,РВД!$A:$A,),),)),IF(AB58="Я",INDEX('график 7,8'!$B$52:$AF$63,MONTH($AP$3),AB$11),"")) -> 3.9 | AC57: =IFERROR(INDEX(РВД!$D:$I,MATCH($C57,РВД!$A:$A,)+1,MATCH($N$4+AC$11-1,INDEX(РВД!$D:$I,MATCH($C57,РВД!$A:$A,),),)),IF(AC58="Я",INDEX('график 7,8'!$B$52:$AF$63,MONTH($AP$3),AC$11),"")) -> 3.9 | AD57: =IFERROR(INDEX(РВД!$D:$I,MATCH($C57,РВД!$A:$A,)+1,MATCH($N$4+AD$11-1,INDEX(РВД!$D:$I,MATCH($C57,РВД!$A:$A,),),)),IF(AD58="Я",INDEX('график 7,8'!$B$52:$AF$63,MONTH($AP$3),AD$11),"")) -> 3.9 | AE57: =IFERROR(INDEX(РВД!$D:$I,MATCH($C57,РВД!$A:$A,)+1,MATCH($N$4+AE$11-1,INDEX(РВД!$D:$I,MATCH($C57,РВД!$A:$A,),),)),IF(AE58="Я",INDEX('график 7,8'!$B$52:$AF$63,MONTH($AP$3),AE$11),"")) -> 3.9 | AF57: =IFERROR(INDEX(РВД!$D:$I,MATCH($C57,РВД!$A:$A,)+1,MATCH($N$4+AF$11-1,INDEX(РВД!$D:$I,MATCH($C57,РВД!$A:$A,),),)),IF(AF58="Я",INDEX('график 7,8'!$B$52:$AF$63,MONTH($AP$3),AF$11),"")) -> 3.9 | AG57: =IFERROR(INDEX(РВД!$D:$I,MATCH($C57,РВД!$A:$A,)+1,MATCH($N$4+AG$11-1,INDEX(РВД!$D:$I,MATCH($C57,РВД!$A:$A,),),)),IF(AG58="Я",INDEX('график 7,8'!$B$52:$AF$63,MONTH($AP$3),AG$11),"")) ->  | AH57: =IFERROR(INDEX(РВД!$D:$I,MATCH($C57,РВД!$A:$A,)+1,MATCH($N$4+AH$11-1,INDEX(РВД!$D:$I,MATCH($C57,РВД!$A:$A,),),)),IF(AH58="Я",INDEX('график 7,8'!$B$52:$AF$63,MONTH($AP$3),AH$11),"")) ->  | AI57: =IFERROR(INDEX(РВД!$D:$I,MATCH($C57,РВД!$A:$A,)+1,MATCH($N$4+AI$11-1,INDEX(РВД!$D:$I,MATCH($C57,РВД!$A:$A,),),)),IF(AI58="Я",INDEX('график 7,8'!$B$52:$AF$63,MONTH($AP$3),AI$11),"")) -> 3.9 | AJ57: =IFERROR(INDEX(РВД!$D:$I,MATCH($C57,РВД!$A:$A,)+1,MATCH($N$4+AJ$11-1,INDEX(РВД!$D:$I,MATCH($C57,РВД!$A:$A,),),)),IF(AJ58="Я",INDEX('график 7,8'!$B$52:$AF$63,MONTH($AP$3),AJ$11),"")) -> 3.9 | AK57: ="Я/"&SUMIF(E58:AJ58,"Я",E57:AJ57) -> Я/81,9 | AL57: =(SUMIF(E58:AJ58,"В",E57:AJ57)+SUMIF(E58:AJ58,"В.",E57:AJ57))*2 -> 0 | AN57: =IFERROR(VLOOKUP(C57,доплаты!$A$5:$P$118,16,0),"") -> 125,100
E58: =TRIM(LEFT(TRIM(INDEX(отсутствия!$N:$AR,MATCH($C57,отсутствия!$A:$A,),E$11)&" "&TEXT(INDEX('график 7,8'!$B$52:$AF$63,MONTH($AP$3),E$11)&"","Я")),2)) -> В | F58: =TRIM(LEFT(TRIM(INDEX(отсутствия!$N:$AR,MATCH($C57,отсутствия!$A:$A,),F$11)&" "&TEXT(INDEX('график 7,8'!$B$52:$AF$63,MONTH($AP$3),F$11)&"","Я")),2)) -> Я | G58: =TRIM(LEFT(TRIM(INDEX(отсутствия!$N:$AR,MATCH($C57,отсутствия!$A:$A,),G$11)&" "&TEXT(INDEX('график 7,8'!$B$52:$AF$63,MONTH($AP$3),G$11)&"","Я")),2)) -> Я | H58: =TRIM(LEFT(TRIM(INDEX(отсутствия!$N:$AR,MATCH($C57,отсутствия!$A:$A,),H$11)&" "&TEXT(INDEX('график 7,8'!$B$52:$AF$63,MONTH($AP$3),H$11)&"","Я")),2)) -> Я | I58: =TRIM(LEFT(TRIM(INDEX(отсутствия!$N:$AR,MATCH($C57,отсутствия!$A:$A,),I$11)&" "&TEXT(INDEX('график 7,8'!$B$52:$AF$63,MONTH($AP$3),I$11)&"","Я")),2)) -> Я | J58: =TRIM(LEFT(TRIM(INDEX(отсутствия!$N:$AR,MATCH($C57,отсутствия!$A:$A,),J$11)&" "&TEXT(INDEX('график 7,8'!$B$52:$AF$63,MONTH($AP$3),J$11)&"","Я")),2)) -> Я | K58: =TRIM(LEFT(TRIM(INDEX(отсутствия!$N:$AR,MATCH($C57,отсутствия!$A:$A,),K$11)&" "&TEXT(INDEX('график 7,8'!$B$52:$AF$63,MONTH($AP$3),K$11)&"","Я")),2)) -> В | L58: =TRIM(LEFT(TRIM(INDEX(отсутствия!$N:$AR,MATCH($C57,отсутствия!$A:$A,),L$11)&" "&TEXT(INDEX('график 7,8'!$B$52:$AF$63,MONTH($AP$3),L$11)&"","Я")),2)) -> В. | M58: =TRIM(LEFT(TRIM(INDEX(отсутствия!$N:$AR,MATCH($C57,отсутствия!$A:$A,),M$11)&" "&TEXT(INDEX('график 7,8'!$B$52:$AF$63,MONTH($AP$3),M$11)&"","Я")),2)) -> В | N58: =TRIM(LEFT(TRIM(INDEX(отсутствия!$N:$AR,MATCH($C57,отсутствия!$A:$A,),N$11)&" "&TEXT(INDEX('график 7,8'!$B$52:$AF$63,MONTH($AP$3),N$11)&"","Я")),2)) -> Я | O58: =TRIM(LEFT(TRIM(INDEX(отсутствия!$N:$AR,MATCH($C57,отсутствия!$A:$A,),O$11)&" "&TEXT(INDEX('график 7,8'!$B$52:$AF$63,MONTH($AP$3),O$11)&"","Я")),2)) -> Я | P58: =TRIM(LEFT(TRIM(INDEX(отсутствия!$N:$AR,MATCH($C57,отсутствия!$A:$A,),P$11)&" "&TEXT(INDEX('график 7,8'!$B$52:$AF$63,MONTH($AP$3),P$11)&"","Я")),2)) -> Я | Q58: =TRIM(LEFT(TRIM(INDEX(отсутствия!$N:$AR,MATCH($C57,отсутствия!$A:$A,),Q$11)&" "&TEXT(INDEX('график 7,8'!$B$52:$AF$63,MONTH($AP$3),Q$11)&"","Я")),2)) -> Я | R58: =TRIM(LEFT(TRIM(INDEX(отсутствия!$N:$AR,MATCH($C57,отсутствия!$A:$A,),R$11)&" "&TEXT(INDEX('график 7,8'!$B$52:$AF$63,MONTH($AP$3),R$11)&"","Я")),2)) -> В | S58: =TRIM(LEFT(TRIM(INDEX(отсутствия!$N:$AR,MATCH($C57,отсутствия!$A:$A,),S$11)&" "&TEXT(INDEX('график 7,8'!$B$52:$AF$63,MONTH($AP$3),S$11)&"","Я")),2)) -> В | U58: =TRIM(LEFT(TRIM(INDEX(отсутствия!$N:$AR,MATCH($C57,отсутствия!$A:$A,),U$11)&" "&TEXT(INDEX('график 7,8'!$B$52:$AF$63,MONTH($AP$3),U$11)&"","Я")),2)) -> Я | V58: =TRIM(LEFT(TRIM(INDEX(отсутствия!$N:$AR,MATCH($C57,отсутствия!$A:$A,),V$11)&" "&TEXT(INDEX('график 7,8'!$B$52:$AF$63,MONTH($AP$3),V$11)&"","Я")),2)) -> Я | W58: =TRIM(LEFT(TRIM(INDEX(отсутствия!$N:$AR,MATCH($C57,отсутствия!$A:$A,),W$11)&" "&TEXT(INDEX('график 7,8'!$B$52:$AF$63,MONTH($AP$3),W$11)&"","Я")),2)) -> Я | X58: =TRIM(LEFT(TRIM(INDEX(отсутствия!$N:$AR,MATCH($C57,отсутствия!$A:$A,),X$11)&" "&TEXT(INDEX('график 7,8'!$B$52:$AF$63,MONTH($AP$3),X$11)&"","Я")),2)) -> Я | Y58: =TRIM(LEFT(TRIM(INDEX(отсутствия!$N:$AR,MATCH($C57,отсутствия!$A:$A,),Y$11)&" "&TEXT(INDEX('график 7,8'!$B$52:$AF$63,MONTH($AP$3),Y$11)&"","Я")),2)) -> Я | Z58: =TRIM(LEFT(TRIM(INDEX(отсутствия!$N:$AR,MATCH($C57,отсутствия!$A:$A,),Z$11)&" "&TEXT(INDEX('график 7,8'!$B$52:$AF$63,MONTH($AP$3),Z$11)&"","Я")),2)) -> В | AA58: =TRIM(LEFT(TRIM(INDEX(отсутствия!$N:$AR,MATCH($C57,отсутствия!$A:$A,),AA$11)&" "&TEXT(INDEX('график 7,8'!$B$52:$AF$63,MONTH($AP$3),AA$11)&"","Я")),2)) -> В | AB58: =TRIM(LEFT(TRIM(INDEX(отсутствия!$N:$AR,MATCH($C57,отсутствия!$A:$A,),AB$11)&" "&TEXT(INDEX('график 7,8'!$B$52:$AF$63,MONTH($AP$3),AB$11)&"","Я")),2)) -> Я | AC58: =TRIM(LEFT(TRIM(INDEX(отсутствия!$N:$AR,MATCH($C57,отсутствия!$A:$A,),AC$11)&" "&TEXT(INDEX('график 7,8'!$B$52:$AF$63,MONTH($AP$3),AC$11)&"","Я")),2)) -> Я | AD58: =TRIM(LEFT(TRIM(INDEX(отсутствия!$N:$AR,MATCH($C57,отсутствия!$A:$A,),AD$11)&" "&TEXT(INDEX('график 7,8'!$B$52:$AF$63,MONTH($AP$3),AD$11)&"","Я")),2)) -> Я | AE58: =TRIM(LEFT(TRIM(INDEX(отсутствия!$N:$AR,MATCH($C57,отсутствия!$A:$A,),AE$11)&" "&TEXT(INDEX('график 7,8'!$B$52:$AF$63,MONTH($AP$3),AE$11)&"","Я")),2)) -> Я | AF58: =TRIM(LEFT(TRIM(INDEX(отсутствия!$N:$AR,MATCH($C57,отсутствия!$A:$A,),AF$11)&" "&TEXT(INDEX('график 7,8'!$B$52:$AF$63,MONTH($AP$3),AF$11)&"","Я")),2)) -> Я | AG58: =TRIM(LEFT(TRIM(INDEX(отсутствия!$N:$AR,MATCH($C57,отсутствия!$A:$A,),AG$11)&" "&TEXT(INDEX('график 7,8'!$B$52:$AF$63,MONTH($AP$3),AG$11)&"","Я")),2)) -> В | AH58: =TRIM(LEFT(TRIM(INDEX(отсутствия!$N:$AR,MATCH($C57,отсутствия!$A:$A,),AH$11)&" "&TEXT(INDEX('график 7,8'!$B$52:$AF$63,MONTH($AP$3),AH$11)&"","Я")),2)) -> В | AI58: =TRIM(LEFT(TRIM(INDEX(отсутствия!$N:$AR,MATCH($C57,отсутствия!$A:$A,),AI$11)&" "&TEXT(INDEX('график 7,8'!$B$52:$AF$63,MONTH($AP$3),AI$11)&"","Я")),2)) -> Я | AJ58: =TRIM(LEFT(TRIM(INDEX(отсутствия!$N:$AR,MATCH($C57,отсутствия!$A:$A,),AJ$11)&" "&TEXT(INDEX('график 7,8'!$B$52:$AF$63,MONTH($AP$3),AJ$11)&"","Я")),2)) -> Я
A59: 5144 | B59: Малахов | C59: 5144 | D59: сборная | E59: =IFERROR(INDEX(РВД!$D:$I,MATCH($C59,РВД!$A:$A,)+1,MATCH($N$4+E$11-1,INDEX(РВД!$D:$I,MATCH($C59,РВД!$A:$A,),),)),IF(E60="Я",INDEX('график 7,8'!$B$52:$AF$63,MONTH($AP$3),E$11),"")) ->  | F59: =IFERROR(INDEX(РВД!$D:$I,MATCH($C59,РВД!$A:$A,)+1,MATCH($N$4+F$11-1,INDEX(РВД!$D:$I,MATCH($C59,РВД!$A:$A,),),)),IF(F60="Я",INDEX('график 7,8'!$B$52:$AF$63,MONTH($AP$3),F$11),"")) -> 3.9 | G59: =IFERROR(INDEX(РВД!$D:$I,MATCH($C59,РВД!$A:$A,)+1,MATCH($N$4+G$11-1,INDEX(РВД!$D:$I,MATCH($C59,РВД!$A:$A,),),)),IF(G60="Я",INDEX('график 7,8'!$B$52:$AF$63,MONTH($AP$3),G$11),"")) -> 3.9 | H59: =IFERROR(INDEX(РВД!$D:$I,MATCH($C59,РВД!$A:$A,)+1,MATCH($N$4+H$11-1,INDEX(РВД!$D:$I,MATCH($C59,РВД!$A:$A,),),)),IF(H60="Я",INDEX('график 7,8'!$B$52:$AF$63,MONTH($AP$3),H$11),"")) -> 3.9 | I59: =IFERROR(INDEX(РВД!$D:$I,MATCH($C59,РВД!$A:$A,)+1,MATCH($N$4+I$11-1,INDEX(РВД!$D:$I,MATCH($C59,РВД!$A:$A,),),)),IF(I60="Я",INDEX('график 7,8'!$B$52:$AF$63,MONTH($AP$3),I$11),"")) -> 3.9 | J59: =IFERROR(INDEX(РВД!$D:$I,MATCH($C59,РВД!$A:$A,)+1,MATCH($N$4+J$11-1,INDEX(РВД!$D:$I,MATCH($C59,РВД!$A:$A,),),)),IF(J60="Я",INDEX('график 7,8'!$B$52:$AF$63,MONTH($AP$3),J$11),"")) -> 3.9 | K59: =IFERROR(INDEX(РВД!$D:$I,MATCH($C59,РВД!$A:$A,)+1,MATCH($N$4+K$11-1,INDEX(РВД!$D:$I,MATCH($C59,РВД!$A:$A,),),)),IF(K60="Я",INDEX('график 7,8'!$B$52:$AF$63,MONTH($AP$3),K$11),"")) ->  | L59: =IFERROR(INDEX(РВД!$D:$I,MATCH($C59,РВД!$A:$A,)+1,MATCH($N$4+L$11-1,INDEX(РВД!$D:$I,MATCH($C59,РВД!$A:$A,),),)),IF(L60="Я",INDEX('график 7,8'!$B$52:$AF$63,MONTH($AP$3),L$11),"")) ->  | M59: =IFERROR(INDEX(РВД!$D:$I,MATCH($C59,РВД!$A:$A,)+1,MATCH($N$4+M$11-1,INDEX(РВД!$D:$I,MATCH($C59,РВД!$A:$A,),),)),IF(M60="Я",INDEX('график 7,8'!$B$52:$AF$63,MONTH($AP$3),M$11),"")) ->  | N59: =IFERROR(INDEX(РВД!$D:$I,MATCH($C59,РВД!$A:$A,)+1,MATCH($N$4+N$11-1,INDEX(РВД!$D:$I,MATCH($C59,РВД!$A:$A,),),)),IF(N60="Я",INDEX('график 7,8'!$B$52:$AF$63,MONTH($AP$3),N$11),"")) -> 3.9 | O59: =IFERROR(INDEX(РВД!$D:$I,MATCH($C59,РВД!$A:$A,)+1,MATCH($N$4+O$11-1,INDEX(РВД!$D:$I,MATCH($C59,РВД!$A:$A,),),)),IF(O60="Я",INDEX('график 7,8'!$B$52:$AF$63,MONTH($AP$3),O$11),"")) -> 3.9 | P59: =IFERROR(INDEX(РВД!$D:$I,MATCH($C59,РВД!$A:$A,)+1,MATCH($N$4+P$11-1,INDEX(РВД!$D:$I,MATCH($C59,РВД!$A:$A,),),)),IF(P60="Я",INDEX('график 7,8'!$B$52:$AF$63,MONTH($AP$3),P$11),"")) -> 3.9 | Q59: =IFERROR(INDEX(РВД!$D:$I,MATCH($C59,РВД!$A:$A,)+1,MATCH($N$4+Q$11-1,INDEX(РВД!$D:$I,MATCH($C59,РВД!$A:$A,),),)),IF(Q60="Я",INDEX('график 7,8'!$B$52:$AF$63,MONTH($AP$3),Q$11),"")) -> 3.9 | R59: =IFERROR(INDEX(РВД!$D:$I,MATCH($C59,РВД!$A:$A,)+1,MATCH($N$4+R$11-1,INDEX(РВД!$D:$I,MATCH($C59,РВД!$A:$A,),),)),IF(R60="Я",INDEX('график 7,8'!$B$52:$AF$63,MONTH($AP$3),R$11),"")) ->  | S59: =IFERROR(INDEX(РВД!$D:$I,MATCH($C59,РВД!$A:$A,)+1,MATCH($N$4+S$11-1,INDEX(РВД!$D:$I,MATCH($C59,РВД!$A:$A,),),)),IF(S60="Я",INDEX('график 7,8'!$B$52:$AF$63,MONTH($AP$3),S$11),"")) ->  | T59: =SUMIF(E60:S60,"Я",E59:S59) -> 35.1 | U59: =IFERROR(INDEX(РВД!$D:$I,MATCH($C59,РВД!$A:$A,)+1,MATCH($N$4+U$11-1,INDEX(РВД!$D:$I,MATCH($C59,РВД!$A:$A,),),)),IF(U60="Я",INDEX('график 7,8'!$B$52:$AF$63,MONTH($AP$3),U$11),"")) -> 3.9 | V59: =IFERROR(INDEX(РВД!$D:$I,MATCH($C59,РВД!$A:$A,)+1,MATCH($N$4+V$11-1,INDEX(РВД!$D:$I,MATCH($C59,РВД!$A:$A,),),)),IF(V60="Я",INDEX('график 7,8'!$B$52:$AF$63,MONTH($AP$3),V$11),"")) -> 3.9 | W59: =IFERROR(INDEX(РВД!$D:$I,MATCH($C59,РВД!$A:$A,)+1,MATCH($N$4+W$11-1,INDEX(РВД!$D:$I,MATCH($C59,РВД!$A:$A,),),)),IF(W60="Я",INDEX('график 7,8'!$B$52:$AF$63,MONTH($AP$3),W$11),"")) -> 3.9 | X59: =IFERROR(INDEX(РВД!$D:$I,MATCH($C59,РВД!$A:$A,)+1,MATCH($N$4+X$11-1,INDEX(РВД!$D:$I,MATCH($C59,РВД!$A:$A,),),)),IF(X60="Я",INDEX('график 7,8'!$B$52:$AF$63,MONTH($AP$3),X$11),"")) -> 3.9 | Y59: =IFERROR(INDEX(РВД!$D:$I,MATCH($C59,РВД!$A:$A,)+1,MATCH($N$4+Y$11-1,INDEX(РВД!$D:$I,MATCH($C59,РВД!$A:$A,),),)),IF(Y60="Я",INDEX('график 7,8'!$B$52:$AF$63,MONTH($AP$3),Y$11),"")) -> 3.9 | Z59: =IFERROR(INDEX(РВД!$D:$I,MATCH($C59,РВД!$A:$A,)+1,MATCH($N$4+Z$11-1,INDEX(РВД!$D:$I,MATCH($C59,РВД!$A:$A,),),)),IF(Z60="Я",INDEX('график 7,8'!$B$52:$AF$63,MONTH($AP$3),Z$11),"")) ->  | AA59: =IFERROR(INDEX(РВД!$D:$I,MATCH($C59,РВД!$A:$A,)+1,MATCH($N$4+AA$11-1,INDEX(РВД!$D:$I,MATCH($C59,РВД!$A:$A,),),)),IF(AA60="Я",INDEX('график 7,8'!$B$52:$AF$63,MONTH($AP$3),AA$11),"")) ->  | AB59: =IFERROR(INDEX(РВД!$D:$I,MATCH($C59,РВД!$A:$A,)+1,MATCH($N$4+AB$11-1,INDEX(РВД!$D:$I,MATCH($C59,РВД!$A:$A,),),)),IF(AB60="Я",INDEX('график 7,8'!$B$52:$AF$63,MONTH($AP$3),AB$11),"")) -> 3.9 | AC59: =IFERROR(INDEX(РВД!$D:$I,MATCH($C59,РВД!$A:$A,)+1,MATCH($N$4+AC$11-1,INDEX(РВД!$D:$I,MATCH($C59,РВД!$A:$A,),),)),IF(AC60="Я",INDEX('график 7,8'!$B$52:$AF$63,MONTH($AP$3),AC$11),"")) -> 3.9 | AD59: =IFERROR(INDEX(РВД!$D:$I,MATCH($C59,РВД!$A:$A,)+1,MATCH($N$4+AD$11-1,INDEX(РВД!$D:$I,MATCH($C59,РВД!$A:$A,),),)),IF(AD60="Я",INDEX('график 7,8'!$B$52:$AF$63,MONTH($AP$3),AD$11),"")) -> 3.9 | AE59: =IFERROR(INDEX(РВД!$D:$I,MATCH($C59,РВД!$A:$A,)+1,MATCH($N$4+AE$11-1,INDEX(РВД!$D:$I,MATCH($C59,РВД!$A:$A,),),)),IF(AE60="Я",INDEX('график 7,8'!$B$52:$AF$63,MONTH($AP$3),AE$11),"")) -> 3.9 | AF59: =IFERROR(INDEX(РВД!$D:$I,MATCH($C59,РВД!$A:$A,)+1,MATCH($N$4+AF$11-1,INDEX(РВД!$D:$I,MATCH($C59,РВД!$A:$A,),),)),IF(AF60="Я",INDEX('график 7,8'!$B$52:$AF$63,MONTH($AP$3),AF$11),"")) -> 3.9 | AG59: =IFERROR(INDEX(РВД!$D:$I,MATCH($C59,РВД!$A:$A,)+1,MATCH($N$4+AG$11-1,INDEX(РВД!$D:$I,MATCH($C59,РВД!$A:$A,),),)),IF(AG60="Я",INDEX('график 7,8'!$B$52:$AF$63,MONTH($AP$3),AG$11),"")) ->  | AH59: =IFERROR(INDEX(РВД!$D:$I,MATCH($C59,РВД!$A:$A,)+1,MATCH($N$4+AH$11-1,INDEX(РВД!$D:$I,MATCH($C59,РВД!$A:$A,),),)),IF(AH60="Я",INDEX('график 7,8'!$B$52:$AF$63,MONTH($AP$3),AH$11),"")) ->  | AI59: =IFERROR(INDEX(РВД!$D:$I,MATCH($C59,РВД!$A:$A,)+1,MATCH($N$4+AI$11-1,INDEX(РВД!$D:$I,MATCH($C59,РВД!$A:$A,),),)),IF(AI60="Я",INDEX('график 7,8'!$B$52:$AF$63,MONTH($AP$3),AI$11),"")) -> 3.9 | AJ59: =IFERROR(INDEX(РВД!$D:$I,MATCH($C59,РВД!$A:$A,)+1,MATCH($N$4+AJ$11-1,INDEX(РВД!$D:$I,MATCH($C59,РВД!$A:$A,),),)),IF(AJ60="Я",INDEX('график 7,8'!$B$52:$AF$63,MONTH($AP$3),AJ$11),"")) -> 3.9 | AK59: ="Я/"&SUMIF(E60:AJ60,"Я",E59:AJ59) -> Я/81,9 | AL59: =(SUMIF(E60:AJ60,"В",E59:AJ59)+SUMIF(E60:AJ60,"В.",E59:AJ59))*2 -> 0 | AM59: =COUNTIFS(E60:AJ60,"Я",E59:AJ59,"<>") -> 21 | AN59: =IFERROR(VLOOKUP(C59,доплаты!$A$5:$P$118,16,0),"") -> 28
E60: =TRIM(LEFT(TRIM(INDEX(отсутствия!$N:$AR,MATCH($C59,отсутствия!$A:$A,),E$11)&" "&TEXT(INDEX('график 7,8'!$B$52:$AF$63,MONTH($AP$3),E$11)&"","Я")),2)) -> В | F60: =TRIM(LEFT(TRIM(INDEX(отсутствия!$N:$AR,MATCH($C59,отсутствия!$A:$A,),F$11)&" "&TEXT(INDEX('график 7,8'!$B$52:$AF$63,MONTH($AP$3),F$11)&"","Я")),2)) -> Я | G60: =TRIM(LEFT(TRIM(INDEX(отсутствия!$N:$AR,MATCH($C59,отсутствия!$A:$A,),G$11)&" "&TEXT(INDEX('график 7,8'!$B$52:$AF$63,MONTH($AP$3),G$11)&"","Я")),2)) -> Я | H60: =TRIM(LEFT(TRIM(INDEX(отсутствия!$N:$AR,MATCH($C59,отсутствия!$A:$A,),H$11)&" "&TEXT(INDEX('график 7,8'!$B$52:$AF$63,MONTH($AP$3),H$11)&"","Я")),2)) -> Я | I60: =TRIM(LEFT(TRIM(INDEX(отсутствия!$N:$AR,MATCH($C59,отсутствия!$A:$A,),I$11)&" "&TEXT(INDEX('график 7,8'!$B$52:$AF$63,MONTH($AP$3),I$11)&"","Я")),2)) -> Я | J60: =TRIM(LEFT(TRIM(INDEX(отсутствия!$N:$AR,MATCH($C59,отсутствия!$A:$A,),J$11)&" "&TEXT(INDEX('график 7,8'!$B$52:$AF$63,MONTH($AP$3),J$11)&"","Я")),2)) -> Я | K60: =TRIM(LEFT(TRIM(INDEX(отсутствия!$N:$AR,MATCH($C59,отсутствия!$A:$A,),K$11)&" "&TEXT(INDEX('график 7,8'!$B$52:$AF$63,MONTH($AP$3),K$11)&"","Я")),2)) -> В | L60: =TRIM(LEFT(TRIM(INDEX(отсутствия!$N:$AR,MATCH($C59,отсутствия!$A:$A,),L$11)&" "&TEXT(INDEX('график 7,8'!$B$52:$AF$63,MONTH($AP$3),L$11)&"","Я")),2)) -> В. | M60: =TRIM(LEFT(TRIM(INDEX(отсутствия!$N:$AR,MATCH($C59,отсутствия!$A:$A,),M$11)&" "&TEXT(INDEX('график 7,8'!$B$52:$AF$63,MONTH($AP$3),M$11)&"","Я")),2)) -> В | N60: =TRIM(LEFT(TRIM(INDEX(отсутствия!$N:$AR,MATCH($C59,отсутствия!$A:$A,),N$11)&" "&TEXT(INDEX('график 7,8'!$B$52:$AF$63,MONTH($AP$3),N$11)&"","Я")),2)) -> Я | O60: =TRIM(LEFT(TRIM(INDEX(отсутствия!$N:$AR,MATCH($C59,отсутствия!$A:$A,),O$11)&" "&TEXT(INDEX('график 7,8'!$B$52:$AF$63,MONTH($AP$3),O$11)&"","Я")),2)) -> Я | P60: =TRIM(LEFT(TRIM(INDEX(отсутствия!$N:$AR,MATCH($C59,отсутствия!$A:$A,),P$11)&" "&TEXT(INDEX('график 7,8'!$B$52:$AF$63,MONTH($AP$3),P$11)&"","Я")),2)) -> Я | Q60: =TRIM(LEFT(TRIM(INDEX(отсутствия!$N:$AR,MATCH($C59,отсутствия!$A:$A,),Q$11)&" "&TEXT(INDEX('график 7,8'!$B$52:$AF$63,MONTH($AP$3),Q$11)&"","Я")),2)) -> Я | R60: =TRIM(LEFT(TRIM(INDEX(отсутствия!$N:$AR,MATCH($C59,отсутствия!$A:$A,),R$11)&" "&TEXT(INDEX('график 7,8'!$B$52:$AF$63,MONTH($AP$3),R$11)&"","Я")),2)) -> В | S60: =TRIM(LEFT(TRIM(INDEX(отсутствия!$N:$AR,MATCH($C59,отсутствия!$A:$A,),S$11)&" "&TEXT(INDEX('график 7,8'!$B$52:$AF$63,MONTH($AP$3),S$11)&"","Я")),2)) -> В | U60: =TRIM(LEFT(TRIM(INDEX(отсутствия!$N:$AR,MATCH($C59,отсутствия!$A:$A,),U$11)&" "&TEXT(INDEX('график 7,8'!$B$52:$AF$63,MONTH($AP$3),U$11)&"","Я")),2)) -> Я | V60: =TRIM(LEFT(TRIM(INDEX(отсутствия!$N:$AR,MATCH($C59,отсутствия!$A:$A,),V$11)&" "&TEXT(INDEX('график 7,8'!$B$52:$AF$63,MONTH($AP$3),V$11)&"","Я")),2)) -> Я | W60: =TRIM(LEFT(TRIM(INDEX(отсутствия!$N:$AR,MATCH($C59,отсутствия!$A:$A,),W$11)&" "&TEXT(INDEX('график 7,8'!$B$52:$AF$63,MONTH($AP$3),W$11)&"","Я")),2)) -> Я | X60: =TRIM(LEFT(TRIM(INDEX(отсутствия!$N:$AR,MATCH($C59,отсутствия!$A:$A,),X$11)&" "&TEXT(INDEX('график 7,8'!$B$52:$AF$63,MONTH($AP$3),X$11)&"","Я")),2)) -> Я | Y60: =TRIM(LEFT(TRIM(INDEX(отсутствия!$N:$AR,MATCH($C59,отсутствия!$A:$A,),Y$11)&" "&TEXT(INDEX('график 7,8'!$B$52:$AF$63,MONTH($AP$3),Y$11)&"","Я")),2)) -> Я | Z60: =TRIM(LEFT(TRIM(INDEX(отсутствия!$N:$AR,MATCH($C59,отсутствия!$A:$A,),Z$11)&" "&TEXT(INDEX('график 7,8'!$B$52:$AF$63,MONTH($AP$3),Z$11)&"","Я")),2)) -> В | AA60: =TRIM(LEFT(TRIM(INDEX(отсутствия!$N:$AR,MATCH($C59,отсутствия!$A:$A,),AA$11)&" "&TEXT(INDEX('график 7,8'!$B$52:$AF$63,MONTH($AP$3),AA$11)&"","Я")),2)) -> В | AB60: =TRIM(LEFT(TRIM(INDEX(отсутствия!$N:$AR,MATCH($C59,отсутствия!$A:$A,),AB$11)&" "&TEXT(INDEX('график 7,8'!$B$52:$AF$63,MONTH($AP$3),AB$11)&"","Я")),2)) -> Я | AC60: =TRIM(LEFT(TRIM(INDEX(отсутствия!$N:$AR,MATCH($C59,отсутствия!$A:$A,),AC$11)&" "&TEXT(INDEX('график 7,8'!$B$52:$AF$63,MONTH($AP$3),AC$11)&"","Я")),2)) -> Я | AD60: =TRIM(LEFT(TRIM(INDEX(отсутствия!$N:$AR,MATCH($C59,отсутствия!$A:$A,),AD$11)&" "&TEXT(INDEX('график 7,8'!$B$52:$AF$63,MONTH($AP$3),AD$11)&"","Я")),2)) -> Я | AE60: =TRIM(LEFT(TRIM(INDEX(отсутствия!$N:$AR,MATCH($C59,отсутствия!$A:$A,),AE$11)&" "&TEXT(INDEX('график 7,8'!$B$52:$AF$63,MONTH($AP$3),AE$11)&"","Я")),2)) -> Я | AF60: =TRIM(LEFT(TRIM(INDEX(отсутствия!$N:$AR,MATCH($C59,отсутствия!$A:$A,),AF$11)&" "&TEXT(INDEX('график 7,8'!$B$52:$AF$63,MONTH($AP$3),AF$11)&"","Я")),2)) -> Я | AG60: =TRIM(LEFT(TRIM(INDEX(отсутствия!$N:$AR,MATCH($C59,отсутствия!$A:$A,),AG$11)&" "&TEXT(INDEX('график 7,8'!$B$52:$AF$63,MONTH($AP$3),AG$11)&"","Я")),2)) -> В | AH60: =TRIM(LEFT(TRIM(INDEX(отсутствия!$N:$AR,MATCH($C59,отсутствия!$A:$A,),AH$11)&" "&TEXT(INDEX('график 7,8'!$B$52:$AF$63,MONTH($AP$3),AH$11)&"","Я")),2)) -> В | AI60: =TRIM(LEFT(TRIM(INDEX(отсутствия!$N:$AR,MATCH($C59,отсутствия!$A:$A,),AI$11)&" "&TEXT(INDEX('график 7,8'!$B$52:$AF$63,MONTH($AP$3),AI$11)&"","Я")),2)) -> Я | AJ60: =TRIM(LEFT(TRIM(INDEX(отсутствия!$N:$AR,MATCH($C59,отсутствия!$A:$A,),AJ$11)&" "&TEXT(INDEX('график 7,8'!$B$52:$AF$63,MONTH($AP$3),AJ$11)&"","Я")),2)) -> Я
A61: 5147 | B61: Королев | C61: 5147 | D61: сборная | E61: =IFERROR(INDEX(РВД!$D:$I,MATCH($C61,РВД!$A:$A,)+1,MATCH($N$4+E$11-1,INDEX(РВД!$D:$I,MATCH($C61,РВД!$A:$A,),),)),IF(E62="Я",INDEX('график 7,8'!$B$52:$AF$63,MONTH($AP$3),E$11),"")) ->  | F61: =IFERROR(INDEX(РВД!$D:$I,MATCH($C61,РВД!$A:$A,)+1,MATCH($N$4+F$11-1,INDEX(РВД!$D:$I,MATCH($C61,РВД!$A:$A,),),)),IF(F62="Я",INDEX('график 7,8'!$B$52:$AF$63,MONTH($AP$3),F$11),"")) -> 3.9 | G61: =IFERROR(INDEX(РВД!$D:$I,MATCH($C61,РВД!$A:$A,)+1,MATCH($N$4+G$11-1,INDEX(РВД!$D:$I,MATCH($C61,РВД!$A:$A,),),)),IF(G62="Я",INDEX('график 7,8'!$B$52:$AF$63,MONTH($AP$3),G$11),"")) -> 3.9 | H61: =IFERROR(INDEX(РВД!$D:$I,MATCH($C61,РВД!$A:$A,)+1,MATCH($N$4+H$11-1,INDEX(РВД!$D:$I,MATCH($C61,РВД!$A:$A,),),)),IF(H62="Я",INDEX('график 7,8'!$B$52:$AF$63,MONTH($AP$3),H$11),"")) -> 3.9 | I61: =IFERROR(INDEX(РВД!$D:$I,MATCH($C61,РВД!$A:$A,)+1,MATCH($N$4+I$11-1,INDEX(РВД!$D:$I,MATCH($C61,РВД!$A:$A,),),)),IF(I62="Я",INDEX('график 7,8'!$B$52:$AF$63,MONTH($AP$3),I$11),"")) -> 3.9 | J61: =IFERROR(INDEX(РВД!$D:$I,MATCH($C61,РВД!$A:$A,)+1,MATCH($N$4+J$11-1,INDEX(РВД!$D:$I,MATCH($C61,РВД!$A:$A,),),)),IF(J62="Я",INDEX('график 7,8'!$B$52:$AF$63,MONTH($AP$3),J$11),"")) -> 3.9 | K61: =IFERROR(INDEX(РВД!$D:$I,MATCH($C61,РВД!$A:$A,)+1,MATCH($N$4+K$11-1,INDEX(РВД!$D:$I,MATCH($C61,РВД!$A:$A,),),)),IF(K62="Я",INDEX('график 7,8'!$B$52:$AF$63,MONTH($AP$3),K$11),"")) ->  | L61: =IFERROR(INDEX(РВД!$D:$I,MATCH($C61,РВД!$A:$A,)+1,MATCH($N$4+L$11-1,INDEX(РВД!$D:$I,MATCH($C61,РВД!$A:$A,),),)),IF(L62="Я",INDEX('график 7,8'!$B$52:$AF$63,MONTH($AP$3),L$11),"")) ->  | M61: =IFERROR(INDEX(РВД!$D:$I,MATCH($C61,РВД!$A:$A,)+1,MATCH($N$4+M$11-1,INDEX(РВД!$D:$I,MATCH($C61,РВД!$A:$A,),),)),IF(M62="Я",INDEX('график 7,8'!$B$52:$AF$63,MONTH($AP$3),M$11),"")) ->  | N61: =IFERROR(INDEX(РВД!$D:$I,MATCH($C61,РВД!$A:$A,)+1,MATCH($N$4+N$11-1,INDEX(РВД!$D:$I,MATCH($C61,РВД!$A:$A,),),)),IF(N62="Я",INDEX('график 7,8'!$B$52:$AF$63,MONTH($AP$3),N$11),"")) -> 3.9 | O61: =IFERROR(INDEX(РВД!$D:$I,MATCH($C61,РВД!$A:$A,)+1,MATCH($N$4+O$11-1,INDEX(РВД!$D:$I,MATCH($C61,РВД!$A:$A,),),)),IF(O62="Я",INDEX('график 7,8'!$B$52:$AF$63,MONTH($AP$3),O$11),"")) -> 3.9 | P61: =IFERROR(INDEX(РВД!$D:$I,MATCH($C61,РВД!$A:$A,)+1,MATCH($N$4+P$11-1,INDEX(РВД!$D:$I,MATCH($C61,РВД!$A:$A,),),)),IF(P62="Я",INDEX('график 7,8'!$B$52:$AF$63,MONTH($AP$3),P$11),"")) -> 3.9 | Q61: =IFERROR(INDEX(РВД!$D:$I,MATCH($C61,РВД!$A:$A,)+1,MATCH($N$4+Q$11-1,INDEX(РВД!$D:$I,MATCH($C61,РВД!$A:$A,),),)),IF(Q62="Я",INDEX('график 7,8'!$B$52:$AF$63,MONTH($AP$3),Q$11),"")) -> 3.9 | R61: =IFERROR(INDEX(РВД!$D:$I,MATCH($C61,РВД!$A:$A,)+1,MATCH($N$4+R$11-1,INDEX(РВД!$D:$I,MATCH($C61,РВД!$A:$A,),),)),IF(R62="Я",INDEX('график 7,8'!$B$52:$AF$63,MONTH($AP$3),R$11),"")) ->  | S61: =IFERROR(INDEX(РВД!$D:$I,MATCH($C61,РВД!$A:$A,)+1,MATCH($N$4+S$11-1,INDEX(РВД!$D:$I,MATCH($C61,РВД!$A:$A,),),)),IF(S62="Я",INDEX('график 7,8'!$B$52:$AF$63,MONTH($AP$3),S$11),"")) ->  | T61: =SUMIF(E62:S62,"Я",E61:S61) -> 35.1 | U61: =IFERROR(INDEX(РВД!$D:$I,MATCH($C61,РВД!$A:$A,)+1,MATCH($N$4+U$11-1,INDEX(РВД!$D:$I,MATCH($C61,РВД!$A:$A,),),)),IF(U62="Я",INDEX('график 7,8'!$B$52:$AF$63,MONTH($AP$3),U$11),"")) -> 3.9 | V61: =IFERROR(INDEX(РВД!$D:$I,MATCH($C61,РВД!$A:$A,)+1,MATCH($N$4+V$11-1,INDEX(РВД!$D:$I,MATCH($C61,РВД!$A:$A,),),)),IF(V62="Я",INDEX('график 7,8'!$B$52:$AF$63,MONTH($AP$3),V$11),"")) -> 3.9 | W61: =IFERROR(INDEX(РВД!$D:$I,MATCH($C61,РВД!$A:$A,)+1,MATCH($N$4+W$11-1,INDEX(РВД!$D:$I,MATCH($C61,РВД!$A:$A,),),)),IF(W62="Я",INDEX('график 7,8'!$B$52:$AF$63,MONTH($AP$3),W$11),"")) -> 3.9 | X61: =IFERROR(INDEX(РВД!$D:$I,MATCH($C61,РВД!$A:$A,)+1,MATCH($N$4+X$11-1,INDEX(РВД!$D:$I,MATCH($C61,РВД!$A:$A,),),)),IF(X62="Я",INDEX('график 7,8'!$B$52:$AF$63,MONTH($AP$3),X$11),"")) -> 3.9 | Y61: =IFERROR(INDEX(РВД!$D:$I,MATCH($C61,РВД!$A:$A,)+1,MATCH($N$4+Y$11-1,INDEX(РВД!$D:$I,MATCH($C61,РВД!$A:$A,),),)),IF(Y62="Я",INDEX('график 7,8'!$B$52:$AF$63,MONTH($AP$3),Y$11),"")) -> 3.9 | Z61: =IFERROR(INDEX(РВД!$D:$I,MATCH($C61,РВД!$A:$A,)+1,MATCH($N$4+Z$11-1,INDEX(РВД!$D:$I,MATCH($C61,РВД!$A:$A,),),)),IF(Z62="Я",INDEX('график 7,8'!$B$52:$AF$63,MONTH($AP$3),Z$11),"")) ->  | AA61: =IFERROR(INDEX(РВД!$D:$I,MATCH($C61,РВД!$A:$A,)+1,MATCH($N$4+AA$11-1,INDEX(РВД!$D:$I,MATCH($C61,РВД!$A:$A,),),)),IF(AA62="Я",INDEX('график 7,8'!$B$52:$AF$63,MONTH($AP$3),AA$11),"")) ->  | AB61: =IFERROR(INDEX(РВД!$D:$I,MATCH($C61,РВД!$A:$A,)+1,MATCH($N$4+AB$11-1,INDEX(РВД!$D:$I,MATCH($C61,РВД!$A:$A,),),)),IF(AB62="Я",INDEX('график 7,8'!$B$52:$AF$63,MONTH($AP$3),AB$11),"")) -> 3.9 | AC61: =IFERROR(INDEX(РВД!$D:$I,MATCH($C61,РВД!$A:$A,)+1,MATCH($N$4+AC$11-1,INDEX(РВД!$D:$I,MATCH($C61,РВД!$A:$A,),),)),IF(AC62="Я",INDEX('график 7,8'!$B$52:$AF$63,MONTH($AP$3),AC$11),"")) -> 3.9 | AD61: =IFERROR(INDEX(РВД!$D:$I,MATCH($C61,РВД!$A:$A,)+1,MATCH($N$4+AD$11-1,INDEX(РВД!$D:$I,MATCH($C61,РВД!$A:$A,),),)),IF(AD62="Я",INDEX('график 7,8'!$B$52:$AF$63,MONTH($AP$3),AD$11),"")) -> 3.9 | AE61: =IFERROR(INDEX(РВД!$D:$I,MATCH($C61,РВД!$A:$A,)+1,MATCH($N$4+AE$11-1,INDEX(РВД!$D:$I,MATCH($C61,РВД!$A:$A,),),)),IF(AE62="Я",INDEX('график 7,8'!$B$52:$AF$63,MONTH($AP$3),AE$11),"")) -> 3.9 | AF61: =IFERROR(INDEX(РВД!$D:$I,MATCH($C61,РВД!$A:$A,)+1,MATCH($N$4+AF$11-1,INDEX(РВД!$D:$I,MATCH($C61,РВД!$A:$A,),),)),IF(AF62="Я",INDEX('график 7,8'!$B$52:$AF$63,MONTH($AP$3),AF$11),"")) -> 3.9 | AG61: =IFERROR(INDEX(РВД!$D:$I,MATCH($C61,РВД!$A:$A,)+1,MATCH($N$4+AG$11-1,INDEX(РВД!$D:$I,MATCH($C61,РВД!$A:$A,),),)),IF(AG62="Я",INDEX('график 7,8'!$B$52:$AF$63,MONTH($AP$3),AG$11),"")) ->  | AH61: =IFERROR(INDEX(РВД!$D:$I,MATCH($C61,РВД!$A:$A,)+1,MATCH($N$4+AH$11-1,INDEX(РВД!$D:$I,MATCH($C61,РВД!$A:$A,),),)),IF(AH62="Я",INDEX('график 7,8'!$B$52:$AF$63,MONTH($AP$3),AH$11),"")) ->  | AI61: =IFERROR(INDEX(РВД!$D:$I,MATCH($C61,РВД!$A:$A,)+1,MATCH($N$4+AI$11-1,INDEX(РВД!$D:$I,MATCH($C61,РВД!$A:$A,),),)),IF(AI62="Я",INDEX('график 7,8'!$B$52:$AF$63,MONTH($AP$3),AI$11),"")) -> 3.9 | AJ61: =IFERROR(INDEX(РВД!$D:$I,MATCH($C61,РВД!$A:$A,)+1,MATCH($N$4+AJ$11-1,INDEX(РВД!$D:$I,MATCH($C61,РВД!$A:$A,),),)),IF(AJ62="Я",INDEX('график 7,8'!$B$52:$AF$63,MONTH($AP$3),AJ$11),"")) -> 3.9 | AK61: ="Я/"&SUMIF(E62:AJ62,"Я",E61:AJ61) -> Я/81,9 | AL61: =(SUMIF(E62:AJ62,"В",E61:AJ61)+SUMIF(E62:AJ62,"В.",E61:AJ61))*2 -> 0 | AM61: =COUNTIFS(E62:AJ62,"Я",E61:AJ61,"<>") -> 21 | AN61: =IFERROR(VLOOKUP(C61,доплаты!$A$5:$P$118,16,0),"") -> 100
E62: =TRIM(LEFT(TRIM(INDEX(отсутствия!$N:$AR,MATCH($C61,отсутствия!$A:$A,),E$11)&" "&TEXT(INDEX('график 7,8'!$B$52:$AF$63,MONTH($AP$3),E$11)&"","Я")),2)) -> В | F62: =TRIM(LEFT(TRIM(INDEX(отсутствия!$N:$AR,MATCH($C61,отсутствия!$A:$A,),F$11)&" "&TEXT(INDEX('график 7,8'!$B$52:$AF$63,MONTH($AP$3),F$11)&"","Я")),2)) -> Я | G62: =TRIM(LEFT(TRIM(INDEX(отсутствия!$N:$AR,MATCH($C61,отсутствия!$A:$A,),G$11)&" "&TEXT(INDEX('график 7,8'!$B$52:$AF$63,MONTH($AP$3),G$11)&"","Я")),2)) -> Я | H62: =TRIM(LEFT(TRIM(INDEX(отсутствия!$N:$AR,MATCH($C61,отсутствия!$A:$A,),H$11)&" "&TEXT(INDEX('график 7,8'!$B$52:$AF$63,MONTH($AP$3),H$11)&"","Я")),2)) -> Я | I62: =TRIM(LEFT(TRIM(INDEX(отсутствия!$N:$AR,MATCH($C61,отсутствия!$A:$A,),I$11)&" "&TEXT(INDEX('график 7,8'!$B$52:$AF$63,MONTH($AP$3),I$11)&"","Я")),2)) -> Я | J62: =TRIM(LEFT(TRIM(INDEX(отсутствия!$N:$AR,MATCH($C61,отсутствия!$A:$A,),J$11)&" "&TEXT(INDEX('график 7,8'!$B$52:$AF$63,MONTH($AP$3),J$11)&"","Я")),2)) -> Я | K62: =TRIM(LEFT(TRIM(INDEX(отсутствия!$N:$AR,MATCH($C61,отсутствия!$A:$A,),K$11)&" "&TEXT(INDEX('график 7,8'!$B$52:$AF$63,MONTH($AP$3),K$11)&"","Я")),2)) -> В | L62: =TRIM(LEFT(TRIM(INDEX(отсутствия!$N:$AR,MATCH($C61,отсутствия!$A:$A,),L$11)&" "&TEXT(INDEX('график 7,8'!$B$52:$AF$63,MONTH($AP$3),L$11)&"","Я")),2)) -> В. | M62: =TRIM(LEFT(TRIM(INDEX(отсутствия!$N:$AR,MATCH($C61,отсутствия!$A:$A,),M$11)&" "&TEXT(INDEX('график 7,8'!$B$52:$AF$63,MONTH($AP$3),M$11)&"","Я")),2)) -> В | N62: =TRIM(LEFT(TRIM(INDEX(отсутствия!$N:$AR,MATCH($C61,отсутствия!$A:$A,),N$11)&" "&TEXT(INDEX('график 7,8'!$B$52:$AF$63,MONTH($AP$3),N$11)&"","Я")),2)) -> Я | O62: =TRIM(LEFT(TRIM(INDEX(отсутствия!$N:$AR,MATCH($C61,отсутствия!$A:$A,),O$11)&" "&TEXT(INDEX('график 7,8'!$B$52:$AF$63,MONTH($AP$3),O$11)&"","Я")),2)) -> Я | P62: =TRIM(LEFT(TRIM(INDEX(отсутствия!$N:$AR,MATCH($C61,отсутствия!$A:$A,),P$11)&" "&TEXT(INDEX('график 7,8'!$B$52:$AF$63,MONTH($AP$3),P$11)&"","Я")),2)) -> Я | Q62: =TRIM(LEFT(TRIM(INDEX(отсутствия!$N:$AR,MATCH($C61,отсутствия!$A:$A,),Q$11)&" "&TEXT(INDEX('график 7,8'!$B$52:$AF$63,MONTH($AP$3),Q$11)&"","Я")),2)) -> Я | R62: =TRIM(LEFT(TRIM(INDEX(отсутствия!$N:$AR,MATCH($C61,отсутствия!$A:$A,),R$11)&" "&TEXT(INDEX('график 7,8'!$B$52:$AF$63,MONTH($AP$3),R$11)&"","Я")),2)) -> В | S62: =TRIM(LEFT(TRIM(INDEX(отсутствия!$N:$AR,MATCH($C61,отсутствия!$A:$A,),S$11)&" "&TEXT(INDEX('график 7,8'!$B$52:$AF$63,MONTH($AP$3),S$11)&"","Я")),2)) -> В | U62: =TRIM(LEFT(TRIM(INDEX(отсутствия!$N:$AR,MATCH($C61,отсутствия!$A:$A,),U$11)&" "&TEXT(INDEX('график 7,8'!$B$52:$AF$63,MONTH($AP$3),U$11)&"","Я")),2)) -> Я | V62: =TRIM(LEFT(TRIM(INDEX(отсутствия!$N:$AR,MATCH($C61,отсутствия!$A:$A,),V$11)&" "&TEXT(INDEX('график 7,8'!$B$52:$AF$63,MONTH($AP$3),V$11)&"","Я")),2)) -> Я | W62: =TRIM(LEFT(TRIM(INDEX(отсутствия!$N:$AR,MATCH($C61,отсутствия!$A:$A,),W$11)&" "&TEXT(INDEX('график 7,8'!$B$52:$AF$63,MONTH($AP$3),W$11)&"","Я")),2)) -> Я | X62: =TRIM(LEFT(TRIM(INDEX(отсутствия!$N:$AR,MATCH($C61,отсутствия!$A:$A,),X$11)&" "&TEXT(INDEX('график 7,8'!$B$52:$AF$63,MONTH($AP$3),X$11)&"","Я")),2)) -> Я | Y62: =TRIM(LEFT(TRIM(INDEX(отсутствия!$N:$AR,MATCH($C61,отсутствия!$A:$A,),Y$11)&" "&TEXT(INDEX('график 7,8'!$B$52:$AF$63,MONTH($AP$3),Y$11)&"","Я")),2)) -> Я | Z62: =TRIM(LEFT(TRIM(INDEX(отсутствия!$N:$AR,MATCH($C61,отсутствия!$A:$A,),Z$11)&" "&TEXT(INDEX('график 7,8'!$B$52:$AF$63,MONTH($AP$3),Z$11)&"","Я")),2)) -> В | AA62: =TRIM(LEFT(TRIM(INDEX(отсутствия!$N:$AR,MATCH($C61,отсутствия!$A:$A,),AA$11)&" "&TEXT(INDEX('график 7,8'!$B$52:$AF$63,MONTH($AP$3),AA$11)&"","Я")),2)) -> В | AB62: =TRIM(LEFT(TRIM(INDEX(отсутствия!$N:$AR,MATCH($C61,отсутствия!$A:$A,),AB$11)&" "&TEXT(INDEX('график 7,8'!$B$52:$AF$63,MONTH($AP$3),AB$11)&"","Я")),2)) -> Я | AC62: =TRIM(LEFT(TRIM(INDEX(отсутствия!$N:$AR,MATCH($C61,отсутствия!$A:$A,),AC$11)&" "&TEXT(INDEX('график 7,8'!$B$52:$AF$63,MONTH($AP$3),AC$11)&"","Я")),2)) -> Я | AD62: =TRIM(LEFT(TRIM(INDEX(отсутствия!$N:$AR,MATCH($C61,отсутствия!$A:$A,),AD$11)&" "&TEXT(INDEX('график 7,8'!$B$52:$AF$63,MONTH($AP$3),AD$11)&"","Я")),2)) -> Я | AE62: =TRIM(LEFT(TRIM(INDEX(отсутствия!$N:$AR,MATCH($C61,отсутствия!$A:$A,),AE$11)&" "&TEXT(INDEX('график 7,8'!$B$52:$AF$63,MONTH($AP$3),AE$11)&"","Я")),2)) -> Я | AF62: =TRIM(LEFT(TRIM(INDEX(отсутствия!$N:$AR,MATCH($C61,отсутствия!$A:$A,),AF$11)&" "&TEXT(INDEX('график 7,8'!$B$52:$AF$63,MONTH($AP$3),AF$11)&"","Я")),2)) -> Я | AG62: =TRIM(LEFT(TRIM(INDEX(отсутствия!$N:$AR,MATCH($C61,отсутствия!$A:$A,),AG$11)&" "&TEXT(INDEX('график 7,8'!$B$52:$AF$63,MONTH($AP$3),AG$11)&"","Я")),2)) -> В | AH62: =TRIM(LEFT(TRIM(INDEX(отсутствия!$N:$AR,MATCH($C61,отсутствия!$A:$A,),AH$11)&" "&TEXT(INDEX('график 7,8'!$B$52:$AF$63,MONTH($AP$3),AH$11)&"","Я")),2)) -> В | AI62: =TRIM(LEFT(TRIM(INDEX(отсутствия!$N:$AR,MATCH($C61,отсутствия!$A:$A,),AI$11)&" "&TEXT(INDEX('график 7,8'!$B$52:$AF$63,MONTH($AP$3),AI$11)&"","Я")),2)) -> Я | AJ62: =TRIM(LEFT(TRIM(INDEX(отсутствия!$N:$AR,MATCH($C61,отсутствия!$A:$A,),AJ$11)&" "&TEXT(INDEX('график 7,8'!$B$52:$AF$63,MONTH($AP$3),AJ$11)&"","Я")),2)) -> Я
A63: 5055 | B63: Орлов | C63: 5055 | D63: сборная | E63: =IFERROR(INDEX(РВД!$D:$I,MATCH($C63,РВД!$A:$A,)+1,MATCH($N$4+E$11-1,INDEX(РВД!$D:$I,MATCH($C63,РВД!$A:$A,),),)),IF(E64="Я",INDEX('график 7,8'!$B$52:$AF$63,MONTH($AP$3),E$11),"")) ->  | F63: =IFERROR(INDEX(РВД!$D:$I,MATCH($C63,РВД!$A:$A,)+1,MATCH($N$4+F$11-1,INDEX(РВД!$D:$I,MATCH($C63,РВД!$A:$A,),),)),IF(F64="Я",INDEX('график 7,8'!$B$52:$AF$63,MONTH($AP$3),F$11),"")) -> 3.9 | G63: =IFERROR(INDEX(РВД!$D:$I,MATCH($C63,РВД!$A:$A,)+1,MATCH($N$4+G$11-1,INDEX(РВД!$D:$I,MATCH($C63,РВД!$A:$A,),),)),IF(G64="Я",INDEX('график 7,8'!$B$52:$AF$63,MONTH($AP$3),G$11),"")) -> 3.9 | H63: =IFERROR(INDEX(РВД!$D:$I,MATCH($C63,РВД!$A:$A,)+1,MATCH($N$4+H$11-1,INDEX(РВД!$D:$I,MATCH($C63,РВД!$A:$A,),),)),IF(H64="Я",INDEX('график 7,8'!$B$52:$AF$63,MONTH($AP$3),H$11),"")) -> 3.9 | I63: =IFERROR(INDEX(РВД!$D:$I,MATCH($C63,РВД!$A:$A,)+1,MATCH($N$4+I$11-1,INDEX(РВД!$D:$I,MATCH($C63,РВД!$A:$A,),),)),IF(I64="Я",INDEX('график 7,8'!$B$52:$AF$63,MONTH($AP$3),I$11),"")) -> 3.9 | J63: =IFERROR(INDEX(РВД!$D:$I,MATCH($C63,РВД!$A:$A,)+1,MATCH($N$4+J$11-1,INDEX(РВД!$D:$I,MATCH($C63,РВД!$A:$A,),),)),IF(J64="Я",INDEX('график 7,8'!$B$52:$AF$63,MONTH($AP$3),J$11),"")) -> 3.9 | K63: =IFERROR(INDEX(РВД!$D:$I,MATCH($C63,РВД!$A:$A,)+1,MATCH($N$4+K$11-1,INDEX(РВД!$D:$I,MATCH($C63,РВД!$A:$A,),),)),IF(K64="Я",INDEX('график 7,8'!$B$52:$AF$63,MONTH($AP$3),K$11),"")) ->  | L63: =IFERROR(INDEX(РВД!$D:$I,MATCH($C63,РВД!$A:$A,)+1,MATCH($N$4+L$11-1,INDEX(РВД!$D:$I,MATCH($C63,РВД!$A:$A,),),)),IF(L64="Я",INDEX('график 7,8'!$B$52:$AF$63,MONTH($AP$3),L$11),"")) ->  | M63: =IFERROR(INDEX(РВД!$D:$I,MATCH($C63,РВД!$A:$A,)+1,MATCH($N$4+M$11-1,INDEX(РВД!$D:$I,MATCH($C63,РВД!$A:$A,),),)),IF(M64="Я",INDEX('график 7,8'!$B$52:$AF$63,MONTH($AP$3),M$11),"")) ->  | N63: =IFERROR(INDEX(РВД!$D:$I,MATCH($C63,РВД!$A:$A,)+1,MATCH($N$4+N$11-1,INDEX(РВД!$D:$I,MATCH($C63,РВД!$A:$A,),),)),IF(N64="Я",INDEX('график 7,8'!$B$52:$AF$63,MONTH($AP$3),N$11),"")) -> 3.9 | O63: =IFERROR(INDEX(РВД!$D:$I,MATCH($C63,РВД!$A:$A,)+1,MATCH($N$4+O$11-1,INDEX(РВД!$D:$I,MATCH($C63,РВД!$A:$A,),),)),IF(O64="Я",INDEX('график 7,8'!$B$52:$AF$63,MONTH($AP$3),O$11),"")) -> 3.9 | P63: =IFERROR(INDEX(РВД!$D:$I,MATCH($C63,РВД!$A:$A,)+1,MATCH($N$4+P$11-1,INDEX(РВД!$D:$I,MATCH($C63,РВД!$A:$A,),),)),IF(P64="Я",INDEX('график 7,8'!$B$52:$AF$63,MONTH($AP$3),P$11),"")) -> 3.9 | Q63: =IFERROR(INDEX(РВД!$D:$I,MATCH($C63,РВД!$A:$A,)+1,MATCH($N$4+Q$11-1,INDEX(РВД!$D:$I,MATCH($C63,РВД!$A:$A,),),)),IF(Q64="Я",INDEX('график 7,8'!$B$52:$AF$63,MONTH($AP$3),Q$11),"")) -> 3.9 | R63: =IFERROR(INDEX(РВД!$D:$I,MATCH($C63,РВД!$A:$A,)+1,MATCH($N$4+R$11-1,INDEX(РВД!$D:$I,MATCH($C63,РВД!$A:$A,),),)),IF(R64="Я",INDEX('график 7,8'!$B$52:$AF$63,MONTH($AP$3),R$11),"")) ->  | S63: =IFERROR(INDEX(РВД!$D:$I,MATCH($C63,РВД!$A:$A,)+1,MATCH($N$4+S$11-1,INDEX(РВД!$D:$I,MATCH($C63,РВД!$A:$A,),),)),IF(S64="Я",INDEX('график 7,8'!$B$52:$AF$63,MONTH($AP$3),S$11),"")) ->  | T63: =SUMIF(E64:S64,"Я",E63:S63) -> 35.1 | U63: =IFERROR(INDEX(РВД!$D:$I,MATCH($C63,РВД!$A:$A,)+1,MATCH($N$4+U$11-1,INDEX(РВД!$D:$I,MATCH($C63,РВД!$A:$A,),),)),IF(U64="Я",INDEX('график 7,8'!$B$52:$AF$63,MONTH($AP$3),U$11),"")) -> 3.9 | V63: =IFERROR(INDEX(РВД!$D:$I,MATCH($C63,РВД!$A:$A,)+1,MATCH($N$4+V$11-1,INDEX(РВД!$D:$I,MATCH($C63,РВД!$A:$A,),),)),IF(V64="Я",INDEX('график 7,8'!$B$52:$AF$63,MONTH($AP$3),V$11),"")) -> 3.9 | W63: =IFERROR(INDEX(РВД!$D:$I,MATCH($C63,РВД!$A:$A,)+1,MATCH($N$4+W$11-1,INDEX(РВД!$D:$I,MATCH($C63,РВД!$A:$A,),),)),IF(W64="Я",INDEX('график 7,8'!$B$52:$AF$63,MONTH($AP$3),W$11),"")) -> 3.9 | X63: =IFERROR(INDEX(РВД!$D:$I,MATCH($C63,РВД!$A:$A,)+1,MATCH($N$4+X$11-1,INDEX(РВД!$D:$I,MATCH($C63,РВД!$A:$A,),),)),IF(X64="Я",INDEX('график 7,8'!$B$52:$AF$63,MONTH($AP$3),X$11),"")) -> 3.9 | Y63: =IFERROR(INDEX(РВД!$D:$I,MATCH($C63,РВД!$A:$A,)+1,MATCH($N$4+Y$11-1,INDEX(РВД!$D:$I,MATCH($C63,РВД!$A:$A,),),)),IF(Y64="Я",INDEX('график 7,8'!$B$52:$AF$63,MONTH($AP$3),Y$11),"")) -> 3.9 | Z63: =IFERROR(INDEX(РВД!$D:$I,MATCH($C63,РВД!$A:$A,)+1,MATCH($N$4+Z$11-1,INDEX(РВД!$D:$I,MATCH($C63,РВД!$A:$A,),),)),IF(Z64="Я",INDEX('график 7,8'!$B$52:$AF$63,MONTH($AP$3),Z$11),"")) ->  | AA63: =IFERROR(INDEX(РВД!$D:$I,MATCH($C63,РВД!$A:$A,)+1,MATCH($N$4+AA$11-1,INDEX(РВД!$D:$I,MATCH($C63,РВД!$A:$A,),),)),IF(AA64="Я",INDEX('график 7,8'!$B$52:$AF$63,MONTH($AP$3),AA$11),"")) ->  | AB63: =IFERROR(INDEX(РВД!$D:$I,MATCH($C63,РВД!$A:$A,)+1,MATCH($N$4+AB$11-1,INDEX(РВД!$D:$I,MATCH($C63,РВД!$A:$A,),),)),IF(AB64="Я",INDEX('график 7,8'!$B$52:$AF$63,MONTH($AP$3),AB$11),"")) -> 3.9 | AC63: =IFERROR(INDEX(РВД!$D:$I,MATCH($C63,РВД!$A:$A,)+1,MATCH($N$4+AC$11-1,INDEX(РВД!$D:$I,MATCH($C63,РВД!$A:$A,),),)),IF(AC64="Я",INDEX('график 7,8'!$B$52:$AF$63,MONTH($AP$3),AC$11),"")) -> 3.9 | AD63: =IFERROR(INDEX(РВД!$D:$I,MATCH($C63,РВД!$A:$A,)+1,MATCH($N$4+AD$11-1,INDEX(РВД!$D:$I,MATCH($C63,РВД!$A:$A,),),)),IF(AD64="Я",INDEX('график 7,8'!$B$52:$AF$63,MONTH($AP$3),AD$11),"")) -> 3.9 | AE63: =IFERROR(INDEX(РВД!$D:$I,MATCH($C63,РВД!$A:$A,)+1,MATCH($N$4+AE$11-1,INDEX(РВД!$D:$I,MATCH($C63,РВД!$A:$A,),),)),IF(AE64="Я",INDEX('график 7,8'!$B$52:$AF$63,MONTH($AP$3),AE$11),"")) -> 3.9 | AF63: =IFERROR(INDEX(РВД!$D:$I,MATCH($C63,РВД!$A:$A,)+1,MATCH($N$4+AF$11-1,INDEX(РВД!$D:$I,MATCH($C63,РВД!$A:$A,),),)),IF(AF64="Я",INDEX('график 7,8'!$B$52:$AF$63,MONTH($AP$3),AF$11),"")) -> 3.9 | AG63: =IFERROR(INDEX(РВД!$D:$I,MATCH($C63,РВД!$A:$A,)+1,MATCH($N$4+AG$11-1,INDEX(РВД!$D:$I,MATCH($C63,РВД!$A:$A,),),)),IF(AG64="Я",INDEX('график 7,8'!$B$52:$AF$63,MONTH($AP$3),AG$11),"")) ->  | AH63: =IFERROR(INDEX(РВД!$D:$I,MATCH($C63,РВД!$A:$A,)+1,MATCH($N$4+AH$11-1,INDEX(РВД!$D:$I,MATCH($C63,РВД!$A:$A,),),)),IF(AH64="Я",INDEX('график 7,8'!$B$52:$AF$63,MONTH($AP$3),AH$11),"")) ->  | AI63: =IFERROR(INDEX(РВД!$D:$I,MATCH($C63,РВД!$A:$A,)+1,MATCH($N$4+AI$11-1,INDEX(РВД!$D:$I,MATCH($C63,РВД!$A:$A,),),)),IF(AI64="Я",INDEX('график 7,8'!$B$52:$AF$63,MONTH($AP$3),AI$11),"")) -> 3.9 | AJ63: =IFERROR(INDEX(РВД!$D:$I,MATCH($C63,РВД!$A:$A,)+1,MATCH($N$4+AJ$11-1,INDEX(РВД!$D:$I,MATCH($C63,РВД!$A:$A,),),)),IF(AJ64="Я",INDEX('график 7,8'!$B$52:$AF$63,MONTH($AP$3),AJ$11),"")) -> 3.9 | AK63: ="Я/"&SUMIF(E64:AJ64,"Я",E63:AJ63) -> Я/81,9 | AL63: =(SUMIF(E64:AJ64,"В",E63:AJ63)+SUMIF(E64:AJ64,"В.",E63:AJ63))*2 -> 0 | AN63: =IFERROR(VLOOKUP(C63,доплаты!$A$5:$P$118,16,0),"") -> 100
E64: =TRIM(LEFT(TRIM(INDEX(отсутствия!$N:$AR,MATCH($C63,отсутствия!$A:$A,),E$11)&" "&TEXT(INDEX('график 7,8'!$B$52:$AF$63,MONTH($AP$3),E$11)&"","Я")),2)) -> В | F64: =TRIM(LEFT(TRIM(INDEX(отсутствия!$N:$AR,MATCH($C63,отсутствия!$A:$A,),F$11)&" "&TEXT(INDEX('график 7,8'!$B$52:$AF$63,MONTH($AP$3),F$11)&"","Я")),2)) -> Я | G64: =TRIM(LEFT(TRIM(INDEX(отсутствия!$N:$AR,MATCH($C63,отсутствия!$A:$A,),G$11)&" "&TEXT(INDEX('график 7,8'!$B$52:$AF$63,MONTH($AP$3),G$11)&"","Я")),2)) -> Я | H64: =TRIM(LEFT(TRIM(INDEX(отсутствия!$N:$AR,MATCH($C63,отсутствия!$A:$A,),H$11)&" "&TEXT(INDEX('график 7,8'!$B$52:$AF$63,MONTH($AP$3),H$11)&"","Я")),2)) -> Я | I64: =TRIM(LEFT(TRIM(INDEX(отсутствия!$N:$AR,MATCH($C63,отсутствия!$A:$A,),I$11)&" "&TEXT(INDEX('график 7,8'!$B$52:$AF$63,MONTH($AP$3),I$11)&"","Я")),2)) -> Я | J64: =TRIM(LEFT(TRIM(INDEX(отсутствия!$N:$AR,MATCH($C63,отсутствия!$A:$A,),J$11)&" "&TEXT(INDEX('график 7,8'!$B$52:$AF$63,MONTH($AP$3),J$11)&"","Я")),2)) -> Я | K64: =TRIM(LEFT(TRIM(INDEX(отсутствия!$N:$AR,MATCH($C63,отсутствия!$A:$A,),K$11)&" "&TEXT(INDEX('график 7,8'!$B$52:$AF$63,MONTH($AP$3),K$11)&"","Я")),2)) -> В | L64: =TRIM(LEFT(TRIM(INDEX(отсутствия!$N:$AR,MATCH($C63,отсутствия!$A:$A,),L$11)&" "&TEXT(INDEX('график 7,8'!$B$52:$AF$63,MONTH($AP$3),L$11)&"","Я")),2)) -> В. | M64: =TRIM(LEFT(TRIM(INDEX(отсутствия!$N:$AR,MATCH($C63,отсутствия!$A:$A,),M$11)&" "&TEXT(INDEX('график 7,8'!$B$52:$AF$63,MONTH($AP$3),M$11)&"","Я")),2)) -> В | N64: =TRIM(LEFT(TRIM(INDEX(отсутствия!$N:$AR,MATCH($C63,отсутствия!$A:$A,),N$11)&" "&TEXT(INDEX('график 7,8'!$B$52:$AF$63,MONTH($AP$3),N$11)&"","Я")),2)) -> Я | O64: =TRIM(LEFT(TRIM(INDEX(отсутствия!$N:$AR,MATCH($C63,отсутствия!$A:$A,),O$11)&" "&TEXT(INDEX('график 7,8'!$B$52:$AF$63,MONTH($AP$3),O$11)&"","Я")),2)) -> Я | P64: =TRIM(LEFT(TRIM(INDEX(отсутствия!$N:$AR,MATCH($C63,отсутствия!$A:$A,),P$11)&" "&TEXT(INDEX('график 7,8'!$B$52:$AF$63,MONTH($AP$3),P$11)&"","Я")),2)) -> Я | Q64: =TRIM(LEFT(TRIM(INDEX(отсутствия!$N:$AR,MATCH($C63,отсутствия!$A:$A,),Q$11)&" "&TEXT(INDEX('график 7,8'!$B$52:$AF$63,MONTH($AP$3),Q$11)&"","Я")),2)) -> Я | R64: =TRIM(LEFT(TRIM(INDEX(отсутствия!$N:$AR,MATCH($C63,отсутствия!$A:$A,),R$11)&" "&TEXT(INDEX('график 7,8'!$B$52:$AF$63,MONTH($AP$3),R$11)&"","Я")),2)) -> В | S64: =TRIM(LEFT(TRIM(INDEX(отсутствия!$N:$AR,MATCH($C63,отсутствия!$A:$A,),S$11)&" "&TEXT(INDEX('график 7,8'!$B$52:$AF$63,MONTH($AP$3),S$11)&"","Я")),2)) -> В | U64: =TRIM(LEFT(TRIM(INDEX(отсутствия!$N:$AR,MATCH($C63,отсутствия!$A:$A,),U$11)&" "&TEXT(INDEX('график 7,8'!$B$52:$AF$63,MONTH($AP$3),U$11)&"","Я")),2)) -> Я | V64: =TRIM(LEFT(TRIM(INDEX(отсутствия!$N:$AR,MATCH($C63,отсутствия!$A:$A,),V$11)&" "&TEXT(INDEX('график 7,8'!$B$52:$AF$63,MONTH($AP$3),V$11)&"","Я")),2)) -> Я | W64: =TRIM(LEFT(TRIM(INDEX(отсутствия!$N:$AR,MATCH($C63,отсутствия!$A:$A,),W$11)&" "&TEXT(INDEX('график 7,8'!$B$52:$AF$63,MONTH($AP$3),W$11)&"","Я")),2)) -> Я | X64: =TRIM(LEFT(TRIM(INDEX(отсутствия!$N:$AR,MATCH($C63,отсутствия!$A:$A,),X$11)&" "&TEXT(INDEX('график 7,8'!$B$52:$AF$63,MONTH($AP$3),X$11)&"","Я")),2)) -> Я | Y64: =TRIM(LEFT(TRIM(INDEX(отсутствия!$N:$AR,MATCH($C63,отсутствия!$A:$A,),Y$11)&" "&TEXT(INDEX('график 7,8'!$B$52:$AF$63,MONTH($AP$3),Y$11)&"","Я")),2)) -> Я | Z64: =TRIM(LEFT(TRIM(INDEX(отсутствия!$N:$AR,MATCH($C63,отсутствия!$A:$A,),Z$11)&" "&TEXT(INDEX('график 7,8'!$B$52:$AF$63,MONTH($AP$3),Z$11)&"","Я")),2)) -> В | AA64: =TRIM(LEFT(TRIM(INDEX(отсутствия!$N:$AR,MATCH($C63,отсутствия!$A:$A,),AA$11)&" "&TEXT(INDEX('график 7,8'!$B$52:$AF$63,MONTH($AP$3),AA$11)&"","Я")),2)) -> В | AB64: =TRIM(LEFT(TRIM(INDEX(отсутствия!$N:$AR,MATCH($C63,отсутствия!$A:$A,),AB$11)&" "&TEXT(INDEX('график 7,8'!$B$52:$AF$63,MONTH($AP$3),AB$11)&"","Я")),2)) -> Я | AC64: =TRIM(LEFT(TRIM(INDEX(отсутствия!$N:$AR,MATCH($C63,отсутствия!$A:$A,),AC$11)&" "&TEXT(INDEX('график 7,8'!$B$52:$AF$63,MONTH($AP$3),AC$11)&"","Я")),2)) -> Я | AD64: =TRIM(LEFT(TRIM(INDEX(отсутствия!$N:$AR,MATCH($C63,отсутствия!$A:$A,),AD$11)&" "&TEXT(INDEX('график 7,8'!$B$52:$AF$63,MONTH($AP$3),AD$11)&"","Я")),2)) -> Я | AE64: =TRIM(LEFT(TRIM(INDEX(отсутствия!$N:$AR,MATCH($C63,отсутствия!$A:$A,),AE$11)&" "&TEXT(INDEX('график 7,8'!$B$52:$AF$63,MONTH($AP$3),AE$11)&"","Я")),2)) -> Я | AF64: =TRIM(LEFT(TRIM(INDEX(отсутствия!$N:$AR,MATCH($C63,отсутствия!$A:$A,),AF$11)&" "&TEXT(INDEX('график 7,8'!$B$52:$AF$63,MONTH($AP$3),AF$11)&"","Я")),2)) -> Я | AG64: =TRIM(LEFT(TRIM(INDEX(отсутствия!$N:$AR,MATCH($C63,отсутствия!$A:$A,),AG$11)&" "&TEXT(INDEX('график 7,8'!$B$52:$AF$63,MONTH($AP$3),AG$11)&"","Я")),2)) -> В | AH64: =TRIM(LEFT(TRIM(INDEX(отсутствия!$N:$AR,MATCH($C63,отсутствия!$A:$A,),AH$11)&" "&TEXT(INDEX('график 7,8'!$B$52:$AF$63,MONTH($AP$3),AH$11)&"","Я")),2)) -> В | AI64: =TRIM(LEFT(TRIM(INDEX(отсутствия!$N:$AR,MATCH($C63,отсутствия!$A:$A,),AI$11)&" "&TEXT(INDEX('график 7,8'!$B$52:$AF$63,MONTH($AP$3),AI$11)&"","Я")),2)) -> Я | AJ64: =TRIM(LEFT(TRIM(INDEX(отсутствия!$N:$AR,MATCH($C63,отсутствия!$A:$A,),AJ$11)&" "&TEXT(INDEX('график 7,8'!$B$52:$AF$63,MONTH($AP$3),AJ$11)&"","Я")),2)) -> Я
